Workbook

Sheet 1 年次別，死亡数・粗死亡率・年齢調整死亡率・死亡性比
A1: 第3章 死 亡
A2: 1 年次別にみた死亡数・粗死亡率(人口千対)・年齢調整死亡率及び死亡性比
A4: 年次 | B4: 死亡数 | E4: 粗死亡率 | H4: 年齢調整死亡率 2) | K4: 死亡性比
B5: 総数 | C5: 男 | D5: 女 | E5: 総数 | F5: 男 | G5: 女 | H5: 総数 | I5: 男 | J5: 女
A6: 1950 昭和25年 | B6: 2568 | C6: 1369 | D6: 1199 | E6: 8.182252668 | F6: 8.759357604 | G6: 7.609799441 | H6: 14.38314571 | I6: … | J6: … | K6: 114.1784821 | M6: 313850 | N6: 156290 | O6: 157560
A7: 55 30 | B7: 2565 | C7: 1376 | D7: 1189 | E7: 6.012376354 | F7: 6.401756761 | G7: 5.616995545 | H7: 11.33922859 | I7: … | J7: … | K7: 115.7275021 | M7: 426620 | N7: 214941 | O7: 211679
A8: 60 35 | B8: 2927 | C8: 1603 | D8: 1316 | E8: 5.587594662 | F8: 6.063540457 | G8: 5.071838194 | H8: 11.73701994 | I8: 14.42139087 | J8: 9.722406859 | K8: 121.8085106 | M8: 523839 | N8: 264367 | O8: 259472
A9: 65 40 | B9: 3893 | C9: 2143 | D9: 1750 | E9: 4.897422092 | F9: 5.35555861 | G9: 4.433039571 | H9: 10.6873075 | I9: 12.7161372 | J9: 9.023112158 | K9: 122.4571429 | M9: 794908 | N9: 400145 | O9: 394763
A10: 70 45 | B10: 4660 | C10: 2647 | D10: 2013 | E10: 4.613299568 | F10: 5.260783414 | G10: 3.97068048 | H10: 9.114072591 | I10: 11.19455125 | J10: 7.408944499 | K10: 131.4952807 | M10: 1010123 | N10: 503157 | O10: 506966
A11: 72 47 | B11: 4775 | C11: 2707 | D11: 2068 | E11: 4.344455747 | F11: 4.952188604 | G11: 3.743155799 | H11: … | I11: … | J11: … | K11: 130.8994197 | M11: 1099102 | N11: 546627 | O11: 552475
A12: 73 48 | B12: 5173 | C12: 2872 | D12: 2301 | E12: 4.488982338 | F12: 5.008449142 | G12: 3.97446394 | H12: … | I12: … | J12: … | K12: 124.8152977 | M12: 1152377 | N12: 573431 | O12: 578946
A13: 74 49 | B13: 5156 | C13: 2821 | D13: 2335 | E13: 4.291309682 | F13: 4.743823444 | G13: 3.847865135 | H13: 8.401773618 | I13: 10.02551678 | J13: 7.071819452 | K13: 120.8137045 | M13: 1201498 | N13: 594668 | O13: 606830
A14: 75 50 | B14: 5405 | C14: 2919 | D14: 2486 | E14: 4.356717204 | F14: 4.749948335 | G14: 3.970738564 | H14: 8.263264002 | I14: 9.777843397 | J14: 7.023891403 | K14: 117.4175382 | M14: 1240613 | N14: 614533 | O14: 626080
A15: 76 51 | B15: 5460 | C15: 3069 | D15: 2391 | E15: 4.28051316 | F15: 4.863184316 | G15: 3.709967726 | H15: 7.015041298 | I15: 8.575426058 | J15: 6.333177496 | K15: 128.3563363 | M15: 1275548 | N15: 631068 | O15: 644480
A16: 77 52 | B16: 5623 | C16: 3107 | D16: 2516 | E16: 4.306528645 | F16: 4.817509873 | G16: 3.807776885 | H16: 7.880216325 | I16: 9.835378807 | J16: 6.407401952 | K16: 123.4896661 | M16: 1305692 | N16: 644939 | O16: 660753
A17: 78 53 | B17: 5717 | C17: 3172 | D17: 2545 | E17: 4.286529411 | F17: 4.819928856 | G17: 3.766954998 | H17: 7.534926581 | I17: 9.191177918 | J17: 6.173820297 | K17: 124.6365422 | M17: 1333713 | N17: 658101 | O17: 675612
A18: 79 54 | B18: 5835 | C18: 3267 | D18: 2568 | E18: 4.268083948 | F18: 4.844974173 | G18: 3.706606506 | H18: 7.154137253 | I18: 8.708243121 | J18: 5.845106595 | K18: 127.2196262 | M18: 1367124 | N18: 674307 | O18: 692817
A19: 80 55 | B19: 6342 | C19: 3443 | D19: 2899 | E19: 4.524321976 | F19: 4.982222885 | G19: 4.079076966 | H19: 7.546971698 | I19: 9.168114857 | J19: 6.261740028 | K19: 118.7650914 | M19: 1401757 | N19: 691057 | O19: 710700
A20: 81 56 | B20: 6437 | C20: 3610 | D20: 2827 | E20: 4.493875289 | F20: 5.118897381 | G20: 3.887706212 | H20: 7.242966989 | I20: 9.018835092 | J20: 5.808343623 | K20: 127.6972055 | M20: 1432394 | N20: 705230 | O20: 727164
A21: 82 57 | B21: 6676 | C21: 3730 | D21: 2946 | E21: 4.562989209 | F21: 5.185979225 | G21: 3.960587716 | H21: 7.052468451 | I21: 8.797885699 | J21: 5.642900358 | K21: 126.6123557 | M21: 1463076 | N21: 719247 | O21: 743829
A22: 83 58 | B22: 6882 | C22: 3887 | D22: 2995 | E22: 4.608378249 | F22: 5.304876884 | G22: 3.937447824 | H22: 6.8065841 | I22: 8.645224556 | J22: 5.352441715 | K22: 129.7829716 | M22: 1493367 | N22: 732722 | O22: 760645
A23: 84 59 | B23: 6856 | C23: 3824 | D23: 3032 | E23: 4.511226743 | F23: 5.14154717 | G23: 3.907120831 | H23: 6.412438676 | I23: 8.033847894 | J23: 5.106292241 | K23: 126.121372 | M23: 1519764 | N23: 743745 | O23: 776019
A24: 85 60 | B24: 7226 | C24: 3968 | D24: 3258 | E24: 4.692792868 | F24: 5.280148611 | G24: 4.132870912 | H24: 6.444812672 | I24: 8.100339209 | J24: 5.158558571 | K24: 121.7925107 | M24: 1539808 | N24: 751494 | O24: 788314
A25: 86 61 | B25: 7127 | C25: 4021 | D25: 3106 | E25: 4.548555688 | F25: 5.265632223 | G25: 3.866839301 | H25: 6.125488725 | I25: 8.242974723 | J25: 4.638777263 | K25: 129.4591114 | M25: 1566871 | N25: 763631 | O25: 803240
A26: 87 62 | B26: 7074 | C26: 4036 | D26: 3038 | E26: 4.440106578 | F26: 5.206828221 | G26: 3.713623178 | H26: 5.590941753 | I26: 7.37680243 | J26: 4.225861048 | K26: 132.8505596 | M26: 1593205 | N26: 775136 | O26: 818069
A27: 88 63 | B27: 7761 | C27: 4316 | D27: 3445 | E27: 4.794111415 | F27: 5.491855741 | G27: 4.13580321 | H27: 5.838338957 | I27: 7.575880671 | J27: 4.514257487 | K27: 125.2830189 | M27: 1618861 | N27: 785891 | O27: 832970
A28: 89 平成元年 | B28: 8103 | C28: 4520 | D28: 3583 | E28: 4.925551412 | F28: 5.668692514 | G28: 4.226566619 | H28: 5.765031076 | I28: 7.529727639 | J28: 4.422851904 | K28: 126.1512699 | M28: 1645095 | N28: 797362 | O28: 847733
A29: 90 2 | B29: 8278 | C29: 4643 | D29: 3635 | E29: 4.962877342 | F29: 5.75201779 | G29: 4.222869948 | H29: 5.60463035 | I29: 7.406156495 | J29: 4.237994881 | K29: 127.7303989 | M29: 1667984 | N29: 807195 | O29: 860789
A30: 91 3 | B30: 8342 | C30: 4785 | D30: 3557 | E30: 4.921568766 | F30: 5.841898806 | G30: 4.060942682 | H30: 5.354858338 | I30: 7.322193935 | J30: 3.913699428 | K30: 134.5234748 | M30: 1694988 | N30: 819083 | O30: 875905
A31: 92 4 | B31: 8808 | C31: 4992 | D31: 3816 | E31: 5.137393788 | F31: 6.037706639 | G31: 4.29882706 | H31: 5.357078244 | I31: 7.232232671 | J31: 3.949419347 | K31: 130.8176101 | M31: 1714488 | N31: 826804 | O31: 887684
A32: 93 5 | B32: 9428 | C32: 5271 | D32: 4157 | E32: 5.454547558 | F32: 6.335313695 | G32: 4.637112742 | H32: 5.456932647 | I32: 7.336613927 | J32: 4.059469142 | K32: 126.7981718 | M32: 1728466 | N32: 832003 | O32: 896463
A33: 94 6 | B33: 8934 | C33: 5096 | D33: 3838 | E33: 5.132907487 | F33: 6.093463397 | G33: 4.244504705 | H33: 4.926849509 | I33: 6.767330827 | J33: 3.552409539 | K33: 132.7774883 | M33: 1740534 | N33: 836306 | O33: 904228
A34: 95 7 | B34: 9398 | C34: 5288 | D34: 4110 | E34: 5.364127696 | F34: 6.290939287 | G34: 4.509372583 | H34: 4.88753041 | I34: 6.643247893 | J34: 3.581497217 | K34: 128.6618005 | M34: 1752009 | N34: 840574 | O34: 911435
A35: 96 8 | B35: 9512 | C35: 5383 | D35: 4129 | E35: 5.360262378 | F35: 6.325395352 | G35: 4.470908236 | H35: 4.721457386 | I35: 6.499324256 | J35: 3.409131205 | K35: 130.3705498 | M35: 1774540 | N35: 851014 | O35: 923526
A36: 97 9 | B36: 9840 | C36: 5630 | D36: 4210 | E36: 5.493459489 | F36: 6.561175091 | G36: 4.511634337 | H36: 4.633561421 | I36: 6.500249571 | J36: 3.279034122 | K36: 133.7292162 | M36: 1791221 | N36: 858078 | O36: 933143
A37: 98 10 | B37: 9995 | C37: 5707 | D37: 4288 | E37: 5.541860313 | F37: 6.616918999 | G37: 4.556563875 | H37: 4.478400626 | I37: 6.312868943 | J37: 3.147333089 | K37: 133.0923507 | M37: 1803546 | N37: 862486 | O37: 941060
A38: 99 11 | B38: 10806 | C38: 6044 | D38: 4762 | E38: 5.963480717 | F38: 6.987008603 | G38: 5.028537637 | H38: 4.623836044 | I38: 6.400753629 | J38: 3.329669258 | K38: 126.9214616 | M38: 1812029 | N38: 865034 | O38: 946995
A39: 2000 12 | B39: 10800 | C39: 6127 | D39: 4673 | E39: 5.944920313 | F39: 7.075409056 | G39: 4.915222147 | H39: 4.389883592 | I39: 6.174672625 | J39: 3.066488191 | K39: 131.1149155 | M39: 1816677 | N39: 865957 | O39: 950720
A40: 01 13 | B40: 10803 | C40: 6114 | D40: 4689 | E40: 5.888207452 | F40: 6.999844295 | G40: 4.878094453 | H40: 4.182314123 | I40: 5.891509462 | J40: 2.938959626 | K40: 130.3902751 | M40: 1834684 | N40: 873448 | O40: 961236
A41: 02 14 | B41: 11151 | C41: 6328 | D41: 4823 | E41: 6.033189848 | F41: 7.202941277 | G41: 4.973467279 | H41: 3.928934935 | I41: 5.586721222 | J41: 2.711254006 | K41: 131.2046444 | M41: 1848276 | N41: 878530 | O41: 969746
A42: 03 15 | B42: 11769 | C42: 6476 | D42: 5293 | E42: 6.319397797 | F42: 7.330410677 | G42: 5.406990167 | H42: 3.967985973 | I42: 5.503306771 | J42: 2.819056431 | K42: 122.3502739 | M42: 1862361 | N42: 883443 | O42: 978918
A43: 04 16 | B43: 12348 | C43: 6859 | D43: 5489 | E43: 6.593677695 | F43: 7.733696547 | G43: 5.568038304 | H43: 4.158717458 | I43: 5.819023638 | J43: 2.910068812 | K43: 124.9590089 | M43: 1872703 | N43: 886898 | O43: 985805
A44: 05 17 | B44: 13105 | C44: 7313 | D44: 5792 | E44: 6.967546281 | F44: 8.3 | G44: 5.9 | H44: 4.186175153 | I44: 5.929256601 | J44: 2.899572169 | K44: 126.2603591 | M44: 1874479 | N44: 885751 | O44: 988728
A45: 06 18 | B45: 13268 | C45: 7224 | D45: 6044 | E45: 7.024986141 | F45: 8.110265481 | G45: 6.056330689 | H45: 4.039137445 | I45: 5.613578088 | J45: 2.89182289 | K45: 119.5234944 | M45: 1888687 | N45: 890723 | O45: 997964
A46: 07 19 | B46: 14044 | C46: 7695 | D46: 6349 | E46: 7.413648208 | F46: 8.634493314 | G46: 6.329057141 | H46: 4.070505052 | I46: 5.730696257 | J46: 2.868032399 | K46: 121.200189 | M46: 1894344 | N46: 891193 | O46: 1003151
A47: 08 20 | B47: 14366 | C47: 7764 | D47: 6602 | E47: 7.567134218 | F47: 8.714313293 | G47: 6.552691 | H47: 3.987311053 | I47: 5.555541258 | J47: 2.83220576 | K47: 117.6007271 | M47: 1898473 | N47: 890948 | O47: 1007525
A48: 09 21 | B48: 14506 | C48: 7931 | D48: 6575 | E48: 7.617585248 | F48: 8.89103632 | G48: 6.49539247 | H48: 3.851519931 | I48: 5.428225383 | J48: 2.706896558 | K48: 120.6235741 | M48: 1904278 | N48: 892022 | O48: 1012256
A49: 10 22 | B49: 15482 | C49: 8321 | D49: 7161 | E49: 8.11989884 | F49: 9.314044832 | G49: 7.067064578 | H49: 3.9 | I49: 5.4 | J49: 2.8 | K49: 116.1988549 | M49: 1906674 | N49: 893382 | O49: 1013292
A50: 11 23 | B50: 15926 | C50: 8511 | D50: 7415 | E50: 8.286440488 | F50: 9.461786544 | G50: 7.252386979 | H50: 3.868786591 | I50: 5.385288709 | J50: 2.759072711 | K50: 114.7808496 | M50: 1921935 | N50: 899513 | O50: 1022422
A51: 12 24 | B51: 16228 | C51: 8666 | D51: 7562 | E51: 8.413626051 | F51: 9.615395284 | G51: 7.359517592 | H51: 3.75529017 | I51: 5.280711431 | J51: 2.617652694 | K51: 114.5993124 | M51: 1928776 | N51: 901263 | O51: 1027513
A52: 13 25 | B52: 16844 | C52: 8726 | D52: 8118 | E52: 8.699563937 | F52: 9.652088982 | G52: 7.865242565 | H52: 3.716687623 | I52: 5.074667667 | J52: 2.712480879 | K52: 107.4895294 | M52: 1936189 | N52: 904053 | O52: 1032136
A53: 14 26 | B53: 17668 | C53: 9233 | D53: 8435 | E53: 9.094802558 | F53: 10.18972331 | G53: 8.13765811 | H53: 3.708046608 | I53: 5.121410999 | J53: 2.67732483 | K53: 109.4605809 | M53: 1942648 | N53: 906109 | O53: 1036539
A54: 15 3) 27 | B54: 17523 | C54: 9083 | D54: 8440 | E54: 9.016082617 | F54: 10.02199034 | G54: 8.137135805 | H54: 3.462036439 | I54: 4.783804633 | J54: 2.481248333 | K54: 107.6184834 | M54: 1952356 | N54: 910614 | O54: 1041742
A55: 16 28 | B55: 18504 | C55: 9654 | D55: 8850 | E55: 9.448505289 | F55: 10.57956371 | G55: 8.461684822 | H55: 3.600013918 | I55: 5.00400258 | J55: 2.568737747 | K55: 109.0847458 | M55: 1958405 | N55: 912514 | O55: 1045891
A56: 17 29 | B56: 18668 | C56: 9534 | D56: 9134 | E56: 9.510331048 | F56: 10.42993108 | G56: 8.708851297 | H56: 3.468882909 | I56: 4.732862254 | J56: 2.544405464 | K56: 104.3792424 | M56: 1962918 | N56: 914100 | O56: 1048818
A57: 18 30 | B57: =SUM(C57:D57) -> 19343 | C57: ='3 月・性別，区別死亡数'!$C$6 -> 9925 | D57: ='3 月・性別，区別死亡数'!$C$7 -> 9418 | E57: =B57/M57*1000 -> 9.839059178 | F57: =C57/N57*1000 -> 10.84876116 | G57: =D57/O57*1000 -> 8.96023077 | H57: =調整死亡率算出!$E$11/100 -> 3.479842389 | I57: =調整死亡率算出!$E$12/100 -> 4.783486854 | J57: =調整死亡率算出!$E$13/100 -> 2.526521939 | K57: =C57/D57*100 -> 105.3833086 | M57: =[1]人口!$B$42 -> 1965940 | N57: =[1]人口!$B$43 -> 914851 | O57: =[1]人口!$B$44 -> 1051089
A58: 1) 本市の集計による。
A59: * 昭和35年の総数には性別不詳を含む。
A60: 2) 住民基本台帳の人口により算出。

Sheet 2 区別，年次別死亡数・死亡率
A1: 2 区別にみた年次別死亡数及び粗死亡率(人口千対)
A3: 年次 | B3: 総数 | C3: 中央区 | D3: 北区 | E3: 東区 | F3: 白石区 | G3: 厚別区 | H3: 豊平区 | I3: 清田区 | J3: 南区 | K3: 西区 | L3: 手稲区
B4: 死亡数 | N4: =[1]年次別人口!C3 -> 総数 | O4: =[1]年次別人口!D3 -> 中央区 | P4: =[1]年次別人口!E3 -> 北区 | Q4: =[1]年次別人口!F3 -> 東区 | R4: =[1]年次別人口!G3 -> 白石区 | S4: =[1]年次別人口!H3 -> 厚別区 | T4: =[1]年次別人口!I3 -> 豊平区 | U4: =[1]年次別人口!J3 -> 清田区 | V4: =[1]年次別人口!K3 -> 南区 | W4: =[1]年次別人口!L3 -> 西区 | X4: =[1]年次別人口!M3 -> 手稲区
A5: 85 60 | B5: =SUM(C5:L5) -> 7226 | C5: 1081 | D5: 1010 | E5: 1094 | F5: 1107 | G5: … | H5: 1092 | I5: … | J5: 596 | K5: 1246 | L5: … | N5: =[1]年次別人口!C4 -> 1539808 | O5: =[1]年次別人口!D4 -> 180845 | P5: =[1]年次別人口!E4 -> 212508 | Q5: =[1]年次別人口!F4 -> 224539 | R5: =[1]年次別人口!G4 -> 263938 | S5: =[1]年次別人口!H4 -> 0 | T5: =[1]年次別人口!I4 -> 249956 | U5: =[1]年次別人口!J4 -> 0 | V5: =[1]年次別人口!K4 -> 141743 | W5: =[1]年次別人口!L4 -> 269450 | X5: =[1]年次別人口!M4 -> 0
A6: 1986 昭和61年 | B6: 7127 | C6: 993 | D6: 1002 | E6: 1076 | F6: 1210 | G6: … | H6: 1044 | I6: … | J6: 602 | K6: 1200 | L6: … | N6: =[1]年次別人口!C5 -> 1566871 | O6: =[1]年次別人口!D5 -> 182427 | P6: =[1]年次別人口!E5 -> 214728 | Q6: =[1]年次別人口!F5 -> 224730 | R6: =[1]年次別人口!G5 -> 272037 | S6: =[1]年次別人口!H5 -> 0 | T6: =[1]年次別人口!I5 -> 255105 | U6: =[1]年次別人口!J5 -> 0 | V6: =[1]年次別人口!K5 -> 142892 | W6: =[1]年次別人口!L5 -> 274952 | X6: =[1]年次別人口!M5 -> 0
A7: 1987 昭和62年 | B7: 7074 | C7: 1021 | D7: 941 | E7: 1036 | F7: 1138 | G7: … | H7: 1061 | I7: … | J7: 618 | K7: 1259 | L7: … | N7: =[1]年次別人口!C6 -> 1593205 | O7: =[1]年次別人口!D6 -> 182818 | P7: =[1]年次別人口!E6 -> 217384 | Q7: =[1]年次別人口!F6 -> 225693 | R7: =[1]年次別人口!G6 -> 280378 | S7: =[1]年次別人口!H6 -> 0 | T7: =[1]年次別人口!I6 -> 260488 | U7: =[1]年次別人口!J6 -> 0 | V7: =[1]年次別人口!K6 -> 144547 | W7: =[1]年次別人口!L6 -> 281897 | X7: =[1]年次別人口!M6 -> 0
A8: 1988 昭和63年 | B8: 7761 | C8: 1071 | D8: 1069 | E8: 1091 | F8: 1309 | G8: … | H8: 1152 | I8: … | J8: 648 | K8: 1421 | L8: … | N8: =[1]年次別人口!C7 -> 1618861 | O8: =[1]年次別人口!D7 -> 182735 | P8: =[1]年次別人口!E7 -> 220308 | Q8: =[1]年次別人口!F7 -> 227252 | R8: =[1]年次別人口!G7 -> 287265 | S8: =[1]年次別人口!H7 -> 0 | T8: =[1]年次別人口!I7 -> 266739 | U8: =[1]年次別人口!J7 -> 0 | V8: =[1]年次別人口!K7 -> 145661 | W8: =[1]年次別人口!L7 -> 288901 | X8: =[1]年次別人口!M7 -> 0
A9: 89 平成元年 | B9: 8103 | C9: 1093 | D9: 1081 | E9: 1196 | F9: 1362 | G9: … | H9: 1277 | I9: … | J9: 698 | K9: 1396 | L9: … | N9: =[1]年次別人口!C8 -> 1645095 | O9: =[1]年次別人口!D8 -> 181535 | P9: =[1]年次別人口!E8 -> 224721 | Q9: =[1]年次別人口!F8 -> 230623 | R9: =[1]年次別人口!G8 -> 294751 | S9: =[1]年次別人口!H8 -> 0 | T9: =[1]年次別人口!I8 -> 272011 | U9: =[1]年次別人口!J8 -> 0 | V9: =[1]年次別人口!K8 -> 146535 | W9: =[1]年次別人口!L8 -> 294919 | X9: =[1]年次別人口!M8 -> 0
A10: 90 2 | B10: 8278 | C10: 1082 | D10: 1121 | E10: 1199 | F10: 978 | G10: 408 | H10: 1286 | I10: … | J10: 726 | K10: 957 | L10: 521 | N10: =[1]年次別人口!C9 -> 1667984 | O10: =[1]年次別人口!D9 -> 179184 | P10: =[1]年次別人口!E9 -> 230918 | Q10: =[1]年次別人口!F9 -> 232999 | R10: =[1]年次別人口!G9 -> 188043 | S10: =[1]年次別人口!H9 -> 112623 | T10: =[1]年次別人口!I9 -> 277801 | U10: =[1]年次別人口!J9 -> 0 | V10: =[1]年次別人口!K9 -> 148393 | W10: =[1]年次別人口!L9 -> 190807 | X10: =[1]年次別人口!M9 -> 110974
A11: 91 3 | B11: 8342 | C11: 1094 | D11: 1112 | E11: 1124 | F11: 884 | G11: 431 | H11: 1336 | I11: … | J11: 811 | K11: 995 | L11: 555 | N11: =[1]年次別人口!C10 -> 1694988 | O11: =[1]年次別人口!D10 -> 177997 | P11: =[1]年次別人口!E10 -> 234595 | Q11: =[1]年次別人口!F10 -> 236454 | R11: =[1]年次別人口!G10 -> 190543 | S11: =[1]年次別人口!H10 -> 115650 | T11: =[1]年次別人口!I10 -> 281463 | U11: =[1]年次別人口!J10 -> 0 | V11: =[1]年次別人口!K10 -> 150378 | W11: =[1]年次別人口!L10 -> 192601 | X11: =[1]年次別人口!M10 -> 115307
A12: 92 4 | B12: 8808 | C12: 1074 | D12: 1119 | E12: 1241 | F12: 1002 | G12: 482 | H12: 1432 | I12: … | J12: 818 | K12: 1037 | L12: 603 | N12: =[1]年次別人口!C11 -> 1714488 | O12: =[1]年次別人口!D11 -> 176981 | P12: =[1]年次別人口!E11 -> 239907 | Q12: =[1]年次別人口!F11 -> 237749 | R12: =[1]年次別人口!G11 -> 191928 | S12: =[1]年次別人口!H11 -> 117351 | T12: =[1]年次別人口!I11 -> 285597 | U12: =[1]年次別人口!J11 -> 0 | V12: =[1]年次別人口!K11 -> 152014 | W12: =[1]年次別人口!L11 -> 193258 | X12: =[1]年次別人口!M11 -> 119703
A13: 1993 平成5年 | B13: 9428 | C13: 1155 | D13: 1284 | E13: 1303 | F13: 1084 | G13: 565 | H13: 1513 | I13: … | J13: 849 | K13: 1065 | L13: 610 | N13: =[1]年次別人口!C12 -> 1728466 | O13: =[1]年次別人口!D12 -> 174994 | P13: =[1]年次別人口!E12 -> 243771 | Q13: =[1]年次別人口!F12 -> 238168 | R13: =[1]年次別人口!G12 -> 191918 | S13: =[1]年次別人口!H12 -> 119386 | T13: =[1]年次別人口!I12 -> 288941 | U13: =[1]年次別人口!J12 -> 0 | V13: =[1]年次別人口!K12 -> 153020 | W13: =[1]年次別人口!L12 -> 194009 | X13: =[1]年次別人口!M12 -> 124259
A14: 94 6 | B14: 8934 | C14: 1034 | D14: 1227 | E14: 1233 | F14: 1059 | G14: 515 | H14: 1453 | I14: … | J14: 803 | K14: 1019 | L14: 591 | N14: =[1]年次別人口!C13 -> 1740534 | O14: =[1]年次別人口!D13 -> 173594 | P14: =[1]年次別人口!E13 -> 247942 | Q14: =[1]年次別人口!F13 -> 238547 | R14: =[1]年次別人口!G13 -> 191099 | S14: =[1]年次別人口!H13 -> 121427 | T14: =[1]年次別人口!I13 -> 292470 | U14: =[1]年次別人口!J13 -> 0 | V14: =[1]年次別人口!K13 -> 154474 | W14: =[1]年次別人口!L13 -> 193597 | X14: =[1]年次別人口!M13 -> 127384
A15: 95 7 | B15: 9398 | C15: 1123 | D15: 1280 | E15: 1283 | F15: 1068 | G15: 549 | H15: 1548 | I15: … | J15: 844 | K15: 1053 | L15: 650 | N15: =[1]年次別人口!C14 -> 1752009 | O15: =[1]年次別人口!D14 -> 173358 | P15: =[1]年次別人口!E14 -> 251419 | Q15: =[1]年次別人口!F14 -> 241319 | R15: =[1]年次別人口!G14 -> 192102 | S15: =[1]年次別人口!H14 -> 122738 | T15: =[1]年次別人口!I14 -> 296647 | U15: =[1]年次別人口!J14 -> 0 | V15: =[1]年次別人口!K14 -> 155650 | W15: =[1]年次別人口!L14 -> 194308 | X15: =[1]年次別人口!M14 -> 129484
A16: 96 8 | B16: 9512 | C16: 1098 | D16: 1363 | E16: 1352 | F16: 933 | G16: 557 | H16: 1542 | I16: … | J16: 946 | K16: 1054 | L16: 667 | N16: =[1]年次別人口!C15 -> 1774540 | O16: =[1]年次別人口!D15 -> 175812 | P16: =[1]年次別人口!E15 -> 253271 | Q16: =[1]年次別人口!F15 -> 243767 | R16: =[1]年次別人口!G15 -> 193494 | S16: =[1]年次別人口!H15 -> 124213 | T16: =[1]年次別人口!I15 -> 300609 | U16: =[1]年次別人口!J15 -> 0 | V16: =[1]年次別人口!K15 -> 156831 | W16: =[1]年次別人口!L15 -> 194629 | X16: =[1]年次別人口!M15 -> 131914
A17: 97 9 | B17: 9840 | C17: 1158 | D17: 1313 | E17: 1298 | F17: 1063 | G17: 639 | H17: 1638 | I17: … | J17: 920 | K17: 1130 | L17: 681 | N17: =[1]年次別人口!C16 -> 1791221 | O17: =[1]年次別人口!D16 -> 178405 | P17: =[1]年次別人口!E16 -> 255530 | Q17: =[1]年次別人口!F16 -> 245544 | R17: =[1]年次別人口!G16 -> 194555 | S17: =[1]年次別人口!H16 -> 124531 | T17: =[1]年次別人口!I16 -> 305192 | U17: =[1]年次別人口!J16 -> 0 | V17: =[1]年次別人口!K16 -> 157297 | W17: =[1]年次別人口!L16 -> 196727 | X17: =[1]年次別人口!M16 -> 133440
A18: 1998 平成10年 | B18: 9995 | C18: 1107 | D18: 1412 | E18: 1369 | F18: 1114 | G18: 609 | H18: 1080 | I18: 682 | J18: 954 | K18: 1112 | L18: 556 | N18: =[1]年次別人口!C17 -> 1803546 | O18: =[1]年次別人口!D17 -> 179801 | P18: =[1]年次別人口!E17 -> 257132 | Q18: =[1]年次別人口!F17 -> 247420 | R18: =[1]年次別人口!G17 -> 194903 | S18: =[1]年次別人口!H17 -> 125679 | T18: =[1]年次別人口!I17 -> 202316 | U18: =[1]年次別人口!J17 -> 106984 | V18: =[1]年次別人口!K17 -> 157438 | W18: =[1]年次別人口!L17 -> 197627 | X18: =[1]年次別人口!M17 -> 134246
A19: 99 11 | B19: 10806 | C19: 1209 | D19: 1537 | E19: 1420 | F19: 1183 | G19: 644 | H19: 1201 | I19: 574 | J19: 1000 | K19: 1281 | L19: 757 | N19: =[1]年次別人口!C18 -> 1812029 | O19: =[1]年次別人口!D18 -> 180515 | P19: =[1]年次別人口!E18 -> 258640 | Q19: =[1]年次別人口!F18 -> 247756 | R19: =[1]年次別人口!G18 -> 195162 | S19: =[1]年次別人口!H18 -> 126780 | T19: =[1]年次別人口!I18 -> 203514 | U19: =[1]年次別人口!J18 -> 108731 | V19: =[1]年次別人口!K18 -> 157152 | W19: =[1]年次別人口!L18 -> 198486 | X19: =[1]年次別人口!M18 -> 135293
A20: 2000 12 | B20: 10800 | C20: 1238 | D20: 1447 | E20: 1430 | F20: 1175 | G20: 674 | H20: 1207 | I20: 645 | J20: 1026 | K20: 1190 | L20: 768 | N20: =[1]年次別人口!C19 -> 1816677 | O20: =[1]年次別人口!D19 -> 180488 | P20: =[1]年次別人口!E19 -> 259139 | Q20: =[1]年次別人口!F19 -> 248140 | R20: =[1]年次別人口!G19 -> 196793 | S20: =[1]年次別人口!H19 -> 127325 | T20: =[1]年次別人口!I19 -> 203918 | U20: =[1]年次別人口!J19 -> 109635 | V20: =[1]年次別人口!K19 -> 156441 | W20: =[1]年次別人口!L19 -> 199013 | X20: =[1]年次別人口!M19 -> 135785
A21: 01 13 | B21: 10803 | C21: 1213 | D21: 1504 | E21: 1409 | F21: 1243 | G21: 677 | H21: 1224 | I21: 511 | J21: 1020 | K21: 1205 | L21: 797 | N21: =[1]年次別人口!C20 -> 1834684 | O21: =[1]年次別人口!D20 -> 185064 | P21: =[1]年次別人口!E20 -> 262443 | Q21: =[1]年次別人口!F20 -> 249707 | R21: =[1]年次別人口!G20 -> 198580 | S21: =[1]年次別人口!H20 -> 128443 | T21: =[1]年次別人口!I20 -> 205066 | U21: =[1]年次別人口!J20 -> 110759 | V21: =[1]年次別人口!K20 -> 156589 | W21: =[1]年次別人口!L20 -> 201453 | X21: =[1]年次別人口!M20 -> 136580
A22: 02 14 | B22: 11151 | C22: 1249 | D22: 1601 | E22: 1488 | F22: 1268 | G22: 691 | H22: 1202 | I22: 603 | J22: 1024 | K22: 1236 | L22: 789 | N22: =[1]年次別人口!C21 -> 1848276 | O22: =[1]年次別人口!D21 -> 190254 | P22: =[1]年次別人口!E21 -> 265023 | Q22: =[1]年次別人口!F21 -> 251256 | R22: =[1]年次別人口!G21 -> 199164 | S22: =[1]年次別人口!H21 -> 129105 | T22: =[1]年次別人口!I21 -> 205981 | U22: =[1]年次別人口!J21 -> 111613 | V22: =[1]年次別人口!K21 -> 155571 | W22: =[1]年次別人口!L21 -> 203048 | X22: =[1]年次別人口!M21 -> 137261
A23: 03 15 | B23: 11769 | C23: 1290 | D23: 1610 | E23: 1651 | F23: 1241 | G23: 803 | H23: 1201 | I23: 610 | J23: 1104 | K23: 1360 | L23: 899 | N23: =[1]年次別人口!C22 -> 1862361 | O23: =[1]年次別人口!D22 -> 194901 | P23: =[1]年次別人口!E22 -> 268387 | Q23: =[1]年次別人口!F22 -> 252494 | R23: =[1]年次別人口!G22 -> 200077 | S23: =[1]年次別人口!H22 -> 129660 | T23: =[1]年次別人口!I22 -> 207859 | U23: =[1]年次別人口!J22 -> 112333 | V23: =[1]年次別人口!K22 -> 155234 | W23: =[1]年次別人口!L22 -> 203782 | X23: =[1]年次別人口!M22 -> 137634
A24: 04 16 | B24: 12348 | C24: 1432 | D24: 1844 | E24: 1675 | F24: 1340 | G24: 751 | H24: 1296 | I24: 626 | J24: 1129 | K24: 1400 | L24: 855 | N24: =[1]年次別人口!C23 -> 1872703 | O24: =[1]年次別人口!D23 -> 198946 | P24: =[1]年次別人口!E23 -> 271222 | Q24: =[1]年次別人口!F23 -> 253520 | R24: =[1]年次別人口!G23 -> 200856 | S24: =[1]年次別人口!H23 -> 129645 | T24: =[1]年次別人口!I23 -> 208605 | U24: =[1]年次別人口!J23 -> 112473 | V24: =[1]年次別人口!K23 -> 154348 | W24: =[1]年次別人口!L23 -> 205526 | X24: =[1]年次別人口!M23 -> 137562
A25: 05 17 | B25: 13105 | C25: 1481 | D25: 1924 | E25: 1760 | F25: 1420 | G25: 832 | H25: 1413 | I25: 651 | J25: 1172 | K25: 1537 | L25: 915 | N25: =[1]年次別人口!C24 -> 1874479 | O25: =[1]年次別人口!D24 -> 201612 | P25: =[1]年次別人口!E24 -> 271750 | Q25: =[1]年次別人口!F24 -> 253138 | R25: =[1]年次別人口!G24 -> 200866 | S25: =[1]年次別人口!H24 -> 129346 | T25: =[1]年次別人口!I24 -> 208576 | U25: =[1]年次別人口!J24 -> 112398 | V25: =[1]年次別人口!K24 -> 152505 | W25: =[1]年次別人口!L24 -> 206905 | X25: =[1]年次別人口!M24 -> 137383
A26: 06 18 | B26: 13268 | C26: 1447 | D26: 1940 | E26: 1789 | F26: 1435 | G26: 867 | H26: 1402 | I26: 732 | J26: 1203 | K26: 1481 | L26: 972 | N26: 1889460 | O26: 206768 | P26: 273792 | Q26: 254899 | R26: 202638 | S26: 129500 | T26: 209102 | U26: 113572 | V26: 151858 | W26: 208975 | X26: 138356
A27: 07 19 | B27: 14044 | C27: 1576 | D27: 1962 | E27: 1758 | F27: 1507 | G27: 982 | H27: 1543 | I27: 772 | J27: 1278 | K27: 1584 | L27: 1082 | N27: 1895901 | O27: 210166 | P27: 276240 | Q27: 255210 | R27: 203006 | S27: 128963 | T27: 209334 | U27: 114646 | V27: 150261 | W27: 209532 | X27: 138543
A28: 08 20 | B28: 14366 | C28: 1547 | D28: 2023 | E28: 1894 | F28: 1573 | G28: 966 | H28: 1613 | I28: 784 | J28: 1297 | K28: 1615 | L28: 1054 | N28: 1900815 | O28: 213591 | P28: 276624 | Q28: 255365 | R28: 203180 | S28: 129034 | T28: 209789 | U28: 115606 | V28: 148867 | W28: 210231 | X28: 138647
A29: 09 21 | B29: 14506 | C29: 1571 | D29: 2057 | E29: 1860 | F29: 1581 | G29: 934 | H29: 1540 | I29: 856 | J29: 1362 | K29: 1654 | L29: 1091 | N29: 1907404 | O29: 216780 | P29: 278310 | Q29: 255376 | R29: 203764 | S29: 128668 | T29: 211014 | U29: 116022 | V29: 147757 | W29: 210564 | X29: 139149
A30: 10 22 | B30: 15482 | C30: 1679 | D30: 2252 | E30: 2085 | F30: 1617 | G30: 980 | H30: 1666 | I30: 851 | J30: 1484 | K30: 1702 | L30: 1166 | N30: 1906674 | O30: 218964 | P30: 277240 | Q30: 254909 | R30: 203771 | S30: 128133 | T30: 211221 | U30: 116261 | V30: 145958 | W30: 210771 | X30: 139446
A31: 11 23 | B31: 15926 | C31: 1710 | D31: 2296 | E31: 2100 | F31: 1733 | G31: 1085 | H31: 1703 | I31: 889 | J31: 1508 | K31: 1760 | L31: 1142 | N31: 1921935 | O31: 223614 | P31: 280423 | Q31: 256523 | R31: 205395 | S31: 128630 | T31: 213788 | U31: 116589 | V31: 145217 | W31: 211671 | X31: 140085
A32: 12 24 | B32: 16228 | C32: 1844 | D32: 2279 | E32: 2089 | F32: 1735 | G32: 1064 | H32: 1782 | I32: 892 | J32: 1459 | K32: 1770 | L32: 1314 | N32: 1928776 | O32: 226938 | P32: 281330 | Q32: 257367 | R32: 206800 | S32: 128739 | T32: 215694 | U32: 116655 | V32: 144080 | W32: 210751 | X32: 140422
A33: 13 25 | B33: 16844 | C33: 1851 | D33: 2423 | E33: 2184 | F33: 1819 | G33: 1085 | H33: 1873 | I33: 929 | J33: 1494 | K33: 1881 | L33: 1305 | N33: 1936189 | O33: 230015 | P33: 281985 | Q33: 258747 | R33: 208404 | S33: 128663 | T33: 217208 | U33: 116279 | V33: 143100 | W33: 211268 | X33: 140520
A34: 14 26 | B34: 17668 | C34: 1954 | D34: 2573 | E34: 2325 | F34: 1949 | G34: 1200 | H34: 1883 | I34: 960 | J34: 1582 | K34: 1885 | L34: 1357 | N34: 1942648 | O34: 233080 | P34: 283513 | Q34: 259508 | R34: 209064 | S34: 128133 | T34: 218136 | U34: 116199 | V34: 141960 | W34: 212322 | X34: 140733
A35: 15 27 | B35: 17523 | C35: 1894 | D35: 2571 | E35: 2253 | F35: 1885 | G35: 1193 | H35: 1866 | I35: 994 | J35: 1524 | K35: 1969 | L35: 1374 | N35: 1943527 | O35: 235736 | P35: 283298 | Q35: 260791 | R35: 208989 | S35: 127359 | T35: 217532 | U35: 115326 | V35: 140753 | W35: 213012 | X35: 140740
A36: 16 28 | B36: 18504 | C36: 1995 | D36: 2558 | E36: 2449 | F36: 2027 | G36: 1282 | H36: 2074 | I36: 1036 | J36: 1607 | K36: 2042 | L36: 1434 | N36: 1958405 | O36: 239820 | P36: 286905 | Q36: 263476 | R36: 210171 | S36: 126906 | T36: 219660 | U36: 115905 | V36: 140184 | W36: 214169 | X36: 141209
A37: 17 29 | B37: 18668 | C37: 2002 | D37: 2540 | E37: 2413 | F37: 2074 | G37: 1245 | H37: 2025 | I37: 1135 | J37: 1763 | K37: 2041 | L37: 1430 | N37: 1962918 | O37: 241267 | P37: 287761 | Q37: 264312 | R37: 210686 | S37: 126421 | T37: 220905 | U37: 115746 | V37: 139157 | W37: 214973 | X37: 141690
A38: 18 30 | B38: =SUM(C38:L38) -> 19343 | C38: ='3 月・性別，区別死亡数'!$C$8 -> 2174 | D38: ='3 月・性別，区別死亡数'!$C$11 -> 2842 | E38: ='3 月・性別，区別死亡数'!$C$14 -> 2512 | F38: ='3 月・性別，区別死亡数'!$C$17 -> 2032 | G38: ='3 月・性別，区別死亡数'!$C$20 -> 1268 | H38: ='3 月・性別，区別死亡数'!$C$23 -> 2047 | I38: ='3 月・性別，区別死亡数'!$C$26 -> 1137 | J38: ='3 月・性別，区別死亡数'!$C$29 -> 1710 | K38: ='3 月・性別，区別死亡数'!$C$32 -> 2067 | L38: ='3 月・性別，区別死亡数'!$C$35 -> 1554 | N38: =[1]年次別人口!C37 -> 1965940 | O38: =[1]年次別人口!D37 -> 242916 | P38: =[1]年次別人口!E37 -> 288114 | Q38: =[1]年次別人口!F37 -> 264183 | R38: =[1]年次別人口!G37 -> 211496 | S38: =[1]年次別人口!H37 -> 126230 | T38: =[1]年次別人口!I37 -> 222042 | U38: =[1]年次別人口!J37 -> 115272 | V38: =[1]年次別人口!K37 -> 137851 | W38: =[1]年次別人口!L37 -> 215942 | X38: =[1]年次別人口!M37 -> 141894
B39: 粗死亡率
A40: 85 60 | B40: =B5/N5*1000 -> 4.692792868 | C40: 5.97749454 | D40: 4.752762249 | E40: 4.872204829 | F40: 4.194166812 | G40: ・ | H40: =H5/T5*1000 -> 4.368768903 | I40: ・ | J40: =J5/V5*1000 -> 4.204793182 | K40: =K5/W5*1000 -> 4.624234552 | L40: ・
A41: 1986 昭和61年 | B41: 4.548555688 | C41: 5.4432732 | D41: 4.666368615 | E41: 4.787967784 | F41: 4.447924363 | G41: ・ | H41: =H6/T6*1000 -> 4.092432528 | I41: ・ | J41: =J6/V6*1000 -> 4.212972035 | K41: =K6/W6*1000 -> 4.364398149 | L41: ・
A42: 1987 昭和62年 | B42: 4.440106578 | C42: 5.584789244 | D42: 4.328745446 | E42: 4.590306301 | F42: 4.058806326 | G42: ・ | H42: 4.07312429 | I42: ・ | J42: 4.275425986 | K42: 4.466170268 | L42: ・
A43: 1988 昭和63年 | B43: 4.794111415 | C43: 5.860946179 | D43: 4.852297692 | E43: 4.800837836 | F43: 4.556768141 | G43: ・ | H43: 4.318828518 | I43: ・ | J43: 4.448685647 | K43: 4.918639949 | L43: ・
A44: 89 平成元年 | B44: 4.925551412 | C44: 6.020877517 | D44: 4.810409352 | E44: 5.185952832 | F44: 4.620849463 | G44: ・ | H44: 4.694663083 | I44: ・ | J44: 4.763367114 | K44: 4.733503097 | L44: ・
A45: 90 2 | B45: 4.962877342 | C45: 6.038485579 | D45: 4.854537108 | E45: 5.145944832 | F45: 5.200938083 | G45: 3.622705842 | H45: 4.629212998 | I45: ・ | J45: 4.892414063 | K45: 5.015539262 | L45: 4.694793375
A46: 91 3 | B46: 4.921568766 | C46: 6.146171003 | D46: 4.740083975 | E46: 4.75356729 | F46: 4.63937274 | G46: 3.726761781 | H46: 4.746627443 | I46: ・ | J46: 5.393076115 | K46: 5.166120633 | L46: 4.813237705
A47: 92 4 | B47: 5.137393788 | C47: 6.068448025 | D47: 4.664307419 | E47: 5.21979062 | F47: 5.220707765 | G47: 4.107336111 | H47: 5.014058271 | I47: ・ | J47: 5.381083321 | K47: 5.365883948 | L47: 5.037467733
A48: 1993 平成5年 | B48: 5.454547558 | C48: 6.600226293 | D48: 5.267238515 | E48: 5.470928084 | F48: 5.648245605 | G48: 4.732548205 | H48: 5.236363133 | I48: ・ | J48: 5.548294341 | K48: 5.489436057 | L48: 4.909101152
A49: 94 6 | B49: 5.132907487 | C49: 5.956427065 | D49: 4.948738011 | E49: 5.168792733 | F49: 5.541630254 | G49: 4.241231357 | H49: 4.968030909 | I49: ・ | J49: 5.198285796 | K49: 5.263511315 | L49: 4.639515167
A50: 95 7 | B50: 5.364127696 | C50: 6.477924295 | D50: 5.0911029 | E50: 5.316614108 | F50: 5.559546491 | G50: 4.472942365 | H50: 5.218323462 | I50: ・ | J50: 5.422422101 | K50: 5.419231323 | L50: 5.019925242
A51: 96 8 | B51: 5.360262378 | C51: 6.245307488 | D51: 5.381587312 | E51: 5.546279849 | F51: 4.821854941 | G51: 4.484232729 | H51: 5.129586939 | I51: ・ | J51: 6.03197072 | K51: 5.415431411 | L51: 5.056324575
A52: 97 9 | B52: 5.493459489 | C52: 6.490849472 | D52: 5.138339921 | E52: 5.286221614 | F52: 5.46375061 | G52: 5.131252459 | H52: 5.367113162 | I52: ・ | J52: 5.848808305 | K52: 5.744000569 | L52: 5.103417266
A53: 1998 平成10年 | B53: 5.541860313 | C53: 6.156806692 | D53: 5.491342968 | E53: 5.533101609 | F53: 5.715663689 | G53: 4.845678276 | H53: 5.338183831 | I53: 6.374785015 | J53: 6.059528195 | K53: 5.626761526 | L53: 4.141650403
A54: 99 11 | B54: 5.963480717 | C54: 6.697504363 | D54: 5.942622951 | E54: 5.731445454 | F54: 6.06163085 | G54: 5.079665562 | H54: 5.901313915 | I54: 5.279083242 | J54: 6.363266137 | K54: 6.453855688 | L54: 5.595263613
A55: 2000 12 | B55: 5.944920313 | C55: 6.859181774 | D55: 5.583875835 | E55: 5.762875796 | F55: 5.970740829 | G55: 5.293540153 | H55: 5.919045891 | I55: 5.883157751 | J55: 6.558383033 | K55: 5.979508876 | L55: 5.656000295
A56: 01 13 | B56: =B21/[1]年次別人口!C20*1000 -> 5.888207452 | C56: =C21/[1]年次別人口!D20*1000 -> 6.554489258 | D56: =D21/[1]年次別人口!E20*1000 -> 5.730768205 | E56: =E21/[1]年次別人口!F20*1000 -> 5.642613143 | F56: =F21/[1]年次別人口!G20*1000 -> 6.259442038 | G56: =G21/[1]年次別人口!H20*1000 -> 5.27082052 | H56: =H21/[1]年次別人口!I20*1000 -> 5.968810042 | I56: =I21/[1]年次別人口!J20*1000 -> 4.613620564 | J56: =J21/[1]年次別人口!K20*1000 -> 6.513867513 | K56: =K21/[1]年次別人口!L20*1000 -> 5.981544082 | L56: =L21/[1]年次別人口!M20*1000 -> 5.83540782
A57: 02 14 | B57: =B22/[1]年次別人口!C21*1000 -> 6.033189848 | C57: =C22/[1]年次別人口!D21*1000 -> 6.564907965 | D57: =D22/[1]年次別人口!E21*1000 -> 6.040985122 | E57: =E22/[1]年次別人口!F21*1000 -> 5.922246633 | F57: =F22/[1]年次別人口!G21*1000 -> 6.36661244 | G57: =G22/[1]年次別人口!H21*1000 -> 5.352232679 | H57: =H22/[1]年次別人口!I21*1000 -> 5.835489681 | I57: =I22/[1]年次別人口!J21*1000 -> 5.402596472 | J57: =J22/[1]年次別人口!K21*1000 -> 6.582203624 | K57: =K22/[1]年次別人口!L21*1000 -> 6.087230606 | L57: =L22/[1]年次別人口!M21*1000 -> 5.748173188
A58: 03 15 | B58: =B23/[1]年次別人口!C22*1000 -> 6.319397797 | C58: =C23/[1]年次別人口!D22*1000 -> 6.618744901 | D58: =D23/[1]年次別人口!E22*1000 -> 5.99880024 | E58: =E23/[1]年次別人口!F22*1000 -> 6.538769238 | F58: =F23/[1]年次別人口!G22*1000 -> 6.202611994 | G58: =G23/[1]年次別人口!H22*1000 -> 6.193120469 | H58: =H23/[1]年次別人口!I22*1000 -> 5.777955249 | I58: =I23/[1]年次別人口!J22*1000 -> 5.430283176 | J58: =J23/[1]年次別人口!K22*1000 -> 7.111844055 | K58: =K23/[1]年次別人口!L22*1000 -> 6.673798471 | L58: =L23/[1]年次別人口!M22*1000 -> 6.531816266
A59: 04 16 | B59: 6.6 | C59: 7.2 | D59: 6.8 | E59: 6.6 | F59: 6.7 | G59: 5.8 | H59: 6.2 | I59: 5.6 | J59: 7.3 | K59: 6.8 | L59: 6.2
A60: 05 17 | B60: =B25/N25*1000 -> 6.991275976 | C60: =C25/O25*1000 -> 7.345792909 | D60: 7.080036799 | E60: =E25/Q25*1000 -> 6.952729341 | F60: 7.069389543 | G60: 6.432359717 | H60: 6.774509052 | I60: 5.791918006 | J60: 7.684993935 | K60: =K25/W25*1000 -> 7.428530002 | L60: 6.66021269
A61: 06 18 | B61: =B26/[1]年次別人口!C25*1000 -> 7.022112138 | C61: =C26/[1]年次別人口!D25*1000 -> 6.998181537 | D61: =D26/[1]年次別人口!E25*1000 -> 7.085670874 | E61: =E26/[1]年次別人口!F25*1000 -> 7.018466138 | F61: =F26/[1]年次別人口!G25*1000 -> 7.081593778 | G61: =G26/[1]年次別人口!H25*1000 -> 6.694980695 | H61: =H26/[1]年次別人口!I25*1000 -> 6.704861742 | I61: =I26/[1]年次別人口!J25*1000 -> 6.44525059 | J61: =J26/[1]年次別人口!K25*1000 -> 7.921874383 | K61: =K26/[1]年次別人口!L25*1000 -> 7.086972126 | L61: =L26/[1]年次別人口!M25*1000 -> 7.025354882
A62: 07 19 | B62: =B27/[1]年次別人口!C26*1000 -> 7.407559783 | C62: =C27/[1]年次別人口!D26*1000 -> 7.498834255 | D62: =D27/[1]年次別人口!E26*1000 -> 7.102519548 | E62: =E27/[1]年次別人口!F26*1000 -> 6.88844481 | F62: =F27/[1]年次別人口!G26*1000 -> 7.423425909 | G62: =G27/[1]年次別人口!H26*1000 -> 7.61458713 | H62: =H27/[1]年次別人口!I26*1000 -> 7.370995634 | I62: =I27/[1]年次別人口!J26*1000 -> 6.733771784 | J62: =J27/[1]年次別人口!K26*1000 -> 8.50520095 | K62: =K27/[1]年次別人口!L26*1000 -> 7.559704484 | L62: =L27/[1]年次別人口!M26*1000 -> 7.80984965
A63: 08 20 | B63: =B28/[1]年次別人口!C27*1000 -> 7.557810729 | C63: =C28/[1]年次別人口!D27*1000 -> 7.242814538 | D63: =D28/[1]年次別人口!E27*1000 -> 7.313176008 | E63: =E28/[1]年次別人口!F27*1000 -> 7.416834727 | F63: =F28/[1]年次別人口!G27*1000 -> 7.741903731 | G63: =G28/[1]年次別人口!H27*1000 -> 7.486398934 | H63: =H28/[1]年次別人口!I27*1000 -> 7.688677671 | I63: =I28/[1]年次別人口!J27*1000 -> 6.781654931 | J63: =J28/[1]年次別人口!K27*1000 -> 8.712474894 | K63: =K28/[1]年次別人口!L27*1000 -> 7.682025962 | L63: =L28/[1]年次別人口!M27*1000 -> 7.602039712
A64: 09 21 | B64: =B29/[1]年次別人口!C28*1000 -> 7.605100964 | C64: =C29/[1]年次別人口!D28*1000 -> 7.246978504 | D64: =D29/[1]年次別人口!E28*1000 -> 7.39103877 | E64: =E29/[1]年次別人口!F28*1000 -> 7.283378234 | F64: =F29/[1]年次別人口!G28*1000 -> 7.75897607 | G64: =G29/[1]年次別人口!H28*1000 -> 7.258992135 | H64: =H29/[1]年次別人口!I28*1000 -> 7.298093965 | I64: =I29/[1]年次別人口!J28*1000 -> 7.377911086 | J64: =J29/[1]年次別人口!K28*1000 -> 9.217837395 | K64: =K29/[1]年次別人口!L28*1000 -> 7.855093938 | L64: =L29/[1]年次別人口!M28*1000 -> 7.840516281
A65: 10 22 | B65: =B30/[1]年次別人口!C28*1000 -> 8.116791199 | C65: =C30/[1]年次別人口!D28*1000 -> 7.745179445 | D65: =D30/[1]年次別人口!E28*1000 -> 8.09169631 | E65: =E30/[1]年次別人口!F28*1000 -> 8.164432053 | F65: =F30/[1]年次別人口!G28*1000 -> 7.935651047 | G65: =G30/[1]年次別人口!H28*1000 -> 7.616501383 | H65: =H30/[1]年次別人口!I28*1000 -> 7.895210744 | I65: =I30/[1]年次別人口!J28*1000 -> 7.334815811 | J65: =J30/[1]年次別人口!K28*1000 -> 10.0435174 | K65: =K30/[1]年次別人口!L28*1000 -> 8.083053133 | L65: =L30/[1]年次別人口!M28*1000 -> 8.37950686
A66: 11 23 | B66: 8.286440488 | C66: 7.647106174 | D66: 8.187630829 | E66: 8.18640044 | F66: 8.437401105 | G66: 8.435046257 | H66: 7.965835313 | I66: 7.625076122 | J66: 10.38445912 | K66: 8.314790406 | L66: 8.152193311
A67: 12 24 | B67: 8.413626051 | C67: 8.125567336 | D67: 8.100806882 | E67: 8.116813733 | F67: 8.389748549 | G67: 8.264783787 | H67: 8.261704081 | I67: 7.646478934 | J67: 10.12631871 | K67: 8.398536662 | L67: 9.357508083
A68: 13 25 | B68: 8.699563937 | C68: 8.047301263 | D68: 8.592655638 | E68: 8.440677573 | F68: 8.728239381 | G68: 8.432882802 | H68: 8.623070973 | I68: 7.989404794 | J68: 10.44025157 | K68: 8.90338338 | L68: 9.286934244
A69: 14 26 | B69: 9.094802558 | C69: 8.383387678 | D69: 9.075421586 | E69: 8.959261372 | F69: 9.322504114 | G69: 9.3652689 | H69: 8.632229435 | I69: 8.261688999 | J69: 11.14398422 | K69: 8.878024887 | L69: 9.642372436
A70: 15 2)27 | B70: 9.016082617 | C70: 8.034411375 | D70: 9.075249384 | E70: 8.639101809 | F70: 9.019613472 | G70: 9.36722179 | H70: 8.578048287 | I70: 8.619045142 | J70: 10.82747792 | K70: 9.243610689 | L70: 9.762682961
A71: 16 28 | B71: 9.448505289 | C71: 8.318739054 | D71: 8.915843223 | E71: 9.294964247 | F71: 9.644527551 | G71: 10.10196523 | H71: 9.4418647 | I71: 8.938354687 | J71: 11.46350511 | K71: 9.534526472 | L71: 10.15516008
A72: 17 29 | B72: 9.510331048 | C72: 8.297860876 | D72: 8.826769437 | E72: 9.129362269 | F72: 9.844033301 | G72: 9.848047397 | H72: 9.166836423 | I72: 9.805954417 | J72: 12.66914349 | K72: 9.494215553 | L72: 10.09245536
A73: 18 30 | B73: =B38/[1]年次別人口!C37*1000 -> 9.839059178 | C73: =C38/[1]年次別人口!D37*1000 -> 8.949595745 | D73: =D38/[1]年次別人口!E37*1000 -> 9.864150996 | E73: =E38/[1]年次別人口!F37*1000 -> 9.508560354 | F73: =F38/[1]年次別人口!G37*1000 -> 9.607746719 | G73: =G38/[1]年次別人口!H37*1000 -> 10.04515567 | H73: =H38/[1]年次別人口!I37*1000 -> 9.21897659 | I73: =I38/[1]年次別人口!J37*1000 -> 9.8636269 | J73: =J38/[1]年次別人口!K37*1000 -> 12.40469783 | K73: =K38/[1]年次別人口!L37*1000 -> 9.572014708 | L73: =L38/[1]年次別人口!M37*1000 -> 10.95183729
A74: 1) 分区後の清田区分を含む。

Sheet 3 月・性別，区別死亡数
A1: 3 月・性別にみた区別死亡数及び粗死亡率(人口千対)
O2: 平成30年
A3: 区 ・ 性 | C3: 総 数 | D3: 1 月 | E3: 2 月 | F3: 3 月 | G3: 4 月 | H3: 5 月 | I3: 6 月 | J3: 7 月 | K3: 8 月 | L3: 9 月 | M3: 10月 | N3: 11月 | O3: 12月
C4: 死亡数
A5: 総数 | C5: =SUM(C8,C11,C14,C17,C20,C23,C26,C29,C32,C35) -> 19343 | D5: 1833 | E5: 1624 | F5: =SUM(F8,F11,F14,F17,F20,F23,F26,F29,F32,F35) -> 1724 | G5: 1536 | H5: 1563 | I5: 1432 | J5: 1520 | K5: 1500 | L5: 1594 | M5: 1603 | N5: 1688 | O5: 1726
B6: 男 | C6: 9925 | D6: 916 | E6: 881 | F6: 881 | G6: 786 | H6: 797 | I6: 747 | J6: 770 | K6: 760 | L6: 811 | M6: 787 | N6: 879 | O6: 910
B7: 女 | C7: 9418 | D7: 917 | E7: 743 | F7: 843 | G7: 750 | H7: 766 | I7: 685 | J7: 750 | K7: 740 | L7: 783 | M7: 816 | N7: 809 | O7: 816
A8: 中央 | C8: =SUM(D8:O8) -> 2174 | D8: =SUM(D9:D10) -> 212 | E8: =SUM(E9:E10) -> 185 | F8: 203 | G8: 177 | H8: 149 | I8: 157 | J8: 188 | K8: =SUM(K9:K10) -> 164 | L8: =SUM(L9:L10) -> 186 | M8: =SUM(M9:M10) -> 160 | N8: =SUM(N9:N10) -> 199 | O8: 194
B9: 男 | C9: 1056 | D9: 104 | E9: 95 | F9: 100 | G9: 84 | H9: 68 | I9: 79 | J9: 77 | K9: 76 | L9: 95 | M9: 75 | N9: 96 | O9: 107
B10: 女 | C10: 1118 | D10: 108 | E10: 90 | F10: 103 | G10: 93 | H10: 81 | I10: 78 | J10: 111 | K10: 88 | L10: 91 | M10: 85 | N10: 103 | O10: 87
A11: 北 | C11: 2842 | D11: =SUM(D12:D13) -> 267 | E11: =SUM(E12:E13) -> 239 | F11: 262 | G11: 239 | H11: 205 | I11: 224 | J11: 216 | K11: =SUM(K12:K13) -> 216 | L11: =SUM(L12:L13) -> 254 | M11: =SUM(M12:M13) -> 259 | N11: =SUM(N12:N13) -> 240 | O11: 221
B12: 男 | C12: 1477 | D12: 140 | E12: 137 | F12: 141 | G12: 120 | H12: 102 | I12: 125 | J12: 109 | K12: 113 | L12: 131 | M12: 133 | N12: 116 | O12: 110
B13: 女 | C13: 1365 | D13: 127 | E13: 102 | F13: 121 | G13: 119 | H13: 103 | I13: 99 | J13: 107 | K13: 103 | L13: 123 | M13: 126 | N13: 124 | O13: 111
A14: 東 | C14: 2512 | D14: =SUM(D15:D16) -> 244 | E14: =SUM(E15:E16) -> 230 | F14: 219 | G14: 196 | H14: 219 | I14: 174 | J14: 201 | K14: =SUM(K15:K16) -> 189 | L14: =SUM(L15:L16) -> 193 | M14: =SUM(M15:M16) -> 206 | N14: =SUM(N15:N16) -> 217 | O14: 224
B15: 男 | C15: 1319 | D15: 118 | E15: 131 | F15: 124 | G15: 108 | H15: 118 | I15: 91 | J15: 105 | K15: 91 | L15: 99 | M15: 105 | N15: 110 | O15: 119
B16: 女 | C16: 1193 | D16: 126 | E16: 99 | F16: 95 | G16: 88 | H16: 101 | I16: 83 | J16: 96 | K16: 98 | L16: 94 | M16: 101 | N16: 107 | O16: 105
A17: 白石 | C17: 2032 | D17: =SUM(D18:D19) -> 195 | E17: =SUM(E18:E19) -> 158 | F17: 173 | G17: 160 | H17: 181 | I17: 151 | J17: 167 | K17: =SUM(K18:K19) -> 148 | L17: =SUM(L18:L19) -> 158 | M17: =SUM(M18:M19) -> 179 | N17: =SUM(N18:N19) -> 167 | O17: 195
B18: 男 | C18: 1053 | D18: 87 | E18: 83 | F18: 84 | G18: 91 | H18: 98 | I18: 79 | J18: 84 | K18: 74 | L18: 78 | M18: 95 | N18: 101 | O18: 99
B19: 女 | C19: 979 | D19: 108 | E19: 75 | F19: 89 | G19: 69 | H19: 83 | I19: 72 | J19: 83 | K19: 74 | L19: 80 | M19: 84 | N19: 66 | O19: 96
A20: 厚別 | C20: 1268 | D20: =SUM(D21:D22) -> 114 | E20: =SUM(E21:E22) -> 102 | F20: 95 | G20: 113 | H20: 99 | I20: 91 | J20: 100 | K20: =SUM(K21:K22) -> 106 | L20: =SUM(L21:L22) -> 105 | M20: =SUM(M21:M22) -> 109 | N20: =SUM(N21:N22) -> 113 | O20: 121
B21: 男 | C21: 625 | D21: 63 | E21: 52 | F21: 47 | G21: 59 | H21: 47 | I21: 37 | J21: 51 | K21: 54 | L21: 44 | M21: 51 | N21: 63 | O21: 57
B22: 女 | C22: 643 | D22: 51 | E22: 50 | F22: 48 | G22: 54 | H22: 52 | I22: 54 | J22: 49 | K22: 52 | L22: 61 | M22: 58 | N22: 50 | O22: 64
A23: 豊平 | C23: 2047 | D23: =SUM(D24:D25) -> 185 | E23: =SUM(E24:E25) -> 173 | F23: 177 | G23: 164 | H23: 167 | I23: 133 | J23: 173 | K23: =SUM(K24:K25) -> 180 | L23: =SUM(L24:L25) -> 170 | M23: =SUM(M24:M25) -> 148 | N23: =SUM(N24:N25) -> 192 | O23: 185
B24: 男 | C24: 1047 | D24: 86 | E24: 103 | F24: 88 | G24: 86 | H24: 77 | I24: 72 | J24: 84 | K24: 85 | L24: 88 | M24: 71 | N24: 104 | O24: 103
B25: 女 | C25: 1000 | D25: 99 | E25: 70 | F25: 89 | G25: 78 | H25: 90 | I25: 61 | J25: 89 | K25: 95 | L25: 82 | M25: 77 | N25: 88 | O25: 82
A26: 清田 | C26: 1137 | D26: =SUM(D27:D28) -> 114 | E26: =SUM(E27:E28) -> 107 | F26: 94 | G26: 96 | H26: 100 | I26: 83 | J26: 84 | K26: =SUM(K27:K28) -> 79 | L26: =SUM(L27:L28) -> 92 | M26: =SUM(M27:M28) -> 110 | N26: =SUM(N27:N28) -> 91 | O26: 87
B27: 男 | C27: 600 | D27: 53 | E27: 52 | F27: 48 | G27: 45 | H27: 61 | I27: 51 | J27: 49 | K27: 43 | L27: 53 | M27: 47 | N27: 45 | O27: 53
B28: 女 | C28: 537 | D28: 61 | E28: 55 | F28: 46 | G28: 51 | H28: 39 | I28: 32 | J28: 35 | K28: 36 | L28: 39 | M28: 63 | N28: 46 | O28: 34
A29: 南 | C29: 1710 | D29: =SUM(D30:D31) -> 146 | E29: =SUM(E30:E31) -> 135 | F29: 157 | G29: 138 | H29: 167 | I29: 108 | J29: 121 | K29: =SUM(K30:K31) -> 146 | L29: =SUM(L30:L31) -> 136 | M29: =SUM(M30:M31) -> 151 | N29: =SUM(N30:N31) -> 141 | O29: 164
B30: 男 | C30: 886 | D30: 79 | E30: 72 | F30: 70 | G30: 77 | H30: 81 | I30: 55 | J30: 70 | K30: 74 | L30: 73 | M30: 77 | N30: 75 | O30: 83
B31: 女 | C31: 824 | D31: 67 | E31: 63 | F31: 87 | G31: 61 | H31: 86 | I31: 53 | J31: 51 | K31: 72 | L31: 63 | M31: 74 | N31: 66 | O31: 81
A32: 西 | C32: 2067 | D32: =SUM(D33:D34) -> 211 | E32: =SUM(E33:E34) -> 165 | F32: 203 | G32: 135 | H32: 155 | I32: 182 | J32: 166 | K32: =SUM(K33:K34) -> 164 | L32: =SUM(L33:L34) -> 165 | M32: =SUM(M33:M34) -> 162 | N32: =SUM(N33:N34) -> 186 | O32: 173
B33: 男 | C33: 1055 | D33: 110 | E33: 87 | F33: 100 | G33: 64 | H33: 78 | I33: 95 | J33: 82 | K33: 92 | L33: 81 | M33: 79 | N33: 93 | O33: 94
B34: 女 | C34: 1012 | D34: 101 | E34: 78 | F34: 103 | G34: 71 | H34: 77 | I34: 87 | J34: 84 | K34: 72 | L34: 84 | M34: 83 | N34: 93 | O34: 79
A35: 手稲 | C35: 1554 | D35: =SUM(D36:D37) -> 145 | E35: =SUM(E36:E37) -> 130 | F35: 141 | G35: 118 | H35: 121 | I35: 129 | J35: 104 | K35: =SUM(K36:K37) -> 108 | L35: =SUM(L36:L37) -> 135 | M35: =SUM(M36:M37) -> 119 | N35: =SUM(N36:N37) -> 142 | O35: 162
B36: 男 | C36: 807 | D36: 76 | E36: 69 | F36: 79 | G36: 52 | H36: 67 | I36: 63 | J36: 59 | K36: 58 | L36: 69 | M36: 54 | N36: 76 | O36: 85
B37: 女 | C37: 747 | D37: 69 | E37: 61 | F37: 62 | G37: 66 | H37: 54 | I37: 66 | J37: 45 | K37: 50 | L37: 66 | M37: 65 | N37: 66 | O37: 77
C38: 粗死亡率 | Q38: =[1]人口!B9 -> (国調年)日本人推計人口 (国調年以外)国調ベース人口 | R38: =[1]人口!C9 -> １月 | S38: =[1]人口!D9 -> ２月 | T38: =[1]人口!E9 -> ３月 | U38: =[1]人口!F9 -> ４月 | V38: =[1]人口!G9 -> ５月 | W38: =[1]人口!H9 -> ６月 | X38: =[1]人口!I9 -> ７月 | Y38: =[1]人口!J9 -> ８月 | Z38: =[1]人口!K9 -> ９月 | AA38: =[1]人口!L9 -> １０月 | AB38: =[1]人口!M9 -> １１月 | AC38: =[1]人口!N9 -> １２月
A39: 総数 | C39: =C5/Q39*1000 -> 9.839059178 | D39: =D5/(R39/$Q$50*R$50)*1000 -> 10.99094062 | E39: 10.78458492 | F39: 10.34292264 | G39: 9.528738416 | H39: 9.363792741 | I39: 8.862487489 | J39: 9.104140736 | K39: 8.98302877 | L39: 9.86365737 | M39: 9.600512863 | N39: 10.44347477 | O39: 10.3330871 | Q39: =[1]人口!B10 -> 1965940 | R39: =[1]人口!C10 -> 1963626 | S39: =[1]人口!D10 -> 1962987 | T39: =[1]人口!E10 -> 1962570 | U39: =[1]人口!F10 -> 1961225 | V39: =[1]人口!G10 -> 1965343 | W39: =[1]人口!H10 -> 1965889 | X39: =[1]人口!I10 -> 1965784 | Y39: =[1]人口!J10 -> 1966073 | Z39: =[1]人口!K10 -> 1966174 | AA39: =[1]人口!L10 -> 1965940 | AB39: =[1]人口!M10 -> 1966523 | AC39: =[1]人口!N10 -> 1966717
A40: 中央 | C40: =C8/Q40*1000 -> 8.949595745 | D40: =D8/(R40/$Q$50*R$50)*1000 -> 10.3327291 | E40: 9.983429208 | F40: 9.895427256 | G40: 8.918365995 | H40: 7.239498202 | I40: 7.873858871 | J40: 9.121151408 | K40: 7.948920814 | L40: 9.31068816 | M40: 7.755236245 | N40: 9.959345413 | O40: 9.396454613 | Q40: =[1]人口!B11 -> 242916 | R40: =[1]人口!C11 -> 241575 | S40: =[1]人口!D11 -> 241561 | T40: =[1]人口!E11 -> 241542 | U40: =[1]人口!F11 -> 241468 | V40: =[1]人口!G11 -> 242331 | W40: =[1]人口!H11 -> 242596 | X40: =[1]人口!I11 -> 242683 | Y40: =[1]人口!J11 -> 242922 | Z40: =[1]人口!K11 -> 243054 | AA40: =[1]人口!L11 -> 242916 | AB40: =[1]人口!M11 -> 243105 | AC40: =[1]人口!N11 -> 243091
A41: 北 | C41: =C11/Q41*1000 -> 9.864150996 | D41: =D11/(R41/$Q$50*R$50)*1000 -> 10.92070184 | E41: 10.82087571 | F41: 10.71615709 | G41: 10.12840027 | H41: 8.391104767 | I41: 9.472040335 | J41: 8.839331032 | K41: 8.833497645 | L41: 10.73502065 | M41: 10.58440801 | N41: 10.1325912 | O41: 9.024247947 | Q41: =[1]人口!B12 -> 288114 | R41: =[1]人口!C12 -> 287867 | S41: =[1]人口!D12 -> 287919 | T41: =[1]人口!E12 -> 287868 | U41: =[1]人口!F12 -> 287097 | V41: =[1]人口!G12 -> 287651 | W41: =[1]人口!H12 -> 287724 | X41: =[1]人口!I12 -> 287717 | Y41: =[1]人口!J12 -> 287907 | Z41: =[1]人口!K12 -> 287874 | AA41: =[1]人口!L12 -> 288114 | AB41: =[1]人口!M12 -> 288179 | AC41: =[1]人口!N12 -> 288345
A42: 東 | C42: =C14/Q42*1000 -> 9.508560354 | D42: =D14/(R42/$Q$50*R$50)*1000 -> 10.86648571 | E42: 11.34737317 | F42: 9.768782864 | G42: 9.038134763 | H42: 9.75798822 | I42: 8.008716146 | J42: 8.954911262 | K42: 8.421787433 | L42: 8.888241202 | M42: 9.181074751 | N42: 9.995898407 | O42: 9.985837113 | Q42: =[1]人口!B13 -> 264183 | R42: =[1]人口!C13 -> 264382 | S42: =[1]人口!D13 -> 264221 | T42: =[1]人口!E13 -> 263958 | U42: =[1]人口!F13 -> 263845 | V42: =[1]人口!G13 -> 264250 | W42: =[1]人口!H13 -> 264337 | X42: =[1]人口!I13 -> 264281 | Y42: =[1]人口!J13 -> 264234 | Z42: =[1]人口!K13 -> 264188 | AA42: =[1]人口!L13 -> 264183 | AB42: =[1]人口!M13 -> 264125 | AC42: =[1]人口!N13 -> 264116
A43: 白石 | C43: =C17/Q43*1000 -> 9.607746719 | D43: =D17/(R43/$Q$50*R$50)*1000 -> 10.89406484 | E43: 9.77482147 | F43: 9.666504448 | G43: 9.239482969 | H43: 10.09769692 | I43: 8.699529627 | J43: 9.309205201 | K43: 8.243790337 | L43: 9.0893903 | M43: 9.965108774 | N43: 9.598562617 | O43: 10.84415438 | Q43: =[1]人口!B14 -> 211496 | R43: =[1]人口!C14 -> 210754 | S43: =[1]人口!D14 -> 210709 | T43: =[1]人口!E14 -> 210721 | U43: =[1]人口!F14 -> 210690 | V43: =[1]人口!G14 -> 211051 | W43: =[1]人口!H14 -> 211180 | X43: =[1]人口!I14 -> 211220 | Y43: =[1]人口!J14 -> 211381 | Z43: =[1]人口!K14 -> 211492 | AA43: =[1]人口!L14 -> 211496 | AB43: =[1]人口!M14 -> 211681 | AC43: =[1]人口!N14 -> 211724
A44: 厚別 | C44: =C20/Q44*1000 -> 10.04515567 | D44: =D20/(R44/$Q$50*R$50)*1000 -> 10.62291215 | E44: 10.53032326 | F44: 8.856702512 | G44: 10.89192579 | H44: 9.222387009 | I44: 8.759992299 | J44: 9.321959011 | K44: 9.884093737 | L44: 10.1196936 | M44: 10.16705297 | N44: 10.89313398 | O44: 11.29262381 | Q44: =[1]人口!B15 -> 126230 | R44: =[1]人口!C15 -> 126355 | S44: =[1]人口!D15 -> 126268 | T44: =[1]人口!E15 -> 126294 | U44: =[1]人口!F15 -> 126225 | V44: =[1]人口!G15 -> 126393 | W44: =[1]人口!H15 -> 126389 | X44: =[1]人口!I15 -> 126306 | Y44: =[1]人口!J15 -> 126270 | Z44: =[1]人口!K15 -> 126239 | AA44: =[1]人口!L15 -> 126230 | AB44: =[1]人口!M15 -> 126211 | AC44: =[1]人口!N15 -> 126160
A45: 豊平 | C45: =C23/Q45*1000 -> 9.21897659 | D45: =D23/(R45/$Q$50*R$50)*1000 -> 9.843887103 | E45: 10.19197619 | F45: 9.425446766 | G45: 9.013119163 | H45: 8.86243317 | I45: 7.29176524 | J45: 9.177658807 | K45: 9.54995579 | L45: 9.319335556 | M45: 7.847977613 | N45: 10.51844781 | O45: 9.799909149 | Q45: =[1]人口!B16 -> 222042 | R45: =[1]人口!C16 -> 221277 | S45: =[1]人口!D16 -> 221270 | T45: =[1]人口!E16 -> 221107 | U45: =[1]人口!F16 -> 221381 | V45: =[1]人口!G16 -> 221868 | W45: =[1]人口!H16 -> 221917 | X45: =[1]人口!I16 -> 221945 | Y45: =[1]人口!J16 -> 221923 | Z45: =[1]人口!K16 -> 221940 | AA45: =[1]人口!L16 -> 222042 | AB45: =[1]人口!M16 -> 222086 | AC45: =[1]人口!N16 -> 222270
A46: 清田 | C46: =C26/Q46*1000 -> 9.8636269 | D46: =D26/(R46/$Q$50*R$50)*1000 -> 11.60400153 | E46: 12.06019133 | F46: 9.568708121 | G46: 10.11509383 | H46: 10.20161465 | I46: 8.754970639 | J46: 8.575077234 | K46: 8.062978193 | L46: 9.706829469 | M46: 11.23569722 | N46: 9.606652205 | O46: 8.893127045 | Q46: =[1]人口!B17 -> 115272 | R46: =[1]人口!C17 -> 115672 | S46: =[1]人口!D17 -> 115655 | T46: =[1]人口!E17 -> 115666 | U46: =[1]人口!F17 -> 115471 | V46: =[1]人口!G17 -> 115415 | W46: =[1]人口!H17 -> 115344 | X46: =[1]人口!I17 -> 115338 | Y46: =[1]人口!J17 -> 115362 | Z46: =[1]人口!K17 -> 115314 | AA46: =[1]人口!L17 -> 115272 | AB46: =[1]人口!M17 -> 115250 | AC46: =[1]人口!N17 -> 115185
A47: 南 | C47: =C29/Q47*1000 -> 12.40469783 | D47: =D29/(R47/$Q$50*R$50)*1000 -> 12.37916147 | E47: 12.7042739 | F47: 13.35492307 | G47: 12.15979374 | H47: 14.1594199 | I47: 9.468564223 | J47: 10.26698341 | K47: 12.42892551 | L47: 11.97255285 | M47: 12.89728203 | N47: 12.44486681 | O47: 14.01628662 | Q47: =[1]人口!B18 -> 137851 | R47: =[1]人口!C18 -> 138865 | S47: =[1]人口!D18 -> 138522 | T47: =[1]人口!E18 -> 138417 | U47: =[1]人口!F18 -> 138078 | V47: =[1]人口!G18 -> 138868 | W47: =[1]人口!H18 -> 138775 | X47: =[1]人口!I18 -> 138763 | Y47: =[1]人口!J18 -> 138309 | Z47: =[1]人口!K18 -> 138205 | AA47: =[1]人口!L18 -> 137851 | AB47: =[1]人口!M18 -> 137848 | AC47: =[1]人口!N18 -> 137766
A48: 西 | C48: =C32/Q48*1000 -> 9.572014708 | D48: =D32/(R48/$Q$50*R$50)*1000 -> 11.55750404 | E48: 10.00447855 | F48: 11.11341094 | G48: 7.632151221 | H48: 8.462983144 | I48: 10.2637076 | J48: 9.059926803 | K48: 8.945629225 | L48: 9.297166622 | M48: 8.83301699 | N48: 10.47084081 | O48: 9.425195191 | Q48: =[1]人口!B19 -> 215942 | R48: =[1]人口!C19 -> 214956 | S48: =[1]人口!D19 -> 214993 | T48: =[1]人口!E19 -> 215070 | U48: =[1]人口!F19 -> 215208 | V48: =[1]人口!G19 -> 215645 | W48: =[1]人口!H19 -> 215744 | X48: =[1]人口!I19 -> 215732 | Y48: =[1]人口!J19 -> 215856 | Z48: =[1]人口!K19 -> 215926 | AA48: =[1]人口!L19 -> 215942 | AB48: =[1]人口!M19 -> 216124 | AC48: =[1]人口!N19 -> 216116
A49: 手稲 | C49: =C35/Q49*1000 -> 10.95183729 | D49: =D35/(R49/$Q$50*R$50)*1000 -> 12.02946714 | E49: 11.94512443 | F49: 11.69729009 | G49: 10.12730257 | H49: 10.04206229 | I49: 11.06193131 | J49: 8.635576619 | K49: 8.960762906 | L49: 11.57162785 | M49: 9.874476949 | N49: 12.17403968 | O49: 13.43783009 | Q49: =[1]人口!B20 -> 141894 | R49: =[1]人口!C20 -> 141923 | S49: =[1]人口!D20 -> 141869 | T49: =[1]人口!E20 -> 141927 | U49: =[1]人口!F20 -> 141762 | V49: =[1]人口!G20 -> 141871 | W49: =[1]人口!H20 -> 141883 | X49: =[1]人口!I20 -> 141799 | Y49: =[1]人口!J20 -> 141909 | Z49: =[1]人口!K20 -> 141942 | AA49: =[1]人口!L20 -> 141894 | AB49: =[1]人口!M20 -> 141914 | AC49: =[1]人口!N20 -> 141944
Q50: =[1]人口!B21 -> 365 | R50: =[1]人口!C21 -> 31 | S50: =[1]人口!D21 -> 28 | T50: =[1]人口!E21 -> 31 | U50: =[1]人口!F21 -> 30 | V50: =[1]人口!G21 -> 31 | W50: =[1]人口!H21 -> 30 | X50: =[1]人口!I21 -> 31 | Y50: =[1]人口!J21 -> 31 | Z50: =[1]人口!K21 -> 30 | AA50: =[1]人口!L21 -> 31 | AB50: =[1]人口!M21 -> 30 | AC50: =[1]人口!N21 -> 31

Sheet 4 年次別，死因順位
A1: 4 年次別にみた死因順位
A3: 年次 | B3: 第1位 | D3: 第2位 | F3: 第3位 | H3: 第4位 | J3: 第5位 | L3: 第6位 | N3: 第7位 | P3: 第8位 | R3: 第9位 | T3: 第10位
B4: 死 因 | C4: 死亡数 死亡率 | D4: 死 因 | E4: 死亡数 死亡率 | F4: 死 因 | G4: 死亡数 死亡率 | H4: 死 因 | I4: 死亡数 死亡率 | J4: 死 因 | K4: 死亡数 死亡率 | L4: 死 因 | M4: 死亡数 死亡率 | N4: 死 因 | O4: 死亡数 死亡率 | P4: 死 因 | Q4: 死亡数 死亡率 | R4: 死 因 | S4: 死亡数 死亡率 | T4: 死 因 | U4: 死亡数 死亡率
A5: 1985 昭和60年 | B5: 悪性新生物 | C5: 1986 | D5: 心疾患 | E5: 1511 | F5: 脳血管疾患 | G5: 1075 | H5: 肺炎及び 気管支炎 | I5: 544 | J5: 不慮の事故 及び有害作用 | K5: 266 | L5: 自 殺 | M5: 261 | N5: 腎炎，ﾈﾌﾛｰｾﾞ症 候群及びﾈﾌﾛｰｾﾞ | O5: 176 | P5: 慢性肝疾患 及び肝硬変 | Q5: 152 | R5: 良性及び性質 不詳の新生物 | S5: 118 | T5: 糖尿病 | U5: 89
C6: 128.9771192 | E6: 98.1291174 | G6: 69.81389888 | I6: 35.32907999 | K6: 17.27488102 | M6: 16.95016522 | O6: 11.42999647 | Q6: 9.871360585 | S6: 7.663293086 | U6: 5.779941395
A7: 86 61 | B7: 悪性新生物 | C7: 2075 | D7: 心疾患 | E7: 1468 | F7: 脳血管疾患 | G7: 940 | H7: 肺炎及び 気管支炎 | I7: 502 | J7: 自 殺 | K7: 287 | L7: 不慮の事故 及び有害作用 | M7: 265 | N7: 腎炎，ﾈﾌﾛｰｾﾞ症 候群及びﾈﾌﾛｰｾﾞ | O7: 184 | P7: 慢性肝疾患 及び肝硬変 | Q7: 176 | R7: 良性及び性質 不詳の新生物 | S7: 107 | T7: 糖尿病 | U7: 98
C8: 132.4295363 | E8: 93.6899081 | G8: 59.99217549 | I8: 32.03837457 | K8: 18.31675996 | M8: 16.91268777 | O8: 11.74314924 | Q8: 11.23257754 | S8: 6.828896572 | U8: 6.254503402
A9: 1987 昭和62年 | B9: 悪性新生物 | C9: 2071 | D9: 心疾患 | E9: 1496 | F9: 脳血管疾患 | G9: 908 | H9: 肺炎及び 気管支炎 | I9: 500 | J9: 不慮の事故 及び有害作用 | K9: 255 | L9: 自 殺 | M9: 238 | N9: 腎炎、ﾈﾌﾛｰｾﾞ症 候群及びﾈﾌﾛｰｾﾞ | O9: 206 | P9: 良性及び性質 不詳の新生物 | Q9: 130 | R9: 慢性肝疾患 及び肝硬変 | S9: 128 | T9: 糖尿病 | U9: 98
C10: 129.9895494 | E10: 93.89877637 | G10: 56.99203806 | I10: 31.38328087 | K10: 16.00547324 | M10: 14.93844169 | O10: 12.92991172 | Q10: 8.159653026 | S10: 8.034119903 | U10: 6.151123051
A11: 1988 昭和63年 | B11: 悪性新生物 | C11: 2288 | D11: 心疾患 | E11: 1716 | F11: 脳血管疾患 | G11: 899 | H11: 肺炎及び 気管支炎 | I11: 589 | J11: 不慮の事故 及び有害作用 | K11: 302 | L11: 自 殺 | M11: 275 | N11: 腎炎、ﾈﾌﾛｰｾﾞ症 候群及びﾈﾌﾛｰｾﾞ | O11: 207 | P11: 慢性肝疾患 及び肝硬変 | Q11: 165 | R11: 良性及び性質 不詳の新生物 | S11: 115 | T11: 糖尿病 | U11: 101
C12: 141.3339379 | E12: 106.0004534 | G12: 55.53287157 | I12: 36.38360551 | K12: 18.65509145 | M12: 16.98725215 | O12: 12.78676798 | Q12: 10.19235129 | S12: 7.103759989 | U12: 6.238954425
A13: 89 平成元年 | B13: 悪性新生物 | C13: 2524 | D13: 心疾患 | E13: 1673 | F13: 脳血管疾患 | G13: 906 | H13: 肺炎及び 気管支炎 | I13: 745 | J13: 不慮の事故 及び有害作用 | K13: 274 | L13: 自 殺 | M13: 251 | N13: 腎炎、ﾈﾌﾛｰｾﾞ症 候群及びﾈﾌﾛｰｾﾞ | O13: 220 | P13: 慢性肝疾患 及び肝硬変 | Q13: 171 | R13: 良性及び性質 不詳の新生物 | S13: 121 | T13: 糖尿病 | U13: 108
C14: 153.42579 | E14: 101.6962546 | G14: 55.07280735 | I14: 45.28613849 | K14: 16.65557308 | M14: 15.25747753 | O14: 13.37308788 | Q14: 10.39453649 | S14: 7.355198332 | U14: 6.564970412
A15: 90 2 | B15: 悪性新生物 | C15: 2483 | D15: 心疾患 | E15: 1786 | F15: 肺炎及び 気管支炎 | G15: 870 | H15: 脳血管疾患 | I15: 859 | J15: 不慮の事故 及び有害作用 | K15: 343 | L15: 腎炎、ﾈﾌﾛｰｾﾞ症 候群及びﾈﾌﾛｰｾﾞ | M15: 230 | N15: 自殺 | O15: 208 | P15: 慢性肝疾患 及び肝硬変 | Q15: 153 | R15: 糖尿病 | S15: 121 | T15: 良性及び性質 不詳の新生物 | U15: 103
C16: 148.8623392 | E16: 107.0753676 | G16: 52.15877371 | I16: 51.49929496 | K16: 20.56374641 | M16: 13.78910109 | O16: 12.4701436 | Q16: 9.172749859 | S16: 7.254266228 | U16: 6.175119186
A17: 91 3 | B17: 悪性新生物 | C17: 2569 | D17: 心疾患 | E17: 1714 | F17: 脳血管疾患 | G17: 905 | H17: 肺炎及び 気管支炎 | I17: 776 | J17: 不慮の事故 及び有害作用 | K17: 304 | L17: 腎炎、ﾈﾌﾛｰｾﾞ症 候群及びﾈﾌﾛｰｾﾞ | M17: 229 | N17: 自殺 | O17: 192 | P17: 慢性肝疾患 及び肝硬変 | Q17: 176 | R17: 糖尿病 | S17: 126 | T17: 良性及び性質 不詳の新生物 | U17: 117
C18: 151.5644949 | E18: 101.1216599 | G18: 53.39270838 | I18: 45.78203504 | K18: 17.93523022 | M18: 13.51042013 | O18: 11.32751382 | Q18: 10.38355434 | S18: 7.433680946 | U18: 6.902703736
A19: 92 4 | B19: 悪性新生物 | C19: 2684 | D19: 心疾患 | E19: 1894 | F19: 脳血管疾患 | G19: 955 | H19: 肺炎及び 気管支炎 | I19: 861 | J19: 不慮の事故 及び有害作用 | K19: 296 | L19: 腎炎、ﾈﾌﾛｰｾﾞ症 候群及びﾈﾌﾛｰｾﾞ | M19: 248 | N19: 自殺 | O19: 219 | P19: 慢性肝疾患 及び肝硬変 | Q19: 169 | R19: 糖尿病 | S19: 106 | T19: 良性及び性質 不詳の新生物 | U19: 102
C20: 156.548194 | E20: 110.4702978 | G20: 55.70176053 | I20: 50.21907415 | K20: 17.26462944 | M20: 14.4649598 | O20: 12.77349273 | Q20: 9.857170187 | S20: 6.182603786 | U20: 5.949297983
A21: 1993 平成5年 | B21: 悪性新生物 | C21: 2767 | D21: 心疾患 | E21: 1944 | F21: 肺炎及び 気管支炎 | G21: 1142 | H21: 脳血管疾患 | I21: 982 | J21: 不慮の事故 及び有害作用 | K21: 326 | L21: 自 殺 | M21: 241 | N21: 腎炎、ﾈﾌﾛｰｾﾞ症 候群及びﾈﾌﾛｰｾﾞ | O21: 229 | P21: 慢性肝疾患 及び肝硬変 | Q21: 192 | R21: 糖尿病 | S21: 123 | T21: 循環系のその 他の疾患 | U21: 119
C22: 160.084144 | E22: 112.4696696 | G22: 66.07014544 | I22: 56.8133825 | K22: 18.86065448 | M22: 13.94299917 | O22: 13.24874195 | Q22: 11.10811552 | S22: 7.116136505 | U22: 6.884717432
A23: 94 6 | B23: 悪性新生物 | C23: 2779 | D23: 心疾患 | E23: 1637 | F23: 脳血管疾患 | G23: 1005 | H23: 肺炎及び 気管支炎 | I23: 971 | J23: 不慮の事故 及び有害作用 | K23: 349 | L23: 腎炎、ﾈﾌﾛｰｾﾞ症 候群及びﾈﾌﾛｰｾﾞ | M23: 255 | N23: 自殺 | O23: 222 | P23: 慢性肝疾患 及び肝硬変 | Q23: 161 | R23: 糖尿病 | S23: 125 | T23: 循環系のその 他の疾患 | U23: 113
C24: 159.6636435 | E24: 94.05159566 | G24: 57.74090021 | I24: 55.78747672 | K24: 20.05131758 | M24: 14.65067617 | O24: 12.75470631 | Q24: 9.250034759 | S24: 7.181704006 | U24: 6.492260421
A25: 95 7 | B25: 悪性新生物 | C25: 3083 | D25: 心疾患 | E25: 1574 | F25: 脳血管疾患 | G25: 1278 | H25: 肺 炎 | I25: 727 | J25: 不慮の事故 | K25: 377 | L25: 自 殺 | M25: 228 | N25: 腎 不 全 | O25: 204 | P25: 肝疾患 | Q25: 156 | R25: 糖尿病 | S25: 142 | T25: 慢性閉塞性 肺疾患 | U25: 129
C26: 175.9694157 | E26: 89.83972114 | G26: 72.94483076 | I26: 41.49522063 | K26: 21.5181543 | M26: 13.01363178 | O26: 11.6437758 | Q26: 8.904063849 | S26: 8.104981196 | U26: 7.362975875
A27: 96 8 | B27: 悪性新生物 | C27: 3295 | D27: 心疾患 | E27: 1536 | F27: 脳血管疾患 | G27: 1292 | H27: 肺 炎 | I27: 689 | J27: 不慮の事故 | K27: 356 | L27: 自 殺 | M27: 248 | N27: 腎 不 全 | O27: 228 | P27: 肝疾患 | Q27: 158 | R27: 糖尿病 | S27: 133 | T27: 慢性閉塞性 肺疾患 | U27: 102
C28: 185.6819232 | E28: 86.55764311 | G28: 72.80760084 | I28: 38.82696361 | K28: 20.06153707 | M28: 13.97545279 | O28: 12.84840015 | Q28: 8.903715893 | S28: 7.494900087 | U28: 5.747968488
A29: 97 9 | B29: 悪性新生物 | C29: 3352 | D29: 心疾患 | E29: 1541 | F29: 脳血管疾患 | G29: 1345 | H29: 肺 炎 | I29: 728 | J29: 不慮の事故 | K29: 370 | L29: 自 殺 | M29: 308 | N29: 腎 不 全 | O29: 234 | P29: 肝疾患 | Q29: 183 | R29: 糖尿病 | S29: 130 | T29: 慢性閉塞性 肺疾患 | U29: 122
C30: 187.1349208 | E30: 86.03070196 | G30: 75.08844526 | I30: 40.64266777 | K30: 20.65630093 | M30: 17.19497482 | O30: 13.06371464 | Q30: 10.21649478 | S30: 7.257619244 | U30: 6.810996521
A31: 98 10 | B31: 悪性新生物 | C31: 3439 | D31: 心疾患 | E31: 1591 | F31: 脳血管疾患 | G31: 1307 | H31: 肺 炎 | I31: 748 | J31: 自 殺 | K31: 413 | L31: 不慮の事故 | M31: 322 | N31: 腎 不 全 | O31: 198 | P31: 肝疾患 | Q31: 145 | R31: 糖尿病 | S31: 144 | T31: その他の 新生物 | U31: 94
C32: 190.6799161 | E32: 88.21510513 | G32: 72.46834846 | I32: 41.47385207 | K32: 22.89933276 | M32: 17.85371707 | O32: 10.97837261 | Q32: 8.039717312 | S32: 7.984270986 | U32: 5.211954672
A33: 99 11 | B33: 悪性新生物 | C33: 3515 | D33: 心疾患 | E33: 1726 | F33: 脳血管疾患 | G33: 1418 | H33: 肺 炎 | I33: 910 | J33: 自 殺 | K33: 442 | L33: 不慮の事故 | M33: 360 | N33: 腎 不 全 | O33: 222 | P33: 肝疾患 | Q33: 166 | R33: 糖尿病 | S33: 158 | T33: その他の 新生物 | U33: 124
C34: 193.9814429 | E34: 95.25233868 | G34: 78.25481822 | I34: 50.21994681 | K34: 24.39254559 | M34: 19.86723171 | O34: 12.25145955 | Q34: 9.161001286 | S34: 8.719507249 | U34: 6.843157587
A35: 2000 12 | B35: 悪性新生物 | C35: 3727 | D35: 心疾患 | E35: 1651 | F35: 脳血管疾患 | G35: 1439 | H35: 肺 炎 | I35: 820 | J35: 自 殺 | K35: 475 | L35: 不慮の事故 | M35: 355 | N35: 腎 不 全 | O35: 228 | P35: 肝疾患 | Q35: 148 | R35: 糖尿病 | S35: 141 | T35: 慢性閉塞性 肺疾患 | U35: 125
C36: 205.1547964 | E36: 90.88021701 | G36: 79.21055862 | I36: 45.13735793 | K36: 26.14664027 | M36: 19.54117325 | O36: 12.55038733 | Q36: 8.146742652 | S36: 7.761423742 | U36: 6.880694807
A37: 01 13 | B37: 悪性新生物 | C37: 3765 | D37: 心疾患 | E37: 1669 | F37: 脳血管疾患 | G37: 1341 | H37: 肺 炎 | I37: 803 | J37: 不慮の事故 | K37: 375 | L37: 自 殺 | M37: 351 | N37: 腎 不 全 | O37: 257 | P37: 糖尿病 | Q37: 161 | R37: 肝疾患 | S37: 135 | U37: 128
C38: 205.2124508 | E38: 90.96934404 | G38: 73.09160597 | I38: 43.7677551 | K38: 20.43948713 | M38: 19.13135995 | O38: 14.00786184 | Q38: 8.77535314 | S38: 7.358215366 | U38: 6.976678273
A39: 02 14 | B39: 悪性新生物 | C39: 3926 | D39: 心疾患 | E39: 1624 | F39: 脳血管疾患 | G39: 1415 | H39: 肺 炎 | I39: 820 | J39: 自 殺 | K39: 394 | L39: 不慮の事故 | M39: 363 | N39: 腎 不 全 | O39: 289 | P39: 肝 疾 患 | Q39: 150 | R39: 大動脈瘤及び解離 | S39: 139 | T39: 糖 尿 病 | U39: 136
C40: 212.4141633 | E40: 87.86566508 | G40: 76.55783011 | I40: 44.36566833 | K40: 21.31716259 | M40: 19.63992391 | O40: 15.63619286 | Q40: 8.115671036 | S40: 7.520521827 | U40: 7.358208406
A41: 03 15 | B41: 悪性新生物 | C41: 3997 | D41: 心疾患 | E41: 1761 | F41: 脳血管疾患 | G41: 1468 | H41: 肺 炎 | I41: 960 | J41: 自 殺 | K41: 467 | L41: 不慮の事故 | M41: 390 | N41: 腎 不 全 | O41: 278 | P41: 肝 疾 患 | Q41: 148 | R41: 慢性閉塞性肺疾患 | S41: 144 | T41: 糖 尿 病 | U41: 140
C42: 214.6200441 | E42: 94.55739247 | G42: 78.8246747 | I42: 51.54747119 | K42: 25.07569692 | M42: 20.94116017 | O42: 14.92728853 | Q42: 7.946901809 | S42: 7.732120679 | U42: 7.517339549
A43: 04 16 | B43: 悪性新生物 | C43: 4372 | D43: 心疾患 | E43: 1793 | F43: 脳血管疾患 | G43: 1423 | H43: 肺 炎 | I43: 1022 | J43: 自 殺 | K43: 442 | L43: 不慮の事故 | M43: 399 | N43: 腎 不 全 | O43: 236 | P43: 肝 疾 患 | Q43: 166 | R43: 慢性閉塞性肺疾患 | S43: 147 | T43: 糖 尿 病 | U43: 132
C44: 233.4593366 | E44: 95.7439594 | G44: 75.98642177 | I44: 54.57352287 | K44: 23.60224766 | M44: 21.30610139 | O44: 12.60210509 | Q44: 8.86419256 | S44: 7.849616303 | U44: 7.048635048
A45: 05 17 | B45: 悪性新生物 | C45: 4490 | D45: 心疾患 | E45: 1933 | F45: 脳血管疾患 | G45: 1598 | H45: 肺 炎 | I45: 1054 | J45: 自 殺 | K45: 472 | L45: 不慮の事故 | M45: 346 | N45: 腎 不 全 | O45: 291 | P45: 肝 疾 患 | Q45: 169 | R45: 慢性閉塞性肺疾患 | S45: 138 | T45: 糖 尿 病 | U45: 164
C46: 239.5 | E46: 103.1 | G46: 85.3 | I46: 56.2 | K46: 25.2 | M46: 18.5 | O46: 15.47162127 | Q46: 8.985237096 | S46: 7.4 | U46: 8.719401679
A47: 06 18 | B47: 悪性新生物 | C47: 4565 | D47: 心疾患 | E47: 2074 | F47: 脳血管疾患 | G47: 1408 | H47: 肺 炎 | I47: 1117 | J47: 不慮の事故 | K47: 415 | L47: 自 殺 | M47: 409 | N47: 腎 不 全 | O47: 287 | P47: 糖 尿 病 | Q47: 174 | R47: 肝 疾 患 | S47: 159 | T47: 大動脈瘤及び解離 | U47: 152
C48: 241.6034211 | E48: 109.7668117 | G48: 74.51864554 | I48: 59.11741979 | K48: 21.96394737 | M48: 21.64639632 | O48: 15.18952505 | Q48: 9.208980344 | S48: 8.415102728 | U48: 8.044626507
A49: 07 19 | B49: 悪性新生物 | C49: 4695 | D49: 心疾患 | E49: 2268 | F49: 脳血管疾患 | G49: 1492 | H49: 肺 炎 | I49: 1172 | J49: 自 殺 | K49: 419 | L49: 不慮の事故 | M49: 372 | N49: 腎 不 全 | O49: 326 | P49: 糖 尿 病 | Q49: 177 | R49: 敗 血 症 | S49: 171 | T49: 慢性閉塞性肺疾患 | U49: 164
C50: 247.6395128 | E50: 119.6264995 | G50: 78.69609225 | I50: 61.81757381 | K50: 22.10031009 | M50: 19.62127769 | O50: 17.19499067 | Q50: 9.335930515 | S50: 9.019458294 | U50: 8.650240703
A51: 08 20 | B51: 悪性新生物 | C51: 4735 | D51: 心疾患 | E51: 2219 | F51: 脳血管疾患 | G51: 1380 | H51: 肺 炎 | I51: 1298 | J51: 自 殺 | K51: 477 | L51: 不慮の事故 | M51: 367 | N51: 腎 不 全 | O51: 341 | P51: 大動脈瘤及び解離 | Q51: 192 | R51: 糖 尿 病 | S51: 188 | T51: 敗 血 症 | U51: 185
C52: 249.103674 | E52: 116.7393986 | G52: 72.60043718 | I52: 68.28649816 | K52: 25.09449894 | M52: 19.30750757 | O52: 17.93967325 | Q52: 10.10093039 | S52: 9.890494341 | U52: 9.732667303
A53: 09 21 | B53: 悪性新生物 | C53: 4981 | D53: 心疾患 | E53: 2137 | F53: 脳血管疾患 | G53: 1335 | H53: 肺 炎 | I53: 1222 | J53: 自 殺 | K53: 420 | L53: 不慮の事故 | M53: 383 | N53: 腎 不 全 | O53: 356 | P53: 老衰 | Q53: 231 | R53: 肝疾患 | S53: 201 | T53: 大動脈瘤及び解離 | U53: 200
C54: 261.1402723 | E54: 112.0370933 | G54: 69.99041629 | I54: 64.06613387 | K54: 22.01945681 | M54: 20.07964752 | O54: 18.66411101 | Q54: 12.11070125 | S54: 10.5378829 | U54: 10.48545562
A55: 10 22 | B55: 悪性新生物 | C55: 5256 | D55: 心疾患 | E55: 2313 | F55: 肺 炎 | G55: 1439 | H55: 脳血管疾患 | I55: 1372 | J55: 自 殺 | K55: 431 | L55: 不慮の事故 | M55: 387 | N55: 腎不全 | O55: 329 | P55: 老衰 | Q55: 222 | R55: 大動脈瘤及び解離 | S55: 207 | T55: 慢性閉塞性肺疾患 | U55: 194
C56: 275.6632754 | E56: 121.3107222 | G56: 75.4717377 | I56: 71.9577652 | K56: 22.60480816 | M56: 20.29712473 | O56: 17.25517839 | Q56: 11.64331186 | S56: 10.8566016 | U56: 10.17478604
A57: 11 23 | B57: 悪性新生物 | C57: 5326 | D57: 心疾患 | E57: 2421 | F57: 肺 炎 | G57: 1473 | H57: 脳血管疾患 | I57: 1368 | J57: 不慮の事故 | K57: 449 | L57: 自 殺 | M57: 434 | N57: 腎 不 全 | O57: 411 | P57: 老 衰 | Q57: 256 | R57: 糖 尿 病 | S57: 211 | T57: 大動脈瘤及び解離 | U57: 197
A58: 11 23 | B58: 悪性新生物 | C58: 277.1165518 | D58: 心疾患 | E58: 125.9667991 | F58: 肺 炎 | G58: 76.64150973 | H58: 脳血管疾患 | I58: 71.17826565 | J58: 不慮の事故 | K58: 23.36187228 | L58: 自 殺 | M58: 22.58140884 | N58: 腎 不 全 | O58: 21.38469823 | P58: 老 衰 | Q58: 13.31990936 | R58: 糖 尿 病 | S58: 10.97851904 | T58: 大動脈瘤及び解離 | U58: 10.2500865
A59: 12 24 | B59: 悪性新生物 | C59: 5302 | D59: 心疾患 | E59: 2363 | F59: 肺 炎 | G59: 1581 | H59: 脳血管疾患 | I59: 1348 | J59: 自 殺 | K59: 403 | L59: 老 衰 | M59: 392 | N59: 腎 不 全 | O59: 387 | P59: 不慮の事故 | Q59: 366 | R59: 敗 血 症 | S59: 239 | T59: 肝 疾 患 | U59: 223
A60: 12 24 | B60: 悪性新生物 | C60: 274.8893599 | D60: 心疾患 | E60: 122.5129305 | F60: 肺 炎 | G60: 81.96908298 | H60: 脳血管疾患 | I60: 69.8888829 | J60: 自 殺 | K60: 20.89407998 | L60: 老 衰 | M60: 20.3237701 | N60: 腎 不 全 | O60: 20.06453834 | P60: 不慮の事故 | Q60: 18.97576494 | R60: 敗 血 症 | S60: 12.3912782 | T60: 肝 疾 患 | U60: 11.56173656
A61: 13 25 | B61: 悪性新生物 | C61: 5674 | D61: 心疾患 | E61: 2287 | F61: 肺 炎 | G61: 1477 | H61: 脳血管疾患 | I61: 1384 | J61: 老 衰 | K61: 514 | L61: 腎 不 全 | M61: 407 | N61: 自 殺 | O61: 374 | P61: 不慮の事故 | Q61: 370 | R61: 敗 血 症 | S61: 241 | T61: 大動脈瘤及び解離 | U61: 230
A62: 13 25 | B62: 悪性新生物 | C62: 293.0499037 | D62: 心疾患 | E62: 118.1186341 | F62: 肺 炎 | G62: 76.28387518 | H62: 脳血管疾患 | I62: 71.48062508 | J62: 老 衰 | K62: 26.54699515 | L62: 腎 不 全 | M62: 21.02067515 | N62: 自 殺 | O62: 19.31629608 | P62: 不慮の事故 | Q62: 19.10970468 | R62: 敗 血 症 | S62: 12.44713197 | T62: 大動脈瘤及び解離 | U62: 11.87900561
A63: 14 26 | B63: 悪性新生物 | C63: 5783 | D63: 心疾患 | E63: 2393 | F63: 肺 炎 | G63: 1597 | H63: 脳血管疾患 | I63: 1389 | J63: 老 衰 | K63: 626 | L63: 不慮の事故 | M63: 411 | N63: 腎 不 全 | O63: 400 | P63: 自 殺 | Q63: 345 | R63: 敗 血 症 | S63: 239 | T63: 大動脈瘤及び解離 | U63: 223
A64: 14 26 | B64: 悪性新生物 | C64: 297.6864568 | D64: 心疾患 | E64: 123.1823779 | F64: 肺 炎 | G64: 82.20737879 | H64: 脳血管疾患 | I64: 71.50034386 | J64: 老 衰 | K64: 32.22405706 | L64: 不慮の事故 | M64: 21.15668922 | N64: 腎 不 全 | O64: 20.5904518 | P64: 自 殺 | Q64: 17.75926467 | R64: 敗 血 症 | S64: 12.30279495 | T64: 大動脈瘤及び解離 | U64: 11.47917688
A65: 15 2）27 | B65: 悪性新生物 | C65: 5769 | D65: 心疾患 | E65: 2303 | F65: 肺 炎 | G65: 1567 | H65: 脳血管疾患 | I65: 1361 | J65: 老 衰 | K65: 715 | L65: 腎 不 全 | M65: 418 | N65: 不慮の事故 | O65: 395 | P65: 自 殺 | Q65: 322 | R65: 大動脈瘤及び解離 | S65: 250 | T65: 肝 疾 患 | U65: 228
A66: 15 2）27 | B66: 悪性新生物 | C66: 296.8314821 | D66: 心疾患 | E66: 118.4959098 | F66: 肺 炎 | G66: 80.62661337 | H66: 脳血管疾患 | I66: 70.02732661 | J66: 老 衰 | K66: 36.78878657 | L66: 腎 不 全 | M66: 21.50729061 | N66: 不慮の事故 | O66: 20.3238751 | P66: 自 殺 | Q66: 16.56781717 | R66: 大動脈瘤及び解離 | S66: 12.86321209 | T66: 肝 疾 患 | U66: 11.73124942
A67: 16 28 | B67: 悪性新生物 | C67: 6003 | D67: 心疾患 | E67: 2414 | F67: 肺 炎 | G67: 1736 | H67: 脳血管疾患 | I67: 1448 | J67: 老 衰 | K67: 893 | L67: 不慮の事故 | M67: 449 | N67: 腎 不 全 | O67: 436 | P67: 自 殺 | Q67: 315 | R67: 大動脈瘤及び解離 | S67: 266 | T67: 敗 血 症 | U67: 217
A68: 16 28 | B68: 悪性新生物 | C68: 306.5249527 | D68: 心疾患 | E68: 123.2635742 | F68: 肺 炎 | G68: 88.64356453 | H68: 脳血管疾患 | I68: 73.93771973 | J68: 老 衰 | K68: 45.5983313 | L68: 不慮の事故 | M68: 22.92682055 | N68: 腎 不 全 | O68: 22.26301506 | P68: 自 殺 | Q68: 16.08451776 | R68: 大動脈瘤及び解離 | S68: 13.58248166 | T68: 敗 血 症 | U68: 11.08044557
A69: 17 29 | B69: 悪性新生物 | C69: 5908 | D69: 心疾患 | E69: 2482 | F69: 脳血管疾患 | G69: 1441 | H69: 肺 炎 | I69: 1360 | J69: 老 衰 | K69: 957 | L69: 不慮の事故 | M69: 436 | N69: 腎 不 全 | O69: 392 | P69: 自 殺 | Q69: 319 | R69: 大動脈瘤及び解離 | S69: 304 | T69: 血管性及び詳細不明の痴呆 | U69: 292
A70: 17 29 | B70: 悪性新生物 | C70: 300.9804791 | D70: 心疾患 | E70: 126.4444057 | F70: 脳血管疾患 | G70: 73.41111549 | H70: 肺 炎 | I70: 69.28460588 | J70: 老 衰 | K70: 48.75394693 | L70: 不慮の事故 | M70: 22.21182953 | N70: 腎 不 全 | O70: 19.97026875 | P70: 自 殺 | Q70: 16.25131564 | R70: 大動脈瘤及び解離 | S70: 15.4871472 | T70: 血管性及び詳細不明の痴呆 | U70: 14.87581244
A71: 18 30 | B71: ='[2]■4 年次別，死因順位'!$B$5 -> 悪性新生物 | C71: ='[2]■4 年次別，死因順位'!$C$5 -> 6115 | D71: ='[2]■4 年次別，死因順位'!$D$5 -> 心疾患 | E71: ='[2]■4 年次別，死因順位'!$E$5 -> 2540 | F71: ='[2]■4 年次別，死因順位'!$F$5 -> 脳血管疾患 | G71: ='[2]■4 年次別，死因順位'!$G$5 -> 1418 | H71: ='[2]■4 年次別，死因順位'!$H$5 -> 肺 炎 | I71: ='[2]■4 年次別，死因順位'!$I$5 -> 1348 | J71: ='[2]■4 年次別，死因順位'!$J$5 -> 老 衰 | K71: ='[2]■4 年次別，死因順位'!$K$5 -> 1019 | L71: ='[2]■4 年次別，死因順位'!$L$5 -> 不慮の事故 | M71: ='[2]■4 年次別，死因順位'!$M$5 -> 483 | N71: ='[2]■4 年次別，死因順位'!$N$5 -> 腎 不 全 | O71: ='[2]■4 年次別，死因順位'!$O$5 -> 412 | P71: ='[2]■4 年次別，死因順位'!$P$5 -> 血管性及び詳細不明の痴呆 | Q71: ='[2]■4 年次別，死因順位'!$Q$5 -> 383 | R71: ='[2]■4 年次別，死因順位'!$R$5 -> 自 殺 | S71: ='[2]■4 年次別，死因順位'!$S$5 -> 299 | T71: ='[2]■4 年次別，死因順位'!$T$5 -> 大動脈瘤及び解離 | U71: ='[2]■4 年次別，死因順位'!$U$5 -> 266
C72: =C71/'1 年次別，死亡数・粗死亡率・年齢調整死亡率・死亡性比'!$M57*100000 -> 311.0471327 | E72: =E71/'1 年次別，死亡数・粗死亡率・年齢調整死亡率・死亡性比'!$M57*100000 -> 129.2002808 | G72: =G71/'1 年次別，死亡数・粗死亡率・年齢調整死亡率・死亡性比'!$M57*100000 -> 72.12834573 | I72: =I71/'1 年次別，死亡数・粗死亡率・年齢調整死亡率・死亡性比'!$M57*100000 -> 68.56770807 | K72: =K71/'1 年次別，死亡数・粗死亡率・年齢調整死亡率・死亡性比'!$M57*100000 -> 51.83271107 | M72: =M71/'1 年次別，死亡数・粗死亡率・年齢調整死亡率・死亡性比'!$M57*100000 -> 24.56839985 | O72: =O71/'1 年次別，死亡数・粗死亡率・年齢調整死亡率・死亡性比'!$M57*100000 -> 20.95689594 | Q72: =Q71/'1 年次別，死亡数・粗死亡率・年齢調整死亡率・死亡性比'!$M57*100000 -> 19.48177462 | S72: =S71/'1 年次別，死亡数・粗死亡率・年齢調整死亡率・死亡性比'!$M57*100000 -> 15.20900943 | U72: =U71/'1 年次別，死亡数・粗死亡率・年齢調整死亡率・死亡性比'!$M57*100000 -> 13.53042311
A73: * 死亡率は人口10万対

Sheet 5 死因順位・総数
A1: 5 性・年齢(5歳階級)別にみた死因順位
A3: 死亡数、死亡率(人口10万対)、割合(％)2) | E3: 総数 | W3: ='3 月・性別，区別死亡数'!$O$2 -> 平成30年
A4: 年齢 | B4: 人口1） | C4: 死亡 総数 | D4: 第1位 | H4: 第2位 | L4: 第3位 | P4: 第4位 | T4: 第5位
D5: 死 因 | E5: 死亡数 | F5: 死亡率 | G5: 割合 (％) | H5: 死 因 | I5: 死亡数 | J5: 死亡率 | K5: 割合 (％) | L5: 死 因 | M5: 死亡数 | N5: 死亡率 | O5: 割合 (％) | P5: 死 因 | Q5: 死亡数 | R5: 死亡率 | S5: 割合 (％) | T5: 死 因 | U5: 死亡数 | V5: 死亡率 | W5: 割合 (％)
A6: 総数 | B6: =[1]人口!$B$39 -> 1965940 | C6: ='9 性・年齢別，区別死亡数'!B6 -> 19343 | D6: 悪性新生物 | E6: 6115 | F6: =IF(E6>0,E6/$B6*100000,"") -> 311.0471327 | G6: =IF(E6>0,E6/$C6*100,"") -> 31.61350359 | H6: 心疾患 | I6: 2540 | J6: =IF(I6>0,I6/$B6*100000,"") -> 129.2002808 | K6: =IF(I6>0,I6/$C6*100,"") -> 13.13136535 | L6: 脳血管疾患 | M6: 1418 | N6: =IF(M6>0,M6/$B6*100000,"") -> 72.12834573 | O6: =IF(M6>0,M6/$C6*100,"") -> 7.33081735 | P6: 肺 炎 | Q6: 1348 | R6: =IF(Q6>0,Q6/$B6*100000,"") -> 68.56770807 | S6: =IF(Q6>0,Q6/$C6*100,"") -> 6.968929328 | T6: 老 衰 | U6: 1019 | V6: =IF(U6>0,U6/$B6*100000,"") -> 51.83271107 | W6: =IF(U6>0,U6/$C6*100,"") -> 5.268055627 | Y6: 悪性新生物
A7: 0歳 3） | B7: =[1]出生数!$G$4 -> 13248 | C7: ='9 性・年齢別，区別死亡数'!$C$6 -> 34 | D7: 先天奇形，変形及び染色体異常 | E7: 13 | F7: =IF(E7>0,E7/$B7*100000,"") -> 98.12801932 | G7: =IF(E7>0,E7/$C7*100,"") -> 38.23529412 | H7: 周産期に特異的な呼吸障害及び心血管障害 | I7: 8 | J7: =IF(I7>0,I7/$B7*100000,"") -> 60.38647343 | K7: =IF(I7>0,I7/$C7*100,"") -> 23.52941176 | L7: 心疾患 その他の周産期に発生した病態 その他のすべての疾患 | M7: 2 | N7: =IF(M7>0,M7/$B7*100000,"") -> 15.09661836 | O7: =IF(M7>0,M7/$C7*100,"") -> 5.882352941 | R7: =IF(Q7>0,Q7/$B7*100000,"") ->  | S7: =IF(Q7>0,Q7/$C7*100,"") ->  | V7: =IF(U7>0,U7/$B7*100000,"") ->  | W7: =IF(U7>0,U7/$C7*100,"") ->  | Y7: 心疾患
A8: 1～ 4 | B8: ='[1]年齢階級・区別人口(住基）'!$E$3-'[1]年齢階級・区別人口(住基）'!$D$3 -> 56816 | C8: =SUM('9 性・年齢別，区別死亡数'!$D$6:$G$6) -> 10 | D8: 敗 血 症 心疾患 | E8: 2 | F8: 3.520135173 | G8: =IF(E8>0,E8/$C8*100,"") -> 20 | K8: =IF(I8>0,I8/$C8*100,"") ->  | L8: 悪性新生物 その他の新生物 肝 疾 患 | M8: 1 | N8: 1.760067587 | O8: =IF(M8>0,M8/$C8*100,"") -> 10 | S8: =IF(Q8>0,Q8/$C8*100,"") ->  | W8: =IF(U8>0,U8/$C8*100,"") ->  | Y8: 脳血管疾患
A9: 5～ 9 | B9: ='[1]年齢階級・区別人口(住基）'!$F$3 -> 74513 | C9: ='9 性・年齢別，区別死亡数'!$I$6 -> 4 | D9: 悪性新生物 | E9: 2 | F9: 2.684095393 | G9: =IF(E9>0,E9/$C9*100,"") -> 50 | H9: 心疾患 | I9: 1 | J9: 1.342047696 | K9: =IF(I9>0,I9/$C9*100,"") -> 25 | O9: =IF(M9>0,M9/$C9*100,"") ->  | S9: =IF(Q9>0,Q9/$C9*100,"") ->  | W9: =IF(U9>0,U9/$C9*100,"") ->  | Y9: 肺 炎
A10: 10～14 | B10: ='[1]年齢階級・区別人口(住基）'!$G$3 -> 76328 | C10: ='9 性・年齢別，区別死亡数'!$J$6 -> 7 | D10: 悪性新生物 糖 尿 病 髄 膜 炎 心疾患 脳血管疾患 先天奇形，変形及び染色体異常 自 殺 | E10: 1 | F10: 1.310135206 | G10: =IF(E10>0,E10/$C10*100,"") -> 14.28571429 | K10: =IF(I10>0,I10/$C10*100,"") ->  | O10: =IF(M10>0,M10/$C10*100,"") ->  | S10: =IF(Q10>0,Q10/$C10*100,"") ->  | W10: =IF(U10>0,U10/$C10*100,"") ->  | Y10: 不慮の事故
A11: 15～19 | B11: ='[1]年齢階級・区別人口(住基）'!$H$3 -> 81718 | C11: ='9 性・年齢別，区別死亡数'!$K$6 -> 19 | D11: 自 殺 | E11: 6 | F11: 7.342323601 | G11: 31.57894737 | H11: 不慮の事故 | I11: 4 | J11: 4.8948824 | K11: 21.05263158 | L11: 悪性新生物 | M11: 3 | N11: 3.6711618 | O11: 15.78947368 | P11: 敗 血 症 その他の新生物 他 殺 | Q11: 1 | R11: 1.2237206 | S11: 5.263157895 | Y11: 自 殺
A12: 20～24 | B12: ='[1]年齢階級・区別人口(住基）'!$I$3 -> 95417 | C12: ='9 性・年齢別，区別死亡数'!$L$6 -> 40 | D12: 自 殺 | E12: 25 | F12: 26.20078183 | G12: 62.5 | H12: 不慮の事故 | I12: 4 | J12: 4.192125093 | K12: 10 | L12: 悪性新生物 | M12: 2 | N12: 2.096062547 | O12: 5 | P12: その他の新生物 先天奇形，変形及び染色体異常 他 殺 | Q12: 1 | R12: 1.048031273 | S12: 2.5 | Y12: 腎 不 全
A13: 25～29 | B13: ='[1]年齢階級・区別人口(住基）'!$J$3 -> 99856 | C13: ='9 性・年齢別，区別死亡数'!$M$6 -> 34 | D13: 自 殺 | E13: 15 | F13: 15.02163115 | G13: 44.11764706 | H13: 悪性新生物 不慮の事故 | I13: 4 | J13: 4.005768306 | K13: 11.76470588 | P13: 心疾患 | Q13: 3 | R13: 3.00432623 | S13: 8.823529412 | T13: その他の新生物 先天奇形，変形及び染色体異常 | U13: 1 | V13: 1.001442077 | W13: 2.941176471 | Y13: 老 衰
A14: 30～34 | B14: ='[1]年齢階級・区別人口(住基）'!$K$3 -> 115082 | C14: ='9 性・年齢別，区別死亡数'!$N$6 -> 59 | D14: 自 殺 | E14: 25 | F14: 21.72364053 | G14: 42.37288136 | H14: 悪性新生物 | I14: 10 | J14: 8.689456214 | K14: 16.94915254 | L14: 不慮の事故 | M14: 8 | N14: 6.951564971 | O14: 13.55932203 | P14: 心疾患 | Q14: 5 | R14: 4.344728107 | S14: 8.474576271 | T14: 敗 血 症 髄 膜 炎 脳血管疾患 肝 疾 患 腎 不 全 先天奇形，変形及び染色体異常 | U14: 1 | V14: 0.8689456214 | W14: 1.694915254 | Y14: 慢性閉塞性 肺疾患
A15: 35～39 | B15: ='[1]年齢階級・区別人口(住基）'!$L$3 -> 126631 | C15: ='9 性・年齢別，区別死亡数'!$O$6 -> 92 | D15: 自 殺 | E15: 20 | F15: 15.79392092 | G15: 21.73913043 | H15: 悪性新生物 | I15: 17 | J15: 13.42483278 | K15: 18.47826087 | L15: 心疾患 不慮の事故 | M15: 8 | N15: 6.317568368 | O15: 8.695652174 | T15: 肝 疾 患 | U15: 7 | V15: 5.527872322 | W15: 7.608695652 | Y15: その他の 新生物
A16: 40～44 | B16: ='[1]年齢階級・区別人口(住基）'!$M$3 -> 147253 | C16: ='9 性・年齢別，区別死亡数'!$P$6 -> 155 | D16: 悪性新生物 | E16: 45 | F16: 30.55964904 | G16: 29.03225806 | H16: 自 殺 | I16: 33 | J16: 22.4104093 | K16: 21.29032258 | L16: 脳血管疾患 | M16: 20 | N16: 13.58206624 | O16: 12.90322581 | P16: 心疾患 | Q16: 14 | R16: 9.507446368 | S16: 9.032258065 | T16: 肝 疾 患 不慮の事故 | U16: 7 | V16: 4.753723184 | W16: 4.516129032 | Y16: 糖 尿 病
A17: 45～49 | B17: ='[1]年齢階級・区別人口(住基）'!$N$3 -> 153168 | C17: ='9 性・年齢別，区別死亡数'!$Q$6 -> 214 | D17: 悪性新生物 | E17: 82 | F17: 53.53598663 | G17: 38.31775701 | H17: 自 殺 | I17: 30 | J17: 19.58633657 | K17: 14.01869159 | L17: 脳血管疾患 | M17: 19 | N17: 12.40467983 | O17: 8.878504673 | P17: 心疾患 | Q17: 18 | R17: 11.75180194 | S17: 8.411214953 | T17: 不慮の事故 | U17: 11 | V17: 7.181656743 | W17: 5.140186916 | Y17: 先天奇形， 変形及び 染色体異常
A18: 50～54 | B18: ='[1]年齢階級・区別人口(住基）'!$O$3 -> 133525 | C18: ='9 性・年齢別，区別死亡数'!$R$6 -> 321 | D18: 悪性新生物 | E18: 147 | F18: 110.0917431 | G18: 45.79439252 | H18: 自 殺 | I18: 28 | J18: 20.96985583 | K18: 8.722741433 | L18: 心疾患 | M18: 27 | N18: 20.22093241 | O18: 8.411214953 | P18: 肝 疾 患 | Q18: 21 | R18: 15.72739187 | S18: 6.542056075 | T18: 脳血管疾患 不慮の事故 | U18: 15 | V18: 11.23385134 | W18: 4.672897196 | Y18: 周産期に 発生した病態
A19: 55～59 | B19: ='[1]年齢階級・区別人口(住基）'!$P$3 -> 125451 | C19: ='9 性・年齢別，区別死亡数'!$S$6 -> 476 | D19: 悪性新生物 | E19: 245 | F19: 195.2953743 | G19: 51.47058824 | H19: 心疾患 | I19: 40 | J19: 31.88495907 | K19: 8.403361345 | L19: 自 殺 | M19: 31 | N19: 24.71084328 | O19: 6.512605042 | P19: 脳血管疾患 | Q19: 29 | R19: 23.11659532 | S19: 6.092436975 | T19: 肝 疾 患 | U19: 16 | V19: 12.75398363 | W19: 3.361344538 | Y19: 乳幼児突然死 症候群
A20: 60～64 | B20: ='[1]年齢階級・区別人口(住基）'!$Q$3 -> 123510 | C20: ='9 性・年齢別，区別死亡数'!$T$6 -> 708 | D20: 悪性新生物 | E20: 349 | F20: 282.5682131 | G20: 49.29378531 | H20: 心疾患 | I20: 60 | J20: 48.57906242 | K20: 8.474576271 | L20: 脳血管疾患 | M20: 48 | N20: 38.86324994 | O20: 6.779661017 | P20: 肝 疾 患 | Q20: 25 | R20: 20.24127601 | S20: 3.531073446 | T20: 不慮の事故 | U20: 24 | V20: 19.43162497 | W20: 3.389830508 | Y20: インフルエンザ
A21: 65～69 | B21: ='[1]年齢階級・区別人口(住基）'!$R$3 -> 151394 | C21: ='9 性・年齢別，区別死亡数'!$U$6 -> 1373 | D21: 悪性新生物 | E21: 724 | F21: 478.2223866 | G21: 52.73124545 | H21: 心疾患 | I21: 110 | J21: 72.65809741 | K21: 8.011653314 | L21: 脳血管疾患 | M21: 78 | N21: 51.52119635 | O21: 5.680990532 | P21: 肺 炎 不慮の事故 | Q21: 38 | R21: 25.10007002 | S21: 2.767662054 | Y21: 敗 血 症
A22: 70～74 | B22: ='[1]年齢階級・区別人口(住基）'!$S$3 -> 120560 | C22: ='9 性・年齢別，区別死亡数'!$V$6 -> 1757 | D22: 悪性新生物 | E22: 855 | F22: 709.1904446 | G22: 48.66249289 | H22: 心疾患 | I22: 179 | J22: 148.473789 | K22: 10.18782015 | L22: 脳血管疾患 | M22: 105 | N22: 87.09356337 | O22: 5.976095618 | P22: 肺 炎 | Q22: 64 | R22: 53.08560053 | S22: 3.642572567 | T22: 不慮の事故 | U22: 41 | V22: 34.00796284 | W22: 2.333523051 | Y22: ヘルニア及び 腸閉塞
A23: 75～79 | B23: ='[1]年齢階級・区別人口(住基）'!$T$3 -> 94743 | C23: ='9 性・年齢別，区別死亡数'!$W$6 -> 2274 | D23: 悪性新生物 | E23: 958 | F23: 1011.156497 | G23: 42.12840809 | H23: 心疾患 | I23: 237 | J23: 250.1504069 | K23: 10.42216359 | L23: 脳血管疾患 | M23: 158 | N23: 166.7669379 | O23: 6.948109059 | P23: 肺 炎 | Q23: 119 | R23: 125.6029469 | S23: 5.233069481 | T23: 腎 不 全 | U23: 45 | V23: 47.4969127 | W23: 1.978891821 | Y23: 貧 血
A24: 80～84 | B24: ='[1]年齢階級・区別人口(住基）'!$U$3 -> 73002 | C24: ='9 性・年齢別，区別死亡数'!$X$6 -> 3058 | D24: 悪性新生物 | E24: 999 | F24: 1368.455659 | G24: 32.66841073 | H24: 心疾患 | I24: 365 | J24: 499.9863017 | K24: 11.93590582 | L24: 脳血管疾患 | M24: 237 | N24: 324.6486398 | O24: 7.750163506 | P24: 肺 炎 | Q24: 209 | R24: 286.2935262 | S24: 6.834532374 | T24: 不慮の事故 | U24: 80 | V24: 109.5860387 | W24: 2.616088947 | Y24: 喘 息
A25: 85～89 | B25: ='[1]年齢階級・区別人口(住基）'!$V$3 -> 49321 | C25: ='9 性・年齢別，区別死亡数'!$Y$6 -> 3763 | D25: 悪性新生物 | E25: 963 | F25: 1952.515156 | G25: 25.59128355 | H25: 心疾患 | I25: 511 | J25: 1036.069828 | K25: 13.57959075 | L25: 肺 炎 | M25: 359 | N25: 727.8846739 | O25: 9.540260431 | P25: 脳血管疾患 | Q25: 318 | R25: 644.7557835 | S25: 8.450704225 | T25: 老 衰 | U25: 203 | V25: 411.5893838 | W25: 5.394631943
A26: 90歳～ | B26: =SUM('[1]年齢階級・区別人口(住基）'!$W$3:$Y$3) -> 30150 | C26: =SUM('9 性・年齢別，区別死亡数'!Z6:AB6) -> 4945 | D26: 心疾患 | E26: 957 | F26: 3174.129353 | G26: 19.3528817 | H26: 老 衰 | I26: 718 | J26: 2381.426202 | K26: 14.51971689 | L26: 悪性新生物 | M26: 708 | N26: 2348.258706 | O26: 14.31749242 | P26: 肺 炎 | Q26: 521 | R26: 1728.026534 | S26: 10.53589484 | T26: 脳血管疾患 | U26: 384 | V26: 1273.631841 | W26: 7.765419616
A27: 1) 総数は国勢調査による日本人人口、年齢別は住民基本台帳による10月1日現在の人口である。 | L27: 2） それぞれの年齢階級別死亡数を100とした場合の割合である。
A28: 3) 乳児の死因については乳児死因簡単分類を使用。死亡率は出生10万対の率である。 | L28: 4) 出生数
A29: 注) 「心疾患」は「心疾患(高血圧症を除く）」である。

Sheet 5 死因順位・男
A1: 5 性・年齢(5歳階級)別にみた死因順位(つづき)
A3: 死亡数、死亡率(人口10万対)、割合(％)2) | E3: 男 | W3: ='3 月・性別，区別死亡数'!$O$2 -> 平成30年
A4: 年齢 | B4: 人口1） | C4: 死亡 総数 | D4: 第1位 | H4: 第2位 | L4: 第3位 | P4: 第4位 | T4: 第5位
D5: 死 因 | E5: 死亡数 | F5: 死亡率 | G5: 割合 (％) | H5: 死 因 | I5: 死亡数 | J5: 死亡率 | K5: 割合 (％) | L5: 死 因 | M5: 死亡数 | N5: 死亡率 | O5: 割合 (％) | P5: 死 因 | Q5: 死亡数 | R5: 死亡率 | S5: 割合 (％) | T5: 死 因 | U5: 死亡数 | V5: 死亡率 | W5: 割合 (％)
A6: 総数 | B6: =[1]人口!$B$40 -> 914851 | C6: ='9 性・年齢別，区別死亡数'!B18 -> 9925 | D6: 悪性新生物 | E6: 3430 | F6: =IF(E6>0,E6/$B6*100000,"") -> 374.9244412 | G6: =IF(E6>0,E6/$C6*100,"") -> 34.55919395 | H6: 心疾患 | I6: 1161 | J6: =IF(I6>0,I6/$B6*100000,"") -> 126.9059115 | K6: =IF(I6>0,I6/$C6*100,"") -> 11.697733 | L6: 肺 炎 | M6: 760 | N6: =IF(M6>0,M6/$B6*100000,"") -> 83.07363713 | O6: =IF(M6>0,M6/$C6*100,"") -> 7.65743073 | P6: 脳血管疾患 | Q6: 724 | R6: =IF(Q6>0,Q6/$B6*100000,"") -> 79.13857011 | S6: =IF(Q6>0,Q6/$C6*100,"") -> 7.294710327 | T6: 老 衰 | U6: 269 | V6: =IF(U6>0,U6/$B6*100000,"") -> 29.40369525 | W6: =IF(U6>0,U6/$C6*100,"") -> 2.710327456 | Y6: 悪性新生物
A7: 0歳 3） | B7: =[1]出生数!$H$4 -> 6744 | C7: ='9 性・年齢別，区別死亡数'!$C$18 -> 16 | D7: 周産期に特異的な呼吸障害及び心血管障害 | E7: 6 | F7: 88.96797153 | G7: =IF(E7>0,E7/$C7*100,"") -> 37.5 | H7: 先天奇形，変形及び染色体異常 | I7: 5 | J7: 74.13997628 | K7: =IF(I7>0,I7/$C7*100,"") -> 31.25 | L7: 敗血症（新生児の細菌性敗血症を除く） 胎児及び新生児の出血性障害及び血液障害 その他の周産期に発生した病態 その他のすべての疾患 | M7: 1 | N7: 14.82799526 | O7: =IF(M7>0,M7/$C7*100,"") -> 6.25 | S7: =IF(Q7>0,Q7/$C7*100,"") ->  | W7: =IF(U7>0,U7/$C7*100,"") ->  | Y7: 心疾患
A8: 1～ 4 | B8: ='[1]年齢階級・区別人口(住基）'!$E$4-'[1]年齢階級・区別人口(住基）'!$D$4 -> 29190 | C8: =SUM('9 性・年齢別，区別死亡数'!$D$18:$G$18) -> 3 | D8: 敗 血 症 | E8: 1 | F8: 3.425830764 | G8: =IF(E8>0,E8/$C8*100,"") -> 33.33333333 | K8: =IF(I8>0,I8/$C8*100,"") ->  | O8: =IF(M8>0,M8/$C8*100,"") ->  | S8: =IF(Q8>0,Q8/$C8*100,"") ->  | W8: =IF(U8>0,U8/$C8*100,"") ->  | Y8: 脳血管疾患
A9: 5～ 9 | B9: ='[1]年齢階級・区別人口(住基）'!$F$4 -> 38133 | C9: ='9 性・年齢別，区別死亡数'!$I$18 -> 3 | D9: 悪性新生物 | E9: 2 | F9: 5.244801091 | G9: =IF(E9>0,E9/$C9*100,"") -> 66.66666667 | K9: =IF(I9>0,I9/$C9*100,"") ->  | O9: =IF(M9>0,M9/$C9*100,"") ->  | S9: =IF(Q9>0,Q9/$C9*100,"") ->  | W9: =IF(U9>0,U9/$C9*100,"") ->  | Y9: 肺 炎
A10: 10～14 | B10: ='[1]年齢階級・区別人口(住基）'!$G$4 -> 38840 | C10: ='9 性・年齢別，区別死亡数'!$J$18 -> 6 | D10: 悪性新生物 糖 尿 病 髄 膜 炎 脳血管疾患 先天奇形，変形及び染色体異常 自 殺 | E10: 1 | F10: 2.574665294 | G10: =IF(E10>0,E10/$C10*100,"") -> 16.66666667 | K10: =IF(I10>0,I10/$C10*100,"") ->  | O10: =IF(M10>0,M10/$C10*100,"") ->  | S10: =IF(Q10>0,Q10/$C10*100,"") ->  | W10: =IF(U10>0,U10/$C10*100,"") ->  | Y10: 不慮の事故
A11: 15～19 | B11: ='[1]年齢階級・区別人口(住基）'!$H$4 -> 41296 | C11: ='9 性・年齢別，区別死亡数'!$K$18 -> 15 | D11: 不慮の事故 自 殺 | E11: 4 | F11: 9.686168152 | G11: 26.66666667 | L11: 悪性新生物 | M11: 2 | N11: 4.843084076 | O11: 13.33333333 | P11: その他の新生物 他 殺 | Q11: 1 | R11: 2.421542038 | S11: 6.666666667 | Y11: 自 殺
A12: 20～24 | B12: ='[1]年齢階級・区別人口(住基）'!$I$4 -> 46391 | C12: ='9 性・年齢別，区別死亡数'!$L$18 -> 27 | D12: 自 殺 | E12: 21 | F12: 45.267401 | G12: 77.77777778 | H12: 不慮の事故 | I12: 2 | J12: 4.311181048 | K12: 7.407407407 | L12: 悪性新生物 その他の新生物 | M12: 1 | N12: 2.155590524 | O12: 3.703703704 | Y12: 腎 不 全
A13: 25～29 | B13: ='[1]年齢階級・区別人口(住基）'!$J$4 -> 47325 | C13: ='9 性・年齢別，区別死亡数'!$M$18 -> 24 | D13: 自 殺 | E13: 9 | F13: 19.01743265 | G13: 37.5 | H13: 悪性新生物 心疾患 不慮の事故 | I13: 3 | J13: 6.339144216 | K13: 12.5 | T13: その他の新生物 | U13: 1 | V13: 2.113048072 | W13: 4.166666667 | Y13: 老 衰
A14: 30～34 | B14: ='[1]年齢階級・区別人口(住基）'!$K$4 -> 55925 | C14: ='9 性・年齢別，区別死亡数'!$N$18 -> 40 | D14: 自 殺 | E14: 19 | F14: 33.97407242 | G14: 47.5 | H14: 悪性新生物 | I14: 6 | J14: 10.72865445 | K14: 15 | L14: 不慮の事故 | M14: 5 | N14: 8.940545373 | O14: 12.5 | P14: 心疾患 | Q14: 4 | R14: 7.152436299 | S14: 10 | T14: 脳血管疾患 肝 疾 患 | U14: 1 | V14: 1.788109075 | W14: 2.5 | Y14: 慢性閉塞性肺疾患
A15: 35～39 | B15: ='[1]年齢階級・区別人口(住基）'!$L$4 -> 61208 | C15: ='9 性・年齢別，区別死亡数'!$O$18 -> 56 | D15: 自 殺 | E15: 13 | F15: 21.23905372 | G15: 23.21428571 | H15: 悪性新生物 不慮の事故 | I15: 6 | J15: 9.802640178 | K15: 10.71428571 | P15: 心疾患 | Q15: 5 | R15: 8.168866815 | S15: 8.928571429 | T15: 脳血管疾患 肝 疾 患 | U15: 4 | V15: 6.535093452 | W15: 7.142857143 | Y15: その他の新生物
A16: 40～44 | B16: ='[1]年齢階級・区別人口(住基）'!$M$4 -> 71422 | C16: ='9 性・年齢別，区別死亡数'!$P$18 -> 89 | D16: 自 殺 | E16: 23 | F16: 32.20296267 | G16: 25.84269663 | H16: 悪性新生物 | I16: 16 | J16: 22.40206099 | K16: 17.97752809 | L16: 心疾患 脳血管疾患 | M16: 13 | N16: 18.20167455 | O16: 14.60674157 | T16: 肝 疾 患 | U16: 5 | V16: 7.000644059 | W16: 5.617977528 | Y16: 糖 尿 病
A17: 45～49 | B17: ='[1]年齢階級・区別人口(住基）'!$N$4 -> 73677 | C17: ='9 性・年齢別，区別死亡数'!$Q$18 -> 123 | D17: 悪性新生物 | E17: 29 | F17: 39.36099461 | G17: 23.57723577 | H17: 自 殺 | I17: 22 | J17: 29.86006488 | K17: 17.88617886 | L17: 脳血管疾患 | M17: 16 | N17: 21.71641082 | O17: 13.00813008 | P17: 心疾患 | Q17: 15 | R17: 20.35913514 | S17: 12.19512195 | T17: 不慮の事故 | U17: 7 | V17: 9.500929734 | W17: 5.691056911 | Y17: 先天奇形，変形 及び染色体異常
A18: 50～54 | B18: ='[1]年齢階級・区別人口(住基）'!$O$4 -> 62919 | C18: ='9 性・年齢別，区別死亡数'!$R$18 -> 194 | D18: 悪性新生物 | E18: 62 | F18: 98.53939192 | G18: 31.95876289 | H18: 心疾患 | I18: 24 | J18: 38.14428074 | K18: 12.37113402 | L18: 自 殺 | M18: 21 | N18: 33.37624565 | O18: 10.82474227 | P18: 肝 疾 患 | Q18: 17 | R18: 27.01886553 | S18: 8.762886598 | T18: 脳血管疾患 | U18: 10 | V18: 15.89345031 | W18: 5.154639175 | Y18: 周産期に 発生した病態
A19: 55～59 | B19: ='[1]年齢階級・区別人口(住基）'!$P$4 -> 59201 | C19: ='9 性・年齢別，区別死亡数'!$S$18 -> 288 | D19: 悪性新生物 | E19: 129 | F19: 217.9017246 | G19: 44.79166667 | H19: 心疾患 | I19: 37 | J19: 62.49894427 | K19: 12.84722222 | L19: 自 殺 | M19: 20 | N19: 33.78321312 | O19: 6.944444444 | P19: 脳血管疾患 | Q19: 17 | R19: 28.71573115 | S19: 5.902777778 | T19: 肝 疾 患 不慮の事故 | U19: 11 | V19: 18.58076722 | W19: 3.819444444 | Y19: 乳幼児突然死 症候群
A20: 60～64 | B20: ='[1]年齢階級・区別人口(住基）'!$Q$4 -> 58650 | C20: ='9 性・年齢別，区別死亡数'!$T$18 -> 456 | D20: 悪性新生物 | E20: 199 | F20: 339.3009378 | G20: 43.64035088 | H20: 心疾患 | I20: 42 | J20: 71.6112532 | K20: 9.210526316 | L20: 脳血管疾患 | M20: 28 | N20: 47.74083546 | O20: 6.140350877 | P20: 肝 疾 患 | Q20: 21 | R20: 35.8056266 | S20: 4.605263158 | T20: 不慮の事故 | U20: 19 | V20: 32.39556692 | W20: 4.166666667 | Y20: インフルエンザ
A21: 65～69 | B21: ='[1]年齢階級・区別人口(住基）'!$R$4 -> 70271 | C21: ='9 性・年齢別，区別死亡数'!$U$18 -> 892 | D21: 悪性新生物 | E21: 455 | F21: 647.493276 | G21: 51.00896861 | H21: 心疾患 | I21: 75 | J21: 106.7296609 | K21: 8.408071749 | L21: 脳血管疾患 | M21: 53 | N21: 75.42229369 | O21: 5.941704036 | P21: 肺 炎 | Q21: 30 | R21: 42.69186435 | S21: 3.3632287 | T21: 大動脈瘤及び解離 不慮の事故 | U21: 21 | V21: 29.88430505 | W21: 2.35426009 | Y21: 敗 血 症
A22: 70～74 | B22: ='[1]年齢階級・区別人口(住基）'!$S$4 -> 54228 | C22: ='9 性・年齢別，区別死亡数'!$V$18 -> 1174 | D22: 悪性新生物 | E22: 553 | F22: 1019.768385 | G22: 47.10391823 | H22: 心疾患 | I22: 123 | J22: 226.8200929 | K22: 10.4770017 | L22: 脳血管疾患 | M22: 70 | N22: 129.0846057 | O22: 5.962521295 | P22: 肺 炎 | Q22: 47 | R22: 86.67109242 | S22: 4.003407155 | T22: 肝 疾 患 不慮の事故 | U22: 28 | V22: 51.6338423 | W22: 2.385008518 | Y22: ヘルニア及び腸閉塞
A23: 75～79 | B23: ='[1]年齢階級・区別人口(住基）'!$T$4 -> 39893 | C23: ='9 性・年齢別，区別死亡数'!$W$18 -> 1403 | D23: 悪性新生物 | E23: 577 | F23: 1446.369037 | G23: 41.12615823 | H23: 心疾患 | I23: 155 | J23: 388.5393427 | K23: 11.04775481 | L23: 脳血管疾患 | M23: 107 | N23: 268.2174818 | O23: 7.626514612 | P23: 肺 炎 | Q23: 78 | R23: 195.5230241 | S23: 5.559515324 | T23: 腎 不 全 | U23: 30 | V23: 75.20116311 | W23: 2.138275125 | Y23: 貧 血
A24: 80～84 | B24: ='[1]年齢階級・区別人口(住基）'!$U$4 -> 28036 | C24: ='9 性・年齢別，区別死亡数'!$X$18 -> 1738 | D24: 悪性新生物 | E24: 585 | F24: 2086.602939 | G24: 33.6593786 | H24: 心疾患 | I24: 198 | J24: 706.2348409 | K24: 11.39240506 | L24: 肺 炎 | M24: 145 | N24: 517.1921815 | O24: 8.3429229 | P24: 脳血管疾患 | Q24: 139 | R24: 495.7911257 | S24: 7.997698504 | T24: 慢性閉塞性肺疾患 | U24: 42 | V24: 149.8073905 | W24: 2.416570771 | Y24: 喘 息
A25: 85～89 | B25: ='[1]年齢階級・区別人口(住基）'!$V$4 -> 16527 | C25: ='9 性・年齢別，区別死亡数'!$Y$18 -> 1833 | D25: 悪性新生物 | E25: 512 | F25: 3097.960912 | G25: 27.93235134 | H25: 心疾患 | I25: 226 | J25: 1367.459309 | K25: 12.32951446 | L25: 肺 炎 | M25: 215 | N25: 1300.901555 | O25: 11.72940535 | P25: 脳血管疾患 | Q25: 148 | R25: 895.5043263 | S25: 8.074195308 | T25: 老 衰 | U25: 79 | V25: 478.0056877 | W25: 4.309874523 | Y25: 肝 疾 患
A26: 90歳～ | B26: =SUM('[1]年齢階級・区別人口(住基）'!$W$4:$Y$4) -> 7345 | C26: =SUM('9 性・年齢別，区別死亡数'!Z18:AB18) -> 1545 | D26: 悪性新生物 | E26: 292 | F26: 3975.493533 | G26: 18.89967638 | H26: 心疾患 | I26: 241 | J26: 3281.143635 | K26: 15.5987055 | L26: 肺 炎 | M26: 214 | N26: 2913.54663 | O26: 13.85113269 | P26: 老 衰 | Q26: 151 | R26: 2055.820286 | S26: 9.773462783 | T26: 脳血管疾患 | U26: 117 | V26: 1592.920354 | W26: 7.572815534
A27: 1) 総数は国勢調査による日本人人口、年齢別は住民基本台帳による10月1日現在の人口である。 | L27: 2） それぞれの年齢階級別死亡数を100とした場合の割合である。
A28: 3) 乳児の死因については乳児死因簡単分類を使用。死亡率は出生10万対の率である。 | L28: 4) 出生数
A29: 注) 「心疾患」は「心疾患(高血圧症を除く）」である。

Sheet 5 死因順位・女
A1: 5 性・年齢(5歳階級)別にみた死因順位(つづき)
A3: 死亡数、死亡率(人口10万対)、割合(％)2) | E3: 女 | W3: ='3 月・性別，区別死亡数'!$O$2 -> 平成30年
A4: 年齢 | B4: 人口 1） | C4: 死亡 総数 | D4: 第1位 | H4: 第2位 | L4: 第3位 | P4: 第4位 | T4: 第5位
D5: 死 因 | E5: 死亡数 | F5: 死亡率 | G5: 割合 (％) | H5: 死 因 | I5: 死亡数 | J5: 死亡率 | K5: 割合 (％) | L5: 死 因 | M5: 死亡数 | N5: 死亡率 | O5: 割合 (％) | P5: 死 因 | Q5: 死亡数 | R5: 死亡率 | S5: 割合 (％) | T5: 死 因 | U5: 死亡数 | V5: 死亡率 | W5: 割合 (％)
A6: 総数 | B6: =[1]人口!$B$41 -> 1051089 | C6: ='9 性・年齢別，区別死亡数'!$B$30 -> 9418 | D6: 悪性新生物 | E6: 2685 | F6: =IF(E6>0,E6/$B6*100000,"") -> 255.4493482 | G6: =IF(E6>0,E6/$C6*100,"") -> 28.50923763 | H6: 心疾患 | I6: 1379 | J6: =IF(I6>0,I6/$B6*100000,"") -> 131.197263 | K6: =IF(I6>0,I6/$C6*100,"") -> 14.64217456 | L6: 老 衰 | M6: 750 | N6: =IF(M6>0,M6/$B6*100000,"") -> 71.35456655 | O6: =IF(M6>0,M6/$C6*100,"") -> 7.963474198 | P6: 脳血管疾患 | Q6: 694 | R6: =IF(Q6>0,Q6/$B6*100000,"") -> 66.02675891 | S6: =IF(Q6>0,Q6/$C6*100,"") -> 7.368868125 | T6: 肺 炎 | U6: 588 | V6: =IF(U6>0,U6/$B6*100000,"") -> 55.94198017 | W6: =IF(U6>0,U6/$C6*100,"") -> 6.243363772 | Y6: 悪性新生物
A7: 0歳 3） | B7: =[1]出生数!$I$4 -> 6504 | C7: ='9 性・年齢別，区別死亡数'!$C$30 -> 18 | D7: 先天奇形，変形及び染色体異常 | E7: 8 | F7: =IF(E7>0,E7/$B7*100000,"") -> 123.00123 | G7: =IF(E7>0,E7/$C7*100,"") -> 44.44444444 | H7: 心疾患 周産期に特異的な呼吸障害及び心血管障害 | I7: 2 | J7: =IF(I7>0,I7/$B7*100000,"") -> 30.7503075 | K7: =IF(I7>0,I7/$C7*100,"") -> 11.11111111 | N7: =IF(M7>0,M7/$B7*100000,"") ->  | O7: =IF(M7>0,M7/$C7*100,"") ->  | P7: 肺 炎 肝疾患 周産期に特異的な感染症 その他の周産期に発生した病態 乳幼児突然死症候群 その他のすべての疾患 | Q7: 1 | R7: =IF(Q7>0,Q7/$B7*100000,"") -> 15.37515375 | S7: =IF(Q7>0,Q7/$C7*100,"") -> 5.555555556 | V7: =IF(U7>0,U7/$B7*100000,"") ->  | W7: =IF(U7>0,U7/$C7*100,"") ->  | Y7: 心疾患
A8: 1～ 4 | B8: ='[1]年齢階級・区別人口(住基）'!$E$5-'[1]年齢階級・区別人口(住基）'!$D$5 -> 27626 | C8: =SUM('9 性・年齢別，区別死亡数'!$D$30:$G$30) -> 7 | D8: 心疾患 | E8: 2 | F8: 7.239556939 | G8: =IF(E8>0,E8/$C8*100,"") -> 28.57142857 | H8: 敗 血 症 悪性新生物 その他の新生物 肝 疾 患 | I8: 1 | J8: 3.61977847 | K8: =IF(I8>0,I8/$C8*100,"") -> 14.28571429 | O8: =IF(M8>0,M8/$C8*100,"") ->  | S8: =IF(Q8>0,Q8/$C8*100,"") ->  | W8: =IF(U8>0,U8/$C8*100,"") ->  | Y8: 脳血管疾患
A9: 5～ 9 | B9: ='[1]年齢階級・区別人口(住基）'!$F$5 -> 36380 | C9: ='9 性・年齢別，区別死亡数'!$I$30 -> 1 | D9: 心疾患 | E9: 1 | F9: 2.748763057 | G9: =IF(E9>0,E9/$C9*100,"") -> 100 | K9: =IF(I9>0,I9/$C9*100,"") ->  | O9: =IF(M9>0,M9/$C9*100,"") ->  | S9: =IF(Q9>0,Q9/$C9*100,"") ->  | W9: =IF(U9>0,U9/$C9*100,"") ->  | Y9: 肺 炎
A10: 10～14 | B10: ='[1]年齢階級・区別人口(住基）'!$G$5 -> 37488 | C10: ='9 性・年齢別，区別死亡数'!$J$30 -> 1 | D10: 心疾患 | E10: 1 | F10: 2.667520273 | G10: =IF(E10>0,E10/$C10*100,"") -> 100 | K10: =IF(I10>0,I10/$C10*100,"") ->  | O10: =IF(M10>0,M10/$C10*100,"") ->  | S10: =IF(Q10>0,Q10/$C10*100,"") ->  | W10: =IF(U10>0,U10/$C10*100,"") ->  | Y10: 不慮の事故
A11: 15～19 | B11: ='[1]年齢階級・区別人口(住基）'!$H$5 -> 40422 | C11: ='9 性・年齢別，区別死亡数'!$K$30 -> 4 | D11: 自 殺 | E11: 2 | F11: 4.947800703 | G11: 50 | H11: 敗 血 症 悪性新生物 | I11: 1 | J11: 2.473900351 | K11: 25 | Y11: 自 殺
A12: 20～24 | B12: ='[1]年齢階級・区別人口(住基）'!$I$5 -> 49026 | C12: ='9 性・年齢別，区別死亡数'!$L$30 -> 13 | D12: 自 殺 | E12: 4 | F12: 8.158936075 | G12: 30.76923077 | H12: 不慮の事故 | I12: 2 | J12: 4.079468037 | K12: 15.38461538 | L12: 悪性新生物 先天奇形，変形及び染色体異常 他 殺 | M12: 1 | N12: 2.039734019 | O12: 7.692307692 | Y12: 腎 不 全
A13: 25～29 | B13: ='[1]年齢階級・区別人口(住基）'!$J$5 -> 52531 | C13: ='9 性・年齢別，区別死亡数'!$M$30 -> 10 | D13: 自 殺 | E13: 6 | F13: 11.42182711 | G13: 60 | H13: 悪性新生物 先天奇形，変形及び染色体異常 不慮の事故 | I13: 1 | J13: 1.903637852 | K13: 10 | Y13: 老 衰
A14: 30～34 | B14: ='[1]年齢階級・区別人口(住基）'!$K$5 -> 59157 | C14: ='9 性・年齢別，区別死亡数'!$N$30 -> 19 | D14: 自 殺 | E14: 6 | F14: 10.14250216 | G14: 31.57894737 | H14: 悪性新生物 | I14: 4 | J14: 6.761668104 | K14: 21.05263158 | L14: 不慮の事故 | M14: 3 | N14: 5.071251078 | O14: 15.78947368 | P14: 敗 血 症 髄 膜 炎 心疾患 腎 不 全 先天奇形，変形及び染色体異常 | Q14: 1 | R14: 1.690417026 | S14: 5.263157895 | Y14: 慢性閉塞性肺疾患
A15: 35～39 | B15: ='[1]年齢階級・区別人口(住基）'!$L$5 -> 65423 | C15: ='9 性・年齢別，区別死亡数'!$O$30 -> 36 | D15: 悪性新生物 | E15: 11 | F15: 16.81365881 | G15: 30.55555556 | H15: 自 殺 | I15: 7 | J15: 10.69960106 | K15: 19.44444444 | L15: 心疾患 肝 疾 患 | M15: 3 | N15: 4.58554331 | O15: 8.333333333 | T15: 不慮の事故 | U15: 2 | V15: 3.057028874 | W15: 5.555555556 | Y15: その他の新生物
A16: 40～44 | B16: ='[1]年齢階級・区別人口(住基）'!$M$5 -> 75831 | C16: ='9 性・年齢別，区別死亡数'!$P$30 -> 66 | D16: 悪性新生物 | E16: 29 | F16: 38.24293495 | G16: 43.93939394 | H16: 自 殺 | I16: 10 | J16: 13.18721895 | K16: 15.15151515 | L16: 脳血管疾患 | M16: 7 | N16: 9.231053263 | O16: 10.60606061 | P16: 不慮の事故 | Q16: 6 | R16: 7.912331368 | S16: 9.090909091 | T16: 肝 疾 患 | U16: 2 | V16: 2.637443789 | W16: 3.03030303 | Y16: 糖 尿 病
A17: 45～49 | B17: ='[1]年齢階級・区別人口(住基）'!$N$5 -> 79491 | C17: ='9 性・年齢別，区別死亡数'!$Q$30 -> 91 | D17: 悪性新生物 | E17: 53 | F17: 66.67421469 | G17: 58.24175824 | H17: 自 殺 | I17: 8 | J17: 10.06403241 | K17: 8.791208791 | L17: 不慮の事故 | M17: 4 | N17: 5.032016203 | O17: 4.395604396 | P17: 心疾患 脳血管疾患 | Q17: 3 | R17: 3.774012152 | S17: 3.296703297 | Y17: 先天奇形，変形 及び染色体異常
A18: 50～54 | B18: ='[1]年齢階級・区別人口(住基）'!$O$5 -> 70606 | C18: ='9 性・年齢別，区別死亡数'!$R$30 -> 127 | D18: 悪性新生物 | E18: 85 | F18: 120.3863694 | G18: 66.92913386 | H18: 自 殺 | I18: 7 | J18: 9.9141716 | K18: 5.511811024 | L18: 不慮の事故 | M18: 6 | N18: 8.497861372 | O18: 4.724409449 | P18: 脳血管疾患 | Q18: 5 | R18: 7.081551143 | S18: 3.937007874 | T18: 肝 疾 患 | U18: 4 | V18: 5.665240914 | W18: 3.149606299 | Y18: 周産期に 発生した病態
A19: 55～59 | B19: ='[1]年齢階級・区別人口(住基）'!$P$5 -> 66250 | C19: ='9 性・年齢別，区別死亡数'!$S$30 -> 188 | D19: 悪性新生物 | E19: 116 | F19: 175.0943396 | G19: 61.70212766 | H19: 脳血管疾患 | I19: 12 | J19: 18.11320755 | K19: 6.382978723 | L19: 自 殺 | M19: 11 | N19: 16.60377358 | O19: 5.85106383 | P19: 肝 疾 患 | Q19: 5 | R19: 7.547169811 | S19: 2.659574468 | T19: 不慮の事故 | U19: 4 | V19: 6.037735849 | W19: 2.127659574 | Y19: 乳幼児突然死 症候群
A20: 60～64 | B20: ='[1]年齢階級・区別人口(住基）'!$Q$5 -> 64860 | C20: ='9 性・年齢別，区別死亡数'!$T$30 -> 252 | D20: 悪性新生物 | E20: 150 | F20: 231.2673451 | G20: 59.52380952 | H20: 脳血管疾患 | I20: 20 | J20: 30.83564601 | K20: 7.936507937 | L20: 心疾患 | M20: 18 | N20: 27.75208141 | O20: 7.142857143 | P20: その他の新生物 | Q20: 6 | R20: 9.250693802 | S20: 2.380952381 | T20: 不慮の事故 自 殺 | U20: 5 | V20: 7.708911502 | W20: 1.984126984 | Y20: インフルエンザ
A21: 65～69 | B21: ='[1]年齢階級・区別人口(住基）'!$R$5 -> 81123 | C21: ='9 性・年齢別，区別死亡数'!$U$30 -> 481 | D21: 悪性新生物 | E21: 269 | F21: 331.5952319 | G21: 55.92515593 | H21: 心疾患 | I21: 35 | J21: 43.14436103 | K21: 7.276507277 | L21: 脳血管疾患 | M21: 25 | N21: 30.81740074 | O21: 5.197505198 | P21: 不慮の事故 | Q21: 17 | R21: 20.9558325 | S21: 3.534303534 | T21: 糖 尿 病 肝 疾 患 | U21: 12 | V21: 14.79235235 | W21: 2.494802495 | Y21: 敗 血 症
A22: 70～74 | B22: ='[1]年齢階級・区別人口(住基）'!$S$5 -> 66332 | C22: ='9 性・年齢別，区別死亡数'!$V$30 -> 583 | D22: 悪性新生物 | E22: 302 | F22: =IF(E22>0,E22/$B22*100000,"") -> 455.2855334 | G22: 51.80102916 | H22: 心疾患 | I22: 56 | J22: 84.42380751 | K22: 9.605488851 | L22: 脳血管疾患 | M22: 35 | N22: 52.7648797 | O22: 6.003430532 | P22: 肺 炎 | Q22: 17 | R22: 25.62865585 | S22: 2.915951973 | T22: 不慮の事故 | U22: 13 | V22: 19.59838389 | W22: 2.229845626 | Y22: ヘルニア及び腸閉塞
A23: 75～79 | B23: ='[1]年齢階級・区別人口(住基）'!$T$5 -> 54850 | C23: ='9 性・年齢別，区別死亡数'!$W$30 -> 871 | D23: 悪性新生物 | E23: 381 | F23: 694.6216955 | G23: 43.74282434 | H23: 心疾患 | I23: 82 | J23: 149.4986326 | K23: 9.414466131 | L23: 脳血管疾患 | M23: 51 | N23: 92.98085688 | O23: 5.855338691 | P23: 肺 炎 | Q23: 41 | R23: 74.74931632 | S23: 4.707233065 | T23: 不慮の事故 | U23: 20 | V23: 36.46308113 | W23: 2.296211251 | Y23: 貧 血
A24: 80～84 | B24: ='[1]年齢階級・区別人口(住基）'!$U$5 -> 44966 | C24: ='9 性・年齢別，区別死亡数'!$X$30 -> 1320 | D24: 悪性新生物 | E24: 414 | F24: 920.6956367 | G24: 31.36363636 | H24: 心疾患 | I24: 167 | J24: 371.3917182 | K24: 12.65151515 | L24: 脳血管疾患 | M24: 98 | N24: 217.9424454 | O24: 7.424242424 | P24: 肺 炎 | Q24: 64 | R24: 142.3297603 | S24: 4.848484848 | T24: 老 衰 | U24: 49 | V24: 108.9712227 | W24: 3.712121212 | Y24: 喘 息
A25: 85～89 | B25: ='[1]年齢階級・区別人口(住基）'!$V$5 -> 32794 | C25: ='9 性・年齢別，区別死亡数'!$Y$30 -> 1930 | D25: 悪性新生物 | E25: 451 | F25: 1375.25157 | G25: 23.36787565 | H25: 心疾患 | I25: 285 | J25: 869.0614137 | K25: 14.76683938 | L25: 脳血管疾患 | M25: 170 | N25: 518.3875099 | O25: 8.808290155 | P25: 肺 炎 | Q25: 144 | R25: 439.1047143 | S25: 7.461139896 | T25: 老 衰 | U25: 124 | V25: 378.1179484 | W25: 6.424870466 | Y25: 肝 疾 患
A26: 90歳～ | B26: =SUM('[1]年齢階級・区別人口(住基）'!$W$5:$Y$5) -> 22805 | C26: =SUM('9 性・年齢別，区別死亡数'!Z30:AB30) -> 3400 | D26: 心疾患 | E26: 716 | F26: 3139.662355 | G26: 21.05882353 | H26: 老 衰 | I26: 567 | J26: 2486.296865 | K26: 16.67647059 | L26: 悪性新生物 | M26: 416 | N26: 1824.161368 | O26: 12.23529412 | P26: 肺 炎 | Q26: 307 | R26: 1346.19601 | S26: 9.029411765 | T26: 脳血管疾患 | U26: 267 | V26: 1170.795878 | W26: 7.852941176
A27: 1) 総数は国勢調査による日本人人口、年齢別は住民基本台帳による10月1日現在の人口である。 | L27: 2） それぞれの年齢階級別死亡数を100とした場合の割合である。
A28: 3) 乳児の死因については乳児死因簡単分類を使用。死亡率は出生10万対の率である。 | L28: 4) 出生数
A29: 注) 「心疾患」は「心疾患(高血圧症を除く）」である。

Sheet 6 死亡の場所別，年次別死亡数・百分率
A1: 6 死亡の場所別にみた年次別死亡数及び百分率
A3: 年次 | B3: 総数 | C3: 施設内 | I3: 施設外
C4: 総 数 | D4: 病院 | E4: 診療所 | F4: 介護老人 保健施設 | G4: 助産所 | H4: 老 人 ホーム | I4: 総 数 | J4: 自宅 | K4: その他
B5: 死亡数
A6: 85 60 | B6: =SUM(C6,I6) -> 7226 | C6: =SUM(D6:H6) -> 6241 | D6: 5906 | E6: 335 | F6: … | G6: 0 | H6: … | I6: =SUM(J6:K6) -> 985 | J6: 688 | K6: 297
A7: 1986 昭和61年 | B7: =SUM(C7,I7) -> 7127 | C7: =SUM(D7:H7) -> 6117 | D7: 5855 | E7: 262 | F7: … | G7: 0 | H7: … | I7: =SUM(J7:K7) -> 1010 | J7: 714 | K7: 296
A8: 1987 昭和62年 | B8: =SUM(C8,I8) -> 7074 | C8: =SUM(D8:H8) -> 6167 | D8: 5885 | E8: 282 | F8: … | G8: 0 | H8: … | I8: =SUM(J8:K8) -> 907 | J8: 642 | K8: 265
A9: 1988 昭和63年 | B9: 7761 | C9: 6892 | D9: 6640 | E9: 252 | F9: … | G9: 0 | H9: … | I9: 869 | J9: 610 | K9: 259
A10: 89 平成元年 | B10: 8103 | C10: 7327 | D10: 7097 | E10: 230 | F10: 0 | G10: 0 | H10: … | I10: 776 | J10: 530 | K10: 246
A11: 90 2 | B11: 8278 | C11: 7514 | D11: 7279 | E11: 232 | F11: 3 | G11: 0 | H11: … | I11: 764 | J11: 540 | K11: 224
A12: 91 3 | B12: 8342 | C12: 7535 | D12: 7319 | E12: 213 | F12: 3 | G12: 0 | H12: … | I12: 807 | J12: 576 | K12: 231
A13: 92 4 | B13: 8808 | C13: 7947 | D13: 7709 | E13: 238 | F13: 0 | G13: 0 | H13: … | I13: 861 | J13: 609 | K13: 252
A14: 1993 平成5年 | B14: 9428 | C14: 8497 | D14: 8264 | E14: 230 | F14: 3 | G14: 0 | H14: … | I14: 931 | J14: 654 | K14: 277
A15: 94 6 | B15: 8934 | C15: 8056 | D15: 7827 | E15: 229 | F15: 0 | G15: 0 | H15: … | I15: 878 | J15: 639 | K15: 239
A16: 95 7 | B16: 9398 | C16: 8470 | D16: 8246 | E16: 199 | F16: 5 | G16: 0 | H16: 20 | I16: 928 | J16: 697 | K16: 231
A17: 96 8 | B17: 9512 | C17: 8580 | D17: 8357 | E17: 178 | F17: 10 | G17: 0 | H17: 35 | I17: 932 | J17: 730 | K17: 202
A18: 97 9 | B18: 9840 | C18: 8727 | D18: 8499 | E18: 170 | F18: 21 | G18: 0 | H18: 37 | I18: 1113 | J18: 816 | K18: 297
A19: 1998 平成10年 | B19: 9995 | C19: 8774 | D19: 8536 | E19: 174 | F19: 27 | G19: 0 | H19: 37 | I19: 1221 | J19: 898 | K19: 323
A20: 99 11 | B20: 10806 | C20: 9501 | D20: 9234 | E20: 200 | F20: 27 | G20: 0 | H20: 40 | I20: 1305 | J20: 986 | K20: 319
A21: 2000 12 | B21: 10800 | C21: 9368 | D21: 9081 | E21: 196 | F21: 33 | G21: 0 | H21: 58 | I21: 1432 | J21: 1037 | K21: 395
A22: 01 13 | B22: 10803 | C22: 9462 | D22: 9159 | E22: 200 | F22: 33 | G22: 0 | H22: 70 | I22: 1341 | J22: 988 | K22: 353
A23: 02 14 | B23: 11151 | C23: 9727 | D23: 9450 | E23: 179 | F23: 32 | G23: 0 | H23: 66 | I23: 1424 | J23: 1073 | K23: 351
A24: 03 15 | B24: 11769 | C24: 10185 | D24: 9880 | E24: 211 | F24: 26 | G24: 0 | H24: 68 | I24: 1584 | J24: 1176 | K24: 408
A25: 04 16 | B25: 12348 | C25: 10727 | D25: 10411 | E25: 196 | F25: 51 | G25: 0 | H25: 69 | I25: 1621 | J25: 1175 | K25: 446
A26: 05 17 | B26: 13105 | C26: 11393 | D26: 11076 | E26: 196 | F26: 43 | G26: 0 | H26: 78 | I26: 1712 | J26: 1281 | K26: 431
A27: 06 18 | B27: 13268 | C27: 11530 | D27: 11200 | E27: 210 | F27: 40 | G27: 0 | H27: 80 | I27: 1738 | J27: 1324 | K27: 414
A28: 07 19 | B28: 14044 | C28: 12277 | D28: 11898 | E28: 209 | F28: 53 | G28: 0 | H28: 117 | I28: 1767 | J28: 1404 | K28: 363
A29: 08 20 | B29: 14366 | C29: 12398 | D29: 11987 | E29: 219 | F29: 61 | G29: 0 | H29: 131 | I29: 1968 | J29: 1535 | K29: 433
A30: 09 21 | B30: 14506 | C30: 12601 | D30: 12192 | E30: 237 | F30: 50 | G30: 0 | H30: 122 | I30: 1905 | J30: 1508 | K30: 397
A31: 10 22 | B31: 15482 | C31: 13436 | D31: 12913 | E31: 284 | F31: 75 | G31: 0 | H31: 164 | I31: 2046 | J31: 1647 | K31: 399
A32: 11 23 | B32: 15926 | C32: 13757 | D32: 13205 | E32: 315 | F32: 77 | G32: 0 | H32: 160 | I32: 2169 | J32: 1797 | K32: 372
A33: 12 24 | B33: 16228 | C33: 14070 | D33: 13468 | E33: 282 | F33: 88 | G33: 0 | H33: 232 | I33: 2158 | J33: 1782 | K33: 376
A34: 13 25 | B34: 16844 | C34: 14632 | D34: 13973 | E34: 251 | F34: 130 | G34: 0 | H34: 278 | I34: 2212 | J34: 1834 | K34: 378
A35: 14 26 | B35: 17668 | C35: 15391 | D35: 14624 | E35: 222 | F35: 167 | G35: 0 | H35: 378 | I35: 2277 | J35: 1914 | K35: 363
A36: 15 27 | B36: 17523 | C36: 15332 | D36: 14491 | E36: 256 | F36: 191 | G36: 0 | H36: 394 | I36: 2191 | J36: 1825 | K36: 366
A37: 16 28 | B37: 18504 | C37: 16083 | D37: 15105 | E37: 267 | F37: 201 | G37: 0 | H37: 510 | I37: 2421 | J37: 2053 | K37: 368
A38: 17 29 | B38: 18668 | C38: 16210 | D38: 15153 | E38: 249 | F38: 205 | G38: 0 | H38: 603 | I38: 2458 | J38: 2061 | K38: 397
A39: 18 30 | B39: =SUM(C39,I39) -> 19343 | C39: =SUM(D39:H39) -> 16904 | D39: ='7 死亡の場所別，区別死亡数'!D$5 -> 15706 | E39: ='7 死亡の場所別，区別死亡数'!E$5 -> 281 | F39: ='7 死亡の場所別，区別死亡数'!F$5 -> 224 | G39: ='7 死亡の場所別，区別死亡数'!G$5 -> 0 | H39: ='7 死亡の場所別，区別死亡数'!H$5 -> 693 | I39: =SUM(J39:K39) -> 2439 | J39: ='7 死亡の場所別，区別死亡数'!J$5 -> 2088 | K39: ='7 死亡の場所別，区別死亡数'!K$5 -> 351
B40: 百分率
A41: 85 60 | B41: =SUM(C41,I41) -> 100 | C41: =C6/$B6*100 -> 86.3686687 | D41: 81.73263216 | E41: 4.636036535 | F41: ・ | G41: =G6/$B6*100 -> 0 | H41: ・ | I41: =I6/$B6*100 -> 13.6313313 | J41: 9.52117354 | K41: 4.110157764
A42: 1986 昭和61年 | B42: =SUM(C42,I42) -> 100 | C42: 85.82853936 | D42: 82.15237828 | E42: 3.676161078 | F42: ・ | G42: =G7/$B7*100 -> 0 | H42: ・ | I42: 14.17146064 | J42: 10.01824049 | K42: 4.153220149
A43: 1987 昭和62年 | B43: =SUM(C43,I43) -> 100 | C43: 87.17839977 | D43: 83.1919706 | E43: 3.986429177 | F43: ・ | G43: =G8/$B8*100 -> 0 | H43: ・ | I43: 12.82160023 | J43: 9.075487701 | K43: 3.746112525
A44: 1988 昭和63年 | B44: 100 | C44: 88.80298931 | D44: 85.55598505 | E44: 3.247004252 | F44: ・ | G44: 0 | H44: ・ | I44: 11.19701069 | J44: 7.85981188 | K44: 3.337198815
A45: 89 平成元年 | B45: 100 | C45: 90.42330001 | D45: 87.58484512 | E45: 2.838454893 | F45: 0 | G45: 0 | H45: ・ | I45: 9.576699988 | J45: 6.540787363 | K45: 3.035912625
A46: 90 2 | B46: 100 | C46: 90.77071756 | D46: 87.9318676 | E46: 2.802609326 | F46: 0.03624063784 | G46: 0 | H46: ・ | I46: 9.229282435 | J46: 6.52331481 | K46: 2.705967625
A47: 91 3 | B47: 100 | C47: 90.3260609 | D47: 87.73675378 | E47: 2.553344522 | F47: 0.0359625989 | G47: 0 | H47: ・ | I47: 9.673939103 | J47: 6.904818988 | K47: 2.769120115
A48: 92 4 | B48: 100 | C48: 90.22479564 | D48: 87.52270663 | E48: 2.70208901 | F48: 0 | G48: 0 | H48: ・ | I48: 9.77520436 | J48: 6.914168937 | K48: 2.861035422
A49: 1993 平成5年 | B49: 100 | C49: 90.1251591 | D49: 87.6537972 | E49: 2.43954179 | F49: 0.03182011031 | G49: 0 | H49: ・ | I49: 9.874840899 | J49: 6.936784048 | K49: 2.938056852
A50: 94 6 | B50: 100 | C50: 90.1723752 | D50: 87.60913365 | E50: 2.563241549 | F50: 0 | G50: 0 | H50: ・ | I50: 9.827624804 | J50: 7.15245131 | K50: 2.675173495
A51: 95 7 | B51: 100 | C51: 90.12555863 | D51: 87.74207278 | E51: 2.117471803 | F51: 0.05320280911 | G51: 0 | H51: 0.2128112364 | I51: 9.874441371 | J51: 7.41647159 | K51: 2.457969781
A52: 96 8 | B52: 100 | C52: 90.20185029 | D52: 87.85744323 | E52: 1.871320437 | F52: 0.1051303616 | G52: 0 | H52: 0.3679562658 | I52: 9.798149706 | J52: 7.6745164 | K52: 2.123633305
A53: 97 9 | B53: 100 | C53: 88.68902439 | D53: 86.37195122 | E53: 1.727642276 | F53: 0.2134146341 | G53: 0 | H53: 0.3760162602 | I53: 11.31097561 | J53: 8.292682927 | K53: 3.018292683
A54: 1998 平成10年 | B54: 100 | C54: 87.78389195 | D54: 85.40270135 | E54: 1.740870435 | F54: 0.2701350675 | G54: 0 | H54: 0.3701850925 | I54: 12.21610805 | J54: 8.984492246 | K54: 3.231615808
A55: 99 11 | B55: 100 | C55: 87.9233759 | D55: 85.45252637 | E55: 1.850823617 | F55: 0.2498611882 | G55: 0 | H55: 0.3701647233 | I55: 12.0766241 | J55: 9.124560429 | K55: 2.952063668
A56: 2000 12 | B56: 100 | C56: 86.74074074 | D56: 84.08333333 | E56: 1.814814815 | F56: 0.3055555556 | G56: 0 | H56: 0.537037037 | I56: 13.25925926 | J56: 9.601851852 | K56: 3.657407407
A57: 01 13 | B57: 100 | C57: 87.58678145 | D57: 84.782005 | E57: 1.851337591 | F57: 0.3054707026 | G57: 0 | H57: 0.647968157 | I57: 12.41321855 | J57: 9.145607702 | K57: 3.267610849
A58: 02 14 | B58: 100 | C58: 87.22984486 | D58: 84.74576271 | E58: 1.605237198 | F58: 0.2869697785 | G58: 0 | H58: 0.5918751681 | I58: 12.77015514 | J58: 9.622455385 | K58: 3.147699758
A59: 03 15 | B59: 100 | C59: 86.54091257 | D59: 83.94935848 | E59: 1.792845611 | F59: 0.2209193644 | G59: 0 | H59: 0.577789107 | I59: 13.45908743 | J59: 9.992352791 | K59: 3.466734642
A60: 04 16 | B60: 100 | C60: 86.93628386 | D60: 84.3 | E60: 1.6 | F60: 0.4 | G60: 0 | H60: 0.5951926746 | I60: 13.06371614 | J60: 9.5 | K60: 3.6
A61: 05 17 | B61: 100 | C61: 86.93628386 | D61: 84.51735979 | E61: 1.495612362 | F61: 0.3281190385 | G61: 0 | H61: 0.5951926746 | I61: 13.06371614 | J61: 9.774895078 | K61: 3.288821061
A62: 06 18 | B62: 100 | C62: 86.90081399 | D62: 84.41362677 | E62: 1.582755502 | F62: 0.3014772385 | G62: 0 | H62: 0.6029544769 | I62: 13.09918601 | J62: 9.978896593 | K62: 3.120289418
A63: 07 19 | B63: 100 | C63: 87.4181145 | D63: 84.71945315 | E63: 1.488180006 | F63: 0.3773853603 | G63: 0 | H63: 0.8330959841 | I63: 12.5818855 | J63: 9.997151809 | K63: 2.584733694
A64: 08 20 | B64: 100 | C64: 86.30098844 | D64: 83.44006682 | E64: 1.524432688 | F64: 0.4246136712 | G64: 0 | H64: 0.911875261 | I64: 13.69901156 | J64: 10.68495058 | K64: 3.014060977
A65: 09 21 | B65: 100 | C65: 86.8675031 | D65: 84.04798015 | E65: 1.633806701 | F65: 0.3446849579 | G65: 0 | H65: 0.8410312974 | I65: 13.1324969 | J65: 10.39569833 | K65: 2.736798566
A66: 10 22 | B66: 100 | C66: 86.78465315 | D66: 83.40653662 | E66: 1.834388322 | F66: 0.4844335357 | G66: 0 | H66: 1.059294665 | I66: 13.21534685 | J66: 10.63816044 | K66: 2.57718641
A67: 11 23 | B67: 100 | C67: 86.38076102 | D67: 82.91473063 | E67: 1.977897777 | F67: 0.4834861233 | G67: 0 | H67: 1.00464649 | I67: 13.61923898 | J67: 11.28343589 | K67: 2.335803089
A68: 12 24 | B68: 100 | C68: 86.70199655 | D68: 82.99235889 | E68: 1.737737244 | F68: 0.5422726152 | G68: 0 | H68: 1.429627804 | I68: 13.29800345 | J68: 10.98102046 | K68: 2.316982992
A69: 13 25 | B69: 100 | C69: 86.86772738 | D69: 82.95535502 | E69: 1.490144859 | F69: 0.7717881738 | G69: 0 | H69: 1.650439326 | I69: 13.13227262 | J69: 10.88815008 | K69: 2.244122536
A70: 14 26 | B70: 100 | C70: 87.11229341 | D70: 82.77111161 | E70: 1.256508943 | F70: 0.9452116821 | G70: 0 | H70: 2.139461173 | I70: 12.88770659 | J70: 10.83314467 | K70: 2.05456192
A71: 15 27 | B71: 100 | C71: 87.49643326 | D71: 82.69702676 | E71: 1.460937054 | F71: 1.089996005 | G71: 0 | H71: 2.248473435 | I71: 12.50356674 | J71: 10.4148833 | K71: 2.088683445
A72: 16 28 | B72: 100 | C72: 86.91634241 | D72: 81.6309987 | E72: 1.442931258 | F72: 1.086251621 | G72: 0 | H72: 2.75616083 | I72: 13.08365759 | J72: 11.0948984 | K72: 1.988759187
A73: 17 29 | B73: 100 | C73: 86.83308335 | D73: 81.17098779 | E73: 1.333833298 | F73: 1.098135847 | G73: 0 | H73: 3.23012642 | I73: 13.16691665 | J73: 11.04028284 | K73: 2.126633812
A74: 18 30 | B74: =SUM(C74,I74) -> 100 | C74: =C39/$B39*100 -> 87.39078736 | D74: 81.19733237 | E74: 1.452721915 | F74: 1.158041669 | G74: 0 | H74: 3.582691413 | I74: 12.60921264 | J74: 10.7946027 | K74: 1.814609936
A75: 注) 平成6年までは老人ホームでの死亡は自宅又はその他に含まれる。

Sheet 7 死亡の場所別，区別死亡数
A1: 7 死亡の場所別にみた区別死亡数
K2: ='3 月・性別，区別死亡数'!$O$2 -> 平成30年
A3: 区 | B3: 総数 | C3: 施設内 | I3: 施設外
C4: 総 数 | D4: 病 院 | E4: 診療所 | F4: 介護老人 保健施設 | G4: 助産所 | H4: 老 人 ホーム | I4: 総 数 | J4: 自 宅 | K4: その他
A5: 総数 | B5: =SUM(B6:B15) -> 19343 | C5: =SUM(C6:C15) -> 16904 | D5: 15706 | E5: 281 | F5: 224 | G5: 0 | H5: 693 | I5: =SUM(I6:I15) -> 2439 | J5: 2088 | K5: 351
A6: 中央 | B6: =SUM(C6,I6) -> 2174 | C6: =SUM(D6:H6) -> 1859 | D6: 1725 | E6: 11 | F6: 44 | G6: 0 | H6: 79 | I6: =SUM(J6:K6) -> 315 | J6: 281 | K6: 34
A7: 北 | B7: 2842 | C7: =SUM(D7:H7) -> 2438 | D7: 2279 | E7: 54 | F7: 25 | G7: 0 | H7: 80 | I7: =SUM(J7:K7) -> 404 | J7: 347 | K7: 57
A8: 東 | B8: 2512 | C8: 2139 | D8: 1965 | E8: 26 | F8: 31 | G8: 0 | H8: 117 | I8: 373 | J8: 296 | K8: 77
A9: 白石 | B9: 2032 | C9: 1774 | D9: 1693 | E9: 9 | F9: 19 | G9: 0 | H9: 53 | I9: 258 | J9: 207 | K9: 51
A10: 厚別 | B10: 1268 | C10: 1147 | D10: 1078 | E10: 9 | F10: 12 | G10: 0 | H10: 48 | I10: 121 | J10: 99 | K10: 22
A11: 豊平 | B11: 2047 | C11: 1803 | D11: 1691 | E11: 9 | F11: 17 | G11: 0 | H11: 86 | I11: 244 | J11: 205 | K11: 39
A12: 清田 | B12: 1137 | C12: 1039 | D12: 972 | E12: 11 | F12: 18 | G12: 0 | H12: 38 | I12: 98 | J12: 85 | K12: 13
A13: 南 | B13: 1710 | C13: 1559 | D13: 1433 | E13: 37 | F13: 14 | G13: 0 | H13: 75 | I13: 151 | J13: 135 | K13: 16
A14: 西 | B14: 2067 | C14: 1786 | D14: 1659 | E14: 30 | F14: 39 | G14: 0 | H14: 58 | I14: 281 | J14: 255 | K14: 26
A15: 手稲 | B15: 1554 | C15: 1360 | D15: 1211 | E15: 85 | F15: 5 | G15: 0 | H15: 59 | I15: =SUM(J15:K15) -> 194 | J15: 178 | K15: 16

Sheet 8 性・年齢別，年次別死亡数
A1: 8 性・年齢（5歳階級）別にみた年次別死亡数
A3: 年次 | B3: 年齢 階級
B4: 総数 | C4: 0歳 | D4: 1 | E4: 2 | F4: 3 | G4: 4 | H4: 0～4 | I4: 5～9 | J4: 10～14 | K4: 15～19 | L4: 20～24 | M4: 25～29 | N4: 30～34 | O4: 35～39 | P4: 40～44 | Q4: 45～49 | R4: 50～54 | S4: 55～59 | T4: 60～64 | U4: 65～69 | V4: 70～74 | W4: 75～79 | X4: 80～84 | Y4: 85～89 | Z4: 90～94 | AA4: 95～99 | AB4: 100～ | AC4: 不 詳
B5: 総数
A6: 85 60 | B6: 7226 | C6: 101 | D6: 13 | E6: 10 | F6: 7 | G6: 5 | H6: 136 | I6: 25 | J6: 25 | K6: 53 | L6: 82 | M6: 76 | N6: 79 | O6: 163 | P6: 171 | Q6: 268 | R6: 377 | S6: 479 | T6: 595 | U6: 702 | V6: 933 | W6: 1073 | X6: 1016 | Y6: 674 | Z6: 234 | AA6: 62 | AB6: 3 | AC6: 0
A7: 1986 昭和61年 | B7: 7127 | C7: 86 | D7: 10 | E7: 12 | F7: 6 | G7: 6 | H7: 120 | I7: 24 | J7: 22 | K7: 42 | L7: 68 | M7: 70 | N7: 79 | O7: 174 | P7: 193 | Q7: 260 | R7: 390 | S7: 505 | T7: 583 | U7: 671 | V7: 891 | W7: 1069 | X7: 1005 | Y7: 655 | Z7: 241 | AA7: 60 | AB7: 5 | AC7: 0
A8: 1987 昭和62年 | B8: 7074 | C8: 88 | D8: 16 | E8: 7 | F8: 9 | G8: 8 | H8: 128 | I8: 14 | J8: 18 | K8: 49 | L8: 68 | M8: 64 | N8: 88 | O8: 156 | P8: 172 | Q8: 258 | R8: 395 | S8: 505 | T8: 589 | U8: 637 | V8: 856 | W8: 1069 | X8: 996 | Y8: 681 | Z8: 264 | AA8: 56 | AB8: 11 | AC8: 0
A9: 1988 昭和63年 | B9: 7761 | C9: 80 | D9: 7 | E9: 1 | F9: 8 | G9: 3 | H9: 99 | I9: 21 | J9: 19 | K9: 64 | L9: 77 | M9: 63 | N9: 82 | O9: 134 | P9: 206 | Q9: 255 | R9: 380 | S9: 494 | T9: 644 | U9: 711 | V9: 964 | W9: 1167 | X9: 1128 | Y9: 822 | Z9: 344 | AA9: 76 | AB9: 10 | AC9: 1
A10: 89 平成元年 | B10: 8103 | C10: 75 | D10: 6 | E10: 11 | F10: 8 | G10: 5 | H10: 105 | I10: 21 | J10: 21 | K10: 66 | L10: 72 | M10: 76 | N10: 70 | O10: 135 | P10: 225 | Q10: 290 | R10: 334 | S10: 523 | T10: 696 | U10: 764 | V10: 1017 | W10: 1197 | X10: 1179 | Y10: 869 | Z10: 362 | AA10: 72 | AB10: 8 | AC10: 1
A11: 90 2 | B11: 8278 | C11: 85 | D11: 10 | E11: 9 | F11: 6 | G11: 7 | H11: 117 | I11: 27 | J11: 10 | K11: 54 | L11: 81 | M11: 52 | N11: 78 | O11: 131 | P11: 201 | Q11: 293 | R11: 339 | S11: 497 | T11: 684 | U11: 830 | V11: 957 | W11: 1185 | X11: 1230 | Y11: 990 | Z11: 418 | AA11: 93 | AB11: 10 | AC11: 1
A12: 91 3 | B12: 8342 | C12: 63 | D12: 6 | E12: 7 | F12: 4 | G12: 3 | H12: 83 | I12: 22 | J12: 12 | K12: 55 | L12: 69 | M12: 72 | N12: 55 | O12: 113 | P12: 223 | Q12: 275 | R12: 415 | S12: 540 | T12: 702 | U12: 891 | V12: 957 | W12: 1175 | X12: 1237 | Y12: 931 | Z12: 395 | AA12: 106 | AB12: 14 | AC12: 0
A13: 92 4 | B13: 8808 | C13: 57 | D13: 11 | E13: 6 | F13: 3 | G13: 2 | H13: 79 | I13: 16 | J13: 25 | K13: 46 | L13: 73 | M13: 68 | N13: 52 | O13: 95 | P13: 228 | Q13: 277 | R13: 380 | S13: 572 | T13: 789 | U13: 923 | V13: 1019 | W13: 1290 | X13: 1353 | Y13: 935 | Z13: 478 | AA13: 106 | AB13: 3 | AC13: 1
A14: 1993 平成5年 | B14: 9428 | C14: 51 | D14: 13 | E14: 7 | F14: 4 | G14: 4 | H14: 79 | I14: 21 | J14: 18 | K14: 39 | L14: 72 | M14: 52 | N14: 92 | O14: 97 | P14: 228 | Q14: 322 | R14: 408 | S14: 576 | T14: 807 | U14: 997 | V14: 1134 | W14: 1239 | X14: 1480 | Y14: 1073 | Z14: 542 | AA14: 135 | AB14: 17 | AC14: 0
A15: 94 6 | B15: 8934 | C15: 65 | D15: 10 | E15: 14 | F15: 11 | G15: 4 | H15: 104 | I15: 21 | J15: 15 | K15: 31 | L15: 66 | M15: 67 | N15: 84 | O15: 92 | P15: 205 | Q15: 324 | R15: 419 | S15: 486 | T15: 677 | U15: 967 | V15: 1014 | W15: 1213 | X15: 1406 | Y15: 1055 | Z15: 540 | AA15: 129 | AB15: 19 | AC15: 0
A16: 95 7 | B16: 9398 | C16: 53 | D16: 11 | E16: 4 | F16: 6 | G16: 2 | H16: 76 | I16: 17 | J16: 16 | K16: 42 | L16: 71 | M16: 57 | N16: 78 | O16: 90 | P16: 178 | Q16: 322 | R16: 407 | S16: 506 | T16: 797 | U16: 1027 | V16: 1071 | W16: 1279 | X16: 1405 | Y16: 1200 | Z16: 593 | AA16: 149 | AB16: 17 | AC16: 0
A17: 96 8 | B17: 9512 | C17: 55 | D17: 10 | E17: 0 | F17: 3 | G17: 3 | H17: 71 | I17: 10 | J17: 10 | K17: 37 | L17: 76 | M17: 68 | N17: 68 | O17: 98 | P17: 202 | Q17: 357 | R17: 389 | S17: 540 | T17: 774 | U17: 1020 | V17: 1146 | W17: 1226 | X17: 1444 | Y17: 1200 | Z17: 592 | AA17: 166 | AB17: 18 | AC17: 0
A18: 97 9 | B18: 9840 | C18: 52 | D18: 7 | E18: 6 | F18: 4 | G18: 2 | H18: 71 | I18: 17 | J18: 9 | K18: 44 | L18: 64 | M18: 58 | N18: 57 | O18: 93 | P18: 163 | Q18: 349 | R18: 431 | S18: 554 | T18: 774 | U18: 1024 | V18: 1236 | W18: 1268 | X18: 1458 | Y18: 1265 | Z18: 667 | AA18: 206 | AB18: 32 | AC18: 0
A19: 1998 平成10年 | B19: 9995 | C19: 45 | D19: 6 | E19: 5 | F19: 8 | G19: 6 | H19: 70 | I19: 8 | J19: 12 | K19: 32 | L19: 61 | M19: 75 | N19: 89 | O19: 88 | P19: 179 | Q19: 368 | R19: 441 | S19: 527 | T19: 728 | U19: 1084 | V19: 1163 | W19: 1313 | X19: 1469 | Y19: 1293 | Z19: 738 | AA19: 221 | AB19: 36 | AC19: 0
A20: 99 11 | B20: 10806 | C20: 32 | D20: 11 | E20: 5 | F20: 9 | G20: 2 | H20: 59 | I20: 11 | J20: 11 | K20: 49 | L20: 65 | M20: 77 | N20: 93 | O20: 125 | P20: 143 | Q20: 351 | R20: 495 | S20: 592 | T20: 780 | U20: 1089 | V20: 1282 | W20: 1422 | X20: 1542 | Y20: 1454 | Z20: 833 | AA20: 296 | AB20: 37 | AC20: 0
A21: 2000 12 | B21: 10800 | C21: 34 | D21: 5 | E21: 0 | F21: 6 | G21: 6 | H21: 51 | I21: 10 | J21: 12 | K21: 41 | L21: 57 | M21: 97 | N21: 85 | O21: 100 | P21: 145 | Q21: 292 | R21: 595 | S21: 630 | T21: 756 | U21: 1059 | V21: 1345 | W21: 1436 | X21: 1489 | Y21: 1420 | Z21: 844 | AA21: 290 | AB21: 46 | AC21: 0
A22: 01 13 | B22: 10803 | C22: 33 | D22: 6 | E22: 4 | F22: 0 | G22: 4 | H22: 47 | I22: 7 | J22: 3 | K22: 27 | L22: 66 | M22: 63 | N22: 90 | O22: 116 | P22: 160 | Q22: 287 | R22: 530 | S22: 550 | T22: 721 | U22: 1041 | V22: 1352 | W22: 1527 | X22: 1533 | Y22: 1398 | Z22: 925 | AA22: 302 | AB22: 58 | AC22: 0
A23: 02 14 | B23: 11151 | C23: 31 | D23: 7 | E23: 4 | F23: 2 | G23: 0 | H23: 44 | I23: 7 | J23: 11 | K23: 27 | L23: 48 | M23: 88 | N23: 94 | O23: 113 | P23: 141 | Q23: 265 | R23: 502 | S23: 602 | T23: 747 | U23: 1031 | V23: 1367 | W23: 1572 | X23: 1563 | Y23: 1492 | Z23: 993 | AA23: 370 | AB23: 74 | AC23: 0
A24: 03 15 | B24: 11769 | C24: 40 | D24: 6 | E24: 1 | F24: 3 | G24: 1 | H24: 51 | I24: 15 | J24: 5 | K24: 28 | L24: 49 | M24: 84 | N24: 113 | O24: 102 | P24: 177 | Q24: 264 | R24: 530 | S24: 621 | T24: 720 | U24: 1041 | V24: 1390 | W24: 1617 | X24: 1709 | Y24: 1644 | Z24: 1098 | AA24: 431 | AB24: 80 | AC24: 0
A25: 04 16 | B25: 12348 | C25: 45 | D25: 3 | E25: 3 | F25: 1 | G25: 2 | H25: 54 | I25: 4 | J25: 6 | K25: 23 | L25: 74 | M25: 77 | N25: 102 | O25: 124 | P25: 187 | Q25: 284 | R25: 486 | S25: 676 | T25: 838 | U25: 987 | V25: 1465 | W25: 1793 | X25: 1783 | Y25: 1624 | Z25: 1188 | AA25: 463 | AB25: 110 | AC25: 0
A26: 05 17 | B26: 13105 | C26: 38 | D26: 17 | E26: 2 | F26: 0 | G26: 0 | H26: 57 | I26: 8 | J26: 5 | K26: 22 | L26: 61 | M26: 73 | N26: 92 | O26: 144 | P26: 175 | Q26: 224 | R26: 445 | S26: 751 | T26: 917 | U26: 1032 | V26: 1482 | W26: 1888 | X26: 1975 | Y26: 1742 | Z26: 1317 | AA26: 582 | AB26: 113 | AC26: 0
A27: 06 18 | B27: 13268 | C27: 34 | D27: 4 | E27: 1 | F27: 5 | G27: 3 | H27: 47 | I27: 12 | J27: 5 | K27: 36 | L27: 58 | M27: 73 | N27: 102 | O27: 110 | P27: 170 | Q27: 245 | R27: 415 | S27: 719 | T27: 822 | U27: 1046 | V27: 1450 | W27: 1885 | X27: 2026 | Y27: 1877 | Z27: 1418 | AA27: 617 | AB27: 135 | AC27: 0
A28: 07 19 | B28: 14044 | C28: 34 | D28: 4 | E28: 5 | F28: 3 | G28: 1 | H28: 47 | I28: 6 | J28: 3 | K28: 31 | L28: 55 | M28: 60 | N28: 79 | O28: 117 | P28: 164 | Q28: 252 | R28: 391 | S28: 728 | T28: 932 | U28: 1098 | V28: 1492 | W28: 1963 | X28: 2233 | Y28: 2039 | Z28: 1532 | AA28: 682 | AB28: 140 | AC28: 0
A29: 08 20 | B29: 14366 | C29: 34 | D29: 2 | E29: 4 | F29: 2 | G29: 0 | H29: 42 | I29: 13 | J29: 6 | K29: 21 | L29: 65 | M29: 67 | N29: 97 | O29: 138 | P29: 156 | Q29: 232 | R29: 345 | S29: 716 | T29: 908 | U29: 1132 | V29: 1463 | W29: 2105 | X29: 2281 | Y29: 2105 | Z29: 1556 | AA29: 752 | AB29: 166 | AC29: 0
A30: 09 21 | B30: 14506 | C30: 33 | D30: 3 | E30: 1 | F30: 2 | G30: 2 | H30: 41 | I30: 5 | J30: 5 | K30: 24 | L30: 58 | M30: 49 | N30: 78 | O30: 120 | P30: 165 | Q30: 235 | R30: 365 | S30: 695 | T30: 899 | U30: 1149 | V30: 1483 | W30: 1932 | X30: 2442 | Y30: 2262 | Z30: 1555 | AA30: 765 | AB30: 179 | AC30: 0
A31: 10 22 | B31: 15482 | C31: 26 | D31: 3 | E31: 3 | F31: 1 | G31: 2 | H31: 35 | I31: 8 | J31: 7 | K31: 15 | L31: 38 | M31: 65 | N31: 87 | O31: 112 | P31: 133 | Q31: 237 | R31: 385 | S31: 636 | T31: 1043 | U31: 1204 | V31: 1424 | W31: 2075 | X31: 2646 | Y31: 2451 | Z31: 1811 | AA31: 849 | AB31: 221 | AC31: 0
A32: 11 23 | B32: 15926 | C32: 40 | D32: 5 | E32: 2 | F32: 2 | G32: 2 | H32: 51 | I32: 3 | J32: 9 | K32: 21 | L32: 48 | M32: 61 | N32: 83 | O32: 116 | P32: 164 | Q32: 246 | R32: 342 | S32: 616 | T32: 1065 | U32: 1155 | V32: 1476 | W32: 2088 | X32: 2694 | Y32: 2672 | Z32: 1882 | AA32: 878 | AB32: 256 | AC32: 0
A33: 12 24 | B33: 16228 | C33: 34 | D33: 3 | E33: 3 | F33: 2 | G33: 4 | H33: 46 | I33: 11 | J33: 12 | K33: 14 | L33: 59 | M33: 54 | N33: 65 | O33: 110 | P33: 171 | Q33: 225 | R33: 307 | S33: 569 | T33: 1048 | U33: 1216 | V33: 1443 | W33: 2096 | X33: 2764 | Y33: 2770 | Z33: 2028 | AA33: 966 | AB33: 254 | AC33: 0
A34: 13 25 | B34: 16844 | C34: 34 | D34: 5 | E34: 2 | F34: 1 | G34: 2 | H34: 44 | I34: 5 | J34: 3 | K34: 21 | L34: 40 | M34: 41 | N34: 83 | O34: 109 | P34: 160 | Q34: 235 | R34: 340 | S34: 510 | T34: 999 | U34: 1215 | V34: 1582 | W34: 2082 | X34: 2937 | Y34: 3007 | Z34: 2165 | AA34: 1015 | AB34: 251 | AC34: 0
A35: 14 26 | B35: 17668 | C35: 26 | D35: 3 | E35: 3 | F35: 3 | G35: 0 | H35: 35 | I35: 7 | J35: 11 | K35: 19 | L35: 36 | M35: 56 | N35: 72 | O35: 104 | P35: 162 | Q35: 229 | R35: 293 | S35: 484 | T35: 944 | U35: 1331 | V35: 1664 | W35: 2178 | X35: 2941 | Y35: 3257 | Z35: 2443 | AA35: 1111 | AB35: 291 | AC35: 0
A36: 15 27 | B36: 17523 | C36: 27 | D36: 4 | E36: 3 | F36: 2 | G36: 1 | H36: 37 | I36: 5 | J36: 5 | K36: 23 | L36: 32 | M36: 47 | N36: 54 | O36: 68 | P36: 160 | Q36: 216 | R36: 331 | S36: 453 | T36: 899 | U36: 1354 | V36: 1609 | W36: 2064 | X36: 2944 | Y36: 3269 | Z36: 2497 | AA36: 1141 | AB36: 315 | AC36: 0
A37: 16 28 | B37: 18504 | C37: 29 | D37: 4 | E37: 2 | F37: 1 | G37: 0 | H37: 36 | I37: 6 | J37: 5 | K37: 20 | L37: 29 | M37: 51 | N37: 50 | O37: 103 | P37: 162 | Q37: 249 | R37: 281 | S37: 492 | T37: 857 | U37: 1494 | V37: 1609 | W37: 2171 | X37: 3020 | Y37: 3487 | Z37: 2735 | AA37: 1265 | AB37: 382 | AC37: 0
A38: 17 29 | B38: 18668 | C38: 25 | D38: 6 | E38: 4 | F38: 1 | G38: 0 | H38: 36 | I38: 2 | J38: 7 | K38: 21 | L38: 27 | M38: 45 | N38: 60 | O38: 86 | P38: 160 | Q38: 242 | R38: 294 | S38: 449 | T38: 737 | U38: 1463 | V38: 1698 | W38: 2072 | X38: 2989 | Y38: 3565 | Z38: 2927 | AA38: 1429 | AB38: 359 | AC38: 0
A39: 18 30 | B39: =SUM(B74,B109) -> 19343 | C39: 34 | D39: 5 | E39: 3 | F39: 2 | G39: 0 | H39: 44 | I39: 4 | J39: 7 | K39: 19 | L39: 40 | M39: 34 | N39: 59 | O39: 92 | P39: 155 | Q39: 214 | R39: 321 | S39: 476 | T39: 708 | U39: 1373 | V39: 1757 | W39: 2274 | X39: 3058 | Y39: 3763 | Z39: 3116 | AA39: 1445 | AB39: 384 | AC39: 0
B40: 男
A41: 85 60 | B41: 3968 | C41: 48 | D41: 12 | E41: 8 | F41: 4 | G41: 2 | H41: 74 | I41: 17 | J41: 17 | K41: 37 | L41: 56 | M41: 48 | N41: 41 | O41: 100 | P41: 105 | Q41: 169 | R41: 235 | S41: 317 | T41: 354 | U41: 417 | V41: 538 | W41: 573 | X41: 484 | Y41: 289 | Z41: 78 | AA41: 18 | AB41: 1 | AC41: 0
A42: 1986 昭和61年 | B42: 4021 | C42: 49 | D42: 6 | E42: 7 | F42: 3 | G42: 3 | H42: 68 | I42: 14 | J42: 12 | K42: 30 | L42: 44 | M42: 47 | N42: 53 | O42: 113 | P42: 112 | Q42: 161 | R42: 259 | S42: 358 | T42: 384 | U42: 401 | V42: 509 | W42: 591 | X42: 464 | Y42: 287 | Z42: 95 | AA42: 18 | AB42: 1 | AC42: 0
A43: 1987 昭和62年 | B43: 4036 | C43: 42 | D43: 7 | E43: 2 | F43: 6 | G43: 3 | H43: 60 | I43: 8 | J43: 13 | K43: 37 | L43: 54 | M43: 46 | N43: 55 | O43: 106 | P43: 94 | Q43: 162 | R43: 251 | S43: 343 | T43: 405 | U43: 376 | V43: 522 | W43: 582 | X43: 509 | Y43: 286 | Z43: 102 | AA43: 21 | AB43: 4 | AC43: 0
A44: 1988 昭和63年 | B44: 4316 | C44: 41 | D44: 4 | E44: 0 | F44: 6 | G44: 2 | H44: 53 | I44: 13 | J44: 10 | K44: 38 | L44: 57 | M44: 37 | N44: 54 | O44: 83 | P44: 134 | Q44: 150 | R44: 245 | S44: 337 | T44: 429 | U44: 423 | V44: 589 | W44: 628 | X44: 519 | Y44: 346 | Z44: 139 | AA44: 29 | AB44: 2 | AC44: 1
A45: 89 平成元年 | B45: 4520 | C45: 50 | D45: 5 | E45: 6 | F45: 1 | G45: 2 | H45: 64 | I45: 12 | J45: 14 | K45: 41 | L45: 49 | M45: 48 | N45: 47 | O45: 79 | P45: 137 | Q45: 185 | R45: 200 | S45: 354 | T45: 473 | U45: 463 | V45: 585 | W45: 654 | X45: 596 | Y45: 370 | Z45: 122 | AA45: 24 | AB45: 2 | AC45: 1
A46: 90 2 | B46: 4643 | C46: 45 | D46: 3 | E46: 6 | F46: 4 | G46: 7 | H46: 65 | I46: 21 | J46: 8 | K46: 42 | L46: 55 | M46: 35 | N46: 51 | O46: 79 | P46: 138 | Q46: 184 | R46: 232 | S46: 321 | T46: 473 | U46: 526 | V46: 556 | W46: 648 | X46: 596 | Y46: 429 | Z46: 146 | AA46: 36 | AB46: 1 | AC46: 1
A47: 91 3 | B47: 4785 | C47: 36 | D47: 4 | E47: 3 | F47: 3 | G47: 2 | H47: 48 | I47: 16 | J47: 8 | K47: 44 | L47: 52 | M47: 51 | N47: 35 | O47: 72 | P47: 137 | Q47: 156 | R47: 255 | S47: 366 | T47: 455 | U47: 584 | V47: 576 | W47: 676 | X47: 632 | Y47: 449 | Z47: 138 | AA47: 32 | AB47: 3 | AC47: 0
A48: 92 4 | B48: 4992 | C48: 33 | D48: 7 | E48: 5 | F48: 2 | G48: 0 | H48: 47 | I48: 8 | J48: 7 | K48: 27 | L48: 54 | M48: 48 | N48: 30 | O48: 65 | P48: 148 | Q48: 178 | R48: 264 | S48: 390 | T48: 531 | U48: 588 | V48: 605 | W48: 740 | X48: 667 | Y48: 399 | Z48: 165 | AA48: 30 | AB48: 1 | AC48: 0
A49: 1993 平成5年 | B49: 5271 | C49: 29 | D49: 8 | E49: 5 | F49: 3 | G49: 2 | H49: 47 | I49: 9 | J49: 12 | K49: 26 | L49: 47 | M49: 36 | N49: 52 | O49: 50 | P49: 138 | Q49: 198 | R49: 261 | S49: 394 | T49: 536 | U49: 670 | V49: 688 | W49: 700 | X49: 733 | Y49: 447 | Z49: 186 | AA49: 37 | AB49: 4 | AC49: 0
A50: 94 6 | B50: 5096 | C50: 40 | D50: 4 | E50: 6 | F50: 6 | G50: 2 | H50: 58 | I50: 14 | J50: 8 | K50: 22 | L50: 56 | M50: 47 | N50: 54 | O50: 62 | P50: 143 | Q50: 219 | R50: 274 | S50: 312 | T50: 454 | U50: 651 | V50: 625 | W50: 709 | X50: 705 | Y50: 446 | Z50: 200 | AA50: 36 | AB50: 1 | AC50: 0
A51: 95 7 | B51: 5288 | C51: 26 | D51: 5 | E51: 3 | F51: 3 | G51: 2 | H51: 39 | I51: 8 | J51: 9 | K51: 33 | L51: 56 | M51: 38 | N51: 55 | O51: 60 | P51: 100 | Q51: 198 | R51: 260 | S51: 341 | T51: 542 | U51: 705 | V51: 642 | W51: 742 | X51: 687 | Y51: 523 | Z51: 207 | AA51: 39 | AB51: 4 | AC51: 0
A52: 96 8 | B52: 5383 | C52: 35 | D52: 6 | E52: 0 | F52: 2 | G52: 2 | H52: 45 | I52: 6 | J52: 5 | K52: 27 | L52: 49 | M52: 45 | N52: 50 | O52: 66 | P52: 129 | Q52: 235 | R52: 263 | S52: 360 | T52: 485 | U52: 692 | V52: 710 | W52: 667 | X52: 745 | Y52: 523 | Z52: 210 | AA52: 66 | AB52: 5 | AC52: 0
A53: 97 9 | B53: 5630 | C53: 29 | D53: 2 | E53: 1 | F53: 2 | G53: 2 | H53: 36 | I53: 9 | J53: 6 | K53: 36 | L53: 47 | M53: 45 | N53: 34 | O53: 59 | P53: 100 | Q53: 225 | R53: 292 | S53: 363 | T53: 519 | U53: 695 | V53: 773 | W53: 725 | X53: 773 | Y53: 569 | Z53: 256 | AA53: 64 | AB53: 4 | AC53: 0
A54: 1998 平成10年 | B54: 5707 | C54: 25 | D54: 4 | E54: 3 | F54: 5 | G54: 4 | H54: 41 | I54: 4 | J54: 8 | K54: 27 | L54: 45 | M54: 48 | N54: 59 | O54: 53 | P54: 117 | Q54: 231 | R54: 279 | S54: 349 | T54: 496 | U54: 727 | V54: 776 | W54: 732 | X54: 788 | Y54: 575 | Z54: 285 | AA54: 61 | AB54: 6 | AC54: 0
A55: 99 11 | B55: 6044 | C55: 18 | D55: 5 | E55: 2 | F55: 5 | G55: 1 | H55: 31 | I55: 5 | J55: 5 | K55: 35 | L55: 45 | M55: 53 | N55: 52 | O55: 73 | P55: 92 | Q55: 209 | R55: 318 | S55: 397 | T55: 531 | U55: 752 | V55: 821 | W55: 786 | X55: 809 | Y55: 641 | Z55: 295 | AA55: 82 | AB55: 12 | AC55: 0
A56: 2000 12 | B56: 6127 | C56: 23 | D56: 1 | E56: 0 | F56: 2 | G56: 3 | H56: 29 | I56: 5 | J56: 7 | K56: 25 | L56: 41 | M56: 64 | N56: 58 | O56: 64 | P56: 94 | Q56: 190 | R56: 401 | S56: 423 | T56: 527 | U56: 731 | V56: 875 | W56: 799 | X56: 808 | Y56: 605 | Z56: 296 | AA56: 80 | AB56: 5 | AC56: 0
A57: 01 13 | B57: 6114 | C57: 15 | D57: 3 | E57: 2 | F57: 0 | G57: 1 | H57: 21 | I57: 5 | J57: 1 | K57: 21 | L57: 41 | M57: 42 | N57: 53 | O57: 76 | P57: 103 | Q57: 178 | R57: 332 | S57: 367 | T57: 496 | U57: 717 | V57: 888 | W57: 904 | X57: 787 | Y57: 662 | Z57: 343 | AA57: 70 | AB57: 7 | AC57: 0
A58: 02 14 | B58: 6328 | C58: 18 | D58: 3 | E58: 0 | F58: 1 | G58: 0 | H58: 22 | I58: 6 | J58: 6 | K58: 20 | L58: 37 | M58: 64 | N58: 57 | O58: 70 | P58: 96 | Q58: 160 | R58: 329 | S58: 398 | T58: 504 | U58: 728 | V58: 920 | W58: 942 | X58: 803 | Y58: 666 | Z58: 367 | AA58: 114 | AB58: 19 | AC58: 0
A59: 03 15 | B59: 6476 | C59: 20 | D59: 3 | E59: 0 | F59: 2 | G59: 0 | H59: 25 | I59: 9 | J59: 2 | K59: 18 | L59: 33 | M59: 60 | N59: 72 | O59: 64 | P59: 109 | Q59: 167 | R59: 365 | S59: 426 | T59: 475 | U59: 703 | V59: 913 | W59: 967 | X59: 880 | Y59: 685 | Z59: 361 | AA59: 121 | AB59: 21 | AC59: 0
A60: 04 16 | B60: 6859 | C60: 26 | D60: 1 | E60: 3 | F60: 0 | G60: 1 | H60: 31 | I60: 2 | J60: 3 | K60: 17 | L60: 43 | M60: 53 | N60: 79 | O60: 79 | P60: 116 | Q60: 187 | R60: 334 | S60: 432 | T60: 566 | U60: 658 | V60: 970 | W60: 1162 | X60: 874 | Y60: 702 | Z60: 414 | AA60: 116 | AB60: 21 | AC60: 0
A61: 05 17 | B61: 7313 | C61: 21 | D61: 3 | E61: 1 | F61: 0 | G61: 0 | H61: 25 | I61: 3 | J61: 4 | K61: 15 | L61: 44 | M61: 44 | N61: 58 | O61: 86 | P61: 120 | Q61: 161 | R61: 286 | S61: 496 | T61: 642 | U61: 682 | V61: 987 | W61: 1194 | X61: 1047 | Y61: 782 | Z61: 460 | AA61: 155 | AB61: 22 | AC61: 0
A62: 06 18 | B62: 7224 | C62: 13 | D62: 1 | E62: 1 | F62: 2 | G62: 1 | H62: 18 | I62: 6 | J62: 2 | K62: 21 | L62: 35 | M62: 52 | N62: 60 | O62: 69 | P62: 108 | Q62: 161 | R62: 263 | S62: 465 | T62: 555 | U62: 665 | V62: 950 | W62: 1195 | X62: 1087 | Y62: 829 | Z62: 491 | AA62: 166 | AB62: 26 | AC62: 0
A63: 07 19 | B63: 7695 | C63: 19 | D63: 0 | E63: 1 | F63: 2 | G63: 1 | H63: 23 | I63: 4 | J63: 2 | K63: 21 | L63: 33 | M63: 39 | N63: 51 | O63: 77 | P63: 104 | Q63: 158 | R63: 244 | S63: 485 | T63: 628 | U63: 718 | V63: 963 | W63: 1240 | X63: 1230 | Y63: 923 | Z63: 543 | AA63: 186 | AB63: 23 | AC63: 0
A64: 08 20 | B64: 7764 | C64: 16 | D64: 1 | E64: 1 | F64: 1 | G64: 0 | H64: 19 | I64: 8 | J64: 6 | K64: 15 | L64: 41 | M64: 39 | N64: 56 | O64: 80 | P64: 104 | Q64: 149 | R64: 204 | S64: 471 | T64: 617 | U64: 762 | V64: 940 | W64: 1340 | X64: 1265 | Y64: 888 | Z64: 546 | AA64: 184 | AB64: 30 | AC64: 0
A65: 09 21 | B65: 7931 | C65: 19 | D65: 2 | E65: 0 | F65: 1 | G65: 1 | H65: 23 | I65: 2 | J65: 3 | K65: 13 | L65: 34 | M65: 25 | N65: 52 | O65: 69 | P65: 97 | Q65: 155 | R65: 220 | S65: 451 | T65: 614 | U65: 763 | V65: 965 | W65: 1246 | X65: 1410 | Y65: 1019 | Z65: 552 | AA65: 194 | AB65: 24 | AC65: 0
A66: 10 22 | B66: 8321 | C66: 16 | D66: 2 | E66: 1 | F66: 0 | G66: 0 | H66: 19 | I66: 4 | J66: 6 | K66: 7 | L66: 28 | M66: 45 | N66: 47 | O66: 75 | P66: 77 | Q66: 144 | R66: 237 | S66: 416 | T66: 689 | U66: 796 | V66: 922 | W66: 1295 | X66: 1525 | Y66: 1108 | Z66: 639 | AA66: 201 | AB66: 41 | AC66: 0
A67: 11 23 | B67: 8511 | C67: 20 | D67: 3 | E67: 2 | F67: 1 | G67: 0 | H67: 26 | I67: 0 | J67: 5 | K67: 16 | L67: 32 | M67: 38 | N67: 52 | O67: 65 | P67: 97 | Q67: 153 | R67: 216 | S67: 387 | T67: 719 | U67: 769 | V67: 979 | W67: 1289 | X67: 1516 | Y67: 1267 | Z67: 601 | AA67: 240 | AB67: 44 | AC67: 0
A68: 12 24 | B68: 8666 | C68: 18 | D68: 2 | E68: 3 | F68: 1 | G68: 1 | H68: 25 | I68: 6 | J68: 8 | K68: 7 | L68: 42 | M68: 39 | N68: 44 | O68: 74 | P68: 106 | Q68: 161 | R68: 199 | S68: 367 | T68: 710 | U68: 796 | V68: 946 | W68: 1311 | X68: 1600 | Y68: 1258 | Z68: 649 | AA68: 275 | AB68: 43 | AC68: 0
A69: 13 25 | B69: 8726 | C69: 17 | D69: 3 | E69: 0 | F69: 1 | G69: 2 | H69: 23 | I69: 3 | J69: 1 | K69: 12 | L69: 29 | M69: 30 | N69: 54 | O69: 57 | P69: 100 | Q69: 145 | R69: 204 | S69: 326 | T69: 644 | U69: 787 | V69: 1024 | W69: 1304 | X69: 1610 | Y69: 1382 | Z69: 688 | AA69: 263 | AB69: 40 | AC69: 0
A70: 14 26 | B70: 9233 | C70: 12 | D70: 2 | E70: 2 | F70: 2 | G70: 0 | H70: 18 | I70: 3 | J70: 8 | K70: 14 | L70: 28 | M70: 34 | N70: 47 | O70: 65 | P70: 104 | Q70: 133 | R70: 189 | S70: 287 | T70: 630 | U70: 864 | V70: 1095 | W70: 1307 | X70: 1633 | Y70: 1621 | Z70: 823 | AA70: 289 | AB70: 41 | AC70: 0
A71: 15 27 | B71: 9083 | C71: 19 | D71: 3 | E71: 2 | F71: 1 | G71: 1 | H71: 26 | I71: 1 | J71: 2 | K71: 16 | L71: 25 | M71: 31 | N71: 32 | O71: 44 | P71: 102 | Q71: 131 | R71: 197 | S71: 268 | T71: 569 | U71: 918 | V71: 1076 | W71: 1308 | X71: 1613 | Y71: 1562 | Z71: 855 | AA71: 256 | AB71: 51 | AC71: 0
A72: 16 28 | B72: 9654 | C72: 14 | D72: 1 | E72: 2 | F72: 1 | G72: 0 | H72: 18 | I72: 4 | J72: 4 | K72: 14 | L72: 17 | M72: 36 | N72: 33 | O72: 60 | P72: 102 | Q72: 146 | R72: 166 | S72: 321 | T72: 577 | U72: 973 | V72: 1069 | W72: 1316 | X72: 1757 | Y72: 1692 | Z72: 986 | AA72: 302 | AB72: 61 | AC72: 0
A73: 17 29 | B73: 9534 | C73: 9 | D73: 4 | E73: 2 | F73: 1 | G73: 0 | H73: 16 | I73: 1 | J73: 5 | K73: 12 | L73: 14 | M73: 30 | N73: 33 | O73: 49 | P73: 89 | Q73: 136 | R73: 188 | S73: 279 | T73: 510 | U73: 958 | V73: 1110 | W73: 1242 | X73: 1669 | Y73: 1716 | Z73: 1077 | AA73: 342 | AB73: 58 | AC73: 0
A74: 18 30 | B74: =SUM(H74:AC74) -> 9925 | C74: ='9 性・年齢別，区別死亡数'!C$18 -> 16 | D74: ='9 性・年齢別，区別死亡数'!D$18 -> 1 | E74: ='9 性・年齢別，区別死亡数'!E$18 -> 2 | F74: ='9 性・年齢別，区別死亡数'!F$18 -> 0 | G74: ='9 性・年齢別，区別死亡数'!G$18 -> 0 | H74: =SUM(C74:G74) -> 19 | I74: ='9 性・年齢別，区別死亡数'!I$18 -> 3 | J74: ='9 性・年齢別，区別死亡数'!J$18 -> 6 | K74: ='9 性・年齢別，区別死亡数'!K$18 -> 15 | L74: ='9 性・年齢別，区別死亡数'!L$18 -> 27 | M74: ='9 性・年齢別，区別死亡数'!M$18 -> 24 | N74: ='9 性・年齢別，区別死亡数'!N$18 -> 40 | O74: ='9 性・年齢別，区別死亡数'!O$18 -> 56 | P74: ='9 性・年齢別，区別死亡数'!P$18 -> 89 | Q74: ='9 性・年齢別，区別死亡数'!Q$18 -> 123 | R74: ='9 性・年齢別，区別死亡数'!R$18 -> 194 | S74: ='9 性・年齢別，区別死亡数'!S$18 -> 288 | T74: ='9 性・年齢別，区別死亡数'!T$18 -> 456 | U74: ='9 性・年齢別，区別死亡数'!U$18 -> 892 | V74: ='9 性・年齢別，区別死亡数'!V$18 -> 1174 | W74: ='9 性・年齢別，区別死亡数'!W$18 -> 1403 | X74: ='9 性・年齢別，区別死亡数'!X$18 -> 1738 | Y74: ='9 性・年齢別，区別死亡数'!Y$18 -> 1833 | Z74: ='9 性・年齢別，区別死亡数'!Z$18 -> 1159 | AA74: ='9 性・年齢別，区別死亡数'!AA$18 -> 317 | AB74: ='9 性・年齢別，区別死亡数'!AB$18 -> 69 | AC74: ='9 性・年齢別，区別死亡数'!AC$18 -> 0
B75: 女
A76: 85 60 | B76: 3258 | C76: 53 | D76: 1 | E76: 2 | F76: 3 | G76: 3 | H76: 62 | I76: 8 | J76: 8 | K76: 16 | L76: 26 | M76: 28 | N76: 38 | O76: 63 | P76: 66 | Q76: 99 | R76: 142 | S76: 162 | T76: 241 | U76: 285 | V76: 395 | W76: 500 | X76: 532 | Y76: 385 | Z76: 156 | AA76: 44 | AB76: 2 | AC76: 0
A77: 1986 昭和61年 | B77: 3106 | C77: 37 | D77: 4 | E77: 5 | F77: 3 | G77: 3 | H77: 52 | I77: 10 | J77: 10 | K77: 12 | L77: 24 | M77: 23 | N77: 26 | O77: 61 | P77: 81 | Q77: 99 | R77: 131 | S77: 147 | T77: 199 | U77: 270 | V77: 382 | W77: 478 | X77: 541 | Y77: 368 | Z77: 146 | AA77: 42 | AB77: 4 | AC77: 0
A78: 1987 昭和62年 | B78: 3038 | C78: 46 | D78: 9 | E78: 5 | F78: 3 | G78: 5 | H78: 68 | I78: 6 | J78: 5 | K78: 12 | L78: 14 | M78: 18 | N78: 33 | O78: 50 | P78: 78 | Q78: 96 | R78: 144 | S78: 162 | T78: 184 | U78: 261 | V78: 334 | W78: 487 | X78: 487 | Y78: 395 | Z78: 162 | AA78: 35 | AB78: 7 | AC78: 0
A79: 1988 昭和63年 | B79: 3445 | C79: 39 | D79: 3 | E79: 1 | F79: 2 | G79: 1 | H79: 46 | I79: 8 | J79: 9 | K79: 26 | L79: 20 | M79: 26 | N79: 28 | O79: 51 | P79: 72 | Q79: 105 | R79: 135 | S79: 157 | T79: 215 | U79: 288 | V79: 375 | W79: 539 | X79: 609 | Y79: 476 | Z79: 205 | AA79: 47 | AB79: 8 | AC79: 0
A80: 89 平成元年 | B80: 3583 | C80: 25 | D80: 1 | E80: 5 | F80: 7 | G80: 3 | H80: 41 | I80: 9 | J80: 7 | K80: 25 | L80: 23 | M80: 28 | N80: 23 | O80: 56 | P80: 88 | Q80: 105 | R80: 134 | S80: 169 | T80: 223 | U80: 301 | V80: 432 | W80: 543 | X80: 583 | Y80: 499 | Z80: 240 | AA80: 48 | AB80: 6 | AC80: 0
A81: 90 2 | B81: 3635 | C81: 40 | D81: 7 | E81: 3 | F81: 2 | G81: 0 | H81: 52 | I81: 6 | J81: 2 | K81: 12 | L81: 26 | M81: 17 | N81: 27 | O81: 52 | P81: 63 | Q81: 109 | R81: 107 | S81: 176 | T81: 211 | U81: 304 | V81: 401 | W81: 537 | X81: 634 | Y81: 561 | Z81: 272 | AA81: 57 | AB81: 9 | AC81: 0
A82: 91 3 | B82: 3557 | C82: 27 | D82: 2 | E82: 4 | F82: 1 | G82: 1 | H82: 35 | I82: 6 | J82: 4 | K82: 11 | L82: 17 | M82: 21 | N82: 20 | O82: 41 | P82: 86 | Q82: 119 | R82: 160 | S82: 174 | T82: 247 | U82: 307 | V82: 381 | W82: 499 | X82: 605 | Y82: 482 | Z82: 257 | AA82: 74 | AB82: 11 | AC82: 0
A83: 92 4 | B83: 3816 | C83: 24 | D83: 4 | E83: 1 | F83: 1 | G83: 2 | H83: 32 | I83: 8 | J83: 18 | K83: 19 | L83: 19 | M83: 20 | N83: 22 | O83: 30 | P83: 80 | Q83: 99 | R83: 116 | S83: 182 | T83: 258 | U83: 335 | V83: 414 | W83: 550 | X83: 686 | Y83: 536 | Z83: 313 | AA83: 76 | AB83: 2 | AC83: 1
A84: 1993 平成5年 | B84: 4157 | C84: 22 | D84: 5 | E84: 2 | F84: 1 | G84: 2 | H84: 32 | I84: 12 | J84: 6 | K84: 13 | L84: 25 | M84: 16 | N84: 40 | O84: 47 | P84: 90 | Q84: 124 | R84: 147 | S84: 182 | T84: 271 | U84: 327 | V84: 446 | W84: 539 | X84: 747 | Y84: 626 | Z84: 356 | AA84: 98 | AB84: 13 | AC84: 0
A85: 94 6 | B85: 3838 | C85: 25 | D85: 6 | E85: 8 | F85: 5 | G85: 2 | H85: 46 | I85: 7 | J85: 7 | K85: 9 | L85: 10 | M85: 20 | N85: 30 | O85: 30 | P85: 62 | Q85: 105 | R85: 145 | S85: 174 | T85: 223 | U85: 316 | V85: 389 | W85: 504 | X85: 701 | Y85: 609 | Z85: 340 | AA85: 93 | AB85: 18 | AC85: 0
A86: 95 7 | B86: 4110 | C86: 27 | D86: 6 | E86: 1 | F86: 3 | G86: 0 | H86: 37 | I86: 9 | J86: 7 | K86: 9 | L86: 15 | M86: 19 | N86: 23 | O86: 30 | P86: 78 | Q86: 124 | R86: 147 | S86: 165 | T86: 255 | U86: 322 | V86: 429 | W86: 537 | X86: 718 | Y86: 677 | Z86: 386 | AA86: 110 | AB86: 13 | AC86: 0
A87: 96 8 | B87: 4129 | C87: 20 | D87: 4 | E87: 0 | F87: 1 | G87: 1 | H87: 26 | I87: 4 | J87: 5 | K87: 10 | L87: 27 | M87: 23 | N87: 18 | O87: 32 | P87: 73 | Q87: 122 | R87: 126 | S87: 180 | T87: 289 | U87: 328 | V87: 436 | W87: 559 | X87: 699 | Y87: 677 | Z87: 382 | AA87: 100 | AB87: 13 | AC87: 0
A88: 97 9 | B88: 4210 | C88: 23 | D88: 5 | E88: 5 | F88: 2 | G88: 0 | H88: 35 | I88: 8 | J88: 3 | K88: 8 | L88: 17 | M88: 13 | N88: 23 | O88: 34 | P88: 63 | Q88: 124 | R88: 139 | S88: 191 | T88: 255 | U88: 329 | V88: 463 | W88: 543 | X88: 685 | Y88: 696 | Z88: 411 | AA88: 142 | AB88: 28 | AC88: 0
A89: 1998 平成10年 | B89: 4288 | C89: 20 | D89: 2 | E89: 2 | F89: 3 | G89: 2 | H89: 29 | I89: 4 | J89: 4 | K89: 5 | L89: 16 | M89: 27 | N89: 30 | O89: 35 | P89: 62 | Q89: 137 | R89: 162 | S89: 178 | T89: 232 | U89: 357 | V89: 387 | W89: 581 | X89: 681 | Y89: 718 | Z89: 453 | AA89: 160 | AB89: 30 | AC89: 0
A90: 99 11 | B90: 4762 | C90: 14 | D90: 6 | E90: 3 | F90: 4 | G90: 1 | H90: 28 | I90: 6 | J90: 6 | K90: 14 | L90: 20 | M90: 24 | N90: 41 | O90: 52 | P90: 51 | Q90: 142 | R90: 177 | S90: 195 | T90: 249 | U90: 337 | V90: 461 | W90: 636 | X90: 733 | Y90: 813 | Z90: 538 | AA90: 214 | AB90: 25 | AC90: 0
A91: 2000 12 | B91: 4673 | C91: 11 | D91: 4 | E91: 0 | F91: 4 | G91: 3 | H91: 22 | I91: 5 | J91: 5 | K91: 16 | L91: 16 | M91: 33 | N91: 27 | O91: 36 | P91: 51 | Q91: 102 | R91: 194 | S91: 207 | T91: 229 | U91: 328 | V91: 470 | W91: 637 | X91: 681 | Y91: 815 | Z91: 548 | AA91: 210 | AB91: 41 | AC91: 0
A92: 01 13 | B92: 4689 | C92: 18 | D92: 3 | E92: 2 | F92: 0 | G92: 3 | H92: 26 | I92: 2 | J92: 2 | K92: 6 | L92: 25 | M92: 21 | N92: 37 | O92: 40 | P92: 57 | Q92: 109 | R92: 198 | S92: 183 | T92: 225 | U92: 324 | V92: 464 | W92: 623 | X92: 746 | Y92: 736 | Z92: 582 | AA92: 232 | AB92: 51 | AC92: 0
A93: 02 14 | B93: 4823 | C93: 13 | D93: 4 | E93: 4 | F93: 1 | G93: 0 | H93: 22 | I93: 1 | J93: 5 | K93: 7 | L93: 11 | M93: 24 | N93: 37 | O93: 43 | P93: 45 | Q93: 105 | R93: 173 | S93: 204 | T93: 243 | U93: 303 | V93: 447 | W93: 630 | X93: 760 | Y93: 826 | Z93: 626 | AA93: 256 | AB93: 55 | AC93: 0
A94: 03 15 | B94: 5293 | C94: 20 | D94: 3 | E94: 1 | F94: 1 | G94: 1 | H94: 26 | I94: 6 | J94: 3 | K94: 10 | L94: 16 | M94: 24 | N94: 41 | O94: 38 | P94: 68 | Q94: 97 | R94: 165 | S94: 195 | T94: 245 | U94: 338 | V94: 477 | W94: 650 | X94: 829 | Y94: 959 | Z94: 737 | AA94: 310 | AB94: 59 | AC94: 0
A95: 04 16 | B95: 5489 | C95: 19 | D95: 2 | E95: 0 | F95: 1 | G95: 1 | H95: 23 | I95: 2 | J95: 3 | K95: 6 | L95: 31 | M95: 24 | N95: 23 | O95: 45 | P95: 71 | Q95: 97 | R95: 152 | S95: 244 | T95: 272 | U95: 329 | V95: 495 | W95: 631 | X95: 909 | Y95: 922 | Z95: 774 | AA95: 347 | AB95: 89 | AC95: 0
A96: 05 17 | B96: 5792 | C96: 17 | D96: 14 | E96: 1 | F96: 0 | G96: 0 | H96: 32 | I96: 5 | J96: 1 | K96: 7 | L96: 17 | M96: 29 | N96: 34 | O96: 58 | P96: 55 | Q96: 63 | R96: 159 | S96: 255 | T96: 275 | U96: 350 | V96: 495 | W96: 694 | X96: 928 | Y96: 960 | Z96: 857 | AA96: 427 | AB96: 91 | AC96: 0
A97: 06 18 | B97: 6044 | C97: 21 | D97: 3 | E97: 0 | F97: 3 | G97: 2 | H97: 29 | I97: 6 | J97: 3 | K97: 15 | L97: 23 | M97: 21 | N97: 42 | O97: 41 | P97: 62 | Q97: 84 | R97: 152 | S97: 254 | T97: 267 | U97: 381 | V97: 500 | W97: 690 | X97: 939 | Y97: 1048 | Z97: 927 | AA97: 451 | AB97: 109 | AC97: 0
A98: 07 19 | B98: 6349 | C98: 15 | D98: 4 | E98: 4 | F98: 1 | G98: 0 | H98: 24 | I98: 2 | J98: 1 | K98: 10 | L98: 22 | M98: 21 | N98: 28 | O98: 40 | P98: 60 | Q98: 94 | R98: 147 | S98: 243 | T98: 304 | U98: 380 | V98: 529 | W98: 723 | X98: 1003 | Y98: 1116 | Z98: 989 | AA98: 496 | AB98: 117 | AC98: 0
A99: 08 20 | B99: 6602 | C99: 18 | D99: 1 | E99: 3 | F99: 1 | G99: 0 | H99: 23 | I99: 5 | J99: 0 | K99: 6 | L99: 24 | M99: 28 | N99: 41 | O99: 58 | P99: 52 | Q99: 83 | R99: 141 | S99: 245 | T99: 291 | U99: 370 | V99: 523 | W99: 765 | X99: 1016 | Y99: 1217 | Z99: 1010 | AA99: 568 | AB99: 136 | AC99: 0
A100: 09 21 | B100: 6575 | C100: 14 | D100: 1 | E100: 1 | F100: 1 | G100: 1 | H100: 18 | I100: 3 | J100: 2 | K100: 11 | L100: 24 | M100: 24 | N100: 26 | O100: 51 | P100: 68 | Q100: 80 | R100: 145 | S100: 244 | T100: 285 | U100: 386 | V100: 518 | W100: 686 | X100: 1032 | Y100: 1243 | Z100: 1003 | AA100: 571 | AB100: 155 | AC100: 0
A101: 10 22 | B101: 7161 | C101: 10 | D101: 1 | E101: 2 | F101: 1 | G101: 2 | H101: 16 | I101: 4 | J101: 1 | K101: 8 | L101: 10 | M101: 20 | N101: 40 | O101: 37 | P101: 56 | Q101: 93 | R101: 148 | S101: 220 | T101: 354 | U101: 408 | V101: 502 | W101: 780 | X101: 1121 | Y101: 1343 | Z101: 1172 | AA101: 648 | AB101: 180 | AC101: 0
A102: 11 23 | B102: 7415 | C102: 20 | D102: 2 | E102: 0 | F102: 1 | G102: 2 | H102: 25 | I102: 3 | J102: 4 | K102: 5 | L102: 16 | M102: 23 | N102: 31 | O102: 51 | P102: 67 | Q102: 93 | R102: 126 | S102: 229 | T102: 346 | U102: 386 | V102: 497 | W102: 799 | X102: 1178 | Y102: 1405 | Z102: 1281 | AA102: 638 | AB102: 212 | AC102: 0
A103: 12 24 | B103: 7562 | C103: 16 | D103: 1 | E103: 0 | F103: 1 | G103: 3 | H103: 21 | I103: 5 | J103: 4 | K103: 7 | L103: 17 | M103: 15 | N103: 21 | O103: 36 | P103: 65 | Q103: 64 | R103: 108 | S103: 202 | T103: 338 | U103: 420 | V103: 497 | W103: 785 | X103: 1164 | Y103: 1512 | Z103: 1379 | AA103: 691 | AB103: 211 | AC103: 0
A104: 13 25 | B104: 8118 | C104: 17 | D104: 2 | E104: 2 | F104: 0 | G104: 0 | H104: 21 | I104: 2 | J104: 2 | K104: 9 | L104: 11 | M104: 11 | N104: 29 | O104: 52 | P104: 60 | Q104: 90 | R104: 136 | S104: 184 | T104: 355 | U104: 428 | V104: 558 | W104: 778 | X104: 1327 | Y104: 1625 | Z104: 1477 | AA104: 752 | AB104: 211 | AC104: 0
A105: 14 26 | B105: 8435 | C105: 14 | D105: 1 | E105: 1 | F105: 1 | G105: 0 | H105: 17 | I105: 4 | J105: 3 | K105: 5 | L105: 8 | M105: 22 | N105: 25 | O105: 39 | P105: 58 | Q105: 96 | R105: 104 | S105: 197 | T105: 314 | U105: 467 | V105: 569 | W105: 871 | X105: 1308 | Y105: 1636 | Z105: 1620 | AA105: 822 | AB105: 250 | AC105: 0
A106: 15 27 | B106: 8440 | C106: 8 | D106: 1 | E106: 1 | F106: 1 | G106: 0 | H106: 11 | I106: 4 | J106: 3 | K106: 7 | L106: 7 | M106: 16 | N106: 22 | O106: 24 | P106: 58 | Q106: 85 | R106: 134 | S106: 185 | T106: 330 | U106: 436 | V106: 533 | W106: 756 | X106: 1331 | Y106: 1707 | Z106: 1642 | AA106: 885 | AB106: 264 | AC106: 0
A107: 16 28 | B107: 8850 | C107: 15 | D107: 3 | E107: 0 | F107: 0 | G107: 0 | H107: 18 | I107: 2 | J107: 1 | K107: 6 | L107: 12 | M107: 15 | N107: 17 | O107: 43 | P107: 60 | Q107: 103 | R107: 115 | S107: 171 | T107: 280 | U107: 521 | V107: 540 | W107: 855 | X107: 1263 | Y107: 1795 | Z107: 1749 | AA107: 963 | AB107: 321 | AC107: 0
A108: 17 29 | B108: 9134 | C108: 16 | D108: 2 | E108: 2 | F108: 0 | G108: 0 | H108: 20 | I108: 1 | J108: 2 | K108: 9 | L108: 13 | M108: 15 | N108: 27 | O108: 37 | P108: 71 | Q108: 106 | R108: 106 | S108: 170 | T108: 227 | U108: 505 | V108: 588 | W108: 830 | X108: 1320 | Y108: 1849 | Z108: 1850 | AA108: 1087 | AB108: 301 | AC108: 0
A109: 18 30 | B109: =SUM(H109:AC109) -> 9418 | C109: ='9 性・年齢別，区別死亡数'!C$30 -> 18 | D109: ='9 性・年齢別，区別死亡数'!D$30 -> 4 | E109: ='9 性・年齢別，区別死亡数'!E$30 -> 1 | F109: ='9 性・年齢別，区別死亡数'!F$30 -> 2 | G109: ='9 性・年齢別，区別死亡数'!G$30 -> 0 | H109: =SUM(C109:G109) -> 25 | I109: ='9 性・年齢別，区別死亡数'!I$30 -> 1 | J109: ='9 性・年齢別，区別死亡数'!J$30 -> 1 | K109: ='9 性・年齢別，区別死亡数'!K$30 -> 4 | L109: ='9 性・年齢別，区別死亡数'!L$30 -> 13 | M109: ='9 性・年齢別，区別死亡数'!M$30 -> 10 | N109: ='9 性・年齢別，区別死亡数'!N$30 -> 19 | O109: ='9 性・年齢別，区別死亡数'!O$30 -> 36 | P109: ='9 性・年齢別，区別死亡数'!P$30 -> 66 | Q109: ='9 性・年齢別，区別死亡数'!Q$30 -> 91 | R109: ='9 性・年齢別，区別死亡数'!R$30 -> 127 | S109: ='9 性・年齢別，区別死亡数'!S$30 -> 188 | T109: ='9 性・年齢別，区別死亡数'!T$30 -> 252 | U109: ='9 性・年齢別，区別死亡数'!U$30 -> 481 | V109: ='9 性・年齢別，区別死亡数'!V$30 -> 583 | W109: ='9 性・年齢別，区別死亡数'!W$30 -> 871 | X109: ='9 性・年齢別，区別死亡数'!X$30 -> 1320 | Y109: ='9 性・年齢別，区別死亡数'!Y$30 -> 1930 | Z109: ='9 性・年齢別，区別死亡数'!Z$30 -> 1957 | AA109: ='9 性・年齢別，区別死亡数'!AA$30 -> 1128 | AB109: ='9 性・年齢別，区別死亡数'!AB$30 -> 315 | AC109: ='9 性・年齢別，区別死亡数'!AC$30 -> 0

Sheet 9 性・年齢別，区別死亡数
A1: 9 性・年齢（5歳階級）別にみた区別死亡数
AC2: ='3 月・性別，区別死亡数'!$O$2 -> 平成30年
A3: 区 | B3: 年齢 階級
B4: 総数 | C4: 0歳 | D4: 1 | E4: 2 | F4: 3 | G4: 4 | H4: 0～4 | I4: 5～9 | J4: 10～14 | K4: 15～19 | L4: 20～24 | M4: 25～29 | N4: 30～34 | O4: 35～39 | P4: 40～44 | Q4: 45～49 | R4: 50～54 | S4: 55～59 | T4: 60～64 | U4: 65～69 | V4: 70～74 | W4: 75～79 | X4: 80～84 | Y4: 85～89 | Z4: 90～94 | AA4: 95～99 | AB4: 100～ | AC4: 不 詳
B5: 総数
A6: 総数 | B6: =SUM(B18,B30) -> 19343 | C6: 34 | D6: 5 | E6: 3 | F6: 2 | G6: 0 | H6: 44 | I6: 4 | J6: 7 | K6: =SUM(K18,K30) -> 19 | L6: 40 | M6: 34 | N6: 59 | O6: 92 | P6: 155 | Q6: 214 | R6: 321 | S6: 476 | T6: 708 | U6: 1373 | V6: 1757 | W6: 2274 | X6: 3058 | Y6: 3763 | Z6: 3116 | AA6: 1445 | AB6: 384 | AC6: 0
A7: 中央 | B7: =SUM(B19,B31) -> 2174 | C7: 6 | D7: 0 | E7: 0 | F7: 0 | G7: 0 | H7: 6 | I7: 0 | J7: 0 | K7: 4 | L7: 6 | M7: 7 | N7: 12 | O7: 16 | P7: 14 | Q7: 34 | R7: 31 | S7: 62 | T7: 76 | U7: 137 | V7: 174 | W7: 222 | X7: 367 | Y7: 405 | Z7: 377 | AA7: 180 | AB7: 44 | AC7: 0
A8: 北 | B8: =SUM(B20,B32) -> 2842 | C8: 3 | D8: 0 | E8: 0 | F8: 0 | G8: 0 | H8: 3 | I8: 2 | J8: 0 | K8: 2 | L8: 6 | M8: 5 | N8: 6 | O8: 9 | P8: 22 | Q8: 40 | R8: 44 | S8: 61 | T8: 124 | U8: 194 | V8: 271 | W8: 345 | X8: 436 | Y8: 535 | Z8: 436 | AA8: 238 | AB8: 63 | AC8: 0
A9: 東 | B9: =SUM(B21,B33) -> 2512 | C9: 5 | D9: 0 | E9: 0 | F9: 0 | G9: 0 | H9: 5 | I9: 1 | J9: 1 | K9: 2 | L9: 8 | M9: 8 | N9: 9 | O9: 10 | P9: 24 | Q9: 27 | R9: 45 | S9: 63 | T9: 103 | U9: 188 | V9: 223 | W9: 282 | X9: 378 | Y9: 496 | Z9: 402 | AA9: 185 | AB9: 52 | AC9: 0
A10: 白石 | B10: =SUM(B22,B34) -> 2032 | C10: 4 | D10: 2 | E10: 1 | F10: 0 | G10: 0 | H10: 7 | I10: 1 | J10: 1 | K10: 2 | L10: 5 | M10: 4 | N10: 5 | O10: 10 | P10: 25 | Q10: 29 | R10: 47 | S10: 57 | T10: 80 | U10: 173 | V10: 185 | W10: 247 | X10: 321 | Y10: 383 | Z10: 282 | AA10: 127 | AB10: 41 | AC10: 0
A11: 厚別 | B11: =SUM(B23,B35) -> 1268 | C11: 3 | D11: 0 | E11: 0 | F11: 0 | G11: 0 | H11: 3 | I11: 0 | J11: 0 | K11: 0 | L11: 2 | M11: 1 | N11: 4 | O11: 2 | P11: 12 | Q11: 9 | R11: 19 | S11: 27 | T11: 52 | U11: 83 | V11: 130 | W11: 133 | X11: 213 | Y11: 267 | Z11: 197 | AA11: 92 | AB11: 22 | AC11: 0
A12: 豊平 | B12: =SUM(B24,B36) -> 2047 | C12: 4 | D12: 0 | E12: 0 | F12: 0 | G12: 0 | H12: 4 | I12: 0 | J12: 1 | K12: 3 | L12: 2 | M12: 5 | N12: 6 | O12: 14 | P12: 13 | Q12: 17 | R12: 39 | S12: 59 | T12: 79 | U12: 138 | V12: 175 | W12: 233 | X12: 323 | Y12: 409 | Z12: 348 | AA12: 149 | AB12: 30 | AC12: 0
A13: 清田 | B13: =SUM(B25,B37) -> 1137 | C13: 2 | D13: 1 | E13: 0 | F13: 1 | G13: 0 | H13: 4 | I13: 0 | J13: 0 | K13: 0 | L13: 1 | M13: 0 | N13: 3 | O13: 5 | P13: 8 | Q13: 12 | R13: 18 | S13: 26 | T13: 36 | U13: 74 | V13: 113 | W13: 126 | X13: 174 | Y13: 254 | Z13: 182 | AA13: 80 | AB13: 21 | AC13: 0
A14: 南 | B14: =SUM(B26,B38) -> 1710 | C14: 2 | D14: 1 | E14: 0 | F14: 1 | G14: 0 | H14: 4 | I14: 0 | J14: 1 | K14: 3 | L14: 5 | M14: 0 | N14: 4 | O14: 6 | P14: 11 | Q14: 16 | R14: 30 | S14: 45 | T14: 38 | U14: 124 | V14: 152 | W14: 206 | X14: 284 | Y14: 340 | Z14: 289 | AA14: 118 | AB14: 34 | AC14: 0
A15: 西 | B15: =SUM(B27,B39) -> 2067 | C15: 3 | D15: 1 | E15: 1 | F15: 0 | G15: 0 | H15: 5 | I15: 0 | J15: 2 | K15: 2 | L15: 4 | M15: 4 | N15: 6 | O15: 9 | P15: 18 | Q15: 21 | R15: 35 | S15: 55 | T15: 74 | U15: 150 | V15: 183 | W15: 267 | X15: 333 | Y15: 388 | Z15: 327 | AA15: 144 | AB15: 40 | AC15: 0
A16: 手稲 | B16: =SUM(B28,B40) -> 1554 | C16: =SUM(C28,C40) -> 2 | D16: 0 | E16: 1 | F16: 0 | G16: 0 | H16: 3 | I16: 0 | J16: 1 | K16: 1 | L16: 1 | M16: 0 | N16: 4 | O16: 11 | P16: 8 | Q16: 9 | R16: 13 | S16: 21 | T16: 46 | U16: 112 | V16: 151 | W16: 213 | X16: 229 | Y16: 286 | Z16: 276 | AA16: 132 | AB16: 37 | AC16: 0
B17: 男
A18: 総数 | B18: =SUM(B19:B28) -> 9925 | C18: =SUM(C19:C28) -> 16 | D18: 1 | E18: 2 | F18: 0 | G18: 0 | H18: 19 | I18: 3 | J18: 6 | K18: =SUM(K19:K28) -> 15 | L18: 27 | M18: 24 | N18: 40 | O18: 56 | P18: 89 | Q18: 123 | R18: 194 | S18: 288 | T18: 456 | U18: 892 | V18: 1174 | W18: 1403 | X18: 1738 | Y18: 1833 | Z18: 1159 | AA18: 317 | AB18: 69 | AC18: 0
A19: 中央 | B19: =SUM(H19:AC19) -> 1056 | C19: 3 | D19: 0 | E19: 0 | F19: 0 | G19: 0 | H19: =SUM(C19:G19) -> 3 | I19: 0 | J19: 0 | K19: 3 | L19: 4 | M19: 5 | N19: 10 | O19: 12 | P19: 9 | Q19: 20 | R19: 16 | S19: 39 | T19: 52 | U19: 73 | V19: 117 | W19: 127 | X19: 194 | Y19: 191 | Z19: 133 | AA19: 40 | AB19: 8 | AC19: 0
A20: 北 | B20: 1477 | C20: 2 | D20: 0 | E20: 0 | F20: 0 | G20: 0 | H20: =SUM(C20:G20) -> 2 | I20: 2 | J20: 0 | K20: 2 | L20: 4 | M20: 2 | N20: 5 | O20: 6 | P20: 10 | Q20: 22 | R20: 33 | S20: 41 | T20: 69 | U20: 138 | V20: 163 | W20: 216 | X20: 248 | Y20: 271 | Z20: 178 | AA20: 54 | AB20: 11 | AC20: 0
A21: 東 | B21: 1319 | C21: 3 | D21: 0 | E21: 0 | F21: 0 | G21: 0 | H21: 3 | I21: 0 | J21: 1 | K21: 1 | L21: 6 | M21: 6 | N21: 5 | O21: 7 | P21: 15 | Q21: 22 | R21: 24 | S21: 34 | T21: 71 | U21: 125 | V21: 159 | W21: 181 | X21: 205 | Y21: 252 | Z21: 154 | AA21: 38 | AB21: 10 | AC21: 0
A22: 白石 | B22: 1053 | C22: 1 | D22: 1 | E22: 1 | F22: 0 | G22: 0 | H22: 3 | I22: 1 | J22: 1 | K22: 2 | L22: 4 | M22: 2 | N22: 4 | O22: 7 | P22: 17 | Q22: 12 | R22: 29 | S22: 40 | T22: 60 | U22: 113 | V22: 127 | W22: 144 | X22: 186 | Y22: 175 | Z22: 99 | AA22: 20 | AB22: 7 | AC22: 0
A23: 厚別 | B23: 625 | C23: 2 | D23: 0 | E23: 0 | F23: 0 | G23: 0 | H23: 2 | I23: 0 | J23: 0 | K23: 0 | L23: 1 | M23: 1 | N23: 3 | O23: 2 | P23: 8 | Q23: 4 | R23: 11 | S23: 11 | T23: 31 | U23: 53 | V23: 86 | W23: 87 | X23: 116 | Y23: 122 | Z23: 71 | AA23: 12 | AB23: 4 | AC23: 0
A24: 豊平 | B24: 1047 | C24: 2 | D24: 0 | E24: 0 | F24: 0 | G24: 0 | H24: 2 | I24: 0 | J24: 1 | K24: 3 | L24: 1 | M24: 5 | N24: 2 | O24: 8 | P24: 9 | Q24: 6 | R24: 23 | S24: 40 | T24: 50 | U24: 78 | V24: 116 | W24: 139 | X24: 196 | Y24: 208 | Z24: 115 | AA24: 40 | AB24: 5 | AC24: 0
A25: 清田 | B25: 600 | C25: 1 | D25: 0 | E25: 0 | F25: 0 | G25: 0 | H25: 1 | I25: 0 | J25: 0 | K25: 0 | L25: 1 | M25: 0 | N25: 2 | O25: 4 | P25: 6 | Q25: 9 | R25: 13 | S25: 14 | T25: 26 | U25: 50 | V25: 77 | W25: 78 | X25: 112 | Y25: 120 | Z25: 62 | AA25: 20 | AB25: 5 | AC25: 0
A26: 南 | B26: 886 | C26: 1 | D26: 0 | E26: 0 | F26: 0 | G26: 0 | H26: 1 | I26: 0 | J26: 1 | K26: 2 | L26: 1 | M26: 0 | N26: 2 | O26: 3 | P26: 6 | Q26: 9 | R26: 20 | S26: 24 | T26: 25 | U26: 79 | V26: 110 | W26: 130 | X26: 168 | Y26: 164 | Z26: 109 | AA26: 24 | AB26: 8 | AC26: 0
A27: 西 | B27: 1055 | C27: 1 | D27: 0 | E27: 0 | F27: 0 | G27: 0 | H27: 1 | I27: 0 | J27: 2 | K27: 1 | L27: 4 | M27: 3 | N27: 4 | O27: 5 | P27: 6 | Q27: 13 | R27: 18 | S27: 32 | T27: 45 | U27: 101 | V27: 115 | W27: 162 | X27: 181 | Y27: 197 | Z27: 127 | AA27: 33 | AB27: 5 | AC27: 0
A28: 手稲 | B28: =SUM(H28:AC28) -> 807 | C28: 0 | D28: 0 | E28: 1 | F28: 0 | G28: 0 | H28: 1 | I28: 0 | J28: 0 | K28: 1 | L28: 1 | M28: 0 | N28: 3 | O28: 2 | P28: 3 | Q28: 6 | R28: 7 | S28: 13 | T28: 27 | U28: 82 | V28: 104 | W28: 139 | X28: 132 | Y28: 133 | Z28: 111 | AA28: 36 | AB28: 6 | AC28: 0
B29: 女
A30: 総数 | B30: =SUM(B31:B40) -> 9418 | C30: 18 | D30: 4 | E30: 1 | F30: 2 | G30: 0 | H30: 25 | I30: 1 | J30: 1 | K30: 4 | L30: 13 | M30: 10 | N30: 19 | O30: 36 | P30: 66 | Q30: 91 | R30: 127 | S30: 188 | T30: 252 | U30: 481 | V30: 583 | W30: 871 | X30: 1320 | Y30: 1930 | Z30: 1957 | AA30: 1128 | AB30: 315 | AC30: 0
A31: 中央 | B31: =SUM(H31:AC31) -> 1118 | C31: 3 | D31: 0 | E31: 0 | F31: 0 | G31: 0 | H31: =SUM(C31:G31) -> 3 | I31: 0 | J31: 0 | K31: 1 | L31: 2 | M31: 2 | N31: 2 | O31: 4 | P31: 5 | Q31: 14 | R31: 15 | S31: 23 | T31: 24 | U31: 64 | V31: 57 | W31: 95 | X31: 173 | Y31: 214 | Z31: 244 | AA31: 140 | AB31: 36 | AC31: 0
A32: 北 | B32: 1365 | C32: 1 | D32: 0 | E32: 0 | F32: 0 | G32: 0 | H32: =SUM(C32:G32) -> 1 | I32: 0 | J32: 0 | K32: 0 | L32: 2 | M32: 3 | N32: 1 | O32: 3 | P32: 12 | Q32: 18 | R32: 11 | S32: 20 | T32: 55 | U32: 56 | V32: 108 | W32: 129 | X32: 188 | Y32: 264 | Z32: 258 | AA32: 184 | AB32: 52 | AC32: 0
A33: 東 | B33: 1193 | C33: 2 | D33: 0 | E33: 0 | F33: 0 | G33: 0 | H33: 2 | I33: 1 | J33: 0 | K33: 1 | L33: 2 | M33: 2 | N33: 4 | O33: 3 | P33: 9 | Q33: 5 | R33: 21 | S33: 29 | T33: 32 | U33: 63 | V33: 64 | W33: 101 | X33: 173 | Y33: 244 | Z33: 248 | AA33: 147 | AB33: 42 | AC33: 0
A34: 白石 | B34: 979 | C34: 3 | D34: 1 | E34: 0 | F34: 0 | G34: 0 | H34: 4 | I34: 0 | J34: 0 | K34: 0 | L34: 1 | M34: 2 | N34: 1 | O34: 3 | P34: 8 | Q34: 17 | R34: 18 | S34: 17 | T34: 20 | U34: 60 | V34: 58 | W34: 103 | X34: 135 | Y34: 208 | Z34: 183 | AA34: 107 | AB34: 34 | AC34: 0
A35: 厚別 | B35: 643 | C35: 1 | D35: 0 | E35: 0 | F35: 0 | G35: 0 | H35: 1 | I35: 0 | J35: 0 | K35: 0 | L35: 1 | M35: 0 | N35: 1 | O35: 0 | P35: 4 | Q35: 5 | R35: 8 | S35: 16 | T35: 21 | U35: 30 | V35: 44 | W35: 46 | X35: 97 | Y35: 145 | Z35: 126 | AA35: 80 | AB35: 18 | AC35: 0
A36: 豊平 | B36: 1000 | C36: 2 | D36: 0 | E36: 0 | F36: 0 | G36: 0 | H36: 2 | I36: 0 | J36: 0 | K36: 0 | L36: 1 | M36: 0 | N36: 4 | O36: 6 | P36: 4 | Q36: 11 | R36: 16 | S36: 19 | T36: 29 | U36: 60 | V36: 59 | W36: 94 | X36: 127 | Y36: 201 | Z36: 233 | AA36: 109 | AB36: 25 | AC36: 0
A37: 清田 | B37: 537 | C37: 1 | D37: 1 | E37: 0 | F37: 1 | G37: 0 | H37: 3 | I37: 0 | J37: 0 | K37: 0 | L37: 0 | M37: 0 | N37: 1 | O37: 1 | P37: 2 | Q37: 3 | R37: 5 | S37: 12 | T37: 10 | U37: 24 | V37: 36 | W37: 48 | X37: 62 | Y37: 134 | Z37: 120 | AA37: 60 | AB37: 16 | AC37: 0
A38: 南 | B38: 824 | C38: 1 | D38: 1 | E38: 0 | F38: 1 | G38: 0 | H38: 3 | I38: 0 | J38: 0 | K38: 1 | L38: 4 | M38: 0 | N38: 2 | O38: 3 | P38: 5 | Q38: 7 | R38: 10 | S38: 21 | T38: 13 | U38: 45 | V38: 42 | W38: 76 | X38: 116 | Y38: 176 | Z38: 180 | AA38: 94 | AB38: 26 | AC38: 0
A39: 西 | B39: 1012 | C39: 2 | D39: 1 | E39: 1 | F39: 0 | G39: 0 | H39: 4 | I39: 0 | J39: 0 | K39: 1 | L39: 0 | M39: 1 | N39: 2 | O39: 4 | P39: 12 | Q39: 8 | R39: 17 | S39: 23 | T39: 29 | U39: 49 | V39: 68 | W39: 105 | X39: 152 | Y39: 191 | Z39: 200 | AA39: 111 | AB39: 35 | AC39: 0
A40: 手稲 | B40: 747 | C40: 2 | D40: 0 | E40: 0 | F40: 0 | G40: 0 | H40: =SUM(C40:G40) -> 2 | I40: 0 | J40: 1 | K40: 0 | L40: 0 | M40: 0 | N40: 1 | O40: 9 | P40: 5 | Q40: 3 | R40: 6 | S40: 8 | T40: 19 | U40: 30 | V40: 47 | W40: 74 | X40: 97 | Y40: 153 | Z40: 165 | AA40: 96 | AB40: 31 | AC40: 0

Sheet 10-1 年次別，選択死因分類別死亡数及・率
A1: 10 年次別にみた選択死因分類(主要死因)別死亡数
A3: 簡単分類 番 号 | B3: 死因 | D3: 1985 昭和60年 | E3: 1986 61年 | F3: 1987 62年 | G3: 1988 63年 | H3: 1989 平成元年 | I3: 1990 2年 | J3: 1991 3年 | K3: 1992 4年 | L3: 1993 5年 | M3: 1994 6年
B4: 死 亡 総 数 | D4: 7226 | E4: 7127 | F4: 7074 | G4: 7761 | H4: 8103 | I4: 8278 | J4: 8342 | K4: 8808 | L4: 9428 | M4: 8934
A5: 5～6 | B5: 結 核 | D5: 54 | E5: 39 | F5: 28 | G5: 37 | H5: 29 | I5: 32 | J5: 23 | K5: 28 | L5: 29 | M5: 32
A6: 28～37 | B6: 悪性新生物 | D6: 1986 | E6: 2057 | F6: 2071 | G6: 2288 | H6: 2524 | I6: 2483 | J6: 2569 | K6: 2684 | L6: 2767 | M6: 2779
A7: 28 | B7: （再掲） | C7: 食 道 | D7: 65 | E7: 87 | F7: 83 | G7: 69 | H7: 92 | I7: 105 | J7: 106 | K7: 120 | L7: 95 | M7: 93
A8: 29 | C8: 胃 | D8: 457 | E8: 431 | F8: 423 | G8: 502 | H8: 509 | I8: 453 | J8: 477 | K8: 456 | L8: 479 | M8: 495
A9: 30 | C9: 直腸、直腸Ｓ状結腸移行部及び肛門 | D9: 94 | E9: 78 | F9: 83 | G9: 97 | H9: 104 | I9: 98 | J9: 96 | K9: 90 | L9: 131 | M9: 112
A10: 31 | C10: 肝 | D10: 210 | E10: 212 | F10: 198 | G10: 226 | H10: 229 | I10: 224 | J10: 230 | K10: 287 | L10: 293 | M10: 272
A11: 32 | C11: 膵 | D11: 136 | E11: 144 | F11: 180 | G11: 143 | H11: 186 | I11: 213 | J11: 171 | K11: 181 | L11: 174 | M11: 215
A12: 33 | C12: 気管、気管支及び肺 | D12: 284 | E12: 338 | F12: 343 | G12: 373 | H12: 439 | I12: 426 | J12: 441 | K12: 508 | L12: 476 | M12: 524
A13: 34 | C13: 乳 房 | D13: 72 | E13: 72 | F13: 71 | G13: 78 | H13: 90 | I13: 91 | J13: 90 | K13: 83 | L13: 120 | M13: 92
A14: 35 | C14: 子 宮 | D14: 57 | E14: 48 | F14: 52 | G14: 58 | H14: 58 | I14: 42 | J14: 74 | K14: 52 | L14: 50 | M14: 57
A15: 36 | C15: 白 血 病 | D15: 72 | E15: 64 | F15: 63 | G15: 60 | H15: 75 | I15: 67 | J15: 55 | K15: 66 | L15: 73 | M15: 75
A16: 39 | B16: 糖 尿 病 | D16: 89 | E16: 98 | F16: 98 | G16: 101 | H16: 108 | I16: 121 | J16: 126 | K16: 106 | L16: 123 | M16: 125
A17: 48～49 | B17: 高血圧性疾患 | D17: 69 | E17: 70 | F17: 74 | G17: 46 | H17: 43 | I17: 53 | J17: 56 | K17: 49 | L17: 57 | M17: 51
A18: 46、 51～52、 54～56 | B18: 心 疾 患 | D18: 1511 | E18: 1468 | F18: 1496 | G18: 1716 | H18: 1673 | I18: 1786 | J18: 1714 | K18: 1894 | L18: 1944 | M18: 1637
A19: 51 | B19: （再掲） | C19: 急性心筋梗塞 | D19: 374 | E19: 344 | F19: 369 | G19: 389 | H19: 364 | I19: 370 | J19: 345 | K19: 391 | L19: 375 | M19: 387
A20: 52 | C20: その他虚血性心疾患 | D20: 249 | E20: 237 | F20: 199 | G20: 259 | H20: 227 | I20: 258 | J20: 212 | K20: 203 | L20: 228 | M20: 196
A21: 55 | C21: 心 不 全 | D21: 697 | E21: 700 | F21: 736 | G21: 874 | H21: 874 | I21: 955 | J21: 944 | K21: 1068 | L21: 1120 | M21: 814
A22: 58～60 | B22: 脳血管疾患 | D22: 1075 | E22: 940 | F22: 908 | G22: 899 | H22: 906 | I22: 859 | J22: 905 | K22: 955 | L22: 982 | M22: 1005
A23: 59 | B23: （再掲） | C23: 脳 梗 塞 | D23: 523 | E23: 466 | F23: 449 | G23: 457 | H23: 494 | I23: 463 | J23: 470 | K23: 539 | L23: 539 | M23: 535
A24: 62、63、66 | B24: 肺炎及び気管支炎 | D24: 544 | E24: 502 | F24: 500 | G24: 589 | H24: 745 | I24: 870 | J24: 776 | K24: 861 | L24: 1142 | M24: 971
A25: 63 | B25: （再掲） | C25: 肺 炎 | D25: 485 | E25: 471 | F25: 453 | G25: 537 | H25: 685 | I25: 820 | J25: 732 | K25: 806 | L25: 1066 | M25: 909
A26: 68 | B26: 喘 息 | D26: 39 | E26: 53 | F26: 51 | G26: 52 | H26: 43 | I26: 59 | J26: 43 | K26: 47 | L26: 42 | M26: 50
A27: 69 | B27: 胃及び十二指腸潰瘍 | D27: 33 | E27: 29 | F27: 36 | G27: 29 | H27: 30 | I27: 25 | J27: 28 | K27: 33 | L27: 29 | M27: 33
A28: 73 | B28: 慢性肝疾患及び肝硬変 | D28: 152 | E28: 176 | F28: 128 | G28: 165 | H28: 171 | I28: 153 | J28: 176 | K28: 169 | L28: 192 | M28: 161
A29: 76～77 | B29: 腎炎、ネフローゼ症候群 及びネフローゼ | D29: 176 | E29: 184 | F29: 206 | G29: 207 | H29: 220 | I29: 230 | J29: 229 | K29: 248 | L29: 229 | M29: 255
A30: 88 | B30: 精神病の記載のない老衰 | D30: 67 | E30: 54 | F30: 53 | G30: 65 | H30: 44 | I30: 40 | J30: 47 | K30: 45 | L30: 44 | M30: 39
A31: E104～E114 | B31: 不慮の事故及び有害作用 | D31: 266 | E31: 265 | F31: 255 | G31: 302 | H31: 274 | I31: 343 | J31: 304 | K31: 296 | L31: 326 | M31: 349
A32: E104 | B32: （再掲） | C32: 自動車事故 | D32: 138 | E32: 140 | F32: 122 | G32: 152 | H32: 166 | I32: 203 | J32: 158 | K32: 157 | L32: 149 | M32: 159
A33: E115 | B33: 自 殺 | D33: 261 | E33: 287 | F33: 238 | G33: 275 | H33: 251 | I33: 208 | J33: 192 | K33: 219 | L33: 241 | M33: 222

Sheet 10-2 年次別，選択死因分類別死亡数及・率
A3: 選択死因 分類コード | B3: 死因 | D3: 1995 平成7年 | E3: 1996 8年 | F3: 1997 9年 | G3: 1998 10年 | H3: 1999 11年 | I3: 2000 12年 | J3: 2001 13年 | K3: 2002 14年 | L3: 2003 15年 | M3: 2004 16年 | N3: 2005 17年 | O3: 2006 18年 | P3: 2007 19年 | Q3: 2008 20年 | R3: 2009 21年 | S3: 2010 22年 | T3: 2011 23年 | U3: 2012 24年 | V3: 2013 25年 | W3: 2014 26年 | X3: 2015 27年 | Y3: 2016 28年 | Z3: 2017 29年 | AA3: 2018 30年
B4: 死 亡 総 数 | D4: 9398 | E4: 9512 | F4: 9840 | G4: 9995 | H4: 10806 | I4: 10800 | J4: 10803 | K4: 11151 | L4: 11769 | M4: 12348 | N4: 13105 | O4: 13268 | P4: 14044 | Q4: 14366 | R4: 14506 | S4: 15482 | T4: 15926 | U4: 16228 | V4: 16844 | W4: 17668 | X4: 17523 | Y4: 18504 | Z4: 18668 | AA4: ='11 区別，選択死因分類別死亡数・率'!$F$5 -> 19343
A5: Se 01 | B5: 結 核 | D5: 33 | E5: 18 | F5: 20 | G5: 28 | H5: 32 | I5: 16 | J5: 24 | K5: 31 | L5: 33 | M5: 21 | N5: 25 | O5: 18 | P5: 32 | Q5: 12 | R5: 24 | S5: 26 | T5: 14 | U5: 19 | V5: 22 | W5: 22 | X5: 14 | Y5: 14 | Z5: 23 | AA5: ='11 区別，選択死因分類別死亡数・率'!$F$8 -> 24
A6: Se 02 | B6: 悪性新生物 | D6: 3083 | E6: 3295 | F6: 3352 | G6: 3439 | H6: 3515 | I6: 3727 | J6: 3765 | K6: 3926 | L6: 3997 | M6: 4372 | N6: 4490 | O6: 4565 | P6: 4695 | Q6: 4735 | R6: 4981 | S6: 5256 | T6: 5326 | U6: 5302 | V6: 5674 | W6: 5783 | X6: 5769 | Y6: 6003 | Z6: 5908 | AA6: ='11 区別，選択死因分類別死亡数・率'!$F$11 -> 6115
A7: Se 03 | B7: （再掲） | C7: 食道の悪性新生物 | D7: 112 | E7: 120 | F7: 124 | G7: 121 | H7: 138 | I7: 124 | J7: 163 | K7: 161 | L7: 171 | M7: 165 | N7: 181 | O7: 172 | P7: 180 | Q7: 188 | R7: 169 | S7: 182 | T7: 160 | U7: 187 | V7: 190 | W7: 202 | X7: 166 | Y7: 187 | Z7: 166 | AA7: ='11 区別，選択死因分類別死亡数・率'!$F$14 -> 201
A8: Se 04 | C8: 胃の悪性新生物 | D8: 511 | E8: 555 | F8: 539 | G8: 535 | H8: 534 | I8: 606 | J8: 577 | K8: 531 | L8: 534 | M8: 601 | N8: 602 | O8: 623 | P8: 605 | Q8: 573 | R8: 617 | S8: 629 | T8: 584 | U8: 626 | V8: 652 | W8: 628 | X8: 573 | Y8: 599 | Z8: 597 | AA8: ='11 区別，選択死因分類別死亡数・率'!$F$17 -> 602
A9: Se 05 | C9: 結腸の悪性新生物 | D9: 236 | E9: 293 | F9: 307 | G9: 314 | H9: 304 | I9: 322 | J9: 342 | K9: 341 | L9: 367 | M9: 354 | N9: 370 | O9: 386 | P9: 381 | Q9: 384 | R9: 428 | S9: 438 | T9: 498 | U9: 449 | V9: 530 | W9: 524 | X9: 515 | Y9: 569 | Z9: 562 | AA9: ='11 区別，選択死因分類別死亡数・率'!$F$20 -> 587
A10: Se 06 | C10: 直腸Ｓ状結腸移行部及び直腸の悪性新生物 | D10: 114 | E10: 130 | F10: 127 | G10: 135 | H10: 143 | I10: 153 | J10: 180 | K10: 167 | L10: 168 | M10: 189 | N10: 218 | O10: 175 | P10: 169 | Q10: 169 | R10: 174 | S10: 194 | T10: 205 | U10: 204 | V10: 207 | W10: 204 | X10: 220 | Y10: 239 | Z10: 235 | AA10: ='11 区別，選択死因分類別死亡数・率'!$F$23 -> 244
A11: Se 07 | C11: 肝及び肝内胆管の悪性新生物 | D11: 341 | E11: 313 | F11: 360 | G11: 342 | H11: 323 | I11: 384 | J11: 313 | K11: 361 | L11: 385 | M11: 418 | N11: 373 | O11: 382 | P11: 382 | Q11: 433 | R11: 406 | S11: 431 | T11: 400 | U11: 386 | V11: 400 | W11: 407 | X11: 391 | Y11: 369 | Z11: 417 | AA11: ='11 区別，選択死因分類別死亡数・率'!$F$26 -> 403
A12: Se 08 | C12: 胆のう及びその他の胆道の悪性新生物 | D12: 172 | E12: 180 | F12: 185 | G12: 147 | H12: 170 | I12: 200 | J12: 189 | K12: 199 | L12: 205 | M12: 201 | N12: 242 | O12: 212 | P12: 216 | Q12: 244 | R12: 249 | S12: 249 | T12: 253 | U12: 255 | V12: 248 | W12: 250 | X12: 273 | Y12: 234 | Z12: 246 | AA12: ='11 区別，選択死因分類別死亡数・率'!$F$29 -> 263
A13: Se 09 | C13: 膵の悪性新生物 | D13: 226 | E13: 219 | F13: 245 | G13: 268 | H13: 258 | I13: 290 | J13: 249 | K13: 322 | L13: 320 | M13: 377 | N13: 367 | O13: 374 | P13: 429 | Q13: 440 | R13: 455 | S13: 499 | T13: 491 | U13: 563 | V13: 535 | W13: 583 | X13: 599 | Y13: 631 | Z13: 632 | AA13: ='11 区別，選択死因分類別死亡数・率'!$F$32 -> 634
A14: Se 10 | C14: 気管、気管支及び肺の悪性新生物 | D14: 561 | E14: 617 | F14: 581 | G14: 622 | H14: 665 | I14: 634 | J14: 709 | K14: 742 | L14: 725 | M14: 867 | N14: 907 | O14: 950 | P14: 976 | Q14: 981 | R14: 1104 | S14: 1111 | T14: 1176 | U14: 1094 | V14: 1253 | W14: 1282 | X14: 1292 | Y14: 1334 | Z14: 1301 | AA14: ='11 区別，選択死因分類別死亡数・率'!$F$35 -> 1317
A15: Se 11 | C15: 乳房の悪性新生物 | D15: 122 | E15: 103 | F15: 129 | G15: 136 | H15: 140 | I15: 145 | J15: 164 | K15: 159 | L15: 149 | M15: 185 | N15: 177 | O15: 186 | P15: 227 | Q15: 210 | R15: 188 | S15: 239 | T15: 232 | U15: 212 | V15: 274 | W15: 245 | X15: 260 | Y15: 254 | Z15: 275 | AA15: ='11 区別，選択死因分類別死亡数・率'!$F$38 -> 273
A16: Se 12 | C16: 子宮の悪性新生物 | D16: 50 | E16: 61 | F16: 54 | G16: 61 | H16: 72 | I16: 62 | J16: 70 | K16: 69 | L16: 74 | M16: 77 | N16: 74 | O16: 78 | P16: 82 | Q16: 85 | R16: 75 | S16: 94 | T16: 98 | U16: 98 | V16: 89 | W16: 105 | X16: 91 | Y16: 103 | Z16: 83 | AA16: ='11 区別，選択死因分類別死亡数・率'!$F$41 -> 107
A17: Se 13 | C17: 白 血 病 | D17: 69 | E17: 74 | F17: 71 | G17: 73 | H17: 84 | I17: 98 | J17: 83 | K17: 75 | L17: 95 | M17: 97 | N17: 83 | O17: 96 | P17: 97 | Q17: 102 | R17: 107 | S17: 103 | T17: 123 | U17: 110 | V17: 123 | W17: 121 | X17: 118 | Y17: 147 | Z17: 117 | AA17: ='11 区別，選択死因分類別死亡数・率'!$F$44 -> 136
A18: Se 14 | B18: 糖 尿 病 | D18: 142 | E18: 133 | F18: 130 | G18: 144 | H18: 158 | I18: 141 | J18: 161 | K18: 136 | L18: 140 | M18: 132 | N18: 164 | O18: 174 | P18: 177 | Q18: 188 | R18: 173 | S18: 189 | T18: 211 | U18: 174 | V18: 184 | W18: 202 | X18: 185 | Y18: 198 | Z18: 242 | AA18: ='11 区別，選択死因分類別死亡数・率'!$F$47 -> 241
A19: Se 15 | B19: 高血圧性疾患 | D19: 47 | E19: 45 | F19: 39 | G19: 39 | H19: 34 | I19: 39 | J19: 42 | K19: 44 | L19: 40 | M19: 40 | N19: 34 | O19: 43 | P19: 46 | Q19: 51 | R19: 42 | S19: 51 | T19: 59 | U19: 51 | V19: 59 | W19: 77 | X19: 73 | Y19: 71 | Z19: 105 | AA19: ='11 区別，選択死因分類別死亡数・率'!$F$50 -> 94
A20: Se 16 | B20: 心疾患(高血圧性を除く） | D20: 1574 | E20: 1536 | F20: 1541 | G20: 1591 | H20: 1726 | I20: 1651 | J20: 1669 | K20: 1624 | L20: 1761 | M20: 1793 | N20: 1933 | O20: 2074 | P20: 2268 | Q20: 2219 | R20: 2137 | S20: 2313 | T20: 2421 | U20: 2363 | V20: 2287 | W20: 2393 | X20: 2303 | Y20: 2414 | Z20: 2482 | AA20: ='11 区別，選択死因分類別死亡数・率'!$F$53 -> 2540
A21: Se 17 | B21: （再掲） | C21: 急性心筋梗塞 | D21: 573 | E21: 507 | F21: 515 | G21: 532 | H21: 548 | I21: 507 | J21: 451 | K21: 422 | L21: 507 | M21: 506 | N21: 481 | O21: 477 | P21: 485 | Q21: 434 | R21: 432 | S21: 451 | T21: 419 | U21: 388 | V21: 390 | W21: 380 | X21: 341 | Y21: 347 | Z21: 334 | AA21: ='11 区別，選択死因分類別死亡数・率'!$F$56 -> 291
A22: Se 18 | C22: その他の虚血性心疾患 | D22: 229 | E22: 233 | F22: 227 | G22: 201 | H22: 199 | I22: 201 | J22: 222 | K22: 198 | L22: 241 | M22: 213 | N22: 240 | O22: 245 | P22: 261 | Q22: 249 | R22: 224 | S22: 277 | T22: 290 | U22: 320 | V22: 300 | W22: 323 | X22: 302 | Y22: 314 | Z22: 377 | AA22: ='11 区別，選択死因分類別死亡数・率'!$F$59 -> 438
A23: Se 19 | C23: 不整脈及び伝導障害 | D23: 146 | E23: 135 | F23: 140 | G23: 147 | H23: 200 | I23: 213 | J23: 242 | K23: 224 | L23: 175 | M23: 200 | N23: 256 | O23: 306 | P23: 316 | Q23: 330 | R23: 259 | S23: 308 | T23: 357 | U23: 238 | V23: 331 | W23: 377 | X23: 356 | Y23: 379 | Z23: 303 | AA23: ='11 区別，選択死因分類別死亡数・率'!$F$62 -> 286
A24: Se 20 | C24: 心 不 全 | D24: 427 | E24: 454 | F24: 461 | G24: 511 | H24: 561 | I24: 535 | J24: 526 | K24: 543 | L24: 540 | M24: 653 | N24: 723 | O24: 804 | P24: 971 | Q24: 950 | R24: 995 | S24: 1035 | T24: 1125 | U24: 1143 | V24: 1022 | W24: 1039 | X24: 1032 | Y24: 1053 | Z24: 1146 | AA24: ='11 区別，選択死因分類別死亡数・率'!$F$65 -> 1223
A25: Se 21 | B25: 脳血管疾患 | D25: 1278 | E25: 1292 | F25: 1345 | G25: 1307 | H25: 1418 | I25: 1439 | J25: 1341 | K25: 1415 | L25: 1468 | M25: 1423 | N25: 1598 | O25: 1408 | P25: 1492 | Q25: 1380 | R25: 1335 | S25: 1372 | T25: 1368 | U25: 1348 | V25: 1384 | W25: 1389 | X25: 1361 | Y25: 1448 | Z25: 1441 | AA25: ='11 区別，選択死因分類別死亡数・率'!$F$68 -> 1418
A26: Se 22 | B26: （再掲） | C26: くも膜下出血 | D26: 194 | E26: 190 | F26: 184 | G26: 204 | H26: 213 | I26: 245 | J26: 200 | K26: 221 | L26: 237 | M26: 216 | N26: 258 | O26: 208 | P26: 201 | Q26: 170 | R26: 150 | S26: 170 | T26: 145 | U26: 163 | V26: 147 | W26: 147 | X26: 172 | Y26: 180 | Z26: 179 | AA26: ='11 区別，選択死因分類別死亡数・率'!$F$71 -> 165
A27: Se 23 | C27: 脳 内 出 血 | D27: 271 | E27: 293 | F27: 308 | G27: 311 | H27: 331 | I27: 283 | J27: 296 | K27: 373 | L27: 372 | M27: 307 | N27: 405 | O27: 336 | P27: 370 | Q27: 376 | R27: 373 | S27: 369 | T27: 421 | U27: 372 | V27: 403 | W27: 403 | X27: 390 | Y27: 456 | Z27: 432 | AA27: ='11 区別，選択死因分類別死亡数・率'!$F$74 -> 440
A28: Se 24 | C28: 脳 梗 塞 | D28: 761 | E28: 772 | F28: 828 | G28: 765 | H28: 846 | I28: 884 | J28: 827 | K28: 801 | L28: 837 | M28: 875 | N28: 895 | O28: 845 | P28: 888 | Q28: 811 | R28: 786 | S28: 814 | T28: 785 | U28: 785 | V28: 807 | W28: 819 | X28: 773 | Y28: 783 | Z28: 809 | AA28: ='11 区別，選択死因分類別死亡数・率'!$F$77 -> 795
A29: Se 25 | B29: 大動脈瘤及び解離 | D29: 92 | E29: 82 | F29: 89 | G29: 88 | H29: 94 | I29: 107 | J29: 128 | K29: 139 | L29: 134 | M29: 128 | N29: 151 | O29: 152 | P29: 149 | Q29: 192 | R29: 200 | S29: 207 | T29: 197 | U29: 214 | V29: 230 | W29: 223 | X29: 250 | Y29: 266 | Z29: 304 | AA29: ='11 区別，選択死因分類別死亡数・率'!$F$80 -> 266
A30: Se 26 | B30: 肺 炎 | D30: 727 | E30: 689 | F30: 728 | G30: 748 | H30: 910 | I30: 820 | J30: 803 | K30: 820 | L30: 960 | M30: 1022 | N30: 1054 | O30: 1117 | P30: 1172 | Q30: 1298 | R30: 1222 | S30: 1439 | T30: 1473 | U30: 1581 | V30: 1477 | W30: 1597 | X30: 1567 | Y30: 1736 | Z30: 1360 | AA30: ='11 区別，選択死因分類別死亡数・率'!$F$83 -> 1348
A31: Se 27 | B31: 慢性閉塞性肺疾患 | D31: 129 | E31: 102 | F31: 122 | G31: 93 | H31: 120 | I31: 125 | J31: 128 | K31: 121 | L31: 144 | M31: 147 | N31: 138 | O31: 134 | P31: 164 | Q31: 179 | R31: 172 | S31: 194 | T31: 181 | U31: 191 | V31: 191 | W31: 183 | X31: 193 | Y31: 201 | Z31: 253 | AA31: ='11 区別，選択死因分類別死亡数・率'!$F$86 -> 223
A32: Se 28 | B32: 喘 息 | D32: 61 | E32: 47 | F32: 52 | G32: 52 | H32: 47 | I32: 54 | J32: 38 | K32: 34 | L32: 31 | M32: 19 | N32: 32 | O32: 29 | P32: 28 | Q32: 26 | R32: 27 | S32: 24 | T32: 30 | U32: 27 | V32: 20 | W32: 22 | X32: 19 | Y32: 18 | Z32: 22 | AA32: ='11 区別，選択死因分類別死亡数・率'!$F$89 -> 26
A33: Se 29 | B33: 肝 疾 患 | D33: 156 | E33: 158 | F33: 183 | G33: 145 | H33: 166 | I33: 148 | J33: 135 | K33: 150 | L33: 148 | M33: 166 | N33: 169 | O33: 159 | P33: 157 | Q33: 181 | R33: 201 | S33: 167 | T33: 184 | U33: 223 | V33: 183 | W33: 212 | X33: 228 | Y33: 216 | Z33: 270 | AA33: ='11 区別，選択死因分類別死亡数・率'!$F$92 -> 245
A34: Se 30 | B34: 腎 不 全 | D34: 204 | E34: 228 | F34: 234 | G34: 198 | H34: 222 | I34: 228 | J34: 257 | K34: 289 | L34: 278 | M34: 236 | N34: 291 | O34: 287 | P34: 326 | Q34: 341 | R34: 356 | S34: 329 | T34: 411 | U34: 387 | V34: 407 | W34: 400 | X34: 418 | Y34: 436 | Z34: 392 | AA34: ='11 区別，選択死因分類別死亡数・率'!$F$95 -> 412
A35: Se 31 | B35: 老 衰 | D35: 42 | E35: 48 | F35: 55 | G35: 53 | H35: 71 | I35: 80 | J35: 84 | K35: 98 | L35: 104 | M35: 119 | N35: 121 | O35: 128 | P35: 151 | Q35: 169 | R35: 231 | S35: 222 | T35: 256 | U35: 392 | V35: 514 | W35: 626 | X35: 715 | Y35: 893 | Z35: 957 | AA35: ='11 区別，選択死因分類別死亡数・率'!$F$98 -> 1019
A36: Se 32 | B36: 不慮の事故 | D36: 377 | E36: 356 | F36: 370 | G36: 322 | H36: 360 | I36: 355 | J36: 375 | K36: 363 | L36: 390 | M36: 399 | N36: 346 | O36: 415 | P36: 372 | Q36: 367 | R36: 383 | S36: 387 | T36: 449 | U36: 366 | V36: 370 | W36: 411 | X36: 395 | Y36: 449 | Z36: 436 | AA36: ='11 区別，選択死因分類別死亡数・率'!$F$101 -> 483
A37: Se 33 | B37: （再掲） | C37: 交 通 事 故 | D37: 171 | E37: 156 | F37: 172 | G37: 111 | H37: 134 | I37: 130 | J37: 143 | K37: 133 | L37: 116 | M37: 105 | N37: 86 | O37: 91 | P37: 84 | Q37: 64 | R37: 55 | S37: 67 | T37: 57 | U37: 51 | V37: 53 | W37: 57 | X37: 49 | Y37: 50 | Z37: 44 | AA37: ='11 区別，選択死因分類別死亡数・率'!$F$104 -> 40
A38: Se 34 | B38: 自 殺 | D38: 228 | E38: 248 | F38: 308 | G38: 413 | H38: 442 | I38: 475 | J38: 351 | K38: 394 | L38: 467 | M38: 442 | N38: 472 | O38: 409 | P38: 419 | Q38: 477 | R38: 420 | S38: 431 | T38: 434 | U38: 403 | V38: 374 | W38: 345 | X38: 322 | Y38: 315 | Z38: 319 | AA38: ='11 区別，選択死因分類別死亡数・率'!$F$107 -> 299

Sheet 11 区別，選択死因分類別死亡数・率
A1: 11 区・性別にみた選択死因分類別死亡数・粗死亡率及び年齢調整死亡率（人口10万対)
AL2: ='3 月・性別，区別死亡数'!$O$2 -> 平成30年
A3: 選択死因 分類コード | B3: 死因・性 | F3: 死 亡 数 | Q3: 粗 死 亡 率 （人口10万対） | AB3: 年 齢 調 整 死 亡 率 （人口10万対） 1)
F4: 総数 | G4: 中央区 | H4: 北区 | I4: 東区 | J4: 白石区 | K4: 厚別区 | L4: 豊平区 | M4: 清田区 | N4: 南区 | O4: 西区 | P4: 手稲区 | Q4: 総数 | R4: 中央区 | S4: 北区 | T4: 東区 | U4: 白石区 | V4: 厚別区 | W4: 豊平区 | X4: 清田区 | Y4: 南区 | Z4: 西区 | AA4: 手稲区 | AB4: 総数 | AC4: 中央区 | AD4: 北区 | AE4: 東区 | AF4: 白石区 | AG4: 厚別区 | AH4: 豊平区 | AI4: 清田区 | AJ4: 南区 | AK4: 西区 | AL4: 手稲区
B5: 死 亡 総 数 | E5: 総数 | F5: ='12 区別，5歳階級別，選択死因分類別死亡数'!F7 -> 19343 | G5: ='12-10'!F7 -> 2174 | H5: ='12-20'!F7 -> 2842 | I5: ='12-30'!F7 -> 2512 | J5: ='12-40'!F7 -> 2032 | K5: ='12-45'!F7 -> 1268 | L5: ='12-50'!F7 -> 2047 | M5: ='12-55'!F7 -> 1137 | N5: ='12-60'!F7 -> 1710 | O5: ='12-70'!F7 -> 2067 | P5: ='12-75'!F7 -> 1554 | Q5: =F5/[1]人口!$B$39*100000 -> 983.9059178 | R5: =G5/[1]人口!$C$39*100000 -> 894.9595745 | S5: =H5/[1]人口!$D$39*100000 -> 986.4150996 | T5: =I5/[1]人口!$E$39*100000 -> 950.8560354 | U5: =J5/[1]人口!$F$39*100000 -> 960.7746719 | V5: =K5/[1]人口!$G$39*100000 -> 1004.515567 | W5: =L5/[1]人口!$H$39*100000 -> 921.897659 | X5: =M5/[1]人口!$I$39*100000 -> 986.36269 | Y5: =N5/[1]人口!$J$39*100000 -> 1240.469783 | Z5: =O5/[1]人口!$K$39*100000 -> 957.2014708 | AA5: =P5/[1]人口!$L$39*100000 -> 1095.183729 | AB5: =調整死亡率算出!E11 -> 347.9842389 | AC5: ='12-10 算出'!E11 -> 354.4652882 | AD5: ='12-20 算出'!E11 -> 356.1184773 | AE5: ='12-30 算出'!E11 -> 359.4372835 | AF5: ='12-40 算出'!E11 -> 379.3853132 | AG5: ='12-45 算出'!E11 -> 310.6506459 | AH5: ='12-50 算出'!E11 -> 338.0689238 | AI5: ='12-55 算出'!E11 -> 332.4554995 | AJ5: ='12-60 算出'!E11 -> 357.5643958 | AK5: ='12-70 算出'!E11 -> 334.7426691 | AL5: ='12-75 算出'!E11 -> 338.4698556
E6: 男 | F6: ='12 区別，5歳階級別，選択死因分類別死亡数'!F8 -> 9925 | G6: ='12-10'!F8 -> 1056 | H6: ='12-20'!F8 -> 1477 | I6: ='12-30'!F8 -> 1319 | J6: ='12-40'!F8 -> 1053 | K6: ='12-45'!F8 -> 625 | L6: ='12-50'!F8 -> 1047 | M6: ='12-55'!F8 -> 600 | N6: ='12-60'!F8 -> 886 | O6: ='12-70'!F8 -> 1055 | P6: ='12-75'!F8 -> 807 | Q6: =F6/[1]人口!$B$40*100000 -> 1084.876116 | R6: =G6/[1]人口!$C$40*100000 -> 961.4071505 | S6: =H6/[1]人口!$D$40*100000 -> 1086.620661 | T6: =I6/[1]人口!$E$40*100000 -> 1050.937398 | U6: =J6/[1]人口!$F$40*100000 -> 1057.08033 | V6: =K6/[1]人口!$G$40*100000 -> 1089.096834 | W6: =L6/[1]人口!$H$40*100000 -> 1018.958268 | X6: =M6/[1]人口!$I$40*100000 -> 1104.077727 | Y6: =N6/[1]人口!$J$40*100000 -> 1394.528914 | Z6: =O6/[1]人口!$K$40*100000 -> 1060.20561 | AA6: =P6/[1]人口!$L$40*100000 -> 1214.648023 | AB6: =調整死亡率算出!E12 -> 478.3486854 | AC6: ='12-10 算出'!E12 -> 497.3368488 | AD6: ='12-20 算出'!E12 -> 488.4770638 | AE6: ='12-30 算出'!E12 -> 502.5831353 | AF6: ='12-40 算出'!E12 -> 526.6675921 | AG6: ='12-45 算出'!E12 -> 412.8345133 | AH6: ='12-50 算出'!E12 -> 468.6766075 | AI6: ='12-55 算出'!E12 -> 465.1376393 | AJ6: ='12-60 算出'!E12 -> 475.3208283 | AK6: ='12-70 算出'!E12 -> 450.8956121 | AL6: ='12-75 算出'!E12 -> 459.6372474
E7: 女 | F7: ='12 区別，5歳階級別，選択死因分類別死亡数'!F9 -> 9418 | G7: ='12-10'!F9 -> 1118 | H7: ='12-20'!F9 -> 1365 | I7: ='12-30'!F9 -> 1193 | J7: ='12-40'!F9 -> 979 | K7: ='12-45'!F9 -> 643 | L7: ='12-50'!F9 -> 1000 | M7: ='12-55'!F9 -> 537 | N7: ='12-60'!F9 -> 824 | O7: ='12-70'!F9 -> 1012 | P7: ='12-75'!F9 -> 747 | Q7: =F7/[1]人口!$B$41*100000 -> 896.023077 | R7: =G7/[1]人口!$C$41*100000 -> 840.1151213 | S7: =H7/[1]人口!$D$41*100000 -> 896.9169711 | T7: =I7/[1]人口!$E$41*100000 -> 860.2786351 | U7: =J7/[1]人口!$F$41*100000 -> 875.0290485 | V7: =K7/[1]人口!$G$41*100000 -> 934.0092675 | W7: =L7/[1]人口!$H$41*100000 -> 838.293235 | X7: =M7/[1]人口!$I$41*100000 -> 881.3681723 | Y7: =N7/[1]人口!$J$41*100000 -> 1108.763809 | Z7: =O7/[1]人口!$K$41*100000 -> 869.1693936 | AA7: =P7/[1]人口!$L$41*100000 -> 989.9940362 | AB7: =調整死亡率算出!E13 -> 252.6521939 | AC7: ='12-10 算出'!E13 -> 258.0145151 | AD7: ='12-20 算出'!E13 -> 258.749202 | AE7: ='12-30 算出'!E13 -> 253.5201739 | AF7: ='12-40 算出'!E13 -> 266.2832885 | AG7: ='12-45 算出'!E13 -> 234.0148617 | AH7: ='12-50 算出'!E13 -> 245.6101619 | AI7: ='12-55 算出'!E13 -> 231.0432394 | AJ7: ='12-60 算出'!E13 -> 269.9269391 | AK7: ='12-70 算出'!E13 -> 252.7617259 | AL7: ='12-75 算出'!E13 -> 251.1274117
A8: Se 01 | B8: 結 核 | E8: 総数 | F8: ='12 区別，5歳階級別，選択死因分類別死亡数'!F10 -> 24 | G8: ='12-10'!F10 -> 4 | H8: ='12-20'!F10 -> 2 | I8: ='12-30'!F10 -> 4 | J8: ='12-40'!F10 -> 3 | K8: ='12-45'!F10 -> 1 | L8: ='12-50'!F10 -> 0 | M8: ='12-55'!F10 -> 2 | N8: ='12-60'!F10 -> 2 | O8: ='12-70'!F10 -> 2 | P8: ='12-75'!F10 -> 4 | Q8: =F8/[1]人口!$B$39*100000 -> 1.220790055 | R8: =G8/[1]人口!$C$39*100000 -> 1.646659751 | S8: =H8/[1]人口!$D$39*100000 -> 0.694169669 | T8: =I8/[1]人口!$E$39*100000 -> 1.514101967 | U8: =J8/[1]人口!$F$39*100000 -> 1.418466543 | V8: =K8/[1]人口!$G$39*100000 -> 0.7922047057 | W8: =L8/[1]人口!$H$39*100000 -> 0 | X8: =M8/[1]人口!$I$39*100000 -> 1.735026719 | Y8: =N8/[1]人口!$J$39*100000 -> 1.450841851 | Z8: =O8/[1]人口!$K$39*100000 -> 0.926174621 | AA8: =P8/[1]人口!$L$39*100000 -> 2.819005737 | AB8: =調整死亡率算出!E14 -> 0.2834954343 | AC8: ='12-10 算出'!E14 -> 0.362395224 | AD8: ='12-20 算出'!E14 -> 0.2058234923 | AE8: ='12-30 算出'!E14 -> 0.428111108 | AF8: ='12-40 算出'!E14 -> 0.3764687659 | AG8: ='12-45 算出'!E14 -> 0.1204536141 | AH8: ='12-50 算出'!E14 -> 0 | AI8: ='12-55 算出'!E14 -> 0.2854278546 | AJ8: ='12-60 算出'!E14 -> 0.3546275066 | AK8: ='12-70 算出'!E14 -> 0.1418597249 | AL8: ='12-75 算出'!E14 -> 0.6491654855
E9: 男 | F9: ='12 区別，5歳階級別，選択死因分類別死亡数'!F11 -> 10 | G9: ='12-10'!F11 -> 3 | H9: ='12-20'!F11 -> 1 | I9: ='12-30'!F11 -> 1 | J9: ='12-40'!F11 -> 0 | K9: ='12-45'!F11 -> 0 | L9: ='12-50'!F11 -> 0 | M9: ='12-55'!F11 -> 0 | N9: ='12-60'!F11 -> 2 | O9: ='12-70'!F11 -> 1 | P9: ='12-75'!F11 -> 2 | Q9: =F9/[1]人口!$B$40*100000 -> 1.093074173 | R9: =G9/[1]人口!$C$40*100000 -> 2.731270314 | S9: =H9/[1]人口!$D$40*100000 -> 0.735694422 | T9: =I9/[1]人口!$E$40*100000 -> 0.7967683077 | U9: =J9/[1]人口!$F$40*100000 -> 0 | V9: =K9/[1]人口!$G$40*100000 -> 0 | W9: =L9/[1]人口!$H$40*100000 -> 0 | X9: =M9/[1]人口!$I$40*100000 -> 0 | Y9: =N9/[1]人口!$J$40*100000 -> 3.147920798 | Z9: =O9/[1]人口!$K$40*100000 -> 1.004934227 | AA9: =P9/[1]人口!$L$40*100000 -> 3.010280107 | AB9: =調整死亡率算出!E15 -> 0.3801366138 | AC9: ='12-10 算出'!E15 -> 0.9189950018 | AD9: ='12-20 算出'!E15 -> 0.3447694913 | AE9: ='12-30 算出'!E15 -> 0.3344409489 | AF9: ='12-40 算出'!E15 -> 0 | AG9: ='12-45 算出'!E15 -> 0 | AH9: ='12-50 算出'!E15 -> 0 | AI9: ='12-55 算出'!E15 -> 0 | AJ9: ='12-60 算出'!E15 -> 0.8649542723 | AK9: ='12-70 算出'!E15 -> 0.2352127412 | AL9: ='12-75 算出'!E15 -> 1.094448611
E10: 女 | F10: ='12 区別，5歳階級別，選択死因分類別死亡数'!F12 -> 14 | G10: ='12-10'!F12 -> 1 | H10: ='12-20'!F12 -> 1 | I10: ='12-30'!F12 -> 3 | J10: ='12-40'!F12 -> 3 | K10: ='12-45'!F12 -> 1 | L10: ='12-50'!F12 -> 0 | M10: ='12-55'!F12 -> 2 | N10: ='12-60'!F12 -> 0 | O10: ='12-70'!F12 -> 1 | P10: ='12-75'!F12 -> 2 | Q10: =F10/[1]人口!$B$41*100000 -> 1.331951909 | R10: =G10/[1]人口!$C$41*100000 -> 0.7514446523 | S10: =H10/[1]人口!$D$41*100000 -> 0.6570820301 | T10: =I10/[1]人口!$E$41*100000 -> 2.163315931 | U10: =J10/[1]人口!$F$41*100000 -> 2.681396471 | V10: =K10/[1]人口!$G$41*100000 -> 1.452580509 | W10: =L10/[1]人口!$H$41*100000 -> 0 | X10: =M10/[1]人口!$I$41*100000 -> 3.282563025 | Y10: =N10/[1]人口!$J$41*100000 -> 0 | Z10: =O10/[1]人口!$K$41*100000 -> 0.8588630371 | AA10: =P10/[1]人口!$L$41*100000 -> 2.650586442 | AB10: =調整死亡率算出!E16 -> 0.2146682996 | AC10: ='12-10 算出'!E16 -> 0.09993476019 | AD10: ='12-20 算出'!E16 -> 0.08375411282 | AE10: ='12-30 算出'!E16 -> 0.4724099225 | AF10: ='12-40 算出'!E16 -> 0.5962764956 | AG10: ='12-45 算出'!E16 -> 0.1736676008 | AH10: ='12-50 算出'!E16 -> 0 | AI10: ='12-55 算出'!E16 -> 0.4090207129 | AJ10: ='12-60 算出'!E16 -> 0 | AK10: ='12-70 算出'!E16 -> 0.1015541455 | AL10: ='12-75 算出'!E16 -> 0.2972067971
A11: Se 02 | B11: 悪性新生物 | E11: 総数 | F11: ='12 区別，5歳階級別，選択死因分類別死亡数'!F13 -> 6115 | G11: ='12-10'!F13 -> 675 | H11: ='12-20'!F13 -> 914 | I11: ='12-30'!F13 -> 804 | J11: ='12-40'!F13 -> 690 | K11: ='12-45'!F13 -> 417 | L11: ='12-50'!F13 -> 628 | M11: ='12-55'!F13 -> 336 | N11: ='12-60'!F13 -> 527 | O11: ='12-70'!F13 -> 649 | P11: ='12-75'!F13 -> 475 | Q11: =F11/[1]人口!$B$39*100000 -> 311.0471327 | R11: =G11/[1]人口!$C$39*100000 -> 277.8738329 | S11: =H11/[1]人口!$D$39*100000 -> 317.2355387 | T11: =I11/[1]人口!$E$39*100000 -> 304.3344954 | U11: =J11/[1]人口!$F$39*100000 -> 326.2473049 | V11: =K11/[1]人口!$G$39*100000 -> 330.3493623 | W11: =L11/[1]人口!$H$39*100000 -> 282.8293746 | X11: =M11/[1]人口!$I$39*100000 -> 291.4844889 | Y11: =N11/[1]人口!$J$39*100000 -> 382.2968277 | Z11: =O11/[1]人口!$K$39*100000 -> 300.5436645 | AA11: =P11/[1]人口!$L$39*100000 -> 334.7569312 | AB11: =調整死亡率算出!E17 -> 128.3582805 | AC11: ='12-10 算出'!E17 -> 128.555684 | AD11: ='12-20 算出'!E17 -> 132.4010559 | AE11: ='12-30 算出'!E17 -> 132.712321 | AF11: ='12-40 算出'!E17 -> 146.3991649 | AG11: ='12-45 算出'!E17 -> 126.8030057 | AH11: ='12-50 算出'!E17 -> 125.7390948 | AI11: ='12-55 算出'!E17 -> 111.2952363 | AJ11: ='12-60 算出'!E17 -> 130.5136951 | AK11: ='12-70 算出'!E17 -> 121.5242858 | AL11: ='12-75 算出'!E17 -> 119.1188239
E12: 男 | F12: ='12 区別，5歳階級別，選択死因分類別死亡数'!F14 -> 3430 | G12: ='12-10'!F14 -> 344 | H12: ='12-20'!F14 -> 517 | I12: ='12-30'!F14 -> 473 | J12: ='12-40'!F14 -> 383 | K12: ='12-45'!F14 -> 238 | L12: ='12-50'!F14 -> 342 | M12: ='12-55'!F14 -> 200 | N12: ='12-60'!F14 -> 291 | O12: ='12-70'!F14 -> 352 | P12: ='12-75'!F14 -> 290 | Q12: =F12/[1]人口!$B$40*100000 -> 374.9244412 | R12: =G12/[1]人口!$C$40*100000 -> 313.1856627 | S12: =H12/[1]人口!$D$40*100000 -> 380.3540162 | T12: =I12/[1]人口!$E$40*100000 -> 376.8714096 | U12: =J12/[1]人口!$F$40*100000 -> 384.4841087 | V12: =K12/[1]人口!$G$40*100000 -> 414.7280743 | W12: =L12/[1]人口!$H$40*100000 -> 332.8402367 | X12: =M12/[1]人口!$I$40*100000 -> 368.025909 | Y12: =N12/[1]人口!$J$40*100000 -> 458.0224762 | Z12: =O12/[1]人口!$K$40*100000 -> 353.7368479 | AA12: =P12/[1]人口!$L$40*100000 -> 436.4906155 | AB12: =調整死亡率算出!E18 -> 170.9257051 | AC12: ='12-10 算出'!E18 -> 167.8562523 | AD12: ='12-20 算出'!E18 -> 175.8459831 | AE12: ='12-30 算出'!E18 -> 182.6164054 | AF12: ='12-40 算出'!E18 -> 196.9972034 | AG12: ='12-45 算出'!E18 -> 170.8207611 | AH12: ='12-50 算出'!E18 -> 164.837239 | AI12: ='12-55 算出'!E18 -> 155.7862448 | AJ12: ='12-60 算出'!E18 -> 161.4463692 | AK12: ='12-70 算出'!E18 -> 154.4687381 | AL12: ='12-75 算出'!E18 -> 169.4517944
E13: 女 | F13: ='12 区別，5歳階級別，選択死因分類別死亡数'!F15 -> 2685 | G13: ='12-10'!F15 -> 331 | H13: ='12-20'!F15 -> 397 | I13: ='12-30'!F15 -> 331 | J13: ='12-40'!F15 -> 307 | K13: ='12-45'!F15 -> 179 | L13: ='12-50'!F15 -> 286 | M13: ='12-55'!F15 -> 136 | N13: ='12-60'!F15 -> 236 | O13: ='12-70'!F15 -> 297 | P13: ='12-75'!F15 -> 185 | Q13: =F13/[1]人口!$B$41*100000 -> 255.4493482 | R13: =G13/[1]人口!$C$41*100000 -> 248.7281799 | S13: =H13/[1]人口!$D$41*100000 -> 260.861566 | T13: =I13/[1]人口!$E$41*100000 -> 238.6858577 | U13: =J13/[1]人口!$F$41*100000 -> 274.3962389 | V13: =K13/[1]人口!$G$41*100000 -> 260.0119112 | W13: =L13/[1]人口!$H$41*100000 -> 239.7518652 | X13: =M13/[1]人口!$I$41*100000 -> 223.2142857 | Y13: =N13/[1]人口!$J$41*100000 -> 317.5585667 | Z13: =O13/[1]人口!$K$41*100000 -> 255.082322 | AA13: =P13/[1]人口!$L$41*100000 -> 245.1792459 | AB13: =調整死亡率算出!E19 -> 98.74289957 | AC13: ='12-10 算出'!E19 -> 103.5804119 | AD13: ='12-20 算出'!E19 -> 101.9366289 | AE13: ='12-30 算出'!E19 -> 98.73337769 | AF13: ='12-40 算出'!E19 -> 108.8600179 | AG13: ='12-45 算出'!E19 -> 94.61812758 | AH13: ='12-50 算出'!E19 -> 98.97644592 | AI13: ='12-55 算出'!E19 -> 77.25550329 | AJ13: ='12-60 算出'!E19 -> 109.7407316 | AK13: ='12-70 算出'!E19 -> 99.98569041 | AL13: ='12-75 算出'!E19 -> 83.15742774
A14: Se 03 | B14: (再掲) | C14: 食道の悪性新生物 | E14: 総数 | F14: ='12 区別，5歳階級別，選択死因分類別死亡数'!F16 -> 201 | G14: ='12-10'!F16 -> 21 | H14: ='12-20'!F16 -> 28 | I14: ='12-30'!F16 -> 25 | J14: ='12-40'!F16 -> 18 | K14: ='12-45'!F16 -> 17 | L14: ='12-50'!F16 -> 22 | M14: ='12-55'!F16 -> 9 | N14: ='12-60'!F16 -> 18 | O14: ='12-70'!F16 -> 21 | P14: ='12-75'!F16 -> 22 | Q14: =F14/[1]人口!$B$39*100000 -> 10.22411671 | R14: =G14/[1]人口!$C$39*100000 -> 8.644963691 | S14: =H14/[1]人口!$D$39*100000 -> 9.718375365 | T14: =I14/[1]人口!$E$39*100000 -> 9.463137295 | U14: =J14/[1]人口!$F$39*100000 -> 8.510799259 | V14: =K14/[1]人口!$G$39*100000 -> 13.46748 | W14: =L14/[1]人口!$H$39*100000 -> 9.908035417 | X14: =M14/[1]人口!$I$39*100000 -> 7.807620237 | Y14: =N14/[1]人口!$J$39*100000 -> 13.05757666 | Z14: =O14/[1]人口!$K$39*100000 -> 9.72483352 | AA14: =P14/[1]人口!$L$39*100000 -> 15.50453155 | AB14: =調整死亡率算出!E20 -> 4.723396533 | AC14: ='12-10 算出'!E20 -> 5.598186884 | AD14: ='12-20 算出'!E20 -> 4.265207159 | AE14: ='12-30 算出'!E20 -> 4.348644205 | AF14: ='12-40 算出'!E20 -> 4.44779261 | AG14: ='12-45 算出'!E20 -> 5.141192475 | AH14: ='12-50 算出'!E20 -> 4.86014233 | AI14: ='12-55 算出'!E20 -> 3.823895159 | AJ14: ='12-60 算出'!E20 -> 4.935793691 | AK14: ='12-70 算出'!E20 -> 3.966305998 | AL14: ='12-75 算出'!E20 -> 5.987730782
E15: 男 | F15: ='12 区別，5歳階級別，選択死因分類別死亡数'!F17 -> 156 | G15: ='12-10'!F17 -> 14 | H15: ='12-20'!F17 -> 20 | I15: ='12-30'!F17 -> 19 | J15: ='12-40'!F17 -> 14 | K15: ='12-45'!F17 -> 14 | L15: ='12-50'!F17 -> 15 | M15: ='12-55'!F17 -> 9 | N15: ='12-60'!F17 -> 13 | O15: ='12-70'!F17 -> 19 | P15: ='12-75'!F17 -> 19 | Q15: =F15/[1]人口!$B$40*100000 -> 17.05195709 | R15: =G15/[1]人口!$C$40*100000 -> 12.74592813 | S15: =H15/[1]人口!$D$40*100000 -> 14.71388844 | T15: =I15/[1]人口!$E$40*100000 -> 15.13859785 | U15: =J15/[1]人口!$F$40*100000 -> 14.0542494 | V15: =K15/[1]人口!$G$40*100000 -> 24.39576908 | W15: =L15/[1]人口!$H$40*100000 -> 14.598256 | X15: =M15/[1]人口!$I$40*100000 -> 16.56116591 | Y15: =N15/[1]人口!$J$40*100000 -> 20.46148519 | Z15: =O15/[1]人口!$K$40*100000 -> 19.09375031 | AA15: =P15/[1]人口!$L$40*100000 -> 28.59766101 | AB15: =調整死亡率算出!E21 -> 8.294659478 | AC15: ='12-10 算出'!E21 -> 8.129687351 | AD15: ='12-20 算出'!E21 -> 7.103946042 | AE15: ='12-30 算出'!E21 -> 7.372709661 | AF15: ='12-40 算出'!E21 -> 7.318227991 | AG15: ='12-45 算出'!E21 -> 10.01520101 | AH15: ='12-50 算出'!E21 -> 7.506913227 | AI15: ='12-55 算出'!E21 -> 8.256000404 | AJ15: ='12-60 算出'!E21 -> 9.064360679 | AK15: ='12-70 算出'!E21 -> 8.031032793 | AL15: ='12-75 算出'!E21 -> 12.36097748
E16: 女 | F16: ='12 区別，5歳階級別，選択死因分類別死亡数'!F18 -> 45 | G16: ='12-10'!F18 -> 7 | H16: ='12-20'!F18 -> 8 | I16: ='12-30'!F18 -> 6 | J16: ='12-40'!F18 -> 4 | K16: ='12-45'!F18 -> 3 | L16: ='12-50'!F18 -> 7 | M16: ='12-55'!F18 -> 0 | N16: ='12-60'!F18 -> 5 | O16: ='12-70'!F18 -> 2 | P16: ='12-75'!F18 -> 3 | Q16: =F16/[1]人口!$B$41*100000 -> 4.281273993 | R16: =G16/[1]人口!$C$41*100000 -> 5.260112566 | S16: =H16/[1]人口!$D$41*100000 -> 5.256656241 | T16: =I16/[1]人口!$E$41*100000 -> 4.326631861 | U16: =J16/[1]人口!$F$41*100000 -> 3.575195295 | V16: =K16/[1]人口!$G$41*100000 -> 4.357741528 | W16: =L16/[1]人口!$H$41*100000 -> 5.868052645 | X16: =M16/[1]人口!$I$41*100000 -> 0 | Y16: =N16/[1]人口!$J$41*100000 -> 6.727935735 | Z16: =O16/[1]人口!$K$41*100000 -> 1.717726074 | AA16: =P16/[1]人口!$L$41*100000 -> 3.975879663 | AB16: =調整死亡率算出!E22 -> 1.988887078 | AC16: ='12-10 算出'!E22 -> 3.767834969 | AD16: ='12-20 算出'!E22 -> 2.021909946 | AE16: ='12-30 算出'!E22 -> 2.113726095 | AF16: ='12-40 算出'!E22 -> 2.364930951 | AG16: ='12-45 算出'!E22 -> 1.473357707 | AH16: ='12-50 算出'!E22 -> 3.09120099 | AI16: ='12-55 算出'!E22 -> 0 | AJ16: ='12-60 算出'!E22 -> 1.44105585 | AK16: ='12-70 算出'!E22 -> 1.12154803 | AL16: ='12-75 算出'!E22 -> 0.8015092886
A17: Se 04 | C17: 胃の悪性新生物 | E17: 総数 | F17: ='12 区別，5歳階級別，選択死因分類別死亡数'!F19 -> 602 | G17: ='12-10'!F19 -> 64 | H17: ='12-20'!F19 -> 78 | I17: ='12-30'!F19 -> 86 | J17: ='12-40'!F19 -> 60 | K17: ='12-45'!F19 -> 34 | L17: ='12-50'!F19 -> 65 | M17: ='12-55'!F19 -> 39 | N17: ='12-60'!F19 -> 62 | O17: ='12-70'!F19 -> 59 | P17: ='12-75'!F19 -> 55 | Q17: =F17/[1]人口!$B$39*100000 -> 30.62148387 | R17: =G17/[1]人口!$C$39*100000 -> 26.34655601 | S17: =H17/[1]人口!$D$39*100000 -> 27.07261709 | T17: =I17/[1]人口!$E$39*100000 -> 32.55319229 | U17: =J17/[1]人口!$F$39*100000 -> 28.36933086 | V17: =K17/[1]人口!$G$39*100000 -> 26.93495999 | W17: =L17/[1]人口!$H$39*100000 -> 29.273741 | X17: =M17/[1]人口!$I$39*100000 -> 33.83302103 | Y17: =N17/[1]人口!$J$39*100000 -> 44.97609738 | Z17: =O17/[1]人口!$K$39*100000 -> 27.32215132 | AA17: =P17/[1]人口!$L$39*100000 -> 38.76132888 | AB17: =調整死亡率算出!E23 -> 11.74814787 | AC17: ='12-10 算出'!E23 -> 11.31028097 | AD17: ='12-20 算出'!E23 -> 10.6560463 | AE17: ='12-30 算出'!E23 -> 13.04915352 | AF17: ='12-40 算出'!E23 -> 12.25412484 | AG17: ='12-45 算出'!E23 -> 8.526662659 | AH17: ='12-50 算出'!E23 -> 13.14403082 | AI17: ='12-55 算出'!E23 -> 11.76269778 | AJ17: ='12-60 算出'!E23 -> 12.97049991 | AK17: ='12-70 算出'!E23 -> 9.784753661 | AL17: ='12-75 算出'!E23 -> 13.56439123
E18: 男 | F18: ='12 区別，5歳階級別，選択死因分類別死亡数'!F20 -> 369 | G18: ='12-10'!F20 -> 37 | H18: ='12-20'!F20 -> 51 | I18: ='12-30'!F20 -> 54 | J18: ='12-40'!F20 -> 39 | K18: ='12-45'!F20 -> 24 | L18: ='12-50'!F20 -> 35 | M18: ='12-55'!F20 -> 26 | N18: ='12-60'!F20 -> 44 | O18: ='12-70'!F20 -> 28 | P18: ='12-75'!F20 -> 31 | Q18: =F18/[1]人口!$B$40*100000 -> 40.33443697 | R18: =G18/[1]人口!$C$40*100000 -> 33.6856672 | S18: =H18/[1]人口!$D$40*100000 -> 37.52041552 | T18: =I18/[1]人口!$E$40*100000 -> 43.02548862 | U18: =J18/[1]人口!$F$40*100000 -> 39.15112334 | V18: =K18/[1]人口!$G$40*100000 -> 41.82131842 | W18: =L18/[1]人口!$H$40*100000 -> 34.06259732 | X18: =M18/[1]人口!$I$40*100000 -> 47.84336817 | Y18: =N18/[1]人口!$J$40*100000 -> 69.25425756 | Z18: =O18/[1]人口!$K$40*100000 -> 28.13815836 | AA18: =P18/[1]人口!$L$40*100000 -> 46.65934165 | AB18: =調整死亡率算出!E24 -> 17.71790055 | AC18: ='12-10 算出'!E24 -> 17.19112079 | AD18: ='12-20 算出'!E24 -> 16.53896014 | AE18: ='12-30 算出'!E24 -> 20.26208563 | AF18: ='12-40 算出'!E24 -> 18.99724614 | AG18: ='12-45 算出'!E24 -> 15.27992307 | AH18: ='12-50 算出'!E24 -> 17.10104566 | AI18: ='12-55 算出'!E24 -> 18.8485628 | AJ18: ='12-60 算出'!E24 -> 21.74201764 | AK18: ='12-70 算出'!E24 -> 12.55641568 | AL18: ='12-75 算出'!E24 -> 18.38071476
E19: 女 | F19: ='12 区別，5歳階級別，選択死因分類別死亡数'!F21 -> 233 | G19: ='12-10'!F21 -> 27 | H19: ='12-20'!F21 -> 27 | I19: ='12-30'!F21 -> 32 | J19: ='12-40'!F21 -> 21 | K19: ='12-45'!F21 -> 10 | L19: ='12-50'!F21 -> 30 | M19: ='12-55'!F21 -> 13 | N19: ='12-60'!F21 -> 18 | O19: ='12-70'!F21 -> 31 | P19: ='12-75'!F21 -> 24 | Q19: =F19/[1]人口!$B$41*100000 -> 22.16748534 | R19: =G19/[1]人口!$C$41*100000 -> 20.28900561 | S19: =H19/[1]人口!$D$41*100000 -> 17.74121481 | T19: =I19/[1]人口!$E$41*100000 -> 23.07536993 | U19: =J19/[1]人口!$F$41*100000 -> 18.7697753 | V19: =K19/[1]人口!$G$41*100000 -> 14.52580509 | W19: =L19/[1]人口!$H$41*100000 -> 25.14879705 | X19: =M19/[1]人口!$I$41*100000 -> 21.33665966 | Y19: =N19/[1]人口!$J$41*100000 -> 24.22056865 | Z19: =O19/[1]人口!$K$41*100000 -> 26.62475415 | AA19: =P19/[1]人口!$L$41*100000 -> 31.80703731 | AB19: =調整死亡率算出!E25 -> 7.468471464 | AC19: ='12-10 算出'!E25 -> 7.524796395 | AD19: ='12-20 算出'!E25 -> 6.399050627 | AE19: ='12-30 算出'!E25 -> 7.700413436 | AF19: ='12-40 算出'!E25 -> 7.383830613 | AG19: ='12-45 算出'!E25 -> 3.759264124 | AH19: ='12-50 算出'!E25 -> 10.41584043 | AI19: ='12-55 算出'!E25 -> 6.085768189 | AJ19: ='12-60 算出'!E25 -> 6.752366903 | AK19: ='12-70 算出'!E25 -> 7.623884129 | AL19: ='12-75 算出'!E25 -> 9.830302359
A20: Se 05 | C20: 結腸の悪性新生物 | E20: 総数 | F20: ='12 区別，5歳階級別，選択死因分類別死亡数'!F22 -> 587 | G20: ='12-10'!F22 -> 61 | H20: ='12-20'!F22 -> 85 | I20: ='12-30'!F22 -> 73 | J20: ='12-40'!F22 -> 66 | K20: ='12-45'!F22 -> 50 | L20: ='12-50'!F22 -> 69 | M20: ='12-55'!F22 -> 30 | N20: ='12-60'!F22 -> 48 | O20: ='12-70'!F22 -> 69 | P20: ='12-75'!F22 -> 36 | Q20: =F20/[1]人口!$B$39*100000 -> 29.85849009 | R20: =G20/[1]人口!$C$39*100000 -> 25.1115612 | S20: =H20/[1]人口!$D$39*100000 -> 29.50221093 | T20: =I20/[1]人口!$E$39*100000 -> 27.6323609 | U20: =J20/[1]人口!$F$39*100000 -> 31.20626395 | V20: =K20/[1]人口!$G$39*100000 -> 39.61023528 | W20: =L20/[1]人口!$H$39*100000 -> 31.07520199 | X20: =M20/[1]人口!$I$39*100000 -> 26.02540079 | Y20: =N20/[1]人口!$J$39*100000 -> 34.82020442 | Z20: =O20/[1]人口!$K$39*100000 -> 31.95302442 | AA20: =P20/[1]人口!$L$39*100000 -> 25.37105163 | AB20: =調整死亡率算出!E26 -> 11.51959675 | AC20: ='12-10 算出'!E26 -> 9.517891122 | AD20: ='12-20 算出'!E26 -> 11.52540803 | AE20: ='12-30 算出'!E26 -> 12.10248997 | AF20: ='12-40 算出'!E26 -> 13.99935709 | AG20: ='12-45 算出'!E26 -> 13.18260463 | AH20: ='12-50 算出'!E26 -> 12.76568864 | AI20: ='12-55 算出'!E26 -> 9.997061529 | AJ20: ='12-60 算出'!E26 -> 11.19312624 | AK20: ='12-70 算出'!E26 -> 12.64327517 | AL20: ='12-75 算出'!E26 -> 7.584907716
E21: 男 | F21: ='12 区別，5歳階級別，選択死因分類別死亡数'!F23 -> 295 | G21: ='12-10'!F23 -> 22 | H21: ='12-20'!F23 -> 41 | I21: ='12-30'!F23 -> 36 | J21: ='12-40'!F23 -> 34 | K21: ='12-45'!F23 -> 25 | L21: ='12-50'!F23 -> 36 | M21: ='12-55'!F23 -> 15 | N21: ='12-60'!F23 -> 27 | O21: ='12-70'!F23 -> 35 | P21: ='12-75'!F23 -> 24 | Q21: =F21/[1]人口!$B$40*100000 -> 32.2456881 | R21: =G21/[1]人口!$C$40*100000 -> 20.02931563 | S21: =H21/[1]人口!$D$40*100000 -> 30.1634713 | T21: =I21/[1]人口!$E$40*100000 -> 28.68365908 | U21: =J21/[1]人口!$F$40*100000 -> 34.13174855 | V21: =K21/[1]人口!$G$40*100000 -> 43.56387335 | W21: =L21/[1]人口!$H$40*100000 -> 35.03581439 | X21: =M21/[1]人口!$I$40*100000 -> 27.60194318 | Y21: =N21/[1]人口!$J$40*100000 -> 42.49693078 | Z21: =O21/[1]人口!$K$40*100000 -> 35.17269795 | AA21: =P21/[1]人口!$L$40*100000 -> 36.12336128 | AB21: =調整死亡率算出!E27 -> 14.73925972 | AC21: ='12-10 算出'!E27 -> 10.20766546 | AD21: ='12-20 算出'!E27 -> 13.9507959 | AE21: ='12-30 算出'!E27 -> 15.24765182 | AF21: ='12-40 算出'!E27 -> 18.83310892 | AG21: ='12-45 算出'!E27 -> 18.28259658 | AH21: ='12-50 算出'!E27 -> 16.04874441 | AI21: ='12-55 算出'!E27 -> 11.68178832 | AJ21: ='12-60 算出'!E27 -> 15.05258417 | AK21: ='12-70 算出'!E27 -> 14.92491089 | AL21: ='12-75 算出'!E27 -> 12.95851863
E22: 女 | F22: ='12 区別，5歳階級別，選択死因分類別死亡数'!F24 -> 292 | G22: ='12-10'!F24 -> 39 | H22: ='12-20'!F24 -> 44 | I22: ='12-30'!F24 -> 37 | J22: ='12-40'!F24 -> 32 | K22: ='12-45'!F24 -> 25 | L22: ='12-50'!F24 -> 33 | M22: ='12-55'!F24 -> 15 | N22: ='12-60'!F24 -> 21 | O22: ='12-70'!F24 -> 34 | P22: ='12-75'!F24 -> 12 | Q22: =F22/[1]人口!$B$41*100000 -> 27.78071124 | R22: =G22/[1]人口!$C$41*100000 -> 29.30634144 | S22: =H22/[1]人口!$D$41*100000 -> 28.91160933 | T22: =I22/[1]人口!$E$41*100000 -> 26.68089648 | U22: =J22/[1]人口!$F$41*100000 -> 28.60156236 | V22: =K22/[1]人口!$G$41*100000 -> 36.31451273 | W22: =L22/[1]人口!$H$41*100000 -> 27.66367675 | X22: =M22/[1]人口!$I$41*100000 -> 24.61922269 | Y22: =N22/[1]人口!$J$41*100000 -> 28.25733009 | Z22: =O22/[1]人口!$K$41*100000 -> 29.20134326 | AA22: =P22/[1]人口!$L$41*100000 -> 15.90351865 | AB22: =調整死亡率算出!E28 -> 9.094957943 | AC22: ='12-10 算出'!E28 -> 8.804426406 | AD22: ='12-20 算出'!E28 -> 9.709730275 | AE22: ='12-30 算出'!E28 -> 9.278721409 | AF22: ='12-40 算出'!E28 -> 10.09749403 | AG22: ='12-45 算出'!E28 -> 9.091183244 | AH22: ='12-50 算出'!E28 -> 10.68067766 | AI22: ='12-55 算出'!E28 -> 8.744339658 | AJ22: ='12-60 算出'!E28 -> 8.413818848 | AK22: ='12-70 算出'!E28 -> 11.18027085 | AL22: ='12-75 算出'!E28 -> 3.537462703
A23: Se 06 | C23: 直腸Ｓ状結腸移行部及び直腸の悪性新生物 | E23: 総数 | F23: ='12 区別，5歳階級別，選択死因分類別死亡数'!F25 -> 244 | G23: ='12-10'!F25 -> 19 | H23: ='12-20'!F25 -> 44 | I23: ='12-30'!F25 -> 35 | J23: ='12-40'!F25 -> 26 | K23: ='12-45'!F25 -> 21 | L23: ='12-50'!F25 -> 27 | M23: ='12-55'!F25 -> 14 | N23: ='12-60'!F25 -> 23 | O23: ='12-70'!F25 -> 24 | P23: ='12-75'!F25 -> 11 | Q23: =F23/[1]人口!$B$39*100000 -> 12.41136556 | R23: =G23/[1]人口!$C$39*100000 -> 7.821633816 | S23: =H23/[1]人口!$D$39*100000 -> 15.27173272 | T23: =I23/[1]人口!$E$39*100000 -> 13.24839221 | U23: =J23/[1]人口!$F$39*100000 -> 12.29337671 | V23: =K23/[1]人口!$G$39*100000 -> 16.63629882 | W23: =L23/[1]人口!$H$39*100000 -> 12.15986165 | X23: =M23/[1]人口!$I$39*100000 -> 12.14518704 | Y23: =N23/[1]人口!$J$39*100000 -> 16.68468129 | Z23: =O23/[1]人口!$K$39*100000 -> 11.11409545 | AA23: =P23/[1]人口!$L$39*100000 -> 7.752265776 | AB23: =調整死亡率算出!E29 -> 5.826840939 | AC23: ='12-10 算出'!E29 -> 4.310823217 | AD23: ='12-20 算出'!E29 -> 7.308056151 | AE23: ='12-30 算出'!E29 -> 7.372746884 | AF23: ='12-40 算出'!E29 -> 5.978147141 | AG23: ='12-45 算出'!E29 -> 7.412400779 | AH23: ='12-50 算出'!E29 -> 5.774954995 | AI23: ='12-55 算出'!E29 -> 4.394202691 | AJ23: ='12-60 算出'!E29 -> 5.649330183 | AK23: ='12-70 算出'!E29 -> 5.032572176 | AL23: ='12-75 算出'!E29 -> 3.383449584
E24: 男 | F24: ='12 区別，5歳階級別，選択死因分類別死亡数'!F26 -> 143 | G24: ='12-10'!F26 -> 11 | H24: ='12-20'!F26 -> 29 | I24: ='12-30'!F26 -> 22 | J24: ='12-40'!F26 -> 15 | K24: ='12-45'!F26 -> 11 | L24: ='12-50'!F26 -> 15 | M24: ='12-55'!F26 -> 7 | N24: ='12-60'!F26 -> 17 | O24: ='12-70'!F26 -> 12 | P24: ='12-75'!F26 -> 4 | Q24: =F24/[1]人口!$B$40*100000 -> 15.63096067 | R24: =G24/[1]人口!$C$40*100000 -> 10.01465782 | S24: =H24/[1]人口!$D$40*100000 -> 21.33513824 | T24: =I24/[1]人口!$E$40*100000 -> 17.52890277 | U24: =J24/[1]人口!$F$40*100000 -> 15.05812436 | V24: =K24/[1]人口!$G$40*100000 -> 19.16810427 | W24: =L24/[1]人口!$H$40*100000 -> 14.598256 | X24: =M24/[1]人口!$I$40*100000 -> 12.88090682 | Y24: =N24/[1]人口!$J$40*100000 -> 26.75732679 | Z24: =O24/[1]人口!$K$40*100000 -> 12.05921072 | AA24: =P24/[1]人口!$L$40*100000 -> 6.020560213 | AB24: =調整死亡率算出!E30 -> 8.286806102 | AC24: ='12-10 算出'!E30 -> 6.24532252 | AD24: ='12-20 算出'!E30 -> 10.81869979 | AE24: ='12-30 算出'!E30 -> 10.39040923 | AF24: ='12-40 算出'!E30 -> 8.573868967 | AG24: ='12-45 算出'!E30 -> 10.23523531 | AH24: ='12-50 算出'!E30 -> 9.252102345 | AI24: ='12-55 算出'!E30 -> 4.874495944 | AJ24: ='12-60 算出'!E30 -> 10.52466195 | AK24: ='12-70 算出'!E30 -> 6.445945429 | AL24: ='12-75 算出'!E30 -> 2.217718425
E25: 女 | F25: ='12 区別，5歳階級別，選択死因分類別死亡数'!F27 -> 101 | G25: ='12-10'!F27 -> 8 | H25: ='12-20'!F27 -> 15 | I25: ='12-30'!F27 -> 13 | J25: ='12-40'!F27 -> 11 | K25: ='12-45'!F27 -> 10 | L25: ='12-50'!F27 -> 12 | M25: ='12-55'!F27 -> 7 | N25: ='12-60'!F27 -> 6 | O25: ='12-70'!F27 -> 12 | P25: ='12-75'!F27 -> 7 | Q25: =F25/[1]人口!$B$41*100000 -> 9.609081629 | R25: =G25/[1]人口!$C$41*100000 -> 6.011557219 | S25: =H25/[1]人口!$D$41*100000 -> 9.856230452 | T25: =I25/[1]人口!$E$41*100000 -> 9.374369033 | U25: =J25/[1]人口!$F$41*100000 -> 9.831787061 | V25: =K25/[1]人口!$G$41*100000 -> 14.52580509 | W25: =L25/[1]人口!$H$41*100000 -> 10.05951882 | X25: =M25/[1]人口!$I$41*100000 -> 11.48897059 | Y25: =N25/[1]人口!$J$41*100000 -> 8.073522882 | Z25: =O25/[1]人口!$K$41*100000 -> 10.30635645 | AA25: =P25/[1]人口!$L$41*100000 -> 9.277052548 | AB25: =調整死亡率算出!E31 -> 3.797034314 | AC25: ='12-10 算出'!E31 -> 2.789155917 | AD25: ='12-20 算出'!E31 -> 4.541317893 | AE25: ='12-30 算出'!E31 -> 4.875008491 | AF25: ='12-40 算出'!E31 -> 3.6937714 | AG25: ='12-45 算出'!E31 -> 4.934521116 | AH25: ='12-50 算出'!E31 -> 2.710344353 | AI25: ='12-55 算出'!E31 -> 4.10289412 | AJ25: ='12-60 算出'!E31 -> 1.650947395 | AK25: ='12-70 算出'!E31 -> 3.945017231 | AL25: ='12-75 算出'!E31 -> 4.485336548
A26: Se 07 | C26: 肝及び肝内胆管の悪性新生物 | E26: 総数 | F26: ='12 区別，5歳階級別，選択死因分類別死亡数'!F28 -> 403 | G26: ='12-10'!F28 -> 40 | H26: ='12-20'!F28 -> 71 | I26: ='12-30'!F28 -> 48 | J26: ='12-40'!F28 -> 52 | K26: ='12-45'!F28 -> 26 | L26: ='12-50'!F28 -> 38 | M26: ='12-55'!F28 -> 19 | N26: ='12-60'!F28 -> 37 | O26: ='12-70'!F28 -> 32 | P26: ='12-75'!F28 -> 40 | Q26: =F26/[1]人口!$B$39*100000 -> 20.49909967 | R26: =G26/[1]人口!$C$39*100000 -> 16.46659751 | S26: =H26/[1]人口!$D$39*100000 -> 24.64302325 | T26: =I26/[1]人口!$E$39*100000 -> 18.16922361 | U26: =J26/[1]人口!$F$39*100000 -> 24.58675341 | V26: =K26/[1]人口!$G$39*100000 -> 20.59732235 | W26: =L26/[1]人口!$H$39*100000 -> 17.11387936 | X26: =M26/[1]人口!$I$39*100000 -> 16.48275383 | Y26: =N26/[1]人口!$J$39*100000 -> 26.84057424 | Z26: =O26/[1]人口!$K$39*100000 -> 14.81879394 | AA26: =P26/[1]人口!$L$39*100000 -> 28.19005737 | AB26: =調整死亡率算出!E32 -> 8.066631467 | AC26: ='12-10 算出'!E32 -> 8.017180514 | AD26: ='12-20 算出'!E32 -> 9.670320015 | AE26: ='12-30 算出'!E32 -> 6.833245274 | AF26: ='12-40 算出'!E32 -> 10.0852038 | AG26: ='12-45 算出'!E32 -> 8.393195143 | AH26: ='12-50 算出'!E32 -> 6.657841469 | AI26: ='12-55 算出'!E32 -> 7.375145171 | AJ26: ='12-60 算出'!E32 -> 6.966692695 | AK26: ='12-70 算出'!E32 -> 6.105356218 | AL26: ='12-75 算出'!E32 -> 10.40984244
E27: 男 | F27: ='12 区別，5歳階級別，選択死因分類別死亡数'!F29 -> 266 | G27: ='12-10'!F29 -> 21 | H27: ='12-20'!F29 -> 43 | I27: ='12-30'!F29 -> 35 | J27: ='12-40'!F29 -> 35 | K27: ='12-45'!F29 -> 20 | L27: ='12-50'!F29 -> 26 | M27: ='12-55'!F29 -> 12 | N27: ='12-60'!F29 -> 27 | O27: ='12-70'!F29 -> 22 | P27: ='12-75'!F29 -> 25 | Q27: =F27/[1]人口!$B$40*100000 -> 29.07577299 | R27: =G27/[1]人口!$C$40*100000 -> 19.1188922 | S27: =H27/[1]人口!$D$40*100000 -> 31.63486014 | T27: =I27/[1]人口!$E$40*100000 -> 27.88689077 | U27: =J27/[1]人口!$F$40*100000 -> 35.13562351 | V27: =K27/[1]人口!$G$40*100000 -> 34.85109868 | W27: =L27/[1]人口!$H$40*100000 -> 25.30364372 | X27: =M27/[1]人口!$I$40*100000 -> 22.08155454 | Y27: =N27/[1]人口!$J$40*100000 -> 42.49693078 | Z27: =O27/[1]人口!$K$40*100000 -> 22.108553 | AA27: =P27/[1]人口!$L$40*100000 -> 37.62850133 | AB27: =調整死亡率算出!E33 -> 13.21661565 | AC27: ='12-10 算出'!E33 -> 10.97870684 | AD27: ='12-20 算出'!E33 -> 14.05008581 | AE27: ='12-30 算出'!E33 -> 12.4558801 | AF27: ='12-40 算出'!E33 -> 17.28342802 | AG27: ='12-45 算出'!E33 -> 15.87187369 | AH27: ='12-50 算出'!E33 -> 12.0299487 | AI27: ='12-55 算出'!E33 -> 10.00381143 | AJ27: ='12-60 算出'!E33 -> 13.30930425 | AK27: ='12-70 算出'!E33 -> 10.27258415 | AL27: ='12-75 算出'!E33 -> 16.43089737
E28: 女 | F28: ='12 区別，5歳階級別，選択死因分類別死亡数'!F30 -> 137 | G28: ='12-10'!F30 -> 19 | H28: ='12-20'!F30 -> 28 | I28: ='12-30'!F30 -> 13 | J28: ='12-40'!F30 -> 17 | K28: ='12-45'!F30 -> 6 | L28: ='12-50'!F30 -> 12 | M28: ='12-55'!F30 -> 7 | N28: ='12-60'!F30 -> 10 | O28: ='12-70'!F30 -> 10 | P28: ='12-75'!F30 -> 15 | Q28: =F28/[1]人口!$B$41*100000 -> 13.03410082 | R28: =G28/[1]人口!$C$41*100000 -> 14.27744839 | S28: =H28/[1]人口!$D$41*100000 -> 18.39829684 | T28: =I28/[1]人口!$E$41*100000 -> 9.374369033 | U28: =J28/[1]人口!$F$41*100000 -> 15.19458 | V28: =K28/[1]人口!$G$41*100000 -> 8.715483056 | W28: =L28/[1]人口!$H$41*100000 -> 10.05951882 | X28: =M28/[1]人口!$I$41*100000 -> 11.48897059 | Y28: =N28/[1]人口!$J$41*100000 -> 13.45587147 | Z28: =O28/[1]人口!$K$41*100000 -> 8.588630371 | AA28: =P28/[1]人口!$L$41*100000 -> 19.87939832 | AB28: =調整死亡率算出!E34 -> 4.225523159 | AC28: ='12-10 算出'!E34 -> 5.868044513 | AD28: ='12-20 算出'!E34 -> 6.544263829 | AE28: ='12-30 算出'!E34 -> 2.822214414 | AF28: ='12-40 算出'!E34 -> 4.743603439 | AG28: ='12-45 算出'!E34 -> 2.345037753 | AH28: ='12-50 算出'!E34 -> 2.572618022 | AI28: ='12-55 算出'!E34 -> 5.397256985 | AJ28: ='12-60 算出'!E34 -> 2.28642888 | AK28: ='12-70 算出'!E34 -> 2.943465091 | AL28: ='12-75 算出'!E34 -> 5.674392364
A29: Se 08 | C29: 胆のう及びその他の胆道の悪性新生物 | E29: 総数 | F29: ='12 区別，5歳階級別，選択死因分類別死亡数'!F31 -> 263 | G29: ='12-10'!F31 -> 28 | H29: ='12-20'!F31 -> 37 | I29: ='12-30'!F31 -> 32 | J29: ='12-40'!F31 -> 28 | K29: ='12-45'!F31 -> 12 | L29: ='12-50'!F31 -> 23 | M29: ='12-55'!F31 -> 18 | N29: ='12-60'!F31 -> 26 | O29: ='12-70'!F31 -> 39 | P29: ='12-75'!F31 -> 20 | Q29: =F29/[1]人口!$B$39*100000 -> 13.37782435 | R29: =G29/[1]人口!$C$39*100000 -> 11.52661825 | S29: =H29/[1]人口!$D$39*100000 -> 12.84213888 | T29: =I29/[1]人口!$E$39*100000 -> 12.11281574 | U29: =J29/[1]人口!$F$39*100000 -> 13.23902107 | V29: =K29/[1]人口!$G$39*100000 -> 9.506456468 | W29: =L29/[1]人口!$H$39*100000 -> 10.35840066 | X29: =M29/[1]人口!$I$39*100000 -> 15.61524047 | Y29: =N29/[1]人口!$J$39*100000 -> 18.86094406 | Z29: =O29/[1]人口!$K$39*100000 -> 18.06040511 | AA29: =P29/[1]人口!$L$39*100000 -> 14.09502868 | AB29: =調整死亡率算出!E35 -> 4.584381719 | AC29: ='12-10 算出'!E35 -> 4.115111397 | AD29: ='12-20 算出'!E35 -> 4.534797731 | AE29: ='12-30 算出'!E35 -> 4.471280069 | AF29: ='12-40 算出'!E35 -> 4.446179241 | AG29: ='12-45 算出'!E35 -> 2.928018158 | AH29: ='12-50 算出'!E35 -> 4.009853159 | AI29: ='12-55 算出'!E35 -> 5.397258004 | AJ29: ='12-60 算出'!E35 -> 5.560872561 | AK29: ='12-70 算出'!E35 -> 6.780957112 | AL29: ='12-75 算出'!E35 -> 3.620173334
E30: 男 | F30: ='12 区別，5歳階級別，選択死因分類別死亡数'!F32 -> 127 | G30: ='12-10'!F32 -> 15 | H30: ='12-20'!F32 -> 15 | I30: ='12-30'!F32 -> 17 | J30: ='12-40'!F32 -> 15 | K30: ='12-45'!F32 -> 5 | L30: ='12-50'!F32 -> 9 | M30: ='12-55'!F32 -> 12 | N30: ='12-60'!F32 -> 14 | O30: ='12-70'!F32 -> 16 | P30: ='12-75'!F32 -> 9 | Q30: =F30/[1]人口!$B$40*100000 -> 13.88204199 | R30: =G30/[1]人口!$C$40*100000 -> 13.65635157 | S30: =H30/[1]人口!$D$40*100000 -> 11.03541633 | T30: =I30/[1]人口!$E$40*100000 -> 13.54506123 | U30: =J30/[1]人口!$F$40*100000 -> 15.05812436 | V30: =K30/[1]人口!$G$40*100000 -> 8.71277467 | W30: =L30/[1]人口!$H$40*100000 -> 8.758953597 | X30: =M30/[1]人口!$I$40*100000 -> 22.08155454 | Y30: =N30/[1]人口!$J$40*100000 -> 22.03544559 | Z30: =O30/[1]人口!$K$40*100000 -> 16.07894763 | AA30: =P30/[1]人口!$L$40*100000 -> 13.54626048 | AB30: =調整死亡率算出!E36 -> 5.79671673 | AC30: ='12-10 算出'!E36 -> 5.634789456 | AD30: ='12-20 算出'!E36 -> 4.974190642 | AE30: ='12-30 算出'!E36 -> 5.922551259 | AF30: ='12-40 算出'!E36 -> 7.020163805 | AG30: ='12-45 算出'!E36 -> 2.773911861 | AH30: ='12-50 算出'!E36 -> 4.570311697 | AI30: ='12-55 算出'!E36 -> 8.609730345 | AJ30: ='12-60 算出'!E36 -> 8.818406096 | AK30: ='12-70 算出'!E36 -> 6.789273487 | AL30: ='12-75 算出'!E36 -> 4.378970712
E31: 女 | F31: ='12 区別，5歳階級別，選択死因分類別死亡数'!F33 -> 136 | G31: ='12-10'!F33 -> 13 | H31: ='12-20'!F33 -> 22 | I31: ='12-30'!F33 -> 15 | J31: ='12-40'!F33 -> 13 | K31: ='12-45'!F33 -> 7 | L31: ='12-50'!F33 -> 14 | M31: ='12-55'!F33 -> 6 | N31: ='12-60'!F33 -> 12 | O31: ='12-70'!F33 -> 23 | P31: ='12-75'!F33 -> 11 | Q31: =F31/[1]人口!$B$41*100000 -> 12.9389614 | R31: =G31/[1]人口!$C$41*100000 -> 9.76878048 | S31: =H31/[1]人口!$D$41*100000 -> 14.45580466 | T31: =I31/[1]人口!$E$41*100000 -> 10.81657965 | U31: =J31/[1]人口!$F$41*100000 -> 11.61938471 | V31: =K31/[1]人口!$G$41*100000 -> 10.16806356 | W31: =L31/[1]人口!$H$41*100000 -> 11.73610529 | X31: =M31/[1]人口!$I$41*100000 -> 9.847689076 | Y31: =N31/[1]人口!$J$41*100000 -> 16.14704576 | Z31: =O31/[1]人口!$K$41*100000 -> 19.75384985 | AA31: =P31/[1]人口!$L$41*100000 -> 14.57822543 | AB31: =調整死亡率算出!E37 -> 3.752967466 | AC31: ='12-10 算出'!E37 -> 3.445953541 | AD31: ='12-20 算出'!E37 -> 4.183533637 | AE31: ='12-30 算出'!E37 -> 3.647221692 | AF31: ='12-40 算出'!E37 -> 2.404871396 | AG31: ='12-45 算出'!E37 -> 3.159115478 | AH31: ='12-50 算出'!E37 -> 3.378645482 | AI31: ='12-55 算出'!E37 -> 3.021511612 | AJ31: ='12-60 算出'!E37 -> 2.744081538 | AK31: ='12-70 算出'!E37 -> 7.025700244 | AL31: ='12-75 算出'!E37 -> 3.171160254
A32: Se 09 | C32: 膵の悪性新生物 | E32: 総数 | F32: ='12 区別，5歳階級別，選択死因分類別死亡数'!F34 -> 634 | G32: ='12-10'!F34 -> 82 | H32: ='12-20'!F34 -> 96 | I32: ='12-30'!F34 -> 76 | J32: ='12-40'!F34 -> 76 | K32: ='12-45'!F34 -> 46 | L32: ='12-50'!F34 -> 53 | M32: ='12-55'!F34 -> 40 | N32: ='12-60'!F34 -> 60 | O32: ='12-70'!F34 -> 60 | P32: ='12-75'!F34 -> 45 | Q32: =F32/[1]人口!$B$39*100000 -> 32.24920394 | R32: =G32/[1]人口!$C$39*100000 -> 33.75652489 | S32: =H32/[1]人口!$D$39*100000 -> 33.32014411 | T32: =I32/[1]人口!$E$39*100000 -> 28.76793738 | U32: =J32/[1]人口!$F$39*100000 -> 35.93448576 | V32: =K32/[1]人口!$G$39*100000 -> 36.44141646 | W32: =L32/[1]人口!$H$39*100000 -> 23.86935805 | X32: =M32/[1]人口!$I$39*100000 -> 34.70053439 | Y32: =N32/[1]人口!$J$39*100000 -> 43.52525553 | Z32: =O32/[1]人口!$K$39*100000 -> 27.78523863 | AA32: =P32/[1]人口!$L$39*100000 -> 31.71381454 | AB32: =調整死亡率算出!E38 -> 13.06293335 | AC32: ='12-10 算出'!E38 -> 15.62235236 | AD32: ='12-20 算出'!E38 -> 12.97034765 | AE32: ='12-30 算出'!E38 -> 11.77747505 | AF32: ='12-40 算出'!E38 -> 16.46742429 | AG32: ='12-45 算出'!E38 -> 15.02522421 | AH32: ='12-50 算出'!E38 -> 10.73386786 | AI32: ='12-55 算出'!E38 -> 13.15980955 | AJ32: ='12-60 算出'!E38 -> 14.04526737 | AK32: ='12-70 算出'!E38 -> 10.98211493 | AL32: ='12-75 算出'!E38 -> 10.8404314
E33: 男 | F33: ='12 区別，5歳階級別，選択死因分類別死亡数'!F35 -> 320 | G33: ='12-10'!F35 -> 39 | H33: ='12-20'!F35 -> 44 | I33: ='12-30'!F35 -> 45 | J33: ='12-40'!F35 -> 40 | K33: ='12-45'!F35 -> 23 | L33: ='12-50'!F35 -> 28 | M33: ='12-55'!F35 -> 24 | N33: ='12-60'!F35 -> 27 | O33: ='12-70'!F35 -> 28 | P33: ='12-75'!F35 -> 22 | Q33: =F33/[1]人口!$B$40*100000 -> 34.97837353 | R33: =G33/[1]人口!$C$40*100000 -> 35.50651408 | S33: =H33/[1]人口!$D$40*100000 -> 32.37055457 | T33: =I33/[1]人口!$E$40*100000 -> 35.85457385 | U33: =J33/[1]人口!$F$40*100000 -> 40.15499829 | V33: =K33/[1]人口!$G$40*100000 -> 40.07876348 | W33: =L33/[1]人口!$H$40*100000 -> 27.25007786 | X33: =M33/[1]人口!$I$40*100000 -> 44.16310908 | Y33: =N33/[1]人口!$J$40*100000 -> 42.49693078 | Z33: =O33/[1]人口!$K$40*100000 -> 28.13815836 | AA33: =P33/[1]人口!$L$40*100000 -> 33.11308117 | AB33: =調整死亡率算出!E39 -> 16.48795556 | AC33: ='12-10 算出'!E39 -> 21.22113621 | AD33: ='12-20 算出'!E39 -> 14.12824061 | AE33: ='12-30 算出'!E39 -> 17.80386848 | AF33: ='12-40 算出'!E39 -> 22.62254283 | AG33: ='12-45 算出'!E39 -> 16.81419375 | AH33: ='12-50 算出'!E39 -> 14.07506337 | AI33: ='12-55 算出'!E39 -> 18.90601447 | AJ33: ='12-60 算出'!E39 -> 15.52032433 | AK33: ='12-70 算出'!E39 -> 11.90832771 | AL33: ='12-75 算出'!E39 -> 12.95685536
E34: 女 | F34: ='12 区別，5歳階級別，選択死因分類別死亡数'!F36 -> 314 | G34: ='12-10'!F36 -> 43 | H34: ='12-20'!F36 -> 52 | I34: ='12-30'!F36 -> 31 | J34: ='12-40'!F36 -> 36 | K34: ='12-45'!F36 -> 23 | L34: ='12-50'!F36 -> 25 | M34: ='12-55'!F36 -> 16 | N34: ='12-60'!F36 -> 33 | O34: ='12-70'!F36 -> 32 | P34: ='12-75'!F36 -> 23 | Q34: =F34/[1]人口!$B$41*100000 -> 29.87377853 | R34: =G34/[1]人口!$C$41*100000 -> 32.31212005 | S34: =H34/[1]人口!$D$41*100000 -> 34.16826557 | T34: =I34/[1]人口!$E$41*100000 -> 22.35426462 | U34: =J34/[1]人口!$F$41*100000 -> 32.17675766 | V34: =K34/[1]人口!$G$41*100000 -> 33.40935171 | W34: =L34/[1]人口!$H$41*100000 -> 20.95733087 | X34: =M34/[1]人口!$I$41*100000 -> 26.2605042 | Y34: =N34/[1]人口!$J$41*100000 -> 44.40437585 | Z34: =O34/[1]人口!$K$41*100000 -> 27.48361719 | AA34: =P34/[1]人口!$L$41*100000 -> 30.48174409 | AB34: =調整死亡率算出!E40 -> 10.43451288 | AC34: ='12-10 算出'!E40 -> 11.00886877 | AD34: ='12-20 算出'!E40 -> 12.27810312 | AE34: ='12-30 算出'!E40 -> 7.299074814 | AF34: ='12-40 算出'!E40 -> 10.77231711 | AG34: ='12-45 算出'!E40 -> 13.88808809 | AH34: ='12-50 算出'!E40 -> 8.341398947 | AI34: ='12-55 算出'!E40 -> 8.784999217 | AJ34: ='12-60 算出'!E40 -> 12.96443807 | AK34: ='12-70 算出'!E40 -> 10.44462138 | AL34: ='12-75 算出'!E40 -> 9.417131966
A35: Se 10 | C35: 気管、気管支及び肺の悪性新生物 | E35: 総数 | F35: ='12 区別，5歳階級別，選択死因分類別死亡数'!F37 -> 1317 | G35: ='12-10'!F37 -> 139 | H35: ='12-20'!F37 -> 208 | I35: ='12-30'!F37 -> 183 | J35: ='12-40'!F37 -> 155 | K35: ='12-45'!F37 -> 89 | L35: ='12-50'!F37 -> 128 | M35: ='12-55'!F37 -> 74 | N35: ='12-60'!F37 -> 101 | O35: ='12-70'!F37 -> 132 | P35: ='12-75'!F37 -> 108 | Q35: =F35/[1]人口!$B$39*100000 -> 66.99085425 | R35: =G35/[1]人口!$C$39*100000 -> 57.22142634 | S35: =H35/[1]人口!$D$39*100000 -> 72.19364557 | T35: =I35/[1]人口!$E$39*100000 -> 69.270165 | U35: =J35/[1]人口!$F$39*100000 -> 73.28743806 | V35: =K35/[1]人口!$G$39*100000 -> 70.50621881 | W35: =L35/[1]人口!$H$39*100000 -> 57.64675152 | X35: =M35/[1]人口!$I$39*100000 -> 64.19598862 | Y35: =N35/[1]人口!$J$39*100000 -> 73.26751347 | Z35: =O35/[1]人口!$K$39*100000 -> 61.12752498 | AA35: =P35/[1]人口!$L$39*100000 -> 76.11315489 | AB35: =調整死亡率算出!E41 -> 26.84742842 | AC35: ='12-10 算出'!E41 -> 25.86863035 | AD35: ='12-20 算出'!E41 -> 29.26454095 | AE35: ='12-30 算出'!E41 -> 29.45082043 | AF35: ='12-40 算出'!E41 -> 31.4781336 | AG35: ='12-45 算出'!E41 -> 27.10299254 | AH35: ='12-50 算出'!E41 -> 25.7352436 | AI35: ='12-55 算出'!E41 -> 23.81631421 | AJ35: ='12-60 算出'!E41 -> 23.10374072 | AK35: ='12-70 算出'!E41 -> 24.10611499 | AL35: ='12-75 算出'!E41 -> 27.22751981
E36: 男 | F36: ='12 区別，5歳階級別，選択死因分類別死亡数'!F38 -> 876 | G36: ='12-10'!F38 -> 84 | H36: ='12-20'!F38 -> 139 | I36: ='12-30'!F38 -> 132 | J36: ='12-40'!F38 -> 100 | K36: ='12-45'!F38 -> 59 | L36: ='12-50'!F38 -> 83 | M36: ='12-55'!F38 -> 51 | N36: ='12-60'!F38 -> 60 | O36: ='12-70'!F38 -> 88 | P36: ='12-75'!F38 -> 80 | Q36: =F36/[1]人口!$B$40*100000 -> 95.75329753 | R36: =G36/[1]人口!$C$40*100000 -> 76.47556879 | S36: =H36/[1]人口!$D$40*100000 -> 102.2615247 | T36: =I36/[1]人口!$E$40*100000 -> 105.1734166 | U36: =J36/[1]人口!$F$40*100000 -> 100.3874957 | V36: =K36/[1]人口!$G$40*100000 -> 102.8107411 | W36: =L36/[1]人口!$H$40*100000 -> 80.77701651 | X36: =M36/[1]人口!$I$40*100000 -> 93.8466068 | Y36: =N36/[1]人口!$J$40*100000 -> 94.43762395 | Z36: =O36/[1]人口!$K$40*100000 -> 88.43421198 | AA36: =P36/[1]人口!$L$40*100000 -> 120.4112043 | AB36: =調整死亡率算出!E42 -> 42.59570346 | AC36: ='12-10 算出'!E42 -> 39.51528568 | AD36: ='12-20 算出'!E42 -> 46.67741681 | AE36: ='12-30 算出'!E42 -> 50.59824472 | AF36: ='12-40 算出'!E42 -> 49.5661709 | AG36: ='12-45 算出'!E42 -> 41.70926239 | AH36: ='12-50 算出'!E42 -> 39.97373005 | AI36: ='12-55 算出'!E42 -> 39.00053583 | AJ36: ='12-60 算出'!E42 -> 32.0105805 | AK36: ='12-70 算出'!E42 -> 36.87642932 | AL36: ='12-75 算出'!E42 -> 46.693418
E37: 女 | F37: ='12 区別，5歳階級別，選択死因分類別死亡数'!F39 -> 441 | G37: ='12-10'!F39 -> 55 | H37: ='12-20'!F39 -> 69 | I37: ='12-30'!F39 -> 51 | J37: ='12-40'!F39 -> 55 | K37: ='12-45'!F39 -> 30 | L37: ='12-50'!F39 -> 45 | M37: ='12-55'!F39 -> 23 | N37: ='12-60'!F39 -> 41 | O37: ='12-70'!F39 -> 44 | P37: ='12-75'!F39 -> 28 | Q37: =F37/[1]人口!$B$41*100000 -> 41.95648513 | R37: =G37/[1]人口!$C$41*100000 -> 41.32945588 | S37: =H37/[1]人口!$D$41*100000 -> 45.33866008 | T37: =I37/[1]人口!$E$41*100000 -> 36.77637082 | U37: =J37/[1]人口!$F$41*100000 -> 49.15893531 | V37: =K37/[1]人口!$G$41*100000 -> 43.57741528 | W37: =L37/[1]人口!$H$41*100000 -> 37.72319557 | X37: =M37/[1]人口!$I$41*100000 -> 37.74947479 | Y37: =N37/[1]人口!$J$41*100000 -> 55.16907303 | Z37: =O37/[1]人口!$K$41*100000 -> 37.78997363 | AA37: =P37/[1]人口!$L$41*100000 -> 37.10821019 | AB37: =調整死亡率算出!E43 -> 15.5842909 | AC37: ='12-10 算出'!E43 -> 17.44042905 | AD37: ='12-20 算出'!E43 -> 16.53128244 | AE37: ='12-30 算出'!E43 -> 14.11014002 | AF37: ='12-40 算出'!E43 -> 18.26600572 | AG37: ='12-45 算出'!E43 -> 16.46793389 | AH37: ='12-50 算出'!E43 -> 15.60499113 | AI37: ='12-55 算出'!E43 -> 12.67458655 | AJ37: ='12-60 算出'!E43 -> 16.48158389 | AK37: ='12-70 算出'!E43 -> 15.5286631 | AL37: ='12-75 算出'!E43 -> 12.79687925
A38: Se 11 | C38: 乳房の悪性新生物 | E38: 総数 | F38: ='12 区別，5歳階級別，選択死因分類別死亡数'!F40 -> 273 | G38: ='12-10'!F40 -> 40 | H38: ='12-20'!F40 -> 32 | I38: ='12-30'!F40 -> 39 | J38: ='12-40'!F40 -> 31 | K38: ='12-45'!F40 -> 20 | L38: ='12-50'!F40 -> 33 | M38: ='12-55'!F40 -> 8 | N38: ='12-60'!F40 -> 22 | O38: ='12-70'!F40 -> 34 | P38: ='12-75'!F40 -> 14 | Q38: =F38/[1]人口!$B$39*100000 -> 13.88648687 | R38: =G38/[1]人口!$C$39*100000 -> 16.46659751 | S38: =H38/[1]人口!$D$39*100000 -> 11.1067147 | T38: =I38/[1]人口!$E$39*100000 -> 14.76249418 | U38: =J38/[1]人口!$F$39*100000 -> 14.65748761 | V38: =K38/[1]人口!$G$39*100000 -> 15.84409411 | W38: =L38/[1]人口!$H$39*100000 -> 14.86205313 | X38: =M38/[1]人口!$I$39*100000 -> 6.940106878 | Y38: =N38/[1]人口!$J$39*100000 -> 15.95926036 | Z38: =O38/[1]人口!$K$39*100000 -> 15.74496856 | AA38: =P38/[1]人口!$L$39*100000 -> 9.866520078 | AB38: =調整死亡率算出!E44 -> 7.987945104 | AC38: ='12-10 算出'!E44 -> 9.341760321 | AD38: ='12-20 算出'!E44 -> 4.934861625 | AE38: ='12-30 算出'!E44 -> 8.937971101 | AF38: ='12-40 算出'!E44 -> 9.126724368 | AG38: ='12-45 算出'!E44 -> 8.57662651 | AH38: ='12-50 算出'!E44 -> 9.598208354 | AI38: ='12-55 算出'!E44 -> 4.174228446 | AJ38: ='12-60 算出'!E44 -> 10.08600675 | AK38: ='12-70 算出'!E44 -> 8.915935472 | AL38: ='12-75 算出'!E44 -> 5.156888167
E39: 男 | F39: ='12 区別，5歳階級別，選択死因分類別死亡数'!F41 -> 1 | G39: ='12-10'!F41 -> 0 | H39: ='12-20'!F41 -> 0 | I39: ='12-30'!F41 -> 0 | J39: ='12-40'!F41 -> 0 | K39: ='12-45'!F41 -> 1 | L39: ='12-50'!F41 -> 0 | M39: ='12-55'!F41 -> 0 | N39: ='12-60'!F41 -> 0 | O39: ='12-70'!F41 -> 0 | P39: ='12-75'!F41 -> 0 | Q39: =F39/[1]人口!$B$40*100000 -> 0.1093074173 | R39: =G39/[1]人口!$C$40*100000 -> 0 | S39: =H39/[1]人口!$D$40*100000 -> 0 | T39: =I39/[1]人口!$E$40*100000 -> 0 | U39: =J39/[1]人口!$F$40*100000 -> 0 | V39: =K39/[1]人口!$G$40*100000 -> 1.742554934 | W39: =L39/[1]人口!$H$40*100000 -> 0 | X39: =M39/[1]人口!$I$40*100000 -> 0 | Y39: =N39/[1]人口!$J$40*100000 -> 0 | Z39: =O39/[1]人口!$K$40*100000 -> 0 | AA39: =P39/[1]人口!$L$40*100000 -> 0 | AB39: =調整死亡率算出!E45 -> 0.05328898973 | AC39: ='12-10 算出'!E45 -> 0 | AD39: ='12-20 算出'!E45 -> 0 | AE39: ='12-30 算出'!E45 -> 0 | AF39: ='12-40 算出'!E45 -> 0 | AG39: ='12-45 算出'!E45 -> 0.7096648662 | AH39: ='12-50 算出'!E45 -> 0 | AI39: ='12-55 算出'!E45 -> 0 | AJ39: ='12-60 算出'!E45 -> 0 | AK39: ='12-70 算出'!E45 -> 0 | AL39: ='12-75 算出'!E45 -> 0
E40: 女 | F40: ='12 区別，5歳階級別，選択死因分類別死亡数'!F42 -> 272 | G40: ='12-10'!F42 -> 40 | H40: ='12-20'!F42 -> 32 | I40: ='12-30'!F42 -> 39 | J40: ='12-40'!F42 -> 31 | K40: ='12-45'!F42 -> 19 | L40: ='12-50'!F42 -> 33 | M40: ='12-55'!F42 -> 8 | N40: ='12-60'!F42 -> 22 | O40: ='12-70'!F42 -> 34 | P40: ='12-75'!F42 -> 14 | Q40: =F40/[1]人口!$B$41*100000 -> 25.8779228 | R40: =G40/[1]人口!$C$41*100000 -> 30.05778609 | S40: =H40/[1]人口!$D$41*100000 -> 21.02662496 | T40: =I40/[1]人口!$E$41*100000 -> 28.1231071 | U40: =J40/[1]人口!$F$41*100000 -> 27.70776354 | V40: =K40/[1]人口!$G$41*100000 -> 27.59902968 | W40: =L40/[1]人口!$H$41*100000 -> 27.66367675 | X40: =M40/[1]人口!$I$41*100000 -> 13.1302521 | Y40: =N40/[1]人口!$J$41*100000 -> 29.60291723 | Z40: =O40/[1]人口!$K$41*100000 -> 29.20134326 | AA40: =P40/[1]人口!$L$41*100000 -> 18.5541051 | AB40: =調整死亡率算出!E46 -> 14.71399573 | AC40: ='12-10 算出'!E46 -> 16.54563294 | AD40: ='12-20 算出'!E46 -> 8.92943392 | AE40: ='12-30 算出'!E46 -> 16.80069239 | AF40: ='12-40 算出'!E46 -> 17.24405375 | AG40: ='12-45 算出'!E46 -> 15.06622495 | AH40: ='12-50 算出'!E46 -> 17.66566166 | AI40: ='12-55 算出'!E46 -> 7.860099689 | AJ40: ='12-60 算出'!E46 -> 18.85862426 | AK40: ='12-70 算出'!E46 -> 16.36791576 | AL40: ='12-75 算出'!E46 -> 9.603401883
A41: Se 12 | C41: 子宮の悪性新生物 | E41: 総数 | F41: ='12 区別，5歳階級別，選択死因分類別死亡数'!F43 -> 107 | G41: ='12-10'!F43 -> 15 | H41: ='12-20'!F43 -> 11 | I41: ='12-30'!F43 -> 8 | J41: ='12-40'!F43 -> 17 | K41: ='12-45'!F43 -> 8 | L41: ='12-50'!F43 -> 14 | M41: ='12-55'!F43 -> 7 | N41: ='12-60'!F43 -> 8 | O41: ='12-70'!F43 -> 9 | P41: ='12-75'!F43 -> 10 | Q41: =F41/[1]人口!$B$39*100000 -> 5.442688994 | R41: =G41/[1]人口!$C$39*100000 -> 6.174974065 | S41: =H41/[1]人口!$D$39*100000 -> 3.817933179 | T41: =I41/[1]人口!$E$39*100000 -> 3.028203934 | U41: =J41/[1]人口!$F$39*100000 -> 8.037977078 | V41: =K41/[1]人口!$G$39*100000 -> 6.337637646 | W41: =L41/[1]人口!$H$39*100000 -> 6.305113447 | X41: =M41/[1]人口!$I$39*100000 -> 6.072593518 | Y41: =N41/[1]人口!$J$39*100000 -> 5.803367404 | Z41: =O41/[1]人口!$K$39*100000 -> 4.167785794 | AA41: =P41/[1]人口!$L$39*100000 -> 7.047514342 | AB41: =調整死亡率算出!E47 -> 2.908003922 | AC41: ='12-10 算出'!E47 -> 3.342361329 | AD41: ='12-20 算出'!E47 -> 2.39516414 | AE41: ='12-30 算出'!E47 -> 1.940886851 | AF41: ='12-40 算出'!E47 -> 3.884809978 | AG41: ='12-45 算出'!E47 -> 3.298050293 | AH41: ='12-50 算出'!E47 -> 2.801118807 | AI41: ='12-55 算出'!E47 -> 2.64118633 | AJ41: ='12-60 算出'!E47 -> 3.078947218 | AK41: ='12-70 算出'!E47 -> 2.431284447 | AL41: ='12-75 算出'!E47 -> 4.262600964
E42: 男 | F42: ='12 区別，5歳階級別，選択死因分類別死亡数'!F44 -> ・ | G42: ='12-10'!F44 -> ・ | H42: ='12-10'!G44 -> ・ | I42: ='12-10'!H44 -> ・ | J42: ='12-10'!I44 -> ・ | K42: ='12-10'!J44 -> ・ | L42: ='12-10'!K44 -> ・ | M42: ='12-10'!L44 -> ・ | N42: ='12-10'!M44 -> ・ | O42: ='12-10'!N44 -> ・ | P42: ='12-10'!O44 -> ・ | Q42: ='12 区別，5歳階級別，選択死因分類別死亡数'!Q44 -> ・ | R42: ='12-10'!Q44 -> ・ | S42: ='12-20'!Q44 -> ・ | T42: ='12-30'!Q44 -> ・ | U42: ='12-40'!Q44 -> ・ | V42: ='12-45'!Q44 -> ・ | W42: ='12-50'!Q44 -> ・ | X42: ='12-55'!Q44 -> ・ | Y42: ='12-60'!Q44 -> ・ | Z42: ='12-70'!Q44 -> ・ | AA42: ='12-75'!Q44 -> ・ | AB42: ・ | AC42: ・ | AD42: ・ | AE42: ・ | AF42: ・ | AG42: ・ | AH42: ・ | AI42: ・ | AJ42: ・ | AK42: ・ | AL42: ・
E43: 女 | F43: ='12 区別，5歳階級別，選択死因分類別死亡数'!F45 -> 107 | G43: ='12-10'!F45 -> 15 | H43: ='12-20'!F45 -> 11 | I43: ='12-30'!F45 -> 8 | J43: ='12-40'!F45 -> 17 | K43: ='12-45'!F45 -> 8 | L43: ='12-50'!F45 -> 14 | M43: ='12-55'!F45 -> 7 | N43: ='12-60'!F45 -> 8 | O43: ='12-70'!F45 -> 9 | P43: ='12-75'!F45 -> 10 | Q43: =F43/[1]人口!$B$41*100000 -> 10.17991816 | R43: =G43/[1]人口!$C$41*100000 -> 11.27166979 | S43: =H43/[1]人口!$D$41*100000 -> 7.227902331 | T43: =I43/[1]人口!$E$41*100000 -> 5.768842482 | U43: =J43/[1]人口!$F$41*100000 -> 15.19458 | V43: =K43/[1]人口!$G$41*100000 -> 11.62064407 | W43: =L43/[1]人口!$H$41*100000 -> 11.73610529 | X43: =M43/[1]人口!$I$41*100000 -> 11.48897059 | Y43: =N43/[1]人口!$J$41*100000 -> 10.76469718 | Z43: =O43/[1]人口!$K$41*100000 -> 7.729767334 | AA43: =P43/[1]人口!$L$41*100000 -> 13.25293221 | AB43: =調整死亡率算出!E49 -> 5.326178043 | AC43: ='12-10 算出'!E49 -> 5.786294377 | AD43: ='12-20 算出'!E49 -> 4.486887738 | AE43: ='12-30 算出'!E49 -> 3.624925569 | AF43: ='12-40 算出'!E49 -> 7.101998656 | AG43: ='12-45 算出'!E49 -> 5.923918086 | AH43: ='12-50 算出'!E49 -> 4.893493008 | AI43: ='12-55 算出'!E49 -> 4.888259456 | AJ43: ='12-60 算出'!E49 -> 5.737997613 | AK43: ='12-70 算出'!E49 -> 4.514378749 | AL43: ='12-75 算出'!E49 -> 7.965958754
A44: Se 13 | C44: 白 血 病 | E44: 総数 | F44: ='12 区別，5歳階級別，選択死因分類別死亡数'!F46 -> 136 | G44: ='12-10'!F46 -> 17 | H44: ='12-20'!F46 -> 14 | I44: ='12-30'!F46 -> 18 | J44: ='12-40'!F46 -> 17 | K44: ='12-45'!F46 -> 6 | L44: ='12-50'!F46 -> 16 | M44: ='12-55'!F46 -> 7 | N44: ='12-60'!F46 -> 13 | O44: ='12-70'!F46 -> 20 | P44: ='12-75'!F46 -> 8 | Q44: =F44/[1]人口!$B$39*100000 -> 6.91781031 | R44: =G44/[1]人口!$C$39*100000 -> 6.99830394 | S44: =H44/[1]人口!$D$39*100000 -> 4.859187683 | T44: =I44/[1]人口!$E$39*100000 -> 6.813458852 | U44: =J44/[1]人口!$F$39*100000 -> 8.037977078 | V44: =K44/[1]人口!$G$39*100000 -> 4.753228234 | W44: =L44/[1]人口!$H$39*100000 -> 7.205843939 | X44: =M44/[1]人口!$I$39*100000 -> 6.072593518 | Y44: =N44/[1]人口!$J$39*100000 -> 9.430472031 | Z44: =O44/[1]人口!$K$39*100000 -> 9.26174621 | AA44: =P44/[1]人口!$L$39*100000 -> 5.638011473 | AB44: =調整死亡率算出!E50 -> 3.229067954 | AC44: ='12-10 算出'!E50 -> 3.179673622 | AD44: ='12-20 算出'!E50 -> 2.187584198 | AE44: ='12-30 算出'!E50 -> 3.442871118 | AF44: ='12-40 算出'!E50 -> 3.914827874 | AG44: ='12-45 算出'!E50 -> 3.19158682 | AH44: ='12-50 算出'!E50 -> 3.929372954 | AI44: ='12-55 算出'!E50 -> 2.874831259 | AJ44: ='12-60 算出'!E50 -> 3.323735958 | AK44: ='12-70 算出'!E50 -> 4.111918736 | AL44: ='12-75 算出'!E50 -> 2.299655267
E45: 男 | F45: ='12 区別，5歳階級別，選択死因分類別死亡数'!F47 -> 81 | G45: ='12-10'!F47 -> 12 | H45: ='12-20'!F47 -> 7 | I45: ='12-30'!F47 -> 11 | J45: ='12-40'!F47 -> 12 | K45: ='12-45'!F47 -> 3 | L45: ='12-50'!F47 -> 13 | M45: ='12-55'!F47 -> 4 | N45: ='12-60'!F47 -> 6 | O45: ='12-70'!F47 -> 8 | P45: ='12-75'!F47 -> 5 | Q45: =F45/[1]人口!$B$40*100000 -> 8.853900799 | R45: =G45/[1]人口!$C$40*100000 -> 10.92508126 | S45: =H45/[1]人口!$D$40*100000 -> 5.149860954 | T45: =I45/[1]人口!$E$40*100000 -> 8.764451385 | U45: =J45/[1]人口!$F$40*100000 -> 12.04649949 | V45: =K45/[1]人口!$G$40*100000 -> 5.227664802 | W45: =L45/[1]人口!$H$40*100000 -> 12.65182186 | X45: =M45/[1]人口!$I$40*100000 -> 7.36051818 | Y45: =N45/[1]人口!$J$40*100000 -> 9.443762395 | Z45: =O45/[1]人口!$K$40*100000 -> 8.039473816 | AA45: =P45/[1]人口!$L$40*100000 -> 7.525700266 | AB45: =調整死亡率算出!E51 -> 4.471763027 | AC45: ='12-10 算出'!E51 -> 5.168769488 | AD45: ='12-20 算出'!E51 -> 2.272249986 | AE45: ='12-30 算出'!E51 -> 4.409091032 | AF45: ='12-40 算出'!E51 -> 6.839952737 | AG45: ='12-45 算出'!E51 -> 5.236203976 | AH45: ='12-50 算出'!E51 -> 7.80674191 | AI45: ='12-55 算出'!E51 -> 2.771344585 | AJ45: ='12-60 算出'!E51 -> 3.923397157 | AK45: ='12-70 算出'!E51 -> 4.167310315 | AL45: ='12-75 算出'!E51 -> 3.017328532
E46: 女 | F46: ='12 区別，5歳階級別，選択死因分類別死亡数'!F48 -> 55 | G46: ='12-10'!F48 -> 5 | H46: ='12-20'!F48 -> 7 | I46: ='12-30'!F48 -> 7 | J46: ='12-40'!F48 -> 5 | K46: ='12-45'!F48 -> 3 | L46: ='12-50'!F48 -> 3 | M46: ='12-55'!F48 -> 3 | N46: ='12-60'!F48 -> 7 | O46: ='12-70'!F48 -> 12 | P46: ='12-75'!F48 -> 3 | Q46: =F46/[1]人口!$B$41*100000 -> 5.232668214 | R46: =G46/[1]人口!$C$41*100000 -> 3.757223262 | S46: =H46/[1]人口!$D$41*100000 -> 4.599574211 | T46: =I46/[1]人口!$E$41*100000 -> 5.047737172 | U46: =J46/[1]人口!$F$41*100000 -> 4.468994119 | V46: =K46/[1]人口!$G$41*100000 -> 4.357741528 | W46: =L46/[1]人口!$H$41*100000 -> 2.514879705 | X46: =M46/[1]人口!$I$41*100000 -> 4.923844538 | Y46: =N46/[1]人口!$J$41*100000 -> 9.419110029 | Z46: =O46/[1]人口!$K$41*100000 -> 10.30635645 | AA46: =P46/[1]人口!$L$41*100000 -> 3.975879663 | AB46: =調整死亡率算出!E52 -> 2.292831934 | AC46: ='12-10 算出'!E52 -> 2.212588433 | AD46: ='12-20 算出'!E52 -> 2.224240405 | AE46: ='12-30 算出'!E52 -> 2.92896607 | AF46: ='12-40 算出'!E52 -> 1.446654245 | AG46: ='12-45 算出'!E52 -> 1.219020078 | AH46: ='12-50 算出'!E52 -> 0.7964499602 | AI46: ='12-55 算出'!E52 -> 3.2254637 | AJ46: ='12-60 算出'!E52 -> 2.738480858 | AK46: ='12-70 算出'!E52 -> 3.96958447 | AL46: ='12-75 算出'!E52 -> 1.771782995
A47: Se 14 | B47: 糖 尿 病 | E47: 総数 | F47: ='12 区別，5歳階級別，選択死因分類別死亡数'!F49 -> 241 | G47: ='12-10'!F49 -> 26 | H47: ='12-20'!F49 -> 49 | I47: ='12-30'!F49 -> 26 | J47: ='12-40'!F49 -> 28 | K47: ='12-45'!F49 -> 18 | L47: ='12-50'!F49 -> 16 | M47: ='12-55'!F49 -> 12 | N47: ='12-60'!F49 -> 24 | O47: ='12-70'!F49 -> 23 | P47: ='12-75'!F49 -> 19 | Q47: =F47/[1]人口!$B$39*100000 -> 12.2587668 | R47: =G47/[1]人口!$C$39*100000 -> 10.70328838 | S47: =H47/[1]人口!$D$39*100000 -> 17.00715689 | T47: =I47/[1]人口!$E$39*100000 -> 9.841662787 | U47: =J47/[1]人口!$F$39*100000 -> 13.23902107 | V47: =K47/[1]人口!$G$39*100000 -> 14.2596847 | W47: =L47/[1]人口!$H$39*100000 -> 7.205843939 | X47: =M47/[1]人口!$I$39*100000 -> 10.41016032 | Y47: =N47/[1]人口!$J$39*100000 -> 17.41010221 | Z47: =O47/[1]人口!$K$39*100000 -> 10.65100814 | AA47: =P47/[1]人口!$L$39*100000 -> 13.39027725 | AB47: =調整死亡率算出!E53 -> 4.374212876 | AC47: ='12-10 算出'!E53 -> 5.162304621 | AD47: ='12-20 算出'!E53 -> 5.337601452 | AE47: ='12-30 算出'!E53 -> 3.238483695 | AF47: ='12-40 算出'!E53 -> 5.142382623 | AG47: ='12-45 算出'!E53 -> 4.157024101 | AH47: ='12-50 算出'!E53 -> 2.287841591 | AI47: ='12-55 算出'!E53 -> 3.68623478 | AJ47: ='12-60 算出'!E53 -> 6.272679676 | AK47: ='12-70 算出'!E53 -> 3.877891629 | AL47: ='12-75 算出'!E53 -> 5.19156129
E48: 男 | F48: ='12 区別，5歳階級別，選択死因分類別死亡数'!F50 -> 119 | G48: ='12-10'!F50 -> 19 | H48: ='12-20'!F50 -> 20 | I48: ='12-30'!F50 -> 8 | J48: ='12-40'!F50 -> 13 | K48: ='12-45'!F50 -> 8 | L48: ='12-50'!F50 -> 8 | M48: ='12-55'!F50 -> 8 | N48: ='12-60'!F50 -> 13 | O48: ='12-70'!F50 -> 14 | P48: ='12-75'!F50 -> 8 | Q48: =F48/[1]人口!$B$40*100000 -> 13.00758266 | R48: =G48/[1]人口!$C$40*100000 -> 17.29804532 | S48: =H48/[1]人口!$D$40*100000 -> 14.71388844 | T48: =I48/[1]人口!$E$40*100000 -> 6.374146462 | U48: =J48/[1]人口!$F$40*100000 -> 13.05037445 | V48: =K48/[1]人口!$G$40*100000 -> 13.94043947 | W48: =L48/[1]人口!$H$40*100000 -> 7.785736531 | X48: =M48/[1]人口!$I$40*100000 -> 14.72103636 | Y48: =N48/[1]人口!$J$40*100000 -> 20.46148519 | Z48: =O48/[1]人口!$K$40*100000 -> 14.06907918 | AA48: =P48/[1]人口!$L$40*100000 -> 12.04112043 | AB48: =調整死亡率算出!E54 -> 6.010049152 | AC48: ='12-10 算出'!E54 -> 10.22292557 | AD48: ='12-20 算出'!E54 -> 5.847483828 | AE48: ='12-30 算出'!E54 -> 3.017669652 | AF48: ='12-40 算出'!E54 -> 6.418734457 | AG48: ='12-45 算出'!E54 -> 5.40385817 | AH48: ='12-50 算出'!E54 -> 3.314136857 | AI48: ='12-55 算出'!E54 -> 6.849326155 | AJ48: ='12-60 算出'!E54 -> 8.955299256 | AK48: ='12-70 算出'!E54 -> 6.112636635 | AL48: ='12-75 算出'!E54 -> 6.071637189
E49: 女 | F49: ='12 区別，5歳階級別，選択死因分類別死亡数'!F51 -> 122 | G49: ='12-10'!F51 -> 7 | H49: ='12-20'!F51 -> 29 | I49: ='12-30'!F51 -> 18 | J49: ='12-40'!F51 -> 15 | K49: ='12-45'!F51 -> 10 | L49: ='12-50'!F51 -> 8 | M49: ='12-55'!F51 -> 4 | N49: ='12-60'!F51 -> 11 | O49: ='12-70'!F51 -> 9 | P49: ='12-75'!F51 -> 11 | Q49: =F49/[1]人口!$B$41*100000 -> 11.60700949 | R49: =G49/[1]人口!$C$41*100000 -> 5.260112566 | S49: =H49/[1]人口!$D$41*100000 -> 19.05537887 | T49: =I49/[1]人口!$E$41*100000 -> 12.97989558 | U49: =J49/[1]人口!$F$41*100000 -> 13.40698236 | V49: =K49/[1]人口!$G$41*100000 -> 14.52580509 | W49: =L49/[1]人口!$H$41*100000 -> 6.70634588 | X49: =M49/[1]人口!$I$41*100000 -> 6.56512605 | Y49: =N49/[1]人口!$J$41*100000 -> 14.80145862 | Z49: =O49/[1]人口!$K$41*100000 -> 7.729767334 | AA49: =P49/[1]人口!$L$41*100000 -> 14.57822543 | AB49: =調整死亡率算出!E55 -> 3.044153926 | AC49: ='12-10 算出'!E55 -> 1.276467694 | AD49: ='12-20 算出'!E55 -> 5.076473536 | AE49: ='12-30 算出'!E55 -> 3.306352864 | AF49: ='12-40 算出'!E55 -> 4.007351784 | AG49: ='12-45 算出'!E55 -> 3.182089195 | AH49: ='12-50 算出'!E55 -> 1.517877643 | AI49: ='12-55 算出'!E55 -> 1.096735334 | AJ49: ='12-60 算出'!E55 -> 3.807155688 | AK49: ='12-70 算出'!E55 -> 2.263296459 | AL49: ='12-75 算出'!E55 -> 4.135647056
A50: Se 15 | B50: 高血圧性疾患 | E50: 総数 | F50: ='12 区別，5歳階級別，選択死因分類別死亡数'!F52 -> 94 | G50: ='12-10'!F52 -> 16 | H50: ='12-20'!F52 -> 9 | I50: ='12-30'!F52 -> 7 | J50: ='12-40'!F52 -> 10 | K50: ='12-45'!F52 -> 8 | L50: ='12-50'!F52 -> 7 | M50: ='12-55'!F52 -> 7 | N50: ='12-60'!F52 -> 22 | O50: ='12-70'!F52 -> 2 | P50: ='12-75'!F52 -> 6 | Q50: =F50/[1]人口!$B$39*100000 -> 4.781427714 | R50: =G50/[1]人口!$C$39*100000 -> 6.586639003 | S50: =H50/[1]人口!$D$39*100000 -> 3.12376351 | T50: =I50/[1]人口!$E$39*100000 -> 2.649678443 | U50: =J50/[1]人口!$F$39*100000 -> 4.72822181 | V50: =K50/[1]人口!$G$39*100000 -> 6.337637646 | W50: =L50/[1]人口!$H$39*100000 -> 3.152556724 | X50: =M50/[1]人口!$I$39*100000 -> 6.072593518 | Y50: =N50/[1]人口!$J$39*100000 -> 15.95926036 | Z50: =O50/[1]人口!$K$39*100000 -> 0.926174621 | AA50: =P50/[1]人口!$L$39*100000 -> 4.228508605 | AB50: =調整死亡率算出!E56 -> 1.288067989 | AC50: ='12-10 算出'!E56 -> 2.418299331 | AD50: ='12-20 算出'!E56 -> 0.7310665297 | AE50: ='12-30 算出'!E56 -> 0.7614829977 | AF50: ='12-40 算出'!E56 -> 1.137329901 | AG50: ='12-45 算出'!E56 -> 1.462868333 | AH50: ='12-50 算出'!E56 -> 0.7197112279 | AI50: ='12-55 算出'!E56 -> 1.523314896 | AJ50: ='12-60 算出'!E56 -> 3.495291743 | AK50: ='12-70 算出'!E56 -> 0.3279367932 | AL50: ='12-75 算出'!E56 -> 0.9919026104
E51: 男 | F51: ='12 区別，5歳階級別，選択死因分類別死亡数'!F53 -> 36 | G51: ='12-10'!F53 -> 8 | H51: ='12-20'!F53 -> 4 | I51: ='12-30'!F53 -> 2 | J51: ='12-40'!F53 -> 3 | K51: ='12-45'!F53 -> 0 | L51: ='12-50'!F53 -> 3 | M51: ='12-55'!F53 -> 3 | N51: ='12-60'!F53 -> 11 | O51: ='12-70'!F53 -> 0 | P51: ='12-75'!F53 -> 2 | Q51: =F51/[1]人口!$B$40*100000 -> 3.935067022 | R51: =G51/[1]人口!$C$40*100000 -> 7.283387504 | S51: =H51/[1]人口!$D$40*100000 -> 2.942777688 | T51: =I51/[1]人口!$E$40*100000 -> 1.593536615 | U51: =J51/[1]人口!$F$40*100000 -> 3.011624872 | V51: =K51/[1]人口!$G$40*100000 -> 0 | W51: =L51/[1]人口!$H$40*100000 -> 2.919651199 | X51: =M51/[1]人口!$I$40*100000 -> 5.520388635 | Y51: =N51/[1]人口!$J$40*100000 -> 17.31356439 | Z51: =O51/[1]人口!$K$40*100000 -> 0 | AA51: =P51/[1]人口!$L$40*100000 -> 3.010280107 | AB51: =調整死亡率算出!E57 -> 1.526666313 | AC51: ='12-10 算出'!E57 -> 3.797182835 | AD51: ='12-20 算出'!E57 -> 0.7852704891 | AE51: ='12-30 算出'!E57 -> 0.8344941504 | AF51: ='12-40 算出'!E57 -> 0.9814818805 | AG51: ='12-45 算出'!E57 -> 0 | AH51: ='12-50 算出'!E57 -> 0.9847277745 | AI51: ='12-55 算出'!E57 -> 2.029416747 | AJ51: ='12-60 算出'!E57 -> 5.410328834 | AK51: ='12-70 算出'!E57 -> 0 | AL51: ='12-75 算出'!E57 -> 0.9681966037
E52: 女 | F52: ='12 区別，5歳階級別，選択死因分類別死亡数'!F54 -> 58 | G52: ='12-10'!F54 -> 8 | H52: ='12-20'!F54 -> 5 | I52: ='12-30'!F54 -> 5 | J52: ='12-40'!F54 -> 7 | K52: ='12-45'!F54 -> 8 | L52: ='12-50'!F54 -> 4 | M52: ='12-55'!F54 -> 4 | N52: ='12-60'!F54 -> 11 | O52: ='12-70'!F54 -> 2 | P52: ='12-75'!F54 -> 4 | Q52: =F52/[1]人口!$B$41*100000 -> 5.51808648 | R52: =G52/[1]人口!$C$41*100000 -> 6.011557219 | S52: =H52/[1]人口!$D$41*100000 -> 3.285410151 | T52: =I52/[1]人口!$E$41*100000 -> 3.605526551 | U52: =J52/[1]人口!$F$41*100000 -> 6.256591766 | V52: =K52/[1]人口!$G$41*100000 -> 11.62064407 | W52: =L52/[1]人口!$H$41*100000 -> 3.35317294 | X52: =M52/[1]人口!$I$41*100000 -> 6.56512605 | Y52: =N52/[1]人口!$J$41*100000 -> 14.80145862 | Z52: =O52/[1]人口!$K$41*100000 -> 1.717726074 | AA52: =P52/[1]人口!$L$41*100000 -> 5.301172885 | AB52: =調整死亡率算出!E58 -> 1.080154394 | AC52: ='12-10 算出'!E58 -> 1.376402454 | AD52: ='12-20 算出'!E58 -> 0.8405136066 | AE52: ='12-30 算出'!E58 -> 0.5946732682 | AF52: ='12-40 算出'!E58 -> 1.290758991 | AG52: ='12-45 算出'!E58 -> 2.397621945 | AH52: ='12-50 算出'!E58 -> 0.5480628273 | AI52: ='12-55 算出'!E58 -> 1.096735334 | AJ52: ='12-60 算出'!E58 -> 1.841094276 | AK52: ='12-70 算出'!E58 -> 0.548814358 | AL52: ='12-75 算出'!E58 -> 0.9841401761
A53: Se 16 | B53: 心疾患（高血圧性を除く） | E53: 総数 | F53: ='12 区別，5歳階級別，選択死因分類別死亡数'!F55 -> 2540 | G53: ='12-10'!F55 -> 290 | H53: ='12-20'!F55 -> 358 | I53: ='12-30'!F55 -> 295 | J53: ='12-40'!F55 -> 242 | K53: ='12-45'!F55 -> 140 | L53: ='12-50'!F55 -> 270 | M53: ='12-55'!F55 -> 144 | N53: ='12-60'!F55 -> 220 | O53: ='12-70'!F55 -> 324 | P53: ='12-75'!F55 -> 257 | Q53: =F53/[1]人口!$B$39*100000 -> 129.2002808 | R53: =G53/[1]人口!$C$39*100000 -> 119.3828319 | S53: =H53/[1]人口!$D$39*100000 -> 124.2563707 | T53: =I53/[1]人口!$E$39*100000 -> 111.6650201 | U53: =J53/[1]人口!$F$39*100000 -> 114.4229678 | V53: =K53/[1]人口!$G$39*100000 -> 110.9086588 | W53: =L53/[1]人口!$H$39*100000 -> 121.5986165 | X53: =M53/[1]人口!$I$39*100000 -> 124.9219238 | Y53: =N53/[1]人口!$J$39*100000 -> 159.5926036 | Z53: =O53/[1]人口!$K$39*100000 -> 150.0402886 | AA53: =P53/[1]人口!$L$39*100000 -> 181.1211186 | AB53: =調整死亡率算出!E59 -> 38.44473907 | AC53: ='12-10 算出'!E59 -> 41.1570746 | AD53: ='12-20 算出'!E59 -> 39.91447858 | AE53: ='12-30 算出'!E59 -> 36.77582696 | AF53: ='12-40 算出'!E59 -> 37.41664717 | AG53: ='12-45 算出'!E59 -> 28.9669243 | AH53: ='12-50 算出'!E59 -> 36.74269521 | AI53: ='12-55 算出'!E59 -> 36.9539118 | AJ53: ='12-60 算出'!E59 -> 40.41984126 | AK53: ='12-70 算出'!E59 -> 42.64715234 | AL53: ='12-75 算出'!E59 -> 41.74430844
E54: 男 | F54: ='12 区別，5歳階級別，選択死因分類別死亡数'!F56 -> 1161 | G54: ='12-10'!F56 -> 122 | H54: ='12-20'!F56 -> 184 | I54: ='12-30'!F56 -> 139 | J54: ='12-40'!F56 -> 108 | K54: ='12-45'!F56 -> 58 | L54: ='12-50'!F56 -> 128 | M54: ='12-55'!F56 -> 63 | N54: ='12-60'!F56 -> 106 | O54: ='12-70'!F56 -> 156 | P54: ='12-75'!F56 -> 97 | Q54: =F54/[1]人口!$B$40*100000 -> 126.9059115 | R54: =G54/[1]人口!$C$40*100000 -> 111.0716594 | S54: =H54/[1]人口!$D$40*100000 -> 135.3677736 | T54: =I54/[1]人口!$E$40*100000 -> 110.7507948 | U54: =J54/[1]人口!$F$40*100000 -> 108.4184954 | V54: =K54/[1]人口!$G$40*100000 -> 101.0681862 | W54: =L54/[1]人口!$H$40*100000 -> 124.5717845 | X54: =M54/[1]人口!$I$40*100000 -> 115.9281613 | Y54: =N54/[1]人口!$J$40*100000 -> 166.8398023 | Z54: =O54/[1]人口!$K$40*100000 -> 156.7697394 | AA54: =P54/[1]人口!$L$40*100000 -> 145.9985852 | AB54: =調整死亡率算出!E60 -> 53.11659759 | AC54: ='12-10 算出'!E60 -> 58.53408901 | AD54: ='12-20 算出'!E60 -> 59.51512936 | AE54: ='12-30 算出'!E60 -> 50.6149143 | AF54: ='12-40 算出'!E60 -> 51.0562156 | AG54: ='12-45 算出'!E60 -> 36.34394413 | AH54: ='12-50 算出'!E60 -> 53.74400366 | AI54: ='12-55 算出'!E60 -> 43.72707349 | AJ54: ='12-60 算出'!E60 -> 58.48107719 | AK54: ='12-70 算出'!E60 -> 60.70866723 | AL54: ='12-75 算出'!E60 -> 47.69642512
E55: 女 | F55: ='12 区別，5歳階級別，選択死因分類別死亡数'!F57 -> 1379 | G55: ='12-10'!F57 -> 168 | H55: ='12-20'!F57 -> 174 | I55: ='12-30'!F57 -> 156 | J55: ='12-40'!F57 -> 134 | K55: ='12-45'!F57 -> 82 | L55: ='12-50'!F57 -> 142 | M55: ='12-55'!F57 -> 81 | N55: ='12-60'!F57 -> 114 | O55: ='12-70'!F57 -> 168 | P55: ='12-75'!F57 -> 160 | Q55: =F55/[1]人口!$B$41*100000 -> 131.197263 | R55: =G55/[1]人口!$C$41*100000 -> 126.2427016 | S55: =H55/[1]人口!$D$41*100000 -> 114.3322732 | T55: =I55/[1]人口!$E$41*100000 -> 112.4924284 | U55: =J55/[1]人口!$F$41*100000 -> 119.7690424 | V55: =K55/[1]人口!$G$41*100000 -> 119.1116018 | W55: =L55/[1]人口!$H$41*100000 -> 119.0376394 | X55: =M55/[1]人口!$I$41*100000 -> 132.9438025 | Y55: =N55/[1]人口!$J$41*100000 -> 153.3969348 | Z55: =O55/[1]人口!$K$41*100000 -> 144.2889902 | AA55: =P55/[1]人口!$L$41*100000 -> 212.0469154 | AB55: =調整死亡率算出!E61 -> 26.99829089 | AC55: ='12-10 算出'!E61 -> 27.45698572 | AD55: ='12-20 算出'!E61 -> 24.81310221 | AE55: ='12-30 算出'!E61 -> 26.05536964 | AF55: ='12-40 算出'!E61 -> 26.05514198 | AG55: ='12-45 算出'!E61 -> 23.46085707 | AH55: ='12-50 算出'!E61 -> 23.81793059 | AI55: ='12-55 算出'!E61 -> 32.28244722 | AJ55: ='12-60 算出'!E61 -> 25.47461121 | AK55: ='12-70 算出'!E61 -> 29.46341573 | AL55: ='12-75 算出'!E61 -> 37.13976951
A56: Se 17 | B56: (再掲) | C56: 急性心筋梗塞 | E56: 総数 | F56: ='12 区別，5歳階級別，選択死因分類別死亡数'!F58 -> 291 | G56: ='12-10'!F58 -> 43 | H56: ='12-20'!F58 -> 37 | I56: ='12-30'!F58 -> 44 | J56: ='12-40'!F58 -> 25 | K56: ='12-45'!F58 -> 15 | L56: ='12-50'!F58 -> 22 | M56: ='12-55'!F58 -> 9 | N56: ='12-60'!F58 -> 26 | O56: ='12-70'!F58 -> 49 | P56: ='12-75'!F58 -> 21 | Q56: =F56/[1]人口!$B$39*100000 -> 14.80207941 | R56: =G56/[1]人口!$C$39*100000 -> 17.70159232 | S56: =H56/[1]人口!$D$39*100000 -> 12.84213888 | T56: =I56/[1]人口!$E$39*100000 -> 16.65512164 | U56: =J56/[1]人口!$F$39*100000 -> 11.82055453 | V56: =K56/[1]人口!$G$39*100000 -> 11.88307059 | W56: =L56/[1]人口!$H$39*100000 -> 9.908035417 | X56: =M56/[1]人口!$I$39*100000 -> 7.807620237 | Y56: =N56/[1]人口!$J$39*100000 -> 18.86094406 | Z56: =O56/[1]人口!$K$39*100000 -> 22.69127821 | AA56: =P56/[1]人口!$L$39*100000 -> 14.79978012 | AB56: =調整死亡率算出!E62 -> 5.410984384 | AC56: ='12-10 算出'!E62 -> 7.386248951 | AD56: ='12-20 算出'!E62 -> 4.780298896 | AE56: ='12-30 算出'!E62 -> 6.222534425 | AF56: ='12-40 算出'!E62 -> 5.042091198 | AG56: ='12-45 算出'!E62 -> 3.399352209 | AH56: ='12-50 算出'!E62 -> 3.758753074 | AI56: ='12-55 算出'!E62 -> 2.12667939 | AJ56: ='12-60 算出'!E62 -> 6.836171666 | AK56: ='12-70 算出'!E62 -> 8.139851047 | AL56: ='12-75 算出'!E62 -> 4.479852569
E57: 男 | F57: ='12 区別，5歳階級別，選択死因分類別死亡数'!F59 -> 178 | G57: ='12-10'!F59 -> 25 | H57: ='12-20'!F59 -> 23 | I57: ='12-30'!F59 -> 28 | J57: ='12-40'!F59 -> 15 | K57: ='12-45'!F59 -> 9 | L57: ='12-50'!F59 -> 14 | M57: ='12-55'!F59 -> 3 | N57: ='12-60'!F59 -> 19 | O57: ='12-70'!F59 -> 34 | P57: ='12-75'!F59 -> 8 | Q57: =F57/[1]人口!$B$40*100000 -> 19.45672027 | R57: =G57/[1]人口!$C$40*100000 -> 22.76058595 | S57: =H57/[1]人口!$D$40*100000 -> 16.92097171 | T57: =I57/[1]人口!$E$40*100000 -> 22.30951262 | U57: =J57/[1]人口!$F$40*100000 -> 15.05812436 | V57: =K57/[1]人口!$G$40*100000 -> 15.68299441 | W57: =L57/[1]人口!$H$40*100000 -> 13.62503893 | X57: =M57/[1]人口!$I$40*100000 -> 5.520388635 | Y57: =N57/[1]人口!$J$40*100000 -> 29.90524758 | Z57: =O57/[1]人口!$K$40*100000 -> 34.16776372 | AA57: =P57/[1]人口!$L$40*100000 -> 12.04112043 | AB57: =調整死亡率算出!E63 -> 9.312939064 | AC57: ='12-10 算出'!E63 -> 13.62118791 | AD57: ='12-20 算出'!E63 -> 7.938899138 | AE57: ='12-30 算出'!E63 -> 11.20092577 | AF57: ='12-40 算出'!E63 -> 8.618248863 | AG57: ='12-45 算出'!E63 -> 5.736460582 | AH57: ='12-50 算出'!E63 -> 6.594737406 | AI57: ='12-55 算出'!E63 -> 2.034815841 | AJ57: ='12-60 算出'!E63 -> 13.26068537 | AK57: ='12-70 算出'!E63 -> 15.19433902 | AL57: ='12-75 算出'!E63 -> 5.028127752
E58: 女 | F58: ='12 区別，5歳階級別，選択死因分類別死亡数'!F60 -> 113 | G58: ='12-10'!F60 -> 18 | H58: ='12-20'!F60 -> 14 | I58: ='12-30'!F60 -> 16 | J58: ='12-40'!F60 -> 10 | K58: ='12-45'!F60 -> 6 | L58: ='12-50'!F60 -> 8 | M58: ='12-55'!F60 -> 6 | N58: ='12-60'!F60 -> 7 | O58: ='12-70'!F60 -> 15 | P58: ='12-75'!F60 -> 13 | Q58: =F58/[1]人口!$B$41*100000 -> 10.75075469 | R58: =G58/[1]人口!$C$41*100000 -> 13.52600374 | S58: =H58/[1]人口!$D$41*100000 -> 9.199148422 | T58: =I58/[1]人口!$E$41*100000 -> 11.53768496 | U58: =J58/[1]人口!$F$41*100000 -> 8.937988238 | V58: =K58/[1]人口!$G$41*100000 -> 8.715483056 | W58: =L58/[1]人口!$H$41*100000 -> 6.70634588 | X58: =M58/[1]人口!$I$41*100000 -> 9.847689076 | Y58: =N58/[1]人口!$J$41*100000 -> 9.419110029 | Z58: =O58/[1]人口!$K$41*100000 -> 12.88294556 | AA58: =P58/[1]人口!$L$41*100000 -> 17.22881187 | AB58: =調整死亡率算出!E64 -> 2.328200047 | AC58: ='12-10 算出'!E64 -> 2.575168996 | AD58: ='12-20 算出'!E64 -> 2.433052597 | AE58: ='12-30 算出'!E64 -> 2.356029952 | AF58: ='12-40 算出'!E64 -> 1.922124677 | AG58: ='12-45 算出'!E64 -> 1.772207746 | AH58: ='12-50 算出'!E64 -> 1.568419294 | AI58: ='12-55 算出'!E64 -> 2.014753576 | AJ58: ='12-60 算出'!E64 -> 1.589712175 | AK58: ='12-70 算出'!E64 -> 2.807965989 | AL58: ='12-75 算出'!E64 -> 4.027227712
A59: Se 18 | C59: その他の虚血性心疾患 | E59: 総数 | F59: ='12 区別，5歳階級別，選択死因分類別死亡数'!F61 -> 438 | G59: ='12-10'!F61 -> 39 | H59: ='12-20'!F61 -> 99 | I59: ='12-30'!F61 -> 41 | J59: ='12-40'!F61 -> 35 | K59: ='12-45'!F61 -> 16 | L59: ='12-50'!F61 -> 41 | M59: ='12-55'!F61 -> 28 | N59: ='12-60'!F61 -> 28 | O59: ='12-70'!F61 -> 74 | P59: ='12-75'!F61 -> 37 | Q59: =F59/[1]人口!$B$39*100000 -> 22.2794185 | R59: =G59/[1]人口!$C$39*100000 -> 16.05493257 | S59: =H59/[1]人口!$D$39*100000 -> 34.36139861 | T59: =I59/[1]人口!$E$39*100000 -> 15.51954516 | U59: =J59/[1]人口!$F$39*100000 -> 16.54877634 | V59: =K59/[1]人口!$G$39*100000 -> 12.67527529 | W59: =L59/[1]人口!$H$39*100000 -> 18.46497509 | X59: =M59/[1]人口!$I$39*100000 -> 24.29037407 | Y59: =N59/[1]人口!$J$39*100000 -> 20.31178591 | Z59: =O59/[1]人口!$K$39*100000 -> 34.26846098 | AA59: =P59/[1]人口!$L$39*100000 -> 26.07580306 | AB59: =調整死亡率算出!E65 -> 8.297783137 | AC59: ='12-10 算出'!E65 -> 7.955131592 | AD59: ='12-20 算出'!E65 -> 13.54651523 | AE59: ='12-30 算出'!E65 -> 6.034651762 | AF59: ='12-40 算出'!E65 -> 8.34874385 | AG59: ='12-45 算出'!E65 -> 3.855937127 | AH59: ='12-50 算出'!E65 -> 6.97168535 | AI59: ='12-55 算出'!E65 -> 7.603030986 | AJ59: ='12-60 算出'!E65 -> 7.219226852 | AK59: ='12-70 算出'!E65 -> 11.07379146 | AL59: ='12-75 算出'!E65 -> 6.291437463
E60: 男 | F60: ='12 区別，5歳階級別，選択死因分類別死亡数'!F62 -> 273 | G60: ='12-10'!F62 -> 23 | H60: ='12-20'!F62 -> 71 | I60: ='12-30'!F62 -> 28 | J60: ='12-40'!F62 -> 23 | K60: ='12-45'!F62 -> 8 | L60: ='12-50'!F62 -> 27 | M60: ='12-55'!F62 -> 16 | N60: ='12-60'!F62 -> 18 | O60: ='12-70'!F62 -> 40 | P60: ='12-75'!F62 -> 19 | Q60: =F60/[1]人口!$B$40*100000 -> 29.84092492 | R60: =G60/[1]人口!$C$40*100000 -> 20.93973907 | S60: =H60/[1]人口!$D$40*100000 -> 52.23430396 | T60: =I60/[1]人口!$E$40*100000 -> 22.30951262 | U60: =J60/[1]人口!$F$40*100000 -> 23.08912402 | V60: =K60/[1]人口!$G$40*100000 -> 13.94043947 | W60: =L60/[1]人口!$H$40*100000 -> 26.27686079 | X60: =M60/[1]人口!$I$40*100000 -> 29.44207272 | Y60: =N60/[1]人口!$J$40*100000 -> 28.33128718 | Z60: =O60/[1]人口!$K$40*100000 -> 40.19736908 | AA60: =P60/[1]人口!$L$40*100000 -> 28.59766101 | AB60: =調整死亡率算出!E66 -> 13.92124363 | AC60: ='12-10 算出'!E66 -> 12.70493193 | AD60: ='12-20 算出'!E66 -> 24.7400787 | AE60: ='12-30 算出'!E66 -> 10.35562658 | AF60: ='12-40 算出'!E66 -> 13.81735961 | AG60: ='12-45 算出'!E66 -> 5.278742544 | AH60: ='12-50 算出'!E66 -> 12.70350279 | AI60: ='12-55 算出'!E66 -> 11.43434839 | AJ60: ='12-60 算出'!E66 -> 13.30706042 | AK60: ='12-70 算出'!E66 -> 16.89274971 | AL60: ='12-75 算出'!E66 -> 9.419006336
E61: 女 | F61: ='12 区別，5歳階級別，選択死因分類別死亡数'!F63 -> 165 | G61: ='12-10'!F63 -> 16 | H61: ='12-20'!F63 -> 28 | I61: ='12-30'!F63 -> 13 | J61: ='12-40'!F63 -> 12 | K61: ='12-45'!F63 -> 8 | L61: ='12-50'!F63 -> 14 | M61: ='12-55'!F63 -> 12 | N61: ='12-60'!F63 -> 10 | O61: ='12-70'!F63 -> 34 | P61: ='12-75'!F63 -> 18 | Q61: =F61/[1]人口!$B$41*100000 -> 15.69800464 | R61: =G61/[1]人口!$C$41*100000 -> 12.02311444 | S61: =H61/[1]人口!$D$41*100000 -> 18.39829684 | T61: =I61/[1]人口!$E$41*100000 -> 9.374369033 | U61: =J61/[1]人口!$F$41*100000 -> 10.72558589 | V61: =K61/[1]人口!$G$41*100000 -> 11.62064407 | W61: =L61/[1]人口!$H$41*100000 -> 11.73610529 | X61: =M61/[1]人口!$I$41*100000 -> 19.69537815 | Y61: =N61/[1]人口!$J$41*100000 -> 13.45587147 | Z61: =O61/[1]人口!$K$41*100000 -> 29.20134326 | AA61: =P61/[1]人口!$L$41*100000 -> 23.85527798 | AB61: =調整死亡率算出!E67 -> 3.996462441 | AC61: ='12-10 算出'!E67 -> 4.433197481 | AD61: ='12-20 算出'!E67 -> 4.904667979 | AE61: ='12-30 算出'!E67 -> 2.979346836 | AF61: ='12-40 算出'!E67 -> 3.724364434 | AG61: ='12-45 算出'!E67 -> 2.854500908 | AH61: ='12-50 算出'!E67 -> 2.789110804 | AI61: ='12-55 算出'!E67 -> 4.784852381 | AJ61: ='12-60 算出'!E67 -> 2.075818711 | AK61: ='12-70 算出'!E67 -> 6.57070897 | AL61: ='12-75 算出'!E67 -> 3.997940521
A62: Se 19 | C62: 不整脈及び伝導障害 | E62: 総数 | F62: ='12 区別，5歳階級別，選択死因分類別死亡数'!F64 -> 286 | G62: ='12-10'!F64 -> 30 | H62: ='12-20'!F64 -> 40 | I62: ='12-30'!F64 -> 27 | J62: ='12-40'!F64 -> 30 | K62: ='12-45'!F64 -> 19 | L62: ='12-50'!F64 -> 41 | M62: ='12-55'!F64 -> 15 | N62: ='12-60'!F64 -> 32 | O62: ='12-70'!F64 -> 28 | P62: ='12-75'!F64 -> 24 | Q62: =F62/[1]人口!$B$39*100000 -> 14.54774815 | R62: =G62/[1]人口!$C$39*100000 -> 12.34994813 | S62: =H62/[1]人口!$D$39*100000 -> 13.88339338 | T62: =I62/[1]人口!$E$39*100000 -> 10.22018828 | U62: =J62/[1]人口!$F$39*100000 -> 14.18466543 | V62: =K62/[1]人口!$G$39*100000 -> 15.05188941 | W62: =L62/[1]人口!$H$39*100000 -> 18.46497509 | X62: =M62/[1]人口!$I$39*100000 -> 13.0127004 | Y62: =N62/[1]人口!$J$39*100000 -> 23.21346962 | Z62: =O62/[1]人口!$K$39*100000 -> 12.96644469 | AA62: =P62/[1]人口!$L$39*100000 -> 16.91403442 | AB62: =調整死亡率算出!E68 -> 4.219388581 | AC62: ='12-10 算出'!E68 -> 3.954934025 | AD62: ='12-20 算出'!E68 -> 4.564045361 | AE62: ='12-30 算出'!E68 -> 2.674368994 | AF62: ='12-40 算出'!E68 -> 3.827363679 | AG62: ='12-45 算出'!E68 -> 4.305188311 | AH62: ='12-50 算出'!E68 -> 6.387806241 | AI62: ='12-55 算出'!E68 -> 4.115441457 | AJ62: ='12-60 算出'!E68 -> 5.54370559 | AK62: ='12-70 算出'!E68 -> 4.174852361 | AL62: ='12-75 算出'!E68 -> 3.611801451
E63: 男 | F63: ='12 区別，5歳階級別，選択死因分類別死亡数'!F65 -> 130 | G63: ='12-10'!F65 -> 13 | H63: ='12-20'!F65 -> 21 | I63: ='12-30'!F65 -> 11 | J63: ='12-40'!F65 -> 11 | K63: ='12-45'!F65 -> 10 | L63: ='12-50'!F65 -> 19 | M63: ='12-55'!F65 -> 5 | N63: ='12-60'!F65 -> 15 | O63: ='12-70'!F65 -> 16 | P63: ='12-75'!F65 -> 9 | Q63: =F63/[1]人口!$B$40*100000 -> 14.20996425 | R63: =G63/[1]人口!$C$40*100000 -> 11.83550469 | S63: =H63/[1]人口!$D$40*100000 -> 15.44958286 | T63: =I63/[1]人口!$E$40*100000 -> 8.764451385 | U63: =J63/[1]人口!$F$40*100000 -> 11.04262453 | V63: =K63/[1]人口!$G$40*100000 -> 17.42554934 | W63: =L63/[1]人口!$H$40*100000 -> 18.49112426 | X63: =M63/[1]人口!$I$40*100000 -> 9.200647726 | Y63: =N63/[1]人口!$J$40*100000 -> 23.60940599 | Z63: =O63/[1]人口!$K$40*100000 -> 16.07894763 | AA63: =P63/[1]人口!$L$40*100000 -> 13.54626048 | AB63: =調整死亡率算出!E69 -> 5.859633952 | AC63: ='12-10 算出'!E69 -> 6.310896931 | AD63: ='12-20 算出'!E69 -> 6.780834518 | AE63: ='12-30 算出'!E69 -> 3.363334864 | AF63: ='12-40 算出'!E69 -> 4.50197609 | AG63: ='12-45 算出'!E69 -> 7.420064068 | AH63: ='12-50 算出'!E69 -> 9.004856943 | AI63: ='12-55 算出'!E69 -> 2.979416575 | AJ63: ='12-60 算出'!E69 -> 6.529840549 | AK63: ='12-70 算出'!E69 -> 6.759755145 | AL63: ='12-75 算出'!E69 -> 4.382557819
E64: 女 | F64: ='12 区別，5歳階級別，選択死因分類別死亡数'!F66 -> 156 | G64: ='12-10'!F66 -> 17 | H64: ='12-20'!F66 -> 19 | I64: ='12-30'!F66 -> 16 | J64: ='12-40'!F66 -> 19 | K64: ='12-45'!F66 -> 9 | L64: ='12-50'!F66 -> 22 | M64: ='12-55'!F66 -> 10 | N64: ='12-60'!F66 -> 17 | O64: ='12-70'!F66 -> 12 | P64: ='12-75'!F66 -> 15 | Q64: =F64/[1]人口!$B$41*100000 -> 14.84174984 | R64: =G64/[1]人口!$C$41*100000 -> 12.77455909 | S64: =H64/[1]人口!$D$41*100000 -> 12.48455857 | T64: =I64/[1]人口!$E$41*100000 -> 11.53768496 | U64: =J64/[1]人口!$F$41*100000 -> 16.98217765 | V64: =K64/[1]人口!$G$41*100000 -> 13.07322458 | W64: =L64/[1]人口!$H$41*100000 -> 18.44245117 | X64: =M64/[1]人口!$I$41*100000 -> 16.41281513 | Y64: =N64/[1]人口!$J$41*100000 -> 22.8749815 | Z64: =O64/[1]人口!$K$41*100000 -> 10.30635645 | AA64: =P64/[1]人口!$L$41*100000 -> 19.87939832 | AB64: =調整死亡率算出!E70 -> 2.953543616 | AC64: ='12-10 算出'!E70 -> 2.017034192 | AD64: ='12-20 算出'!E70 -> 3.026638478 | AE64: ='12-30 算出'!E70 -> 2.180454525 | AF64: ='12-40 算出'!E70 -> 3.209744119 | AG64: ='12-45 算出'!E70 -> 1.884053929 | AH64: ='12-50 算出'!E70 -> 4.188082667 | AI64: ='12-55 算出'!E70 -> 5.021841668 | AJ64: ='12-60 算出'!E70 -> 5.005948793 | AK64: ='12-70 算出'!E70 -> 2.273541216 | AL64: ='12-75 算出'!E70 -> 2.882148131
A65: Se 20 | C65: 心 不 全 | E65: 総数 | F65: ='12 区別，5歳階級別，選択死因分類別死亡数'!F67 -> 1223 | G65: ='12-10'!F67 -> 138 | H65: ='12-20'!F67 -> 158 | I65: ='12-30'!F67 -> 145 | J65: ='12-40'!F67 -> 127 | K65: ='12-45'!F67 -> 75 | L65: ='12-50'!F67 -> 137 | M65: ='12-55'!F67 -> 74 | N65: ='12-60'!F67 -> 99 | O65: ='12-70'!F67 -> 139 | P65: ='12-75'!F67 -> 131 | Q65: =F65/[1]人口!$B$39*100000 -> 62.20942653 | R65: =G65/[1]人口!$C$39*100000 -> 56.8097614 | S65: =H65/[1]人口!$D$39*100000 -> 54.83940385 | T65: =I65/[1]人口!$E$39*100000 -> 54.88619631 | U65: =J65/[1]人口!$F$39*100000 -> 60.04841699 | V65: =K65/[1]人口!$G$39*100000 -> 59.41535293 | W65: =L65/[1]人口!$H$39*100000 -> 61.70003873 | X65: =M65/[1]人口!$I$39*100000 -> 64.19598862 | Y65: =N65/[1]人口!$J$39*100000 -> 71.81667162 | Z65: =O65/[1]人口!$K$39*100000 -> 64.36913616 | AA65: =P65/[1]人口!$L$39*100000 -> 92.32243788 | AB65: =調整死亡率算出!E71 -> 15.61481893 | AC65: ='12-10 算出'!E71 -> 16.80747145 | AD65: ='12-20 算出'!E71 -> 13.98787378 | AE65: ='12-30 算出'!E71 -> 16.23396643 | AF65: ='12-40 算出'!E71 -> 16.50384983 | AG65: ='12-45 算出'!E71 -> 12.00833441 | AH65: ='12-50 算出'!E71 -> 16.03920191 | AI65: ='12-55 算出'!E71 -> 17.29914313 | AJ65: ='12-60 算出'!E71 -> 14.11084962 | AK65: ='12-70 算出'!E71 -> 14.72687011 | AL65: ='12-75 算出'!E71 -> 18.91951827
E66: 男 | F66: ='12 区別，5歳階級別，選択死因分類別死亡数'!F68 -> 463 | G66: ='12-10'!F68 -> 52 | H66: ='12-20'!F68 -> 57 | I66: ='12-30'!F68 -> 57 | J66: ='12-40'!F68 -> 49 | K66: ='12-45'!F68 -> 23 | L66: ='12-50'!F68 -> 51 | M66: ='12-55'!F68 -> 32 | N66: ='12-60'!F68 -> 41 | O66: ='12-70'!F68 -> 55 | P66: ='12-75'!F68 -> 46 | Q66: =F66/[1]人口!$B$40*100000 -> 50.6093342 | R66: =G66/[1]人口!$C$40*100000 -> 47.34201877 | S66: =H66/[1]人口!$D$40*100000 -> 41.93458205 | T66: =I66/[1]人口!$E$40*100000 -> 45.41579354 | U66: =J66/[1]人口!$F$40*100000 -> 49.18987291 | V66: =K66/[1]人口!$G$40*100000 -> 40.07876348 | W66: =L66/[1]人口!$H$40*100000 -> 49.63407038 | X66: =M66/[1]人口!$I$40*100000 -> 58.88414544 | Y66: =N66/[1]人口!$J$40*100000 -> 64.53237637 | Z66: =O66/[1]人口!$K$40*100000 -> 55.27138249 | AA66: =P66/[1]人口!$L$40*100000 -> 69.23644245 | AB66: =調整死亡率算出!E72 -> 18.55832997 | AC66: ='12-10 算出'!E72 -> 21.68106396 | AD66: ='12-20 算出'!E72 -> 15.82965537 | AE66: ='12-30 算出'!E72 -> 18.97756248 | AF66: ='12-40 算出'!E72 -> 19.81181689 | AG66: ='12-45 算出'!E72 -> 11.87688599 | AH66: ='12-50 算出'!E72 -> 19.4068949 | AI66: ='12-55 算出'!E72 -> 22.12944408 | AJ66: ='12-60 算出'!E72 -> 17.93339217 | AK66: ='12-70 算出'!E72 -> 17.69526319 | AL66: ='12-75 算出'!E72 -> 21.12946645
E67: 女 | F67: ='12 区別，5歳階級別，選択死因分類別死亡数'!F69 -> 760 | G67: ='12-10'!F69 -> 86 | H67: ='12-20'!F69 -> 101 | I67: ='12-30'!F69 -> 88 | J67: ='12-40'!F69 -> 78 | K67: ='12-45'!F69 -> 52 | L67: ='12-50'!F69 -> 86 | M67: ='12-55'!F69 -> 42 | N67: ='12-60'!F69 -> 58 | O67: ='12-70'!F69 -> 84 | P67: ='12-75'!F69 -> 85 | Q67: =F67/[1]人口!$B$41*100000 -> 72.30596077 | R67: =G67/[1]人口!$C$41*100000 -> 64.6242401 | S67: =H67/[1]人口!$D$41*100000 -> 66.36528504 | T67: =I67/[1]人口!$E$41*100000 -> 63.4572673 | U67: =J67/[1]人口!$F$41*100000 -> 69.71630825 | V67: =K67/[1]人口!$G$41*100000 -> 75.53418648 | W67: =L67/[1]人口!$H$41*100000 -> 72.09321821 | X67: =M67/[1]人口!$I$41*100000 -> 68.93382353 | Y67: =N67/[1]人口!$J$41*100000 -> 78.04405452 | Z67: =O67/[1]人口!$K$41*100000 -> 72.14449512 | AA67: =P67/[1]人口!$L$41*100000 -> 112.6499238 | AB67: =調整死亡率算出!E73 -> 13.27655578 | AC67: ='12-10 算出'!E73 -> 13.11491258 | AD67: ='12-20 算出'!E73 -> 12.42784415 | AE67: ='12-30 算出'!E73 -> 14.06839363 | AF67: ='12-40 算出'!E73 -> 13.99334588 | AG67: ='12-45 算出'!E73 -> 11.47554844 | AH67: ='12-50 算出'!E73 -> 13.20904017 | AI67: ='12-55 算出'!E73 -> 13.91620253 | AJ67: ='12-60 算出'!E73 -> 10.86641057 | AK67: ='12-70 算出'!E73 -> 12.98332119 | AL67: ='12-75 算出'!E73 -> 17.0796396
A68: Se 21 | B68: 脳血管疾患 | E68: 総数 | F68: ='12 区別，5歳階級別，選択死因分類別死亡数'!F70 -> 1418 | G68: ='12-10'!F70 -> 160 | H68: ='12-20'!F70 -> 198 | I68: ='12-30'!F70 -> 205 | J68: ='12-40'!F70 -> 144 | K68: ='12-45'!F70 -> 100 | L68: ='12-50'!F70 -> 146 | M68: ='12-55'!F70 -> 89 | N68: ='12-60'!F70 -> 113 | O68: ='12-70'!F70 -> 156 | P68: ='12-75'!F70 -> 107 | Q68: =F68/[1]人口!$B$39*100000 -> 72.12834573 | R68: =G68/[1]人口!$C$39*100000 -> 65.86639003 | S68: =H68/[1]人口!$D$39*100000 -> 68.72279723 | T68: =I68/[1]人口!$E$39*100000 -> 77.59772582 | U68: =J68/[1]人口!$F$39*100000 -> 68.08639407 | V68: =K68/[1]人口!$G$39*100000 -> 79.22047057 | W68: =L68/[1]人口!$H$39*100000 -> 65.75332595 | X68: =M68/[1]人口!$I$39*100000 -> 77.20868901 | Y68: =N68/[1]人口!$J$39*100000 -> 81.97256458 | Z68: =O68/[1]人口!$K$39*100000 -> 72.24162044 | AA68: =P68/[1]人口!$L$39*100000 -> 75.40840346 | AB68: =調整死亡率算出!E74 -> 23.57007146 | AC68: ='12-10 算出'!E74 -> 23.78343841 | AD68: ='12-20 算出'!E74 -> 23.47214309 | AE68: ='12-30 算出'!E74 -> 26.89410172 | AF68: ='12-40 算出'!E74 -> 23.67169532 | AG68: ='12-45 算出'!E74 -> 23.91142053 | AH68: ='12-50 算出'!E74 -> 24.09663393 | AI68: ='12-55 算出'!E74 -> 24.61194841 | AJ68: ='12-60 算出'!E74 -> 20.24233545 | AK68: ='12-70 算出'!E74 -> 23.30051462 | AL68: ='12-75 算出'!E74 -> 20.52711934
E69: 男 | F69: ='12 区別，5歳階級別，選択死因分類別死亡数'!F71 -> 724 | G69: ='12-10'!F71 -> 85 | H69: ='12-20'!F71 -> 98 | I69: ='12-30'!F71 -> 107 | J69: ='12-40'!F71 -> 79 | K69: ='12-45'!F71 -> 48 | L69: ='12-50'!F71 -> 72 | M69: ='12-55'!F71 -> 46 | N69: ='12-60'!F71 -> 59 | O69: ='12-70'!F71 -> 74 | P69: ='12-75'!F71 -> 56 | Q69: =F69/[1]人口!$B$40*100000 -> 79.13857011 | R69: =G69/[1]人口!$C$40*100000 -> 77.38599222 | S69: =H69/[1]人口!$D$40*100000 -> 72.09805335 | T69: =I69/[1]人口!$E$40*100000 -> 85.25420893 | U69: =J69/[1]人口!$F$40*100000 -> 79.30612163 | V69: =K69/[1]人口!$G$40*100000 -> 83.64263683 | W69: =L69/[1]人口!$H$40*100000 -> 70.07162878 | X69: =M69/[1]人口!$I$40*100000 -> 84.64595908 | Y69: =N69/[1]人口!$J$40*100000 -> 92.86366355 | Z69: =O69/[1]人口!$K$40*100000 -> 74.3651328 | AA69: =P69/[1]人口!$L$40*100000 -> 84.28784298 | AB69: =調整死亡率算出!E75 -> 33.61711774 | AC69: ='12-10 算出'!E75 -> 37.52971461 | AD69: ='12-20 算出'!E75 -> 31.02833177 | AE69: ='12-30 算出'!E75 -> 39.68671907 | AF69: ='12-40 算出'!E75 -> 38.41096166 | AG69: ='12-45 算出'!E75 -> 31.3728581 | AH69: ='12-50 算出'!E75 -> 30.93630448 | AI69: ='12-55 算出'!E75 -> 36.73444733 | AJ69: ='12-60 算出'!E75 -> 28.55417255 | AK69: ='12-70 算出'!E75 -> 31.73128849 | AL69: ='12-75 算出'!E75 -> 28.94179762
E70: 女 | F70: ='12 区別，5歳階級別，選択死因分類別死亡数'!F72 -> 694 | G70: ='12-10'!F72 -> 75 | H70: ='12-20'!F72 -> 100 | I70: ='12-30'!F72 -> 98 | J70: ='12-40'!F72 -> 65 | K70: ='12-45'!F72 -> 52 | L70: ='12-50'!F72 -> 74 | M70: ='12-55'!F72 -> 43 | N70: ='12-60'!F72 -> 54 | O70: ='12-70'!F72 -> 82 | P70: ='12-75'!F72 -> 51 | Q70: =F70/[1]人口!$B$41*100000 -> 66.02675891 | R70: =G70/[1]人口!$C$41*100000 -> 56.35834893 | S70: =H70/[1]人口!$D$41*100000 -> 65.70820301 | T70: =I70/[1]人口!$E$41*100000 -> 70.6683204 | U70: =J70/[1]人口!$F$41*100000 -> 58.09692354 | V70: =K70/[1]人口!$G$41*100000 -> 75.53418648 | W70: =L70/[1]人口!$H$41*100000 -> 62.03369939 | X70: =M70/[1]人口!$I$41*100000 -> 70.57510504 | Y70: =N70/[1]人口!$J$41*100000 -> 72.66170594 | Z70: =O70/[1]人口!$K$41*100000 -> 70.42676904 | AA70: =P70/[1]人口!$L$41*100000 -> 67.58995428 | AB70: =調整死亡率算出!E76 -> 16.20959658 | AC70: ='12-10 算出'!E76 -> 15.23761548 | AD70: ='12-20 算出'!E76 -> 18.35088167 | AE70: ='12-30 算出'!E76 -> 16.80765018 | AF70: ='12-40 算出'!E76 -> 11.88168477 | AG70: ='12-45 算出'!E76 -> 18.32232556 | AH70: ='12-50 算出'!E76 -> 19.98717155 | AI70: ='12-55 算出'!E76 -> 14.9179318 | AJ70: ='12-60 算出'!E76 -> 14.03903025 | AK70: ='12-70 算出'!E76 -> 16.7431302 | AL70: ='12-75 算出'!E76 -> 15.12016968
A71: Se 22 | B71: (再掲) | C71: くも膜下出血 | E71: 総数 | F71: ='12 区別，5歳階級別，選択死因分類別死亡数'!F73 -> 165 | G71: ='12-10'!F73 -> 21 | H71: ='12-20'!F73 -> 18 | I71: ='12-30'!F73 -> 27 | J71: ='12-40'!F73 -> 13 | K71: ='12-45'!F73 -> 12 | L71: ='12-50'!F73 -> 22 | M71: ='12-55'!F73 -> 8 | N71: ='12-60'!F73 -> 15 | O71: ='12-70'!F73 -> 20 | P71: ='12-75'!F73 -> 9 | Q71: =F71/[1]人口!$B$39*100000 -> 8.392931626 | R71: =G71/[1]人口!$C$39*100000 -> 8.644963691 | S71: =H71/[1]人口!$D$39*100000 -> 6.247527021 | T71: =I71/[1]人口!$E$39*100000 -> 10.22018828 | U71: =J71/[1]人口!$F$39*100000 -> 6.146688353 | V71: =K71/[1]人口!$G$39*100000 -> 9.506456468 | W71: =L71/[1]人口!$H$39*100000 -> 9.908035417 | X71: =M71/[1]人口!$I$39*100000 -> 6.940106878 | Y71: =N71/[1]人口!$J$39*100000 -> 10.88131388 | Z71: =O71/[1]人口!$K$39*100000 -> 9.26174621 | AA71: =P71/[1]人口!$L$39*100000 -> 6.342762908 | AB71: =調整死亡率算出!E77 -> 4.231942003 | AC71: ='12-10 算出'!E77 -> 4.17786702 | AD71: ='12-20 算出'!E77 -> 3.487844495 | AE71: ='12-30 算出'!E77 -> 5.651496192 | AF71: ='12-40 算出'!E77 -> 2.581020554 | AG71: ='12-45 算出'!E77 -> 6.383037758 | AH71: ='12-50 算出'!E77 -> 5.438167108 | AI71: ='12-55 算出'!E77 -> 3.454614907 | AJ71: ='12-60 算出'!E77 -> 4.252846405 | AK71: ='12-70 算出'!E77 -> 4.174336792 | AL71: ='12-75 算出'!E77 -> 3.338174276
E72: 男 | F72: ='12 区別，5歳階級別，選択死因分類別死亡数'!F74 -> 69 | G72: ='12-10'!F74 -> 8 | H72: ='12-20'!F74 -> 6 | I72: ='12-30'!F74 -> 13 | J72: ='12-40'!F74 -> 7 | K72: ='12-45'!F74 -> 7 | L72: ='12-50'!F74 -> 5 | M72: ='12-55'!F74 -> 4 | N72: ='12-60'!F74 -> 8 | O72: ='12-70'!F74 -> 8 | P72: ='12-75'!F74 -> 3 | Q72: =F72/[1]人口!$B$40*100000 -> 7.542211792 | R72: =G72/[1]人口!$C$40*100000 -> 7.283387504 | S72: =H72/[1]人口!$D$40*100000 -> 4.414166532 | T72: =I72/[1]人口!$E$40*100000 -> 10.357988 | U72: =J72/[1]人口!$F$40*100000 -> 7.027124701 | V72: =K72/[1]人口!$G$40*100000 -> 12.19788454 | W72: =L72/[1]人口!$H$40*100000 -> 4.866085332 | X72: =M72/[1]人口!$I$40*100000 -> 7.36051818 | Y72: =N72/[1]人口!$J$40*100000 -> 12.59168319 | Z72: =O72/[1]人口!$K$40*100000 -> 8.039473816 | AA72: =P72/[1]人口!$L$40*100000 -> 4.51542016 | AB72: =調整死亡率算出!E78 -> 4.648516783 | AC72: ='12-10 算出'!E78 -> 4.598686017 | AD72: ='12-20 算出'!E78 -> 2.698401089 | AE72: ='12-30 算出'!E78 -> 7.480453816 | AF72: ='12-40 算出'!E78 -> 3.961570054 | AG72: ='12-45 算出'!E78 -> 8.638010769 | AH72: ='12-50 算出'!E78 -> 3.57808322 | AI72: ='12-55 算出'!E78 -> 4.493552192 | AJ72: ='12-60 算出'!E78 -> 5.684130217 | AK72: ='12-70 算出'!E78 -> 4.460267698 | AL72: ='12-75 算出'!E78 -> 2.201331789
E73: 女 | F73: ='12 区別，5歳階級別，選択死因分類別死亡数'!F75 -> 96 | G73: ='12-10'!F75 -> 13 | H73: ='12-20'!F75 -> 12 | I73: ='12-30'!F75 -> 14 | J73: ='12-40'!F75 -> 6 | K73: ='12-45'!F75 -> 5 | L73: ='12-50'!F75 -> 17 | M73: ='12-55'!F75 -> 4 | N73: ='12-60'!F75 -> 7 | O73: ='12-70'!F75 -> 12 | P73: ='12-75'!F75 -> 6 | Q73: =F73/[1]人口!$B$41*100000 -> 9.133384518 | R73: =G73/[1]人口!$C$41*100000 -> 9.76878048 | S73: =H73/[1]人口!$D$41*100000 -> 7.884984361 | T73: =I73/[1]人口!$E$41*100000 -> 10.09547434 | U73: =J73/[1]人口!$F$41*100000 -> 5.362792943 | V73: =K73/[1]人口!$G$41*100000 -> 7.262902546 | W73: =L73/[1]人口!$H$41*100000 -> 14.25098499 | X73: =M73/[1]人口!$I$41*100000 -> 6.56512605 | Y73: =N73/[1]人口!$J$41*100000 -> 9.419110029 | Z73: =O73/[1]人口!$K$41*100000 -> 10.30635645 | AA73: =P73/[1]人口!$L$41*100000 -> 7.951759327 | AB73: =調整死亡率算出!E79 -> 3.781219133 | AC73: ='12-10 算出'!E79 -> 3.881771897 | AD73: ='12-20 算出'!E79 -> 4.208574364 | AE73: ='12-30 算出'!E79 -> 3.67687704 | AF73: ='12-40 算出'!E79 -> 1.321748211 | AG73: ='12-45 算出'!E79 -> 4.365755037 | AH73: ='12-50 算出'!E79 -> 6.821308292 | AI73: ='12-55 算出'!E79 -> 2.439896396 | AJ73: ='12-60 算出'!E79 -> 3.093407742 | AK73: ='12-70 算出'!E79 -> 3.759335593 | AL73: ='12-75 算出'!E79 -> 4.295767174
A74: Se 23 | C74: 脳 内 出 血 | E74: 総数 | F74: ='12 区別，5歳階級別，選択死因分類別死亡数'!F76 -> 440 | G74: ='12-10'!F76 -> 50 | H74: ='12-20'!F76 -> 66 | I74: ='12-30'!F76 -> 56 | J74: ='12-40'!F76 -> 53 | K74: ='12-45'!F76 -> 28 | L74: ='12-50'!F76 -> 57 | M74: ='12-55'!F76 -> 23 | N74: ='12-60'!F76 -> 29 | O74: ='12-70'!F76 -> 48 | P74: ='12-75'!F76 -> 30 | Q74: =F74/[1]人口!$B$39*100000 -> 22.381151 | R74: =G74/[1]人口!$C$39*100000 -> 20.58324688 | S74: =H74/[1]人口!$D$39*100000 -> 22.90759908 | T74: =I74/[1]人口!$E$39*100000 -> 21.19742754 | U74: =J74/[1]人口!$F$39*100000 -> 25.05957559 | V74: =K74/[1]人口!$G$39*100000 -> 22.18173176 | W74: =L74/[1]人口!$H$39*100000 -> 25.67081903 | X74: =M74/[1]人口!$I$39*100000 -> 19.95280727 | Y74: =N74/[1]人口!$J$39*100000 -> 21.03720684 | Z74: =O74/[1]人口!$K$39*100000 -> 22.2281909 | AA74: =P74/[1]人口!$L$39*100000 -> 21.14254303 | AB74: =調整死亡率算出!E80 -> 8.729525311 | AC74: ='12-10 算出'!E80 -> 9.527614298 | AD74: ='12-20 算出'!E80 -> 9.142584949 | AE74: ='12-30 算出'!E80 -> 8.236242421 | AF74: ='12-40 算出'!E80 -> 11.37377217 | AG74: ='12-45 算出'!E80 -> 6.890266166 | AH74: ='12-50 算出'!E80 -> 10.26743267 | AI74: ='12-55 算出'!E80 -> 7.88415917 | AJ74: ='12-60 算出'!E80 -> 5.916617063 | AK74: ='12-70 算出'!E80 -> 8.825947888 | AL74: ='12-75 算出'!E80 -> 6.782226697
E75: 男 | F75: ='12 区別，5歳階級別，選択死因分類別死亡数'!F77 -> 248 | G75: ='12-10'!F77 -> 28 | H75: ='12-20'!F77 -> 34 | I75: ='12-30'!F77 -> 33 | J75: ='12-40'!F77 -> 34 | K75: ='12-45'!F77 -> 14 | L75: ='12-50'!F77 -> 31 | M75: ='12-55'!F77 -> 13 | N75: ='12-60'!F77 -> 16 | O75: ='12-70'!F77 -> 27 | P75: ='12-75'!F77 -> 18 | Q75: =F75/[1]人口!$B$40*100000 -> 27.10823948 | R75: =G75/[1]人口!$C$40*100000 -> 25.49185626 | S75: =H75/[1]人口!$D$40*100000 -> 25.01361035 | T75: =I75/[1]人口!$E$40*100000 -> 26.29335416 | U75: =J75/[1]人口!$F$40*100000 -> 34.13174855 | V75: =K75/[1]人口!$G$40*100000 -> 24.39576908 | W75: =L75/[1]人口!$H$40*100000 -> 30.16972906 | X75: =M75/[1]人口!$I$40*100000 -> 23.92168409 | Y75: =N75/[1]人口!$J$40*100000 -> 25.18336639 | Z75: =O75/[1]人口!$K$40*100000 -> 27.13322413 | AA75: =P75/[1]人口!$L$40*100000 -> 27.09252096 | AB75: =調整死亡率算出!E81 -> 13.07487552 | AC75: ='12-10 算出'!E81 -> 15.56579822 | AD75: ='12-20 算出'!E81 -> 12.1759699 | AE75: ='12-30 算出'!E81 -> 12.78649003 | AF75: ='12-40 算出'!E81 -> 19.73021683 | AG75: ='12-45 算出'!E81 -> 8.660801836 | AH75: ='12-50 算出'!E81 -> 14.2012936 | AI75: ='12-55 算出'!E81 -> 13.07702931 | AJ75: ='12-60 算出'!E81 -> 7.874968162 | AK75: ='12-70 算出'!E81 -> 12.42380756 | AL75: ='12-75 算出'!E81 -> 10.9099003
E76: 女 | F76: ='12 区別，5歳階級別，選択死因分類別死亡数'!F78 -> 192 | G76: ='12-10'!F78 -> 22 | H76: ='12-20'!F78 -> 32 | I76: ='12-30'!F78 -> 23 | J76: ='12-40'!F78 -> 19 | K76: ='12-45'!F78 -> 14 | L76: ='12-50'!F78 -> 26 | M76: ='12-55'!F78 -> 10 | N76: ='12-60'!F78 -> 13 | O76: ='12-70'!F78 -> 21 | P76: ='12-75'!F78 -> 12 | Q76: =F76/[1]人口!$B$41*100000 -> 18.26676904 | R76: =G76/[1]人口!$C$41*100000 -> 16.53178235 | S76: =H76/[1]人口!$D$41*100000 -> 21.02662496 | T76: =I76/[1]人口!$E$41*100000 -> 16.58542214 | U76: =J76/[1]人口!$F$41*100000 -> 16.98217765 | V76: =K76/[1]人口!$G$41*100000 -> 20.33612713 | W76: =L76/[1]人口!$H$41*100000 -> 21.79562411 | X76: =M76/[1]人口!$I$41*100000 -> 16.41281513 | Y76: =N76/[1]人口!$J$41*100000 -> 17.49263291 | Z76: =O76/[1]人口!$K$41*100000 -> 18.03612378 | AA76: =P76/[1]人口!$L$41*100000 -> 15.90351865 | AB76: =調整死亡率算出!E82 -> 5.36819407 | AC76: ='12-10 算出'!E82 -> 5.04307396 | AD76: ='12-20 算出'!E82 -> 6.865258528 | AE76: ='12-30 算出'!E82 -> 4.662373422 | AF76: ='12-40 算出'!E82 -> 4.229923503 | AG76: ='12-45 算出'!E82 -> 5.593180893 | AH76: ='12-50 算出'!E82 -> 7.774250017 | AI76: ='12-55 算出'!E82 -> 3.314511429 | AJ76: ='12-60 算出'!E82 -> 4.663669139 | AK76: ='12-70 算出'!E82 -> 6.219641264 | AL76: ='12-75 算出'!E82 -> 3.672569293
A77: Se 24 | C77: 脳 梗 塞 | E77: 総数 | F77: ='12 区別，5歳階級別，選択死因分類別死亡数'!F79 -> 795 | G77: ='12-10'!F79 -> 86 | H77: ='12-20'!F79 -> 111 | I77: ='12-30'!F79 -> 121 | J77: ='12-40'!F79 -> 77 | K77: ='12-45'!F79 -> 58 | L77: ='12-50'!F79 -> 66 | M77: ='12-55'!F79 -> 57 | N77: ='12-60'!F79 -> 67 | O77: ='12-70'!F79 -> 86 | P77: ='12-75'!F79 -> 66 | Q77: =F77/[1]人口!$B$39*100000 -> 40.43867056 | R77: =G77/[1]人口!$C$39*100000 -> 35.40318464 | S77: =H77/[1]人口!$D$39*100000 -> 38.52641663 | T77: =I77/[1]人口!$E$39*100000 -> 45.80158451 | U77: =J77/[1]人口!$F$39*100000 -> 36.40730794 | V77: =K77/[1]人口!$G$39*100000 -> 45.94787293 | W77: =L77/[1]人口!$H$39*100000 -> 29.72410625 | X77: =M77/[1]人口!$I$39*100000 -> 49.4482615 | Y77: =N77/[1]人口!$J$39*100000 -> 48.60320201 | Z77: =O77/[1]人口!$K$39*100000 -> 39.8255087 | AA77: =P77/[1]人口!$L$39*100000 -> 46.51359466 | AB77: =調整死亡率算出!E83 -> 10.27391264 | AC77: ='12-10 算出'!E83 -> 9.720155163 | AD77: ='12-20 算出'!E83 -> 10.30133656 | AE77: ='12-30 算出'!E83 -> 12.93905189 | AF77: ='12-40 算出'!E83 -> 9.634032343 | AG77: ='12-45 算出'!E83 -> 10.39720938 | AH77: ='12-50 算出'!E83 -> 8.16066462 | AI77: ='12-55 算出'!E83 -> 13.13046041 | AJ77: ='12-60 算出'!E83 -> 9.815697241 | AK77: ='12-70 算出'!E83 -> 9.275796918 | AL77: ='12-75 算出'!E83 -> 10.19640068
E78: 男 | F78: ='12 区別，5歳階級別，選択死因分類別死亡数'!F80 -> 404 | G78: ='12-10'!F80 -> 49 | H78: ='12-20'!F80 -> 57 | I78: ='12-30'!F80 -> 61 | J78: ='12-40'!F80 -> 38 | K78: ='12-45'!F80 -> 27 | L78: ='12-50'!F80 -> 36 | M78: ='12-55'!F80 -> 29 | N78: ='12-60'!F80 -> 34 | O78: ='12-70'!F80 -> 38 | P78: ='12-75'!F80 -> 35 | Q78: =F78/[1]人口!$B$40*100000 -> 44.16019658 | R78: =G78/[1]人口!$C$40*100000 -> 44.61074846 | S78: =H78/[1]人口!$D$40*100000 -> 41.93458205 | T78: =I78/[1]人口!$E$40*100000 -> 48.60286677 | U78: =J78/[1]人口!$F$40*100000 -> 38.14724838 | V78: =K78/[1]人口!$G$40*100000 -> 47.04898322 | W78: =L78/[1]人口!$H$40*100000 -> 35.03581439 | X78: =M78/[1]人口!$I$40*100000 -> 53.36375681 | Y78: =N78/[1]人口!$J$40*100000 -> 53.51465357 | Z78: =O78/[1]人口!$K$40*100000 -> 38.18750063 | AA78: =P78/[1]人口!$L$40*100000 -> 52.67990186 | AB78: =調整死亡率算出!E84 -> 15.62846907 | AC78: ='12-10 算出'!E84 -> 17.36523038 | AD78: ='12-20 算出'!E84 -> 15.86796345 | AE78: ='12-30 算出'!E84 -> 19.41977522 | AF78: ='12-40 算出'!E84 -> 14.71917478 | AG78: ='12-45 算出'!E84 -> 14.0740455 | AH78: ='12-50 算出'!E84 -> 13.15692766 | AI78: ='12-55 算出'!E84 -> 19.16386583 | AJ78: ='12-60 算出'!E84 -> 14.56847887 | AK78: ='12-70 算出'!E84 -> 13.19056719 | AL78: ='12-75 算出'!E84 -> 15.83056553
E79: 女 | F79: ='12 区別，5歳階級別，選択死因分類別死亡数'!F81 -> 391 | G79: ='12-10'!F81 -> 37 | H79: ='12-20'!F81 -> 54 | I79: ='12-30'!F81 -> 60 | J79: ='12-40'!F81 -> 39 | K79: ='12-45'!F81 -> 31 | L79: ='12-50'!F81 -> 30 | M79: ='12-55'!F81 -> 28 | N79: ='12-60'!F81 -> 33 | O79: ='12-70'!F81 -> 48 | P79: ='12-75'!F81 -> 31 | Q79: =F79/[1]人口!$B$41*100000 -> 37.19951403 | R79: =G79/[1]人口!$C$41*100000 -> 27.80345214 | S79: =H79/[1]人口!$D$41*100000 -> 35.48242963 | T79: =I79/[1]人口!$E$41*100000 -> 43.26631861 | U79: =J79/[1]人口!$F$41*100000 -> 34.85815413 | V79: =K79/[1]人口!$G$41*100000 -> 45.02999579 | W79: =L79/[1]人口!$H$41*100000 -> 25.14879705 | X79: =M79/[1]人口!$I$41*100000 -> 45.95588235 | Y79: =N79/[1]人口!$J$41*100000 -> 44.40437585 | Z79: =O79/[1]人口!$K$41*100000 -> 41.22542578 | AA79: =P79/[1]人口!$L$41*100000 -> 41.08408985 | AB79: =調整死亡率算出!E85 -> 6.710744547 | AC79: ='12-10 算出'!E85 -> 5.764041025 | AD79: ='12-20 算出'!E85 -> 6.468705747 | AE79: ='12-30 算出'!E85 -> 8.372592791 | AF79: ='12-40 算出'!E85 -> 6.212194097 | AG79: ='12-45 算出'!E85 -> 8.016054433 | AH79: ='12-50 算出'!E85 -> 4.979438752 | AI79: ='12-55 算出'!E85 -> 8.959013622 | AJ79: ='12-60 算出'!E85 -> 6.155000802 | AK79: ='12-70 算出'!E85 -> 6.442040133 | AL79: ='12-75 算出'!E85 -> 6.854626411
A80: Se 25 | B80: 大動脈瘤及び解離 | E80: 総数 | F80: ='12 区別，5歳階級別，選択死因分類別死亡数'!F82 -> 266 | G80: ='12-10'!F82 -> 21 | H80: ='12-20'!F82 -> 49 | I80: ='12-30'!F82 -> 19 | J80: ='12-40'!F82 -> 23 | K80: ='12-45'!F82 -> 25 | L80: ='12-50'!F82 -> 34 | M80: ='12-55'!F82 -> 16 | N80: ='12-60'!F82 -> 29 | O80: ='12-70'!F82 -> 28 | P80: ='12-75'!F82 -> 22 | Q80: =F80/[1]人口!$B$39*100000 -> 13.53042311 | R80: =G80/[1]人口!$C$39*100000 -> 8.644963691 | S80: =H80/[1]人口!$D$39*100000 -> 17.00715689 | T80: =I80/[1]人口!$E$39*100000 -> 7.191984344 | U80: =J80/[1]人口!$F$39*100000 -> 10.87491016 | V80: =K80/[1]人口!$G$39*100000 -> 19.80511764 | W80: =L80/[1]人口!$H$39*100000 -> 15.31241837 | X80: =M80/[1]人口!$I$39*100000 -> 13.88021376 | Y80: =N80/[1]人口!$J$39*100000 -> 21.03720684 | Z80: =O80/[1]人口!$K$39*100000 -> 12.96644469 | AA80: =P80/[1]人口!$L$39*100000 -> 15.50453155 | AB80: =調整死亡率算出!E86 -> 4.628575432 | AC80: ='12-10 算出'!E86 -> 3.678254427 | AD80: ='12-20 算出'!E86 -> 6.580489317 | AE80: ='12-30 算出'!E86 -> 2.508893254 | AF80: ='12-40 算出'!E86 -> 4.166803568 | AG80: ='12-45 算出'!E86 -> 5.611249785 | AH80: ='12-50 算出'!E86 -> 5.807037592 | AI80: ='12-55 算出'!E86 -> 2.65867406 | AJ80: ='12-60 算出'!E86 -> 4.844781872 | AK80: ='12-70 算出'!E86 -> 4.843655756 | AL80: ='12-75 算出'!E86 -> 4.547832622
E81: 男 | F81: ='12 区別，5歳階級別，選択死因分類別死亡数'!F83 -> 151 | G81: ='12-10'!F83 -> 14 | H81: ='12-20'!F83 -> 30 | I81: ='12-30'!F83 -> 11 | J81: ='12-40'!F83 -> 14 | K81: ='12-45'!F83 -> 11 | L81: ='12-50'!F83 -> 18 | M81: ='12-55'!F83 -> 10 | N81: ='12-60'!F83 -> 17 | O81: ='12-70'!F83 -> 15 | P81: ='12-75'!F83 -> 11 | Q81: =F81/[1]人口!$B$40*100000 -> 16.50542001 | R81: =G81/[1]人口!$C$40*100000 -> 12.74592813 | S81: =H81/[1]人口!$D$40*100000 -> 22.07083266 | T81: =I81/[1]人口!$E$40*100000 -> 8.764451385 | U81: =J81/[1]人口!$F$40*100000 -> 14.0542494 | V81: =K81/[1]人口!$G$40*100000 -> 19.16810427 | W81: =L81/[1]人口!$H$40*100000 -> 17.51790719 | X81: =M81/[1]人口!$I$40*100000 -> 18.40129545 | Y81: =N81/[1]人口!$J$40*100000 -> 26.75732679 | Z81: =O81/[1]人口!$K$40*100000 -> 15.07401341 | AA81: =P81/[1]人口!$L$40*100000 -> 16.55654059 | AB81: =調整死亡率算出!E87 -> 7.15840774 | AC81: ='12-10 算出'!E87 -> 7.008984585 | AD81: ='12-20 算出'!E87 -> 10.25180089 | AE81: ='12-30 算出'!E87 -> 3.576533664 | AF81: ='12-40 算出'!E87 -> 6.998485683 | AG81: ='12-45 算出'!E87 -> 7.3699744 | AH81: ='12-50 算出'!E87 -> 8.431535547 | AI81: ='12-55 算出'!E87 -> 4.987232044 | AJ81: ='12-60 算出'!E87 -> 8.068945937 | AK81: ='12-70 算出'!E87 -> 6.988504154 | AL81: ='12-75 算出'!E87 -> 6.309262232
E82: 女 | F82: ='12 区別，5歳階級別，選択死因分類別死亡数'!F84 -> 115 | G82: ='12-10'!F84 -> 7 | H82: ='12-20'!F84 -> 19 | I82: ='12-30'!F84 -> 8 | J82: ='12-40'!F84 -> 9 | K82: ='12-45'!F84 -> 14 | L82: ='12-50'!F84 -> 16 | M82: ='12-55'!F84 -> 6 | N82: ='12-60'!F84 -> 12 | O82: ='12-70'!F84 -> 13 | P82: ='12-75'!F84 -> 11 | Q82: =F82/[1]人口!$B$41*100000 -> 10.94103354 | R82: =G82/[1]人口!$C$41*100000 -> 5.260112566 | S82: =H82/[1]人口!$D$41*100000 -> 12.48455857 | T82: =I82/[1]人口!$E$41*100000 -> 5.768842482 | U82: =J82/[1]人口!$F$41*100000 -> 8.044189414 | V82: =K82/[1]人口!$G$41*100000 -> 20.33612713 | W82: =L82/[1]人口!$H$41*100000 -> 13.41269176 | X82: =M82/[1]人口!$I$41*100000 -> 9.847689076 | Y82: =N82/[1]人口!$J$41*100000 -> 16.14704576 | Z82: =O82/[1]人口!$K$41*100000 -> 11.16521948 | AA82: =P82/[1]人口!$L$41*100000 -> 14.57822543 | AB82: =調整死亡率算出!E88 -> 2.698368368 | AC82: ='12-10 算出'!E88 -> 1.276467694 | AD82: ='12-20 算出'!E88 -> 3.703484696 | AE82: ='12-30 算出'!E88 -> 1.9137324 | AF82: ='12-40 算出'!E88 -> 1.918998456 | AG82: ='12-45 算出'!E88 -> 3.999497848 | AH82: ='12-50 算出'!E88 -> 3.749666445 | AI82: ='12-55 算出'!E88 -> 1.692734486 | AJ82: ='12-60 算出'!E88 -> 2.283905835 | AK82: ='12-70 算出'!E88 -> 3.112367788 | AL82: ='12-75 算出'!E88 -> 2.98459524
A83: Se 26 | B83: 肺 炎 | E83: 総数 | F83: ='12 区別，5歳階級別，選択死因分類別死亡数'!F85 -> 1348 | G83: ='12-10'!F85 -> 157 | H83: ='12-20'!F85 -> 212 | I83: ='12-30'!F85 -> 192 | J83: ='12-40'!F85 -> 144 | K83: ='12-45'!F85 -> 98 | L83: ='12-50'!F85 -> 130 | M83: ='12-55'!F85 -> 82 | N83: ='12-60'!F85 -> 114 | O83: ='12-70'!F85 -> 124 | P83: ='12-75'!F85 -> 95 | Q83: =F83/[1]人口!$B$39*100000 -> 68.56770807 | R83: =G83/[1]人口!$C$39*100000 -> 64.63139521 | S83: =H83/[1]人口!$D$39*100000 -> 73.58198491 | T83: =I83/[1]人口!$E$39*100000 -> 72.67689443 | U83: =J83/[1]人口!$F$39*100000 -> 68.08639407 | V83: =K83/[1]人口!$G$39*100000 -> 77.63606116 | W83: =L83/[1]人口!$H$39*100000 -> 58.54748201 | X83: =M83/[1]人口!$I$39*100000 -> 71.1360955 | Y83: =N83/[1]人口!$J$39*100000 -> 82.69798551 | Z83: =O83/[1]人口!$K$39*100000 -> 57.4228265 | AA83: =P83/[1]人口!$L$39*100000 -> 66.95138625 | AB83: =調整死亡率算出!E89 -> 17.20770637 | AC83: ='12-10 算出'!E89 -> 18.48118819 | AD83: ='12-20 算出'!E89 -> 17.48912598 | AE83: ='12-30 算出'!E89 -> 20.21399661 | AF83: ='12-40 算出'!E89 -> 18.32854186 | AG83: ='12-45 算出'!E89 -> 17.70330459 | AH83: ='12-50 算出'!E89 -> 14.26544057 | AI83: ='12-55 算出'!E89 -> 19.44108211 | AJ83: ='12-60 算出'!E89 -> 16.31408077 | AK83: ='12-70 算出'!E89 -> 13.89095597 | AL83: ='12-75 算出'!E89 -> 16.87608751
E84: 男 | F84: ='12 区別，5歳階級別，選択死因分類別死亡数'!F86 -> 760 | G84: ='12-10'!F86 -> 85 | H84: ='12-20'!F86 -> 113 | I84: ='12-30'!F86 -> 106 | J84: ='12-40'!F86 -> 83 | K84: ='12-45'!F86 -> 56 | L84: ='12-50'!F86 -> 74 | M84: ='12-55'!F86 -> 49 | N84: ='12-60'!F86 -> 68 | O84: ='12-70'!F86 -> 70 | P84: ='12-75'!F86 -> 56 | Q84: =F84/[1]人口!$B$40*100000 -> 83.07363713 | R84: =G84/[1]人口!$C$40*100000 -> 77.38599222 | S84: =H84/[1]人口!$D$40*100000 -> 83.13346968 | T84: =I84/[1]人口!$E$40*100000 -> 84.45744062 | U84: =J84/[1]人口!$F$40*100000 -> 83.32162146 | V84: =K84/[1]人口!$G$40*100000 -> 97.58307631 | W84: =L84/[1]人口!$H$40*100000 -> 72.01806291 | X84: =M84/[1]人口!$I$40*100000 -> 90.16634771 | Y84: =N84/[1]人口!$J$40*100000 -> 107.0293071 | Z84: =O84/[1]人口!$K$40*100000 -> 70.34539589 | AA84: =P84/[1]人口!$L$40*100000 -> 84.28784298 | AB84: =調整死亡率算出!E90 -> 28.51710586 | AC84: ='12-10 算出'!E90 -> 31.39367199 | AD84: ='12-20 算出'!E90 -> 28.1994122 | AE84: ='12-30 算出'!E90 -> 32.40178158 | AF84: ='12-40 算出'!E90 -> 31.67940727 | AG84: ='12-45 算出'!E90 -> 29.47240014 | AH84: ='12-50 算出'!E90 -> 24.41307175 | AI84: ='12-55 算出'!E90 -> 32.0408187 | AJ84: ='12-60 算出'!E90 -> 25.78569902 | AK84: ='12-70 算出'!E90 -> 23.58740566 | AL84: ='12-75 算出'!E90 -> 27.54432638
E85: 女 | F85: ='12 区別，5歳階級別，選択死因分類別死亡数'!F87 -> 588 | G85: ='12-10'!F87 -> 72 | H85: ='12-20'!F87 -> 99 | I85: ='12-30'!F87 -> 86 | J85: ='12-40'!F87 -> 61 | K85: ='12-45'!F87 -> 42 | L85: ='12-50'!F87 -> 56 | M85: ='12-55'!F87 -> 33 | N85: ='12-60'!F87 -> 46 | O85: ='12-70'!F87 -> 54 | P85: ='12-75'!F87 -> 39 | Q85: =F85/[1]人口!$B$41*100000 -> 55.94198017 | R85: =G85/[1]人口!$C$41*100000 -> 54.10401497 | S85: =H85/[1]人口!$D$41*100000 -> 65.05112098 | T85: =I85/[1]人口!$E$41*100000 -> 62.01505668 | U85: =J85/[1]人口!$F$41*100000 -> 54.52172825 | V85: =K85/[1]人口!$G$41*100000 -> 61.00838139 | W85: =L85/[1]人口!$H$41*100000 -> 46.94442116 | X85: =M85/[1]人口!$I$41*100000 -> 54.16228992 | Y85: =N85/[1]人口!$J$41*100000 -> 61.89700876 | Z85: =O85/[1]人口!$K$41*100000 -> 46.378604 | AA85: =P85/[1]人口!$L$41*100000 -> 51.68643562 | AB85: =調整死亡率算出!E91 -> 10.24582173 | AC85: ='12-10 算出'!E91 -> 11.18416238 | AD85: ='12-20 算出'!E91 -> 11.01272658 | AE85: ='12-30 算出'!E91 -> 12.63470009 | AF85: ='12-40 算出'!E91 -> 10.01022506 | AG85: ='12-45 算出'!E91 -> 9.881253468 | AH85: ='12-50 算出'!E91 -> 8.429724218 | AI85: ='12-55 算出'!E91 -> 11.18273335 | AJ85: ='12-60 算出'!E91 -> 10.73660274 | AK85: ='12-70 算出'!E91 -> 7.722314019 | AL85: ='12-75 算出'!E91 -> 10.46765771
A86: Se 27 | B86: 慢性閉塞性肺疾患 | E86: 総数 | F86: ='12 区別，5歳階級別，選択死因分類別死亡数'!F88 -> 223 | G86: ='12-10'!F88 -> 26 | H86: ='12-20'!F88 -> 26 | I86: ='12-30'!F88 -> 29 | J86: ='12-40'!F88 -> 21 | K86: ='12-45'!F88 -> 13 | L86: ='12-50'!F88 -> 27 | M86: ='12-55'!F88 -> 15 | N86: ='12-60'!F88 -> 20 | O86: ='12-70'!F88 -> 20 | P86: ='12-75'!F88 -> 26 | Q86: =F86/[1]人口!$B$39*100000 -> 11.34317426 | R86: =G86/[1]人口!$C$39*100000 -> 10.70328838 | S86: =H86/[1]人口!$D$39*100000 -> 9.024205696 | T86: =I86/[1]人口!$E$39*100000 -> 10.97723926 | U86: =J86/[1]人口!$F$39*100000 -> 9.929265802 | V86: =K86/[1]人口!$G$39*100000 -> 10.29866117 | W86: =L86/[1]人口!$H$39*100000 -> 12.15986165 | X86: =M86/[1]人口!$I$39*100000 -> 13.0127004 | Y86: =N86/[1]人口!$J$39*100000 -> 14.50841851 | Z86: =O86/[1]人口!$K$39*100000 -> 9.26174621 | AA86: =P86/[1]人口!$L$39*100000 -> 18.32353729 | AB86: =調整死亡率算出!E92 -> 3.175376132 | AC86: ='12-10 算出'!E92 -> 3.814839449 | AD86: ='12-20 算出'!E92 -> 2.473912959 | AE86: ='12-30 算出'!E92 -> 3.014589726 | AF86: ='12-40 算出'!E92 -> 3.000820394 | AG86: ='12-45 算出'!E92 -> 2.610094014 | AH86: ='12-50 算出'!E92 -> 3.783310926 | AI86: ='12-55 算出'!E92 -> 3.872912074 | AJ86: ='12-60 算出'!E92 -> 3.297035883 | AK86: ='12-70 算出'!E92 -> 2.114904333 | AL86: ='12-75 算出'!E92 -> 4.876256801
E87: 男 | F87: ='12 区別，5歳階級別，選択死因分類別死亡数'!F89 -> 186 | G87: ='12-10'!F89 -> 23 | H87: ='12-20'!F89 -> 21 | I87: ='12-30'!F89 -> 24 | J87: ='12-40'!F89 -> 17 | K87: ='12-45'!F89 -> 10 | L87: ='12-50'!F89 -> 22 | M87: ='12-55'!F89 -> 14 | N87: ='12-60'!F89 -> 17 | O87: ='12-70'!F89 -> 18 | P87: ='12-75'!F89 -> 20 | Q87: =F87/[1]人口!$B$40*100000 -> 20.33117961 | R87: =G87/[1]人口!$C$40*100000 -> 20.93973907 | S87: =H87/[1]人口!$D$40*100000 -> 15.44958286 | T87: =I87/[1]人口!$E$40*100000 -> 19.12243939 | U87: =J87/[1]人口!$F$40*100000 -> 17.06587427 | V87: =K87/[1]人口!$G$40*100000 -> 17.42554934 | W87: =L87/[1]人口!$H$40*100000 -> 21.41077546 | X87: =M87/[1]人口!$I$40*100000 -> 25.76181363 | Y87: =N87/[1]人口!$J$40*100000 -> 26.75732679 | Z87: =O87/[1]人口!$K$40*100000 -> 18.08881609 | AA87: =P87/[1]人口!$L$40*100000 -> 30.10280107 | AB87: =調整死亡率算出!E93 -> 7.015547678 | AC87: ='12-10 算出'!E93 -> 9.154836581 | AD87: ='12-20 算出'!E93 -> 5.174011383 | AE87: ='12-30 算出'!E93 -> 6.905038377 | AF87: ='12-40 算出'!E93 -> 6.743885027 | AG87: ='12-45 算出'!E93 -> 5.200360978 | AH87: ='12-50 算出'!E93 -> 8.101550388 | AI87: ='12-55 算出'!E93 -> 9.210968996 | AJ87: ='12-60 算出'!E93 -> 6.829460801 | AK87: ='12-70 算出'!E93 -> 5.404794683 | AL87: ='12-75 算出'!E93 -> 9.930257432
E88: 女 | F88: ='12 区別，5歳階級別，選択死因分類別死亡数'!F90 -> 37 | G88: ='12-10'!F90 -> 3 | H88: ='12-20'!F90 -> 5 | I88: ='12-30'!F90 -> 5 | J88: ='12-40'!F90 -> 4 | K88: ='12-45'!F90 -> 3 | L88: ='12-50'!F90 -> 5 | M88: ='12-55'!F90 -> 1 | N88: ='12-60'!F90 -> 3 | O88: ='12-70'!F90 -> 2 | P88: ='12-75'!F90 -> 6 | Q88: =F88/[1]人口!$B$41*100000 -> 3.520158616 | R88: =G88/[1]人口!$C$41*100000 -> 2.254333957 | S88: =H88/[1]人口!$D$41*100000 -> 3.285410151 | T88: =I88/[1]人口!$E$41*100000 -> 3.605526551 | U88: =J88/[1]人口!$F$41*100000 -> 3.575195295 | V88: =K88/[1]人口!$G$41*100000 -> 4.357741528 | W88: =L88/[1]人口!$H$41*100000 -> 4.191466175 | X88: =M88/[1]人口!$I$41*100000 -> 1.641281513 | Y88: =N88/[1]人口!$J$41*100000 -> 4.036761441 | Z88: =O88/[1]人口!$K$41*100000 -> 1.717726074 | AA88: =P88/[1]人口!$L$41*100000 -> 7.951759327 | AB88: =調整死亡率算出!E94 -> 0.8938898598 | AC88: ='12-10 算出'!E94 -> 0.85516736 | AD88: ='12-20 算出'!E94 -> 1.012877175 | AE88: ='12-30 算出'!E94 -> 0.8490129206 | AF88: ='12-40 算出'!E94 -> 0.600471074 | AG88: ='12-45 算出'!E94 -> 1.027260402 | AH88: ='12-50 算出'!E94 -> 1.076979319 | AI88: ='12-55 算出'!E94 -> 0.4832042648 | AJ88: ='12-60 算出'!E94 -> 1.081901886 | AK88: ='12-70 算出'!E94 -> 0.328255293 | AL88: ='12-75 算出'!E94 -> 1.682717586
A89: Se 28 | B89: 喘 息 | E89: 総数 | F89: ='12 区別，5歳階級別，選択死因分類別死亡数'!F91 -> 26 | G89: ='12-10'!F91 -> 3 | H89: ='12-20'!F91 -> 5 | I89: ='12-30'!F91 -> 2 | J89: ='12-40'!F91 -> 4 | K89: ='12-45'!F91 -> 2 | L89: ='12-50'!F91 -> 4 | M89: ='12-55'!F91 -> 1 | N89: ='12-60'!F91 -> 2 | O89: ='12-70'!F91 -> 1 | P89: ='12-75'!F91 -> 2 | Q89: =F89/[1]人口!$B$39*100000 -> 1.322522559 | R89: =G89/[1]人口!$C$39*100000 -> 1.234994813 | S89: =H89/[1]人口!$D$39*100000 -> 1.735424172 | T89: =I89/[1]人口!$E$39*100000 -> 0.7570509836 | U89: =J89/[1]人口!$F$39*100000 -> 1.891288724 | V89: =K89/[1]人口!$G$39*100000 -> 1.584409411 | W89: =L89/[1]人口!$H$39*100000 -> 1.801460985 | X89: =M89/[1]人口!$I$39*100000 -> 0.8675133597 | Y89: =N89/[1]人口!$J$39*100000 -> 1.450841851 | Z89: =O89/[1]人口!$K$39*100000 -> 0.4630873105 | AA89: =P89/[1]人口!$L$39*100000 -> 1.409502868 | AB89: =調整死亡率算出!E95 -> 0.3693795396 | AC89: ='12-10 算出'!E95 -> 0.3578019243 | AD89: ='12-20 算出'!E95 -> 0.6005122585 | AE89: ='12-30 算出'!E95 -> 0.1346224323 | AF89: ='12-40 算出'!E95 -> 0.4775641913 | AG89: ='12-45 算出'!E95 -> 0.2409072282 | AH89: ='12-50 算出'!E95 -> 0.6783807602 | AI89: ='12-55 算出'!E95 -> 0.1427139273 | AJ89: ='12-60 算出'!E95 -> 0.7929264857 | AK89: ='12-70 算出'!E95 -> 0.07092986244 | AL89: ='12-75 算出'!E95 -> 0.2103176851
E90: 男 | F90: ='12 区別，5歳階級別，選択死因分類別死亡数'!F92 -> 5 | G90: ='12-10'!F92 -> 0 | H90: ='12-20'!F92 -> 1 | I90: ='12-30'!F92 -> 1 | J90: ='12-40'!F92 -> 2 | K90: ='12-45'!F92 -> 0 | L90: ='12-50'!F92 -> 1 | M90: ='12-55'!F92 -> 0 | N90: ='12-60'!F92 -> 0 | O90: ='12-70'!F92 -> 0 | P90: ='12-75'!F92 -> 0 | Q90: =F90/[1]人口!$B$40*100000 -> 0.5465370864 | R90: =G90/[1]人口!$C$40*100000 -> 0 | S90: =H90/[1]人口!$D$40*100000 -> 0.735694422 | T90: =I90/[1]人口!$E$40*100000 -> 0.7967683077 | U90: =J90/[1]人口!$F$40*100000 -> 2.007749915 | V90: =K90/[1]人口!$G$40*100000 -> 0 | W90: =L90/[1]人口!$H$40*100000 -> 0.9732170663 | X90: =M90/[1]人口!$I$40*100000 -> 0 | Y90: =N90/[1]人口!$J$40*100000 -> 0 | Z90: =O90/[1]人口!$K$40*100000 -> 0 | AA90: =P90/[1]人口!$L$40*100000 -> 0 | AB90: =調整死亡率算出!E96 -> 0.165292246 | AC90: ='12-10 算出'!E96 -> 0 | AD90: ='12-20 算出'!E96 -> 0.2859973371 | AE90: ='12-30 算出'!E96 -> 0.2263105924 | AF90: ='12-40 算出'!E96 -> 0.7021100391 | AG90: ='12-45 算出'!E96 -> 0 | AH90: ='12-50 算出'!E96 -> 0.2449359286 | AI90: ='12-55 算出'!E96 -> 0 | AJ90: ='12-60 算出'!E96 -> 0 | AK90: ='12-70 算出'!E96 -> 0 | AL90: ='12-75 算出'!E96 -> 0
E91: 女 | F91: ='12 区別，5歳階級別，選択死因分類別死亡数'!F93 -> 21 | G91: ='12-10'!F93 -> 3 | H91: ='12-20'!F93 -> 4 | I91: ='12-30'!F93 -> 1 | J91: ='12-40'!F93 -> 2 | K91: ='12-45'!F93 -> 2 | L91: ='12-50'!F93 -> 3 | M91: ='12-55'!F93 -> 1 | N91: ='12-60'!F93 -> 2 | O91: ='12-70'!F93 -> 1 | P91: ='12-75'!F93 -> 2 | Q91: =F91/[1]人口!$B$41*100000 -> 1.997927863 | R91: =G91/[1]人口!$C$41*100000 -> 2.254333957 | S91: =H91/[1]人口!$D$41*100000 -> 2.62832812 | T91: =I91/[1]人口!$E$41*100000 -> 0.7211053102 | U91: =J91/[1]人口!$F$41*100000 -> 1.787597648 | V91: =K91/[1]人口!$G$41*100000 -> 2.905161019 | W91: =L91/[1]人口!$H$41*100000 -> 2.514879705 | X91: =M91/[1]人口!$I$41*100000 -> 1.641281513 | Y91: =N91/[1]人口!$J$41*100000 -> 2.691174294 | Z91: =O91/[1]人口!$K$41*100000 -> 0.8588630371 | AA91: =P91/[1]人口!$L$41*100000 -> 2.650586442 | AB91: =調整死亡率算出!E97 -> 0.5258662387 | AC91: ='12-10 算出'!E97 -> 0.5487285931 | AD91: ='12-20 算出'!E97 -> 0.8528767725 | AE91: ='12-30 算出'!E97 -> 0.09580692429 | AF91: ='12-40 算出'!E97 -> 0.364833147 | AG91: ='12-45 算出'!E97 -> 0.3473352017 | AH91: ='12-50 算出'!E97 -> 1.096641675 | AI91: ='12-55 算出'!E97 -> 0.2045103564 | AJ91: ='12-60 算出'!E97 -> 1.449325958 | AK91: ='12-70 算出'!E97 -> 0.1015541455 | AL91: ='12-75 算出'!E97 -> 0.2972067971
A92: Se 29 | B92: 肝 疾 患 | E92: 総数 | F92: ='12 区別，5歳階級別，選択死因分類別死亡数'!F94 -> 245 | G92: ='12-10'!F94 -> 22 | H92: ='12-20'!F94 -> 29 | I92: ='12-30'!F94 -> 37 | J92: ='12-40'!F94 -> 33 | K92: ='12-45'!F94 -> 20 | L92: ='12-50'!F94 -> 30 | M92: ='12-55'!F94 -> 13 | N92: ='12-60'!F94 -> 16 | O92: ='12-70'!F94 -> 25 | P92: ='12-75'!F94 -> 20 | Q92: =F92/[1]人口!$B$39*100000 -> 12.46223181 | R92: =G92/[1]人口!$C$39*100000 -> 9.056628629 | S92: =H92/[1]人口!$D$39*100000 -> 10.0654602 | T92: =I92/[1]人口!$E$39*100000 -> 14.0054432 | U92: =J92/[1]人口!$F$39*100000 -> 15.60313197 | V92: =K92/[1]人口!$G$39*100000 -> 15.84409411 | W92: =L92/[1]人口!$H$39*100000 -> 13.51095739 | X92: =M92/[1]人口!$I$39*100000 -> 11.27767368 | Y92: =N92/[1]人口!$J$39*100000 -> 11.60673481 | Z92: =O92/[1]人口!$K$39*100000 -> 11.57718276 | AA92: =P92/[1]人口!$L$39*100000 -> 14.09502868 | AB92: =調整死亡率算出!E98 -> 7.017360326 | AC92: ='12-10 算出'!E98 -> 5.379314589 | AD92: ='12-20 算出'!E98 -> 6.113579815 | AE92: ='12-30 算出'!E98 -> 7.761479063 | AF92: ='12-40 算出'!E98 -> 8.912657816 | AG92: ='12-45 算出'!E98 -> 6.199138906 | AH92: ='12-50 算出'!E98 -> 8.624857437 | AI92: ='12-55 算出'!E98 -> 8.387432577 | AJ92: ='12-60 算出'!E98 -> 6.971245497 | AK92: ='12-70 算出'!E98 -> 6.181158569 | AL92: ='12-75 算出'!E98 -> 7.090169163
E93: 男 | F93: ='12 区別，5歳階級別，選択死因分類別死亡数'!F95 -> 157 | G93: ='12-10'!F95 -> 15 | H93: ='12-20'!F95 -> 23 | I93: ='12-30'!F95 -> 21 | J93: ='12-40'!F95 -> 22 | K93: ='12-45'!F95 -> 14 | L93: ='12-50'!F95 -> 21 | M93: ='12-55'!F95 -> 8 | N93: ='12-60'!F95 -> 7 | O93: ='12-70'!F95 -> 16 | P93: ='12-75'!F95 -> 10 | Q93: =F93/[1]人口!$B$40*100000 -> 17.16126451 | R93: =G93/[1]人口!$C$40*100000 -> 13.65635157 | S93: =H93/[1]人口!$D$40*100000 -> 16.92097171 | T93: =I93/[1]人口!$E$40*100000 -> 16.73213446 | U93: =J93/[1]人口!$F$40*100000 -> 22.08524906 | V93: =K93/[1]人口!$G$40*100000 -> 24.39576908 | W93: =L93/[1]人口!$H$40*100000 -> 20.43755839 | X93: =M93/[1]人口!$I$40*100000 -> 14.72103636 | Y93: =N93/[1]人口!$J$40*100000 -> 11.01772279 | Z93: =O93/[1]人口!$K$40*100000 -> 16.07894763 | AA93: =P93/[1]人口!$L$40*100000 -> 15.05140053 | AB93: =調整死亡率算出!E99 -> 10.52244134 | AC93: ='12-10 算出'!E99 -> 9.412202243 | AD93: ='12-20 算出'!E99 -> 11.41500439 | AE93: ='12-30 算出'!E99 -> 10.18732791 | AF93: ='12-40 算出'!E99 -> 12.87444124 | AG93: ='12-45 算出'!E99 -> 11.42389077 | AH93: ='12-50 算出'!E99 -> 13.6446668 | AI93: ='12-55 算出'!E99 -> 12.73382356 | AJ93: ='12-60 算出'!E99 -> 7.61581491 | AK93: ='12-70 算出'!E99 -> 9.64383777 | AL93: ='12-75 算出'!E99 -> 6.755013627
E94: 女 | F94: ='12 区別，5歳階級別，選択死因分類別死亡数'!F96 -> 88 | G94: ='12-10'!F96 -> 7 | H94: ='12-20'!F96 -> 6 | I94: ='12-30'!F96 -> 16 | J94: ='12-40'!F96 -> 11 | K94: ='12-45'!F96 -> 6 | L94: ='12-50'!F96 -> 9 | M94: ='12-55'!F96 -> 5 | N94: ='12-60'!F96 -> 9 | O94: ='12-70'!F96 -> 9 | P94: ='12-75'!F96 -> 10 | Q94: =F94/[1]人口!$B$41*100000 -> 8.372269142 | R94: =G94/[1]人口!$C$41*100000 -> 5.260112566 | S94: =H94/[1]人口!$D$41*100000 -> 3.942492181 | T94: =I94/[1]人口!$E$41*100000 -> 11.53768496 | U94: =J94/[1]人口!$F$41*100000 -> 9.831787061 | V94: =K94/[1]人口!$G$41*100000 -> 8.715483056 | W94: =L94/[1]人口!$H$41*100000 -> 7.544639115 | X94: =M94/[1]人口!$I$41*100000 -> 8.206407563 | Y94: =N94/[1]人口!$J$41*100000 -> 12.11028432 | Z94: =O94/[1]人口!$K$41*100000 -> 7.729767334 | AA94: =P94/[1]人口!$L$41*100000 -> 13.25293221 | AB94: =調整死亡率算出!E100 -> 4.063182398 | AC94: ='12-10 算出'!E100 -> 2.133146804 | AD94: ='12-20 算出'!E100 -> 1.387507299 | AE94: ='12-30 算出'!E100 -> 5.775252651 | AF94: ='12-40 算出'!E100 -> 5.772055886 | AG94: ='12-45 算出'!E100 -> 1.925234959 | AH94: ='12-50 算出'!E100 -> 4.514225944 | AI94: ='12-55 算出'!E100 -> 4.503499042 | AJ94: ='12-60 算出'!E100 -> 6.264750076 | AK94: ='12-70 算出'!E100 -> 3.167760959 | AL94: ='12-75 算出'!E100 -> 7.562894448
A95: Se 30 | B95: 腎 不 全 | E95: 総数 | F95: ='12 区別，5歳階級別，選択死因分類別死亡数'!F97 -> 412 | G95: ='12-10'!F97 -> 47 | H95: ='12-20'!F97 -> 47 | I95: ='12-30'!F97 -> 57 | J95: ='12-40'!F97 -> 40 | K95: ='12-45'!F97 -> 33 | L95: ='12-50'!F97 -> 32 | M95: ='12-55'!F97 -> 30 | N95: ='12-60'!F97 -> 43 | O95: ='12-70'!F97 -> 45 | P95: ='12-75'!F97 -> 38 | Q95: =F95/[1]人口!$B$39*100000 -> 20.95689594 | R95: =G95/[1]人口!$C$39*100000 -> 19.34825207 | S95: =H95/[1]人口!$D$39*100000 -> 16.31298722 | T95: =I95/[1]人口!$E$39*100000 -> 21.57595303 | U95: =J95/[1]人口!$F$39*100000 -> 18.91288724 | V95: =K95/[1]人口!$G$39*100000 -> 26.14275529 | W95: =L95/[1]人口!$H$39*100000 -> 14.41168788 | X95: =M95/[1]人口!$I$39*100000 -> 26.02540079 | Y95: =N95/[1]人口!$J$39*100000 -> 31.1930998 | Z95: =O95/[1]人口!$K$39*100000 -> 20.83892897 | AA95: =P95/[1]人口!$L$39*100000 -> 26.7805545 | AB95: =調整死亡率算出!E101 -> 5.745246634 | AC95: ='12-10 算出'!E101 -> 5.670916303 | AD95: ='12-20 算出'!E101 -> 4.467119648 | AE95: ='12-30 算出'!E101 -> 6.103866213 | AF95: ='12-40 算出'!E101 -> 5.58300357 | AG95: ='12-45 算出'!E101 -> 6.053229385 | AH95: ='12-50 算出'!E101 -> 4.084434048 | AI95: ='12-55 算出'!E101 -> 8.400932753 | AJ95: ='12-60 算出'!E101 -> 6.760461471 | AK95: ='12-70 算出'!E101 -> 5.686252068 | AL95: ='12-75 算出'!E101 -> 6.460958048
E96: 男 | F96: ='12 区別，5歳階級別，選択死因分類別死亡数'!F98 -> 203 | G96: ='12-10'!F98 -> 16 | H96: ='12-20'!F98 -> 19 | I96: ='12-30'!F98 -> 23 | J96: ='12-40'!F98 -> 18 | K96: ='12-45'!F98 -> 18 | L96: ='12-50'!F98 -> 16 | M96: ='12-55'!F98 -> 21 | N96: ='12-60'!F98 -> 27 | O96: ='12-70'!F98 -> 26 | P96: ='12-75'!F98 -> 19 | Q96: =F96/[1]人口!$B$40*100000 -> 22.18940571 | R96: =G96/[1]人口!$C$40*100000 -> 14.56677501 | S96: =H96/[1]人口!$D$40*100000 -> 13.97819402 | T96: =I96/[1]人口!$E$40*100000 -> 18.32567108 | U96: =J96/[1]人口!$F$40*100000 -> 18.06974923 | V96: =K96/[1]人口!$G$40*100000 -> 31.36598881 | W96: =L96/[1]人口!$H$40*100000 -> 15.57147306 | X96: =M96/[1]人口!$I$40*100000 -> 38.64272045 | Y96: =N96/[1]人口!$J$40*100000 -> 42.49693078 | Z96: =O96/[1]人口!$K$40*100000 -> 26.1282899 | AA96: =P96/[1]人口!$L$40*100000 -> 28.59766101 | AB96: =調整死亡率算出!E102 -> 8.16803214 | AC96: ='12-10 算出'!E102 -> 5.388913397 | AD96: ='12-20 算出'!E102 -> 4.501381879 | AE96: ='12-30 算出'!E102 -> 7.53359251 | AF96: ='12-40 算出'!E102 -> 7.544313785 | AG96: ='12-45 算出'!E102 -> 9.149905277 | AH96: ='12-50 算出'!E102 -> 6.21479748 | AI96: ='12-55 算出'!E102 -> 14.79236376 | AJ96: ='12-60 算出'!E102 -> 12.35201471 | AK96: ='12-70 算出'!E102 -> 9.447139696 | AL96: ='12-75 算出'!E102 -> 9.954078833
E97: 女 | F97: ='12 区別，5歳階級別，選択死因分類別死亡数'!F99 -> 209 | G97: ='12-10'!F99 -> 31 | H97: ='12-20'!F99 -> 28 | I97: ='12-30'!F99 -> 34 | J97: ='12-40'!F99 -> 22 | K97: ='12-45'!F99 -> 15 | L97: ='12-50'!F99 -> 16 | M97: ='12-55'!F99 -> 9 | N97: ='12-60'!F99 -> 16 | O97: ='12-70'!F99 -> 19 | P97: ='12-75'!F99 -> 19 | Q97: =F97/[1]人口!$B$41*100000 -> 19.88413921 | R97: =G97/[1]人口!$C$41*100000 -> 23.29478422 | S97: =H97/[1]人口!$D$41*100000 -> 18.39829684 | T97: =I97/[1]人口!$E$41*100000 -> 24.51758055 | U97: =J97/[1]人口!$F$41*100000 -> 19.66357412 | V97: =K97/[1]人口!$G$41*100000 -> 21.78870764 | W97: =L97/[1]人口!$H$41*100000 -> 13.41269176 | X97: =M97/[1]人口!$I$41*100000 -> 14.77153361 | Y97: =N97/[1]人口!$J$41*100000 -> 21.52939435 | Z97: =O97/[1]人口!$K$41*100000 -> 16.31839771 | AA97: =P97/[1]人口!$L$41*100000 -> 25.1805712 | AB97: =調整死亡率算出!E103 -> 4.133416531 | AC97: ='12-10 算出'!E103 -> 6.128449542 | AD97: ='12-20 算出'!E103 -> 4.85833771 | AE97: ='12-30 算出'!E103 -> 5.004227746 | AF97: ='12-40 算出'!E103 -> 4.123238677 | AG97: ='12-45 算出'!E103 -> 4.113005154 | AH97: ='12-50 算出'!E103 -> 2.611340485 | AI97: ='12-55 算出'!E103 -> 3.959592123 | AJ97: ='12-60 算出'!E103 -> 2.633786631 | AK97: ='12-70 算出'!E103 -> 3.122231549 | AL97: ='12-75 算出'!E103 -> 3.476561725
A98: Se 31 | B98: 老 衰 | E98: 総数 | F98: ='12 区別，5歳階級別，選択死因分類別死亡数'!F100 -> 1019 | G98: ='12-10'!F100 -> 118 | H98: ='12-20'!F100 -> 130 | I98: ='12-30'!F100 -> 123 | J98: ='12-40'!F100 -> 87 | K98: ='12-45'!F100 -> 70 | L98: ='12-50'!F100 -> 148 | M98: ='12-55'!F100 -> 73 | N98: ='12-60'!F100 -> 103 | O98: ='12-70'!F100 -> 105 | P98: ='12-75'!F100 -> 62 | Q98: =F98/[1]人口!$B$39*100000 -> 51.83271107 | R98: =G98/[1]人口!$C$39*100000 -> 48.57646265 | S98: =H98/[1]人口!$D$39*100000 -> 45.12102848 | T98: =I98/[1]人口!$E$39*100000 -> 46.55863549 | U98: =J98/[1]人口!$F$39*100000 -> 41.13552975 | V98: =K98/[1]人口!$G$39*100000 -> 55.4543294 | W98: =L98/[1]人口!$H$39*100000 -> 66.65405644 | X98: =M98/[1]人口!$I$39*100000 -> 63.32847526 | Y98: =N98/[1]人口!$J$39*100000 -> 74.71835533 | Z98: =O98/[1]人口!$K$39*100000 -> 48.6241676 | AA98: =P98/[1]人口!$L$39*100000 -> 43.69458892 | AB98: =調整死亡率算出!E104 -> 9.26230555 | AC98: ='12-10 算出'!E104 -> 9.236878684 | AD98: ='12-20 算出'!E104 -> 8.345347217 | AE98: ='12-30 算出'!E104 -> 8.68281172 | AF98: ='12-40 算出'!E104 -> 8.687145514 | AG98: ='12-45 算出'!E104 -> 8.625047512 | AH98: ='12-50 算出'!E104 -> 12.27811448 | AI98: ='12-55 算出'!E104 -> 11.38963264 | AJ98: ='12-60 算出'!E104 -> 10.29530119 | AK98: ='12-70 算出'!E104 -> 8.324092023 | AL98: ='12-75 算出'!E104 -> 7.558134675
E99: 男 | F99: ='12 区別，5歳階級別，選択死因分類別死亡数'!F101 -> 269 | G99: ='12-10'!F101 -> 28 | H99: ='12-20'!F101 -> 26 | I99: ='12-30'!F101 -> 33 | J99: ='12-40'!F101 -> 25 | K99: ='12-45'!F101 -> 17 | L99: ='12-50'!F101 -> 41 | M99: ='12-55'!F101 -> 16 | N99: ='12-60'!F101 -> 24 | O99: ='12-70'!F101 -> 36 | P99: ='12-75'!F101 -> 23 | Q99: =F99/[1]人口!$B$40*100000 -> 29.40369525 | R99: =G99/[1]人口!$C$40*100000 -> 25.49185626 | S99: =H99/[1]人口!$D$40*100000 -> 19.12805497 | T99: =I99/[1]人口!$E$40*100000 -> 26.29335416 | U99: =J99/[1]人口!$F$40*100000 -> 25.09687393 | V99: =K99/[1]人口!$G$40*100000 -> 29.62343388 | W99: =L99/[1]人口!$H$40*100000 -> 39.90189972 | X99: =M99/[1]人口!$I$40*100000 -> 29.44207272 | Y99: =N99/[1]人口!$J$40*100000 -> 37.77504958 | Z99: =O99/[1]人口!$K$40*100000 -> 36.17763217 | AA99: =P99/[1]人口!$L$40*100000 -> 34.61822123 | AB99: =調整死亡率算出!E105 -> 8.034626619 | AC99: ='12-10 算出'!E105 -> 7.620152509 | AD99: ='12-20 算出'!E105 -> 5.606566091 | AE99: ='12-30 算出'!E105 -> 7.744034217 | AF99: ='12-40 算出'!E105 -> 8.156280324 | AG99: ='12-45 算出'!E105 -> 6.682850785 | AH99: ='12-50 算出'!E105 -> 11.30439117 | AI99: ='12-55 算出'!E105 -> 8.349490998 | AJ99: ='12-60 算出'!E105 -> 7.833561571 | AK99: ='12-70 算出'!E105 -> 9.075698988 | AL99: ='12-75 算出'!E105 -> 8.709400004
E100: 女 | F100: ='12 区別，5歳階級別，選択死因分類別死亡数'!F102 -> 750 | G100: ='12-10'!F102 -> 90 | H100: ='12-20'!F102 -> 104 | I100: ='12-30'!F102 -> 90 | J100: ='12-40'!F102 -> 62 | K100: ='12-45'!F102 -> 53 | L100: ='12-50'!F102 -> 107 | M100: ='12-55'!F102 -> 57 | N100: ='12-60'!F102 -> 79 | O100: ='12-70'!F102 -> 69 | P100: ='12-75'!F102 -> 39 | Q100: =F100/[1]人口!$B$41*100000 -> 71.35456655 | R100: =G100/[1]人口!$C$41*100000 -> 67.63001871 | S100: =H100/[1]人口!$D$41*100000 -> 68.33653113 | T100: =I100/[1]人口!$E$41*100000 -> 64.89947792 | U100: =J100/[1]人口!$F$41*100000 -> 55.41552707 | V100: =K100/[1]人口!$G$41*100000 -> 76.98676699 | W100: =L100/[1]人口!$H$41*100000 -> 89.69737614 | X100: =M100/[1]人口!$I$41*100000 -> 93.55304622 | Y100: =N100/[1]人口!$J$41*100000 -> 106.3013846 | Z100: =O100/[1]人口!$K$41*100000 -> 59.26154956 | AA100: =P100/[1]人口!$L$41*100000 -> 51.68643562 | AB100: =調整死亡率算出!E106 -> 9.757280015 | AC100: ='12-10 算出'!E106 -> 9.89000549 | AD100: ='12-20 算出'!E106 -> 9.489750051 | AE100: ='12-30 算出'!E106 -> 9.09882641 | AF100: ='12-40 算出'!E106 -> 8.902417293 | AG100: ='12-45 算出'!E106 -> 9.574807002 | AH100: ='12-50 算出'!E106 -> 12.53858233 | AI100: ='12-55 算出'!E106 -> 12.68015048 | AJ100: ='12-60 算出'!E106 -> 11.26351666 | AK100: ='12-70 算出'!E106 -> 8.008412057 | AL100: ='12-75 算出'!E106 -> 7.239726891
A101: Se 32 | B101: 不慮の事故 | E101: 総数 | F101: ='12 区別，5歳階級別，選択死因分類別死亡数'!F103 -> 483 | G101: ='12-10'!F103 -> 55 | H101: ='12-20'!F103 -> 62 | I101: ='12-30'!F103 -> 59 | J101: ='12-40'!F103 -> 56 | K101: ='12-45'!F103 -> 26 | L101: ='12-50'!F103 -> 59 | M101: ='12-55'!F103 -> 26 | N101: ='12-60'!F103 -> 46 | O101: ='12-70'!F103 -> 55 | P101: ='12-75'!F103 -> 39 | Q101: =F101/[1]人口!$B$39*100000 -> 24.56839985 | R101: =G101/[1]人口!$C$39*100000 -> 22.64157157 | S101: =H101/[1]人口!$D$39*100000 -> 21.51925974 | T101: =I101/[1]人口!$E$39*100000 -> 22.33300402 | U101: =J101/[1]人口!$F$39*100000 -> 26.47804214 | V101: =K101/[1]人口!$G$39*100000 -> 20.59732235 | W101: =L101/[1]人口!$H$39*100000 -> 26.57154953 | X101: =M101/[1]人口!$I$39*100000 -> 22.55534735 | Y101: =N101/[1]人口!$J$39*100000 -> 33.36936257 | Z101: =O101/[1]人口!$K$39*100000 -> 25.46980208 | AA101: =P101/[1]人口!$L$39*100000 -> 27.48530593 | AB101: =調整死亡率算出!E107 -> 10.7466828 | AC101: ='12-10 算出'!E107 -> 11.64216451 | AD101: ='12-20 算出'!E107 -> 10.57607391 | AE101: ='12-30 算出'!E107 -> 9.453364129 | AF101: ='12-40 算出'!E107 -> 13.67821161 | AG101: ='12-45 算出'!E107 -> 7.906314675 | AH101: ='12-50 算出'!E107 -> 11.12133431 | AI101: ='12-55 算出'!E107 -> 10.11111538 | AJ101: ='12-60 算出'!E107 -> 12.50015794 | AK101: ='12-70 算出'!E107 -> 10.37699178 | AL101: ='12-75 算出'!E107 -> 9.752898064
E102: 男 | F102: ='12 区別，5歳階級別，選択死因分類別死亡数'!F104 -> 258 | G102: ='12-10'!F104 -> 22 | H102: ='12-20'!F104 -> 30 | I102: ='12-30'!F104 -> 32 | J102: ='12-40'!F104 -> 32 | K102: ='12-45'!F104 -> 13 | L102: ='12-50'!F104 -> 34 | M102: ='12-55'!F104 -> 19 | N102: ='12-60'!F104 -> 26 | O102: ='12-70'!F104 -> 29 | P102: ='12-75'!F104 -> 21 | Q102: =F102/[1]人口!$B$40*100000 -> 28.20131366 | R102: =G102/[1]人口!$C$40*100000 -> 20.02931563 | S102: =H102/[1]人口!$D$40*100000 -> 22.07083266 | T102: =I102/[1]人口!$E$40*100000 -> 25.49658585 | U102: =J102/[1]人口!$F$40*100000 -> 32.12399863 | V102: =K102/[1]人口!$G$40*100000 -> 22.65321414 | W102: =L102/[1]人口!$H$40*100000 -> 33.08938026 | X102: =M102/[1]人口!$I$40*100000 -> 34.96246136 | Y102: =N102/[1]人口!$J$40*100000 -> 40.92297038 | Z102: =O102/[1]人口!$K$40*100000 -> 29.14309258 | AA102: =P102/[1]人口!$L$40*100000 -> 31.60794112 | AB102: =調整死亡率算出!E108 -> 14.73205686 | AC102: ='12-10 算出'!E108 -> 13.09366416 | AD102: ='12-20 算出'!E108 -> 12.09205468 | AE102: ='12-30 算出'!E108 -> 13.33913157 | AF102: ='12-40 算出'!E108 -> 20.03044309 | AG102: ='12-45 算出'!E108 -> 8.972189031 | AH102: ='12-50 算出'!E108 -> 17.84471732 | AI102: ='12-55 算出'!E108 -> 19.09721148 | AJ102: ='12-60 算出'!E108 -> 15.89331557 | AK102: ='12-70 算出'!E108 -> 14.95527635 | AL102: ='12-75 算出'!E108 -> 13.08403604
E103: 女 | F103: ='12 区別，5歳階級別，選択死因分類別死亡数'!F105 -> 225 | G103: ='12-10'!F105 -> 33 | H103: ='12-20'!F105 -> 32 | I103: ='12-30'!F105 -> 27 | J103: ='12-40'!F105 -> 24 | K103: ='12-45'!F105 -> 13 | L103: ='12-50'!F105 -> 25 | M103: ='12-55'!F105 -> 7 | N103: ='12-60'!F105 -> 20 | O103: ='12-70'!F105 -> 26 | P103: ='12-75'!F105 -> 18 | Q103: =F103/[1]人口!$B$41*100000 -> 21.40636996 | R103: =G103/[1]人口!$C$41*100000 -> 24.79767353 | S103: =H103/[1]人口!$D$41*100000 -> 21.02662496 | T103: =I103/[1]人口!$E$41*100000 -> 19.46984338 | U103: =J103/[1]人口!$F$41*100000 -> 21.45117177 | V103: =K103/[1]人口!$G$41*100000 -> 18.88354662 | W103: =L103/[1]人口!$H$41*100000 -> 20.95733087 | X103: =M103/[1]人口!$I$41*100000 -> 11.48897059 | Y103: =N103/[1]人口!$J$41*100000 -> 26.91174294 | Z103: =O103/[1]人口!$K$41*100000 -> 22.33043896 | AA103: =P103/[1]人口!$L$41*100000 -> 23.85527798 | AB103: =調整死亡率算出!E109 -> 7.622157345 | AC103: ='12-10 算出'!E109 -> 10.41332813 | AD103: ='12-20 算出'!E109 -> 9.519605277 | AE103: ='12-30 算出'!E109 -> 6.261158179 | AF103: ='12-40 算出'!E109 -> 8.086683998 | AG103: ='12-45 算出'!E109 -> 7.416536523 | AH103: ='12-50 算出'!E109 -> 5.759074664 | AI103: ='12-55 算出'!E109 -> 2.776651749 | AJ103: ='12-60 算出'!E109 -> 10.20241673 | AK103: ='12-70 算出'!E109 -> 6.76151487 | AL103: ='12-75 算出'!E109 -> 7.525368146
A104: Se 33 | B104: (再掲) | C104: 交 通 事 故 | E104: 総数 | F104: ='12 区別，5歳階級別，選択死因分類別死亡数'!F106 -> 40 | G104: ='12-10'!F106 -> 5 | H104: ='12-20'!F106 -> 1 | I104: ='12-30'!F106 -> 5 | J104: ='12-40'!F106 -> 5 | K104: ='12-45'!F106 -> 2 | L104: ='12-50'!F106 -> 8 | M104: ='12-55'!F106 -> 3 | N104: ='12-60'!F106 -> 3 | O104: ='12-70'!F106 -> 6 | P104: ='12-75'!F106 -> 2 | Q104: =F104/[1]人口!$B$39*100000 -> 2.034650091 | R104: =G104/[1]人口!$C$39*100000 -> 2.058324688 | S104: =H104/[1]人口!$D$39*100000 -> 0.3470848345 | T104: =I104/[1]人口!$E$39*100000 -> 1.892627459 | U104: =J104/[1]人口!$F$39*100000 -> 2.364110905 | V104: =K104/[1]人口!$G$39*100000 -> 1.584409411 | W104: =L104/[1]人口!$H$39*100000 -> 3.60292197 | X104: =M104/[1]人口!$I$39*100000 -> 2.602540079 | Y104: =N104/[1]人口!$J$39*100000 -> 2.176262776 | Z104: =O104/[1]人口!$K$39*100000 -> 2.778523863 | AA104: =P104/[1]人口!$L$39*100000 -> 1.409502868 | AB104: =調整死亡率算出!E110 -> 1.520371076 | AC104: ='12-10 算出'!E110 -> 1.935462181 | AD104: ='12-20 算出'!E110 -> 0.05870784597 | AE104: ='12-30 算出'!E110 -> 1.25639125 | AF104: ='12-40 算出'!E110 -> 2.470586714 | AG104: ='12-45 算出'!E110 -> 1.389720048 | AH104: ='12-50 算出'!E110 -> 2.370005201 | AI104: ='12-55 算出'!E110 -> 2.423610071 | AJ104: ='12-60 算出'!E110 -> 1.576699409 | AK104: ='12-70 算出'!E110 -> 1.552310294 | AL104: ='12-75 算出'!E110 -> 1.501443679
E105: 男 | F105: ='12 区別，5歳階級別，選択死因分類別死亡数'!F107 -> 20 | G105: ='12-10'!F107 -> 2 | H105: ='12-20'!F107 -> 0 | I105: ='12-30'!F107 -> 3 | J105: ='12-40'!F107 -> 4 | K105: ='12-45'!F107 -> 0 | L105: ='12-50'!F107 -> 5 | M105: ='12-55'!F107 -> 2 | N105: ='12-60'!F107 -> 0 | O105: ='12-70'!F107 -> 3 | P105: ='12-75'!F107 -> 1 | Q105: =F105/[1]人口!$B$40*100000 -> 2.186148345 | R105: =G105/[1]人口!$C$40*100000 -> 1.820846876 | S105: =H105/[1]人口!$D$40*100000 -> 0 | T105: =I105/[1]人口!$E$40*100000 -> 2.390304923 | U105: =J105/[1]人口!$F$40*100000 -> 4.015499829 | V105: =K105/[1]人口!$G$40*100000 -> 0 | W105: =L105/[1]人口!$H$40*100000 -> 4.866085332 | X105: =M105/[1]人口!$I$40*100000 -> 3.68025909 | Y105: =N105/[1]人口!$J$40*100000 -> 0 | Z105: =O105/[1]人口!$K$40*100000 -> 3.014802681 | AA105: =P105/[1]人口!$L$40*100000 -> 1.505140053 | AB105: =調整死亡率算出!E111 -> 1.965191685 | AC105: ='12-10 算出'!E111 -> 2.461326674 | AD105: ='12-20 算出'!E111 -> 0 | AE105: ='12-30 算出'!E111 -> 1.504298827 | AF105: ='12-40 算出'!E111 -> 4.083027258 | AG105: ='12-45 算出'!E111 -> 0 | AH105: ='12-50 算出'!E111 -> 3.838290253 | AI105: ='12-55 算出'!E111 -> 4.264895455 | AJ105: ='12-60 算出'!E111 -> 0 | AK105: ='12-70 算出'!E111 -> 2.400203588 | AL105: ='12-75 算出'!E111 -> 2.472157599
E106: 女 | F106: ='12 区別，5歳階級別，選択死因分類別死亡数'!F108 -> 20 | G106: ='12-10'!F108 -> 3 | H106: ='12-20'!F108 -> 1 | I106: ='12-30'!F108 -> 2 | J106: ='12-40'!F108 -> 1 | K106: ='12-45'!F108 -> 2 | L106: ='12-50'!F108 -> 3 | M106: ='12-55'!F108 -> 1 | N106: ='12-60'!F108 -> 3 | O106: ='12-70'!F108 -> 3 | P106: ='12-75'!F108 -> 1 | Q106: =F106/[1]人口!$B$41*100000 -> 1.902788441 | R106: =G106/[1]人口!$C$41*100000 -> 2.254333957 | S106: =H106/[1]人口!$D$41*100000 -> 0.6570820301 | T106: =I106/[1]人口!$E$41*100000 -> 1.44221062 | U106: =J106/[1]人口!$F$41*100000 -> 0.8937988238 | V106: =K106/[1]人口!$G$41*100000 -> 2.905161019 | W106: =L106/[1]人口!$H$41*100000 -> 2.514879705 | X106: =M106/[1]人口!$I$41*100000 -> 1.641281513 | Y106: =N106/[1]人口!$J$41*100000 -> 4.036761441 | Z106: =O106/[1]人口!$K$41*100000 -> 2.576589111 | AA106: =P106/[1]人口!$L$41*100000 -> 1.325293221 | AB106: =調整死亡率算出!E112 -> 1.07859962 | AC106: ='12-10 算出'!E112 -> 1.337822073 | AD106: ='12-20 算出'!E112 -> 0.08375411282 | AE106: ='12-30 算出'!E112 -> 1.037929164 | AF106: ='12-40 算出'!E112 -> 0.9070973083 | AG106: ='12-45 算出'!E112 -> 2.600787549 | AH106: ='12-50 算出'!E112 -> 1.016439041 | AI106: ='12-55 算出'!E112 -> 0.7135078852 | AJ106: ='12-60 算出'!E112 -> 3.132936598 | AK106: ='12-70 算出'!E112 -> 0.8401708483 | AL106: ='12-75 算出'!E112 -> 0.5354365283
A107: Se 34 | B107: 自 殺 | E107: 総数 | F107: ='12 区別，5歳階級別，選択死因分類別死亡数'!F109 -> 299 | G107: ='12-10'!F109 -> 39 | H107: ='12-20'!F109 -> 37 | I107: ='12-30'!F109 -> 44 | J107: ='12-40'!F109 -> 44 | K107: ='12-45'!F109 -> 16 | L107: ='12-50'!F109 -> 26 | M107: ='12-55'!F109 -> 13 | N107: ='12-60'!F109 -> 22 | O107: ='12-70'!F109 -> 35 | P107: ='12-75'!F109 -> 23 | Q107: =F107/[1]人口!$B$39*100000 -> 15.20900943 | R107: =G107/[1]人口!$C$39*100000 -> 16.05493257 | S107: =H107/[1]人口!$D$39*100000 -> 12.84213888 | T107: =I107/[1]人口!$E$39*100000 -> 16.65512164 | U107: =J107/[1]人口!$F$39*100000 -> 20.80417597 | V107: =K107/[1]人口!$G$39*100000 -> 12.67527529 | W107: =L107/[1]人口!$H$39*100000 -> 11.7094964 | X107: =M107/[1]人口!$I$39*100000 -> 11.27767368 | Y107: =N107/[1]人口!$J$39*100000 -> 15.95926036 | Z107: =O107/[1]人口!$K$39*100000 -> 16.20805587 | AA107: =P107/[1]人口!$L$39*100000 -> 16.20928299 | AB107: =調整死亡率算出!E113 -> 14.32270583 | AC107: ='12-10 算出'!E113 -> 14.78380132 | AD107: ='12-20 算出'!E113 -> 11.38607162 | AE107: ='12-30 算出'!E113 -> 18.226593 | AF107: ='12-40 算出'!E113 -> 18.72023229 | AG107: ='12-45 算出'!E113 -> 8.254348944 | AH107: ='12-50 算出'!E113 -> 10.41888536 | AI107: ='12-55 算出'!E113 -> 11.03759112 | AJ107: ='12-60 算出'!E113 -> 13.74169737 | AK107: ='12-70 算出'!E113 -> 16.02744529 | AL107: ='12-75 算出'!E113 -> 14.78226214
E108: 男 | F108: ='12 区別，5歳階級別，選択死因分類別死亡数'!F110 -> 202 | G108: ='12-10'!F110 -> 30 | H108: ='12-20'!F110 -> 23 | I108: ='12-30'!F110 -> 33 | J108: ='12-40'!F110 -> 28 | K108: ='12-45'!F110 -> 7 | L108: ='12-50'!F110 -> 17 | M108: ='12-55'!F110 -> 11 | N108: ='12-60'!F110 -> 17 | O108: ='12-70'!F110 -> 21 | P108: ='12-75'!F110 -> 15 | Q108: =F108/[1]人口!$B$40*100000 -> 22.08009829 | R108: =G108/[1]人口!$C$40*100000 -> 27.31270314 | S108: =H108/[1]人口!$D$40*100000 -> 16.92097171 | T108: =I108/[1]人口!$E$40*100000 -> 26.29335416 | U108: =J108/[1]人口!$F$40*100000 -> 28.10849881 | V108: =K108/[1]人口!$G$40*100000 -> 12.19788454 | W108: =L108/[1]人口!$H$40*100000 -> 16.54469013 | X108: =M108/[1]人口!$I$40*100000 -> 20.241425 | Y108: =N108/[1]人口!$J$40*100000 -> 26.75732679 | Z108: =O108/[1]人口!$K$40*100000 -> 21.10361877 | AA108: =P108/[1]人口!$L$40*100000 -> 22.5771008 | AB108: =調整死亡率算出!E114 -> 21.19356667 | AC108: ='12-10 算出'!E114 -> 26.38827462 | AD108: ='12-20 算出'!E114 -> 16.64248604 | AE108: ='12-30 算出'!E114 -> 28.70686191 | AF108: ='12-40 算出'!E114 -> 24.97030296 | AG108: ='12-45 算出'!E114 -> 7.337079514 | AH108: ='12-50 算出'!E114 -> 15.42576624 | AI108: ='12-55 算出'!E114 -> 19.55662661 | AJ108: ='12-60 算出'!E114 -> 21.77674761 | AK108: ='12-70 算出'!E114 -> 20.59794697 | AL108: ='12-75 算出'!E114 -> 21.44574764
E109: 女 | F109: ='12 区別，5歳階級別，選択死因分類別死亡数'!F111 -> 97 | G109: ='12-10'!F111 -> 9 | H109: ='12-20'!F111 -> 14 | I109: ='12-30'!F111 -> 11 | J109: ='12-40'!F111 -> 16 | K109: ='12-45'!F111 -> 9 | L109: ='12-50'!F111 -> 9 | M109: ='12-55'!F111 -> 2 | N109: ='12-60'!F111 -> 5 | O109: ='12-70'!F111 -> 14 | P109: ='12-75'!F111 -> 8 | Q109: =F109/[1]人口!$B$41*100000 -> 9.22852394 | R109: =G109/[1]人口!$C$41*100000 -> 6.763001871 | S109: =H109/[1]人口!$D$41*100000 -> 9.199148422 | T109: =I109/[1]人口!$E$41*100000 -> 7.932158412 | U109: =J109/[1]人口!$F$41*100000 -> 14.30078118 | V109: =K109/[1]人口!$G$41*100000 -> 13.07322458 | W109: =L109/[1]人口!$H$41*100000 -> 7.544639115 | X109: =M109/[1]人口!$I$41*100000 -> 3.282563025 | Y109: =N109/[1]人口!$J$41*100000 -> 6.727935735 | Z109: =O109/[1]人口!$K$41*100000 -> 12.02408252 | AA109: =P109/[1]人口!$L$41*100000 -> 10.60234577 | AB109: =調整死亡率算出!E115 -> 7.992123111 | AC109: ='12-10 算出'!E115 -> 4.846511938 | AD109: ='12-20 算出'!E115 -> 6.052350784 | AE109: ='12-30 算出'!E115 -> 7.980727435 | AF109: ='12-40 算出'!E115 -> 12.97270913 | AG109: ='12-45 算出'!E115 -> 9.039587006 | AH109: ='12-50 算出'!E115 -> 6.085157014 | AI109: ='12-55 算出'!E115 -> 3.167118813 | AJ109: ='12-60 算出'!E115 -> 7.02948119 | AK109: ='12-70 算出'!E115 -> 12.09296026 | AL109: ='12-75 算出'!E115 -> 8.767046249
A110: 1) 10月1日現在、住民基本台帳の人口により算出した率である。

Sheet 12 区別，5歳階級別，選択死因分類別死亡数
A1: 12 区・年齢（5歳階級）・性別にみた選択死因分類別死亡数
A3: 総 数 | AG3: ='3 月・性別，区別死亡数'!$O$2 -> 平成30年
A4: 選択死因 分類コード | B4: 死因・性 | F4: 年齢階級
F5: 総数 | G5: 0歳 | H5: 1 | I5: 2 | J5: 3 | K5: 4 | L5: 0～4 | M5: 5～9 | N5: 10～14 | O5: 15～19 | P5: 20～24 | Q5: 25～29 | R5: 30～34 | S5: 35～39 | T5: 40～44 | U5: 45～49 | V5: 50～54 | W5: 55～59 | X5: 60～64 | Y5: 65～69 | Z5: 70～74 | AA5: 75～79 | AB5: 80～84 | AC5: 85～89 | AD5: 90～94 | AE5: 95～99 | AF5: 100～ | AG5: 不 詳
B7: 死 亡 総 数 | E7: 総数 | F7: =SUM('12-10:12-75'!F7) -> 19343 | G7: =SUM('12-10:12-75'!G7) -> 34 | H7: =SUM('12-10:12-75'!H7) -> 5 | I7: =SUM('12-10:12-75'!I7) -> 3 | J7: =SUM('12-10:12-75'!J7) -> 2 | K7: =SUM('12-10:12-75'!K7) -> 0 | L7: =SUM('12-10:12-75'!L7) -> 44 | M7: =SUM('12-10:12-75'!M7) -> 4 | N7: =SUM('12-10:12-75'!N7) -> 7 | O7: =SUM('12-10:12-75'!O7) -> 19 | P7: =SUM('12-10:12-75'!P7) -> 40 | Q7: =SUM('12-10:12-75'!Q7) -> 34 | R7: =SUM('12-10:12-75'!R7) -> 59 | S7: =SUM('12-10:12-75'!S7) -> 92 | T7: =SUM('12-10:12-75'!T7) -> 155 | U7: =SUM('12-10:12-75'!U7) -> 214 | V7: =SUM('12-10:12-75'!V7) -> 321 | W7: =SUM('12-10:12-75'!W7) -> 476 | X7: =SUM('12-10:12-75'!X7) -> 708 | Y7: =SUM('12-10:12-75'!Y7) -> 1373 | Z7: =SUM('12-10:12-75'!Z7) -> 1757 | AA7: =SUM('12-10:12-75'!AA7) -> 2274 | AB7: =SUM('12-10:12-75'!AB7) -> 3058 | AC7: =SUM('12-10:12-75'!AC7) -> 3763 | AD7: =SUM('12-10:12-75'!AD7) -> 3116 | AE7: =SUM('12-10:12-75'!AE7) -> 1445 | AF7: =SUM('12-10:12-75'!AF7) -> 384 | AG7: =SUM('12-10:12-75'!AG7) -> 0
